Workbook

Sheet CONTEST
B3: Contest
B4: =+[1]ZAVOD!$B4 -> Skate n Roll Polička 2022
A6: Datum | B6: =+[1]ZAVOD!$B6 -> 13.8. - 14.8.2022
A8: slalom 1 | B8: =+[1]ZAVOD!$B8 -> GIANT SLALOM | G8: tight | H8: T
A9: slalom 2 | B9: =+[1]ZAVOD!$B9 -> HYBRID SLALOM | G9: straight | H9: S
A10: slalom 3 | B10: =+[1]ZAVOD!$B10 -> TIGHT SLALOM | G10: hybrid | H10: H
A11: slalom 4 | B11: =+[1]ZAVOD!$B11 -> 0 | G11: special
A12: slalom 5 | B12: =+[1]ZAVOD!$B12 -> 0 | G12: giant
A13: kategorie | B13: =+[1]TEEN!$C$2 -> TEEN 12-14
F14: dnes | G14: =TODAY() -> 2022-08-14 | H14: =YEAR(G14) -> 2022
D15: VETERAN | F15: =H14-50 -> 1972
B16: Qualifications | D16: OPEN MAN
B17: Eliminations | D17: WOMAN
D18: JUNIOR 17 | E18: J- | F18: =H14-15 -> 2007 | G18: =H14-17 -> 2005 | H18: 15-17 | I18: 17 | J18: =I18-17 -> 0
D19: JUNIOR 15 TEEN | E19: T- | F19: =H14-12 -> 2010 | G19: =H14-14 -> 2008 | H19: 12-14 | I19: 14 | J19: =I19-17 -> -3
D20: KIDS 11 | E20: K- | F20: =H14 -> 2022 | G20: =H14-100 -> 1922 | H20: 0-11 | I20: 11 | J20: =I20-16 -> -5

Sheet REG
B2: Registrace | C2: =+CONTEST!B13 -> TEEN 12-14
B4: =CONTEST!B4 -> Skate n Roll Polička 2022
B5: =CONTEST!B6 -> 13.8. - 14.8.2022
B6: =CONTEST!B8 -> GIANT SLALOM
B10: Startnumer | C10: riders::name | D10: riders::Country | E10: riders::TEAM | F10: riders::Birth
B11: =IF([1]TEEN!B11<>"",[1]TEEN!B11,"") ->  | C11: =IF([1]TEEN!C11<>"",[1]TEEN!C11,"") -> Voves Jindřich | D11: =IF([1]TEEN!D11<>"",[1]TEEN!D11,"") -> CZE | E11: =IF([1]TEEN!E11<>"",[1]TEEN!E11,"") -> Skatecahoot | F11: =IF([1]TEEN!F11<>"",[1]TEEN!F11,"") ->  | G11: =IF(C11<>"",CONCATENATE(C11," [",D11,"] "),"") -> Voves Jindřich [CZE]
B12: =IF([1]TEEN!B12<>"",[1]TEEN!B12,"") ->  | C12: =IF([1]TEEN!C12<>"",[1]TEEN!C12,"") -> Rezková Anna | D12: =IF([1]TEEN!D12<>"",[1]TEEN!D12,"") -> CZE | E12: =IF([1]TEEN!E12<>"",[1]TEEN!E12,"") -> Skatecahoot | F12: =IF([1]TEEN!F12<>"",[1]TEEN!F12,"") ->  | G12: Rezková Anna [CZE]
B13: =IF([1]TEEN!B13<>"",[1]TEEN!B13,"") ->  | C13: =IF([1]TEEN!C13<>"",[1]TEEN!C13,"") ->  | D13: =IF([1]TEEN!D13<>"",[1]TEEN!D13,"") ->  | E13: =IF([1]TEEN!E13<>"",[1]TEEN!E13,"") ->  | F13: =IF([1]TEEN!F13<>"",[1]TEEN!F13,"") -> 
B14: =IF([1]TEEN!B14<>"",[1]TEEN!B14,"") ->  | C14: =IF([1]TEEN!C14<>"",[1]TEEN!C14,"") ->  | D14: =IF([1]TEEN!D14<>"",[1]TEEN!D14,"") ->  | E14: =IF([1]TEEN!E14<>"",[1]TEEN!E14,"") ->  | F14: =IF([1]TEEN!F14<>"",[1]TEEN!F14,"") -> 
B15: =IF([1]TEEN!B15<>"",[1]TEEN!B15,"") ->  | C15: =IF([1]TEEN!C15<>"",[1]TEEN!C15,"") ->  | D15: =IF([1]TEEN!D15<>"",[1]TEEN!D15,"") ->  | E15: =IF([1]TEEN!E15<>"",[1]TEEN!E15,"") ->  | F15: =IF([1]TEEN!F15<>"",[1]TEEN!F15,"") -> 
B16: =IF([1]TEEN!B16<>"",[1]TEEN!B16,"") ->  | C16: =IF([1]TEEN!C16<>"",[1]TEEN!C16,"") ->  | D16: =IF([1]TEEN!D16<>"",[1]TEEN!D16,"") ->  | E16: =IF([1]TEEN!E16<>"",[1]TEEN!E16,"") ->  | F16: =IF([1]TEEN!F16<>"",[1]TEEN!F16,"") -> 
B17: =IF([1]TEEN!B17<>"",[1]TEEN!B17,"") ->  | C17: =IF([1]TEEN!C17<>"",[1]TEEN!C17,"") ->  | D17: =IF([1]TEEN!D17<>"",[1]TEEN!D17,"") ->  | E17: =IF([1]TEEN!E17<>"",[1]TEEN!E17,"") ->  | F17: =IF([1]TEEN!F17<>"",[1]TEEN!F17,"") -> 
B18: =IF([1]TEEN!B18<>"",[1]TEEN!B18,"") ->  | C18: =IF([1]TEEN!C18<>"",[1]TEEN!C18,"") ->  | D18: =IF([1]TEEN!D18<>"",[1]TEEN!D18,"") ->  | E18: =IF([1]TEEN!E18<>"",[1]TEEN!E18,"") ->  | F18: =IF([1]TEEN!F18<>"",[1]TEEN!F18,"") -> 
B19: =IF([1]TEEN!B19<>"",[1]TEEN!B19,"") ->  | C19: =IF([1]TEEN!C19<>"",[1]TEEN!C19,"") ->  | D19: =IF([1]TEEN!D19<>"",[1]TEEN!D19,"") ->  | E19: =IF([1]TEEN!E19<>"",[1]TEEN!E19,"") ->  | F19: =IF([1]TEEN!F19<>"",[1]TEEN!F19,"") -> 
B20: =IF([1]TEEN!B20<>"",[1]TEEN!B20,"") ->  | C20: =IF([1]TEEN!C20<>"",[1]TEEN!C20,"") ->  | D20: =IF([1]TEEN!D20<>"",[1]TEEN!D20,"") ->  | E20: =IF([1]TEEN!E20<>"",[1]TEEN!E20,"") ->  | F20: =IF([1]TEEN!F20<>"",[1]TEEN!F20,"") -> 
B21: =IF([1]TEEN!B21<>"",[1]TEEN!B21,"") ->  | C21: =IF([1]TEEN!C21<>"",[1]TEEN!C21,"") ->  | D21: =IF([1]TEEN!D21<>"",[1]TEEN!D21,"") ->  | E21: =IF([1]TEEN!E21<>"",[1]TEEN!E21,"") ->  | F21: =IF([1]TEEN!F21<>"",[1]TEEN!F21,"") -> 
B22: =IF([1]TEEN!B22<>"",[1]TEEN!B22,"") ->  | C22: =IF([1]TEEN!C22<>"",[1]TEEN!C22,"") ->  | D22: =IF([1]TEEN!D22<>"",[1]TEEN!D22,"") ->  | E22: =IF([1]TEEN!E22<>"",[1]TEEN!E22,"") ->  | F22: =IF([1]TEEN!F22<>"",[1]TEEN!F22,"") -> 
B23: =IF([1]TEEN!B23<>"",[1]TEEN!B23,"") ->  | C23: =IF([1]TEEN!C23<>"",[1]TEEN!C23,"") ->  | D23: =IF([1]TEEN!D23<>"",[1]TEEN!D23,"") ->  | E23: =IF([1]TEEN!E23<>"",[1]TEEN!E23,"") ->  | F23: =IF([1]TEEN!F23<>"",[1]TEEN!F23,"") -> 
B24: =IF([1]TEEN!B24<>"",[1]TEEN!B24,"") ->  | C24: =IF([1]TEEN!C24<>"",[1]TEEN!C24,"") ->  | D24: =IF([1]TEEN!D24<>"",[1]TEEN!D24,"") ->  | E24: =IF([1]TEEN!E24<>"",[1]TEEN!E24,"") ->  | F24: =IF([1]TEEN!F24<>"",[1]TEEN!F24,"") -> 
B25: =IF([1]TEEN!B25<>"",[1]TEEN!B25,"") ->  | C25: =IF([1]TEEN!C25<>"",[1]TEEN!C25,"") ->  | D25: =IF([1]TEEN!D25<>"",[1]TEEN!D25,"") ->  | E25: =IF([1]TEEN!E25<>"",[1]TEEN!E25,"") ->  | F25: =IF([1]TEEN!F25<>"",[1]TEEN!F25,"") -> 
B26: =IF([1]TEEN!B26<>"",[1]TEEN!B26,"") ->  | C26: =IF([1]TEEN!C26<>"",[1]TEEN!C26,"") ->  | D26: =IF([1]TEEN!D26<>"",[1]TEEN!D26,"") ->  | E26: =IF([1]TEEN!E26<>"",[1]TEEN!E26,"") ->  | F26: =IF([1]TEEN!F26<>"",[1]TEEN!F26,"") -> 
B27: =IF([1]TEEN!B27<>"",[1]TEEN!B27,"") ->  | C27: =IF([1]TEEN!C27<>"",[1]TEEN!C27,"") ->  | D27: =IF([1]TEEN!D27<>"",[1]TEEN!D27,"") ->  | E27: =IF([1]TEEN!E27<>"",[1]TEEN!E27,"") ->  | F27: =IF([1]TEEN!F27<>"",[1]TEEN!F27,"") -> 
B28: =IF([1]TEEN!B28<>"",[1]TEEN!B28,"") ->  | C28: =IF([1]TEEN!C28<>"",[1]TEEN!C28,"") ->  | D28: =IF([1]TEEN!D28<>"",[1]TEEN!D28,"") ->  | E28: =IF([1]TEEN!E28<>"",[1]TEEN!E28,"") ->  | F28: =IF([1]TEEN!F28<>"",[1]TEEN!F28,"") -> 
B29: =IF([1]TEEN!B29<>"",[1]TEEN!B29,"") ->  | C29: =IF([1]TEEN!C29<>"",[1]TEEN!C29,"") ->  | D29: =IF([1]TEEN!D29<>"",[1]TEEN!D29,"") ->  | E29: =IF([1]TEEN!E29<>"",[1]TEEN!E29,"") ->  | F29: =IF([1]TEEN!F29<>"",[1]TEEN!F29,"") -> 
B30: =IF([1]TEEN!B30<>"",[1]TEEN!B30,"") ->  | C30: =IF([1]TEEN!C30<>"",[1]TEEN!C30,"") ->  | D30: =IF([1]TEEN!D30<>"",[1]TEEN!D30,"") ->  | E30: =IF([1]TEEN!E30<>"",[1]TEEN!E30,"") ->  | F30: =IF([1]TEEN!F30<>"",[1]TEEN!F30,"") -> 
B31: =IF([1]TEEN!B31<>"",[1]TEEN!B31,"") ->  | C31: =IF([1]TEEN!C31<>"",[1]TEEN!C31,"") ->  | D31: =IF([1]TEEN!D31<>"",[1]TEEN!D31,"") ->  | E31: =IF([1]TEEN!E31<>"",[1]TEEN!E31,"") ->  | F31: =IF([1]TEEN!F31<>"",[1]TEEN!F31,"") -> 
B32: =IF([1]TEEN!B32<>"",[1]TEEN!B32,"") ->  | C32: =IF([1]TEEN!C32<>"",[1]TEEN!C32,"") ->  | D32: =IF([1]TEEN!D32<>"",[1]TEEN!D32,"") ->  | E32: =IF([1]TEEN!E32<>"",[1]TEEN!E32,"") ->  | F32: =IF([1]TEEN!F32<>"",[1]TEEN!F32,"") -> 
B33: =IF([1]TEEN!B33<>"",[1]TEEN!B33,"") ->  | C33: =IF([1]TEEN!C33<>"",[1]TEEN!C33,"") ->  | D33: =IF([1]TEEN!D33<>"",[1]TEEN!D33,"") ->  | E33: =IF([1]TEEN!E33<>"",[1]TEEN!E33,"") ->  | F33: =IF([1]TEEN!F33<>"",[1]TEEN!F33,"") -> 
B34: =IF([1]TEEN!B34<>"",[1]TEEN!B34,"") ->  | C34: =IF([1]TEEN!C34<>"",[1]TEEN!C34,"") ->  | D34: =IF([1]TEEN!D34<>"",[1]TEEN!D34,"") ->  | E34: =IF([1]TEEN!E34<>"",[1]TEEN!E34,"") ->  | F34: =IF([1]TEEN!F34<>"",[1]TEEN!F34,"") -> 
B35: =IF([1]TEEN!B35<>"",[1]TEEN!B35,"") ->  | C35: =IF([1]TEEN!C35<>"",[1]TEEN!C35,"") ->  | D35: =IF([1]TEEN!D35<>"",[1]TEEN!D35,"") ->  | E35: =IF([1]TEEN!E35<>"",[1]TEEN!E35,"") ->  | F35: =IF([1]TEEN!F35<>"",[1]TEEN!F35,"") -> 
B36: =IF([1]TEEN!B36<>"",[1]TEEN!B36,"") ->  | C36: =IF([1]TEEN!C36<>"",[1]TEEN!C36,"") ->  | D36: =IF([1]TEEN!D36<>"",[1]TEEN!D36,"") ->  | E36: =IF([1]TEEN!E36<>"",[1]TEEN!E36,"") ->  | F36: =IF([1]TEEN!F36<>"",[1]TEEN!F36,"") -> 
B37: =IF([1]TEEN!B37<>"",[1]TEEN!B37,"") ->  | C37: =IF([1]TEEN!C37<>"",[1]TEEN!C37,"") ->  | D37: =IF([1]TEEN!D37<>"",[1]TEEN!D37,"") ->  | E37: =IF([1]TEEN!E37<>"",[1]TEEN!E37,"") ->  | F37: =IF([1]TEEN!F37<>"",[1]TEEN!F37,"") -> 
B38: =IF([1]TEEN!B38<>"",[1]TEEN!B38,"") ->  | C38: =IF([1]TEEN!C38<>"",[1]TEEN!C38,"") ->  | D38: =IF([1]TEEN!D38<>"",[1]TEEN!D38,"") ->  | E38: =IF([1]TEEN!E38<>"",[1]TEEN!E38,"") ->  | F38: =IF([1]TEEN!F38<>"",[1]TEEN!F38,"") ->  | G38: =IF(C38<>"",CONCATENATE(C38," [",D38,"] "),"") -> 
B39: =IF([1]TEEN!B39<>"",[1]TEEN!B39,"") ->  | C39: =IF([1]TEEN!C39<>"",[1]TEEN!C39,"") ->  | D39: =IF([1]TEEN!D39<>"",[1]TEEN!D39,"") ->  | E39: =IF([1]TEEN!E39<>"",[1]TEEN!E39,"") ->  | F39: =IF([1]TEEN!F39<>"",[1]TEEN!F39,"") ->  | G39: =IF(C39<>"",CONCATENATE(C39," [",D39,"] "),"") -> 
B40: =IF([1]TEEN!B40<>"",[1]TEEN!B40,"") ->  | C40: =IF([1]TEEN!C40<>"",[1]TEEN!C40,"") ->  | D40: =IF([1]TEEN!D40<>"",[1]TEEN!D40,"") ->  | E40: =IF([1]TEEN!E40<>"",[1]TEEN!E40,"") ->  | F40: =IF([1]TEEN!F40<>"",[1]TEEN!F40,"") -> 
B41: =IF([1]TEEN!B41<>"",[1]TEEN!B41,"") ->  | C41: =IF([1]TEEN!C41<>"",[1]TEEN!C41,"") ->  | D41: =IF([1]TEEN!D41<>"",[1]TEEN!D41,"") ->  | E41: =IF([1]TEEN!E41<>"",[1]TEEN!E41,"") ->  | F41: =IF([1]TEEN!F41<>"",[1]TEEN!F41,"") -> 
B42: =IF([1]TEEN!B42<>"",[1]TEEN!B42,"") ->  | C42: =IF([1]TEEN!C42<>"",[1]TEEN!C42,"") ->  | D42: =IF([1]TEEN!D42<>"",[1]TEEN!D42,"") ->  | E42: =IF([1]TEEN!E42<>"",[1]TEEN!E42,"") ->  | F42: =IF([1]TEEN!F42<>"",[1]TEEN!F42,"") -> 
B43: =IF([1]TEEN!B43<>"",[1]TEEN!B43,"") ->  | C43: =IF([1]TEEN!C43<>"",[1]TEEN!C43,"") ->  | D43: =IF([1]TEEN!D43<>"",[1]TEEN!D43,"") ->  | E43: =IF([1]TEEN!E43<>"",[1]TEEN!E43,"") ->  | F43: =IF([1]TEEN!F43<>"",[1]TEEN!F43,"") -> 
B44: =IF([1]TEEN!B44<>"",[1]TEEN!B44,"") ->  | C44: =IF([1]TEEN!C44<>"",[1]TEEN!C44,"") ->  | D44: =IF([1]TEEN!D44<>"",[1]TEEN!D44,"") ->  | E44: =IF([1]TEEN!E44<>"",[1]TEEN!E44,"") ->  | F44: =IF([1]TEEN!F44<>"",[1]TEEN!F44,"") -> 
B45: =IF([1]TEEN!B45<>"",[1]TEEN!B45,"") ->  | C45: =IF([1]TEEN!C45<>"",[1]TEEN!C45,"") ->  | D45: =IF([1]TEEN!D45<>"",[1]TEEN!D45,"") ->  | E45: =IF([1]TEEN!E45<>"",[1]TEEN!E45,"") ->  | F45: =IF([1]TEEN!F45<>"",[1]TEEN!F45,"") -> 
B46: =IF([1]TEEN!B46<>"",[1]TEEN!B46,"") ->  | C46: =IF([1]TEEN!C46<>"",[1]TEEN!C46,"") ->  | D46: =IF([1]TEEN!D46<>"",[1]TEEN!D46,"") ->  | E46: =IF([1]TEEN!E46<>"",[1]TEEN!E46,"") ->  | F46: =IF([1]TEEN!F46<>"",[1]TEEN!F46,"") -> 
B47: =IF([1]TEEN!B47<>"",[1]TEEN!B47,"") ->  | C47: =IF([1]TEEN!C47<>"",[1]TEEN!C47,"") ->  | D47: =IF([1]TEEN!D47<>"",[1]TEEN!D47,"") ->  | E47: =IF([1]TEEN!E47<>"",[1]TEEN!E47,"") ->  | F47: =IF([1]TEEN!F47<>"",[1]TEEN!F47,"") -> 
B48: =IF([1]TEEN!B48<>"",[1]TEEN!B48,"") ->  | C48: =IF([1]TEEN!C48<>"",[1]TEEN!C48,"") ->  | D48: =IF([1]TEEN!D48<>"",[1]TEEN!D48,"") ->  | E48: =IF([1]TEEN!E48<>"",[1]TEEN!E48,"") ->  | F48: =IF([1]TEEN!F48<>"",[1]TEEN!F48,"") -> 
B49: =IF([1]TEEN!B49<>"",[1]TEEN!B49,"") ->  | C49: =IF([1]TEEN!C49<>"",[1]TEEN!C49,"") ->  | D49: =IF([1]TEEN!D49<>"",[1]TEEN!D49,"") ->  | E49: =IF([1]TEEN!E49<>"",[1]TEEN!E49,"") ->  | F49: =IF([1]TEEN!F49<>"",[1]TEEN!F49,"") -> 
B50: =IF([1]TEEN!B50<>"",[1]TEEN!B50,"") ->  | C50: =IF([1]TEEN!C50<>"",[1]TEEN!C50,"") ->  | D50: =IF([1]TEEN!D50<>"",[1]TEEN!D50,"") ->  | E50: =IF([1]TEEN!E50<>"",[1]TEEN!E50,"") ->  | F50: =IF([1]TEEN!F50<>"",[1]TEEN!F50,"") -> 
B51: =IF([1]TEEN!B51<>"",[1]TEEN!B51,"") ->  | C51: =IF([1]TEEN!C51<>"",[1]TEEN!C51,"") ->  | D51: =IF([1]TEEN!D51<>"",[1]TEEN!D51,"") ->  | E51: =IF([1]TEEN!E51<>"",[1]TEEN!E51,"") ->  | F51: =IF([1]TEEN!F51<>"",[1]TEEN!F51,"") -> 
B52: =IF([1]TEEN!B52<>"",[1]TEEN!B52,"") ->  | C52: =IF([1]TEEN!C52<>"",[1]TEEN!C52,"") ->  | D52: =IF([1]TEEN!D52<>"",[1]TEEN!D52,"") ->  | E52: =IF([1]TEEN!E52<>"",[1]TEEN!E52,"") ->  | F52: =IF([1]TEEN!F52<>"",[1]TEEN!F52,"") -> 
B53: =IF([1]TEEN!B53<>"",[1]TEEN!B53,"") ->  | C53: =IF([1]TEEN!C53<>"",[1]TEEN!C53,"") ->  | D53: =IF([1]TEEN!D53<>"",[1]TEEN!D53,"") ->  | E53: =IF([1]TEEN!E53<>"",[1]TEEN!E53,"") ->  | F53: =IF([1]TEEN!F53<>"",[1]TEEN!F53,"") -> 
B54: =IF([1]TEEN!B54<>"",[1]TEEN!B54,"") ->  | C54: =IF([1]TEEN!C54<>"",[1]TEEN!C54,"") ->  | D54: =IF([1]TEEN!D54<>"",[1]TEEN!D54,"") ->  | E54: =IF([1]TEEN!E54<>"",[1]TEEN!E54,"") ->  | F54: =IF([1]TEEN!F54<>"",[1]TEEN!F54,"") -> 
B55: =IF([1]TEEN!B55<>"",[1]TEEN!B55,"") ->  | C55: =IF([1]TEEN!C55<>"",[1]TEEN!C55,"") ->  | D55: =IF([1]TEEN!D55<>"",[1]TEEN!D55,"") ->  | E55: =IF([1]TEEN!E55<>"",[1]TEEN!E55,"") ->  | F55: =IF([1]TEEN!F55<>"",[1]TEEN!F55,"") -> 
B56: =IF([1]TEEN!B56<>"",[1]TEEN!B56,"") ->  | C56: =IF([1]TEEN!C56<>"",[1]TEEN!C56,"") ->  | D56: =IF([1]TEEN!D56<>"",[1]TEEN!D56,"") ->  | E56: =IF([1]TEEN!E56<>"",[1]TEEN!E56,"") ->  | F56: =IF([1]TEEN!F56<>"",[1]TEEN!F56,"") -> 
B57: =IF([1]TEEN!B57<>"",[1]TEEN!B57,"") ->  | C57: =IF([1]TEEN!C57<>"",[1]TEEN!C57,"") ->  | D57: =IF([1]TEEN!D57<>"",[1]TEEN!D57,"") ->  | E57: =IF([1]TEEN!E57<>"",[1]TEEN!E57,"") ->  | F57: =IF([1]TEEN!F57<>"",[1]TEEN!F57,"") -> 
B58: =IF([1]TEEN!B58<>"",[1]TEEN!B58,"") ->  | C58: =IF([1]TEEN!C58<>"",[1]TEEN!C58,"") ->  | D58: =IF([1]TEEN!D58<>"",[1]TEEN!D58,"") ->  | E58: =IF([1]TEEN!E58<>"",[1]TEEN!E58,"") ->  | F58: =IF([1]TEEN!F58<>"",[1]TEEN!F58,"") -> 
B59: =IF([1]TEEN!B59<>"",[1]TEEN!B59,"") ->  | C59: =IF([1]TEEN!C59<>"",[1]TEEN!C59,"") ->  | D59: =IF([1]TEEN!D59<>"",[1]TEEN!D59,"") ->  | E59: =IF([1]TEEN!E59<>"",[1]TEEN!E59,"") ->  | F59: =IF([1]TEEN!F59<>"",[1]TEEN!F59,"") -> 
B60: =IF([1]TEEN!B60<>"",[1]TEEN!B60,"") ->  | C60: =IF([1]TEEN!C60<>"",[1]TEEN!C60,"") ->  | D60: =IF([1]TEEN!D60<>"",[1]TEEN!D60,"") ->  | E60: =IF([1]TEEN!E60<>"",[1]TEEN!E60,"") ->  | F60: =IF([1]TEEN!F60<>"",[1]TEEN!F60,"") -> 
B61: =IF([1]TEEN!B61<>"",[1]TEEN!B61,"") ->  | C61: =IF([1]TEEN!C61<>"",[1]TEEN!C61,"") ->  | D61: =IF([1]TEEN!D61<>"",[1]TEEN!D61,"") ->  | E61: =IF([1]TEEN!E61<>"",[1]TEEN!E61,"") ->  | F61: =IF([1]TEEN!F61<>"",[1]TEEN!F61,"") -> 
B62: =IF([1]TEEN!B62<>"",[1]TEEN!B62,"") ->  | C62: =IF([1]TEEN!C62<>"",[1]TEEN!C62,"") ->  | D62: =IF([1]TEEN!D62<>"",[1]TEEN!D62,"") ->  | E62: =IF([1]TEEN!E62<>"",[1]TEEN!E62,"") ->  | F62: =IF([1]TEEN!F62<>"",[1]TEEN!F62,"") -> 
B63: =IF([1]TEEN!B63<>"",[1]TEEN!B63,"") ->  | C63: =IF([1]TEEN!C63<>"",[1]TEEN!C63,"") ->  | D63: =IF([1]TEEN!D63<>"",[1]TEEN!D63,"") ->  | E63: =IF([1]TEEN!E63<>"",[1]TEEN!E63,"") ->  | F63: =IF([1]TEEN!F63<>"",[1]TEEN!F63,"") -> 
B64: =IF([1]TEEN!B64<>"",[1]TEEN!B64,"") ->  | C64: =IF([1]TEEN!C64<>"",[1]TEEN!C64,"") ->  | D64: =IF([1]TEEN!D64<>"",[1]TEEN!D64,"") ->  | E64: =IF([1]TEEN!E64<>"",[1]TEEN!E64,"") ->  | F64: =IF([1]TEEN!F64<>"",[1]TEEN!F64,"") -> 
B65: =IF([1]TEEN!B65<>"",[1]TEEN!B65,"") ->  | C65: =IF([1]TEEN!C65<>"",[1]TEEN!C65,"") ->  | D65: =IF([1]TEEN!D65<>"",[1]TEEN!D65,"") ->  | E65: =IF([1]TEEN!E65<>"",[1]TEEN!E65,"") ->  | F65: =IF([1]TEEN!F65<>"",[1]TEEN!F65,"") -> 
B66: =IF([1]TEEN!B66<>"",[1]TEEN!B66,"") ->  | C66: =IF([1]TEEN!C66<>"",[1]TEEN!C66,"") ->  | D66: =IF([1]TEEN!D66<>"",[1]TEEN!D66,"") ->  | E66: =IF([1]TEEN!E66<>"",[1]TEEN!E66,"") ->  | F66: =IF([1]TEEN!F66<>"",[1]TEEN!F66,"") -> 
B67: =IF([1]TEEN!B67<>"",[1]TEEN!B67,"") ->  | C67: =IF([1]TEEN!C67<>"",[1]TEEN!C67,"") ->  | D67: =IF([1]TEEN!D67<>"",[1]TEEN!D67,"") ->  | E67: =IF([1]TEEN!E67<>"",[1]TEEN!E67,"") ->  | F67: =IF([1]TEEN!F67<>"",[1]TEEN!F67,"") -> 
B68: =IF([1]TEEN!B68<>"",[1]TEEN!B68,"") ->  | C68: =IF([1]TEEN!C68<>"",[1]TEEN!C68,"") ->  | D68: =IF([1]TEEN!D68<>"",[1]TEEN!D68,"") ->  | E68: =IF([1]TEEN!E68<>"",[1]TEEN!E68,"") ->  | F68: =IF([1]TEEN!F68<>"",[1]TEEN!F68,"") -> 
B69: =IF([1]TEEN!B69<>"",[1]TEEN!B69,"") ->  | C69: =IF([1]TEEN!C69<>"",[1]TEEN!C69,"") ->  | D69: =IF([1]TEEN!D69<>"",[1]TEEN!D69,"") ->  | E69: =IF([1]TEEN!E69<>"",[1]TEEN!E69,"") ->  | F69: =IF([1]TEEN!F69<>"",[1]TEEN!F69,"") -> 
B70: =IF([1]TEEN!B70<>"",[1]TEEN!B70,"") ->  | C70: =IF([1]TEEN!C70<>"",[1]TEEN!C70,"") ->  | D70: =IF([1]TEEN!D70<>"",[1]TEEN!D70,"") ->  | E70: =IF([1]TEEN!E70<>"",[1]TEEN!E70,"") ->  | F70: =IF([1]TEEN!F70<>"",[1]TEEN!F70,"") -> 
B71: =IF([1]TEEN!B71<>"",[1]TEEN!B71,"") ->  | C71: =IF([1]TEEN!C71<>"",[1]TEEN!C71,"") ->  | D71: =IF([1]TEEN!D71<>"",[1]TEEN!D71,"") ->  | E71: =IF([1]TEEN!E71<>"",[1]TEEN!E71,"") ->  | F71: =IF([1]TEEN!F71<>"",[1]TEEN!F71,"") -> 
B72: =IF([1]TEEN!B72<>"",[1]TEEN!B72,"") ->  | C72: =IF([1]TEEN!C72<>"",[1]TEEN!C72,"") ->  | D72: =IF([1]TEEN!D72<>"",[1]TEEN!D72,"") ->  | E72: =IF([1]TEEN!E72<>"",[1]TEEN!E72,"") ->  | F72: =IF([1]TEEN!F72<>"",[1]TEEN!F72,"") -> 
B73: =IF([1]TEEN!B73<>"",[1]TEEN!B73,"") ->  | C73: =IF([1]TEEN!C73<>"",[1]TEEN!C73,"") ->  | D73: =IF([1]TEEN!D73<>"",[1]TEEN!D73,"") ->  | E73: =IF([1]TEEN!E73<>"",[1]TEEN!E73,"") ->  | F73: =IF([1]TEEN!F73<>"",[1]TEEN!F73,"") -> 
B74: =IF([1]TEEN!B74<>"",[1]TEEN!B74,"") ->  | C74: =IF([1]TEEN!C74<>"",[1]TEEN!C74,"") ->  | D74: =IF([1]TEEN!D74<>"",[1]TEEN!D74,"") ->  | E74: =IF([1]TEEN!E74<>"",[1]TEEN!E74,"") ->  | F74: =IF([1]TEEN!F74<>"",[1]TEEN!F74,"") -> 
B75: =IF([1]TEEN!B75<>"",[1]TEEN!B75,"") ->  | C75: =IF([1]TEEN!C75<>"",[1]TEEN!C75,"") ->  | D75: =IF([1]TEEN!D75<>"",[1]TEEN!D75,"") ->  | E75: =IF([1]TEEN!E75<>"",[1]TEEN!E75,"") ->  | F75: =IF([1]TEEN!F75<>"",[1]TEEN!F75,"") -> 
B76: =IF([1]TEEN!B76<>"",[1]TEEN!B76,"") ->  | C76: =IF([1]TEEN!C76<>"",[1]TEEN!C76,"") ->  | D76: =IF([1]TEEN!D76<>"",[1]TEEN!D76,"") ->  | E76: =IF([1]TEEN!E76<>"",[1]TEEN!E76,"") ->  | F76: =IF([1]TEEN!F76<>"",[1]TEEN!F76,"") -> 
B77: =IF([1]TEEN!B77<>"",[1]TEEN!B77,"") ->  | C77: =IF([1]TEEN!C77<>"",[1]TEEN!C77,"") ->  | D77: =IF([1]TEEN!D77<>"",[1]TEEN!D77,"") ->  | E77: =IF([1]TEEN!E77<>"",[1]TEEN!E77,"") ->  | F77: =IF([1]TEEN!F77<>"",[1]TEEN!F77,"") -> 
B78: =IF([1]TEEN!B78<>"",[1]TEEN!B78,"") ->  | C78: =IF([1]TEEN!C78<>"",[1]TEEN!C78,"") ->  | D78: =IF([1]TEEN!D78<>"",[1]TEEN!D78,"") ->  | E78: =IF([1]TEEN!E78<>"",[1]TEEN!E78,"") ->  | F78: =IF([1]TEEN!F78<>"",[1]TEEN!F78,"") -> 
B79: =IF([1]TEEN!B79<>"",[1]TEEN!B79,"") ->  | C79: =IF([1]TEEN!C79<>"",[1]TEEN!C79,"") ->  | D79: =IF([1]TEEN!D79<>"",[1]TEEN!D79,"") ->  | E79: =IF([1]TEEN!E79<>"",[1]TEEN!E79,"") ->  | F79: =IF([1]TEEN!F79<>"",[1]TEEN!F79,"") -> 
B80: =IF([1]TEEN!B80<>"",[1]TEEN!B80,"") ->  | C80: =IF([1]TEEN!C80<>"",[1]TEEN!C80,"") ->  | D80: =IF([1]TEEN!D80<>"",[1]TEEN!D80,"") ->  | E80: =IF([1]TEEN!E80<>"",[1]TEEN!E80,"") ->  | F80: =IF([1]TEEN!F80<>"",[1]TEEN!F80,"") -> 
B81: =IF([1]TEEN!B81<>"",[1]TEEN!B81,"") ->  | C81: =IF([1]TEEN!C81<>"",[1]TEEN!C81,"") ->  | D81: =IF([1]TEEN!D81<>"",[1]TEEN!D81,"") ->  | E81: =IF([1]TEEN!E81<>"",[1]TEEN!E81,"") ->  | F81: =IF([1]TEEN!F81<>"",[1]TEEN!F81,"") -> 
B82: =IF([1]TEEN!B82<>"",[1]TEEN!B82,"") ->  | C82: =IF([1]TEEN!C82<>"",[1]TEEN!C82,"") ->  | D82: =IF([1]TEEN!D82<>"",[1]TEEN!D82,"") ->  | E82: =IF([1]TEEN!E82<>"",[1]TEEN!E82,"") ->  | F82: =IF([1]TEEN!F82<>"",[1]TEEN!F82,"") -> 
B83: =IF([1]TEEN!B83<>"",[1]TEEN!B83,"") ->  | C83: =IF([1]TEEN!C83<>"",[1]TEEN!C83,"") ->  | D83: =IF([1]TEEN!D83<>"",[1]TEEN!D83,"") ->  | E83: =IF([1]TEEN!E83<>"",[1]TEEN!E83,"") ->  | F83: =IF([1]TEEN!F83<>"",[1]TEEN!F83,"") -> 
B84: =IF([1]TEEN!B84<>"",[1]TEEN!B84,"") ->  | C84: =IF([1]TEEN!C84<>"",[1]TEEN!C84,"") ->  | D84: =IF([1]TEEN!D84<>"",[1]TEEN!D84,"") ->  | E84: =IF([1]TEEN!E84<>"",[1]TEEN!E84,"") ->  | F84: =IF([1]TEEN!F84<>"",[1]TEEN!F84,"") -> 
B85: =IF([1]TEEN!B85<>"",[1]TEEN!B85,"") ->  | C85: =IF([1]TEEN!C85<>"",[1]TEEN!C85,"") ->  | D85: =IF([1]TEEN!D85<>"",[1]TEEN!D85,"") ->  | E85: =IF([1]TEEN!E85<>"",[1]TEEN!E85,"") ->  | F85: =IF([1]TEEN!F85<>"",[1]TEEN!F85,"") -> 
B86: =IF([1]TEEN!B86<>"",[1]TEEN!B86,"") ->  | C86: =IF([1]TEEN!C86<>"",[1]TEEN!C86,"") ->  | D86: =IF([1]TEEN!D86<>"",[1]TEEN!D86,"") ->  | E86: =IF([1]TEEN!E86<>"",[1]TEEN!E86,"") ->  | F86: =IF([1]TEEN!F86<>"",[1]TEEN!F86,"") -> 
B87: =IF([1]TEEN!B87<>"",[1]TEEN!B87,"") ->  | C87: =IF([1]TEEN!C87<>"",[1]TEEN!C87,"") ->  | D87: =IF([1]TEEN!D87<>"",[1]TEEN!D87,"") ->  | E87: =IF([1]TEEN!E87<>"",[1]TEEN!E87,"") ->  | F87: =IF([1]TEEN!F87<>"",[1]TEEN!F87,"") -> 
B88: =IF([1]TEEN!B88<>"",[1]TEEN!B88,"") ->  | C88: =IF([1]TEEN!C88<>"",[1]TEEN!C88,"") ->  | D88: =IF([1]TEEN!D88<>"",[1]TEEN!D88,"") ->  | E88: =IF([1]TEEN!E88<>"",[1]TEEN!E88,"") ->  | F88: =IF([1]TEEN!F88<>"",[1]TEEN!F88,"") -> 
B89: =IF([1]TEEN!B89<>"",[1]TEEN!B89,"") ->  | C89: =IF([1]TEEN!C89<>"",[1]TEEN!C89,"") ->  | D89: =IF([1]TEEN!D89<>"",[1]TEEN!D89,"") ->  | E89: =IF([1]TEEN!E89<>"",[1]TEEN!E89,"") ->  | F89: =IF([1]TEEN!F89<>"",[1]TEEN!F89,"") -> 
B90: =IF([1]TEEN!B90<>"",[1]TEEN!B90,"") ->  | C90: =IF([1]TEEN!C90<>"",[1]TEEN!C90,"") ->  | D90: =IF([1]TEEN!D90<>"",[1]TEEN!D90,"") ->  | E90: =IF([1]TEEN!E90<>"",[1]TEEN!E90,"") ->  | F90: =IF([1]TEEN!F90<>"",[1]TEEN!F90,"") -> 
B91: =IF([1]TEEN!B91<>"",[1]TEEN!B91,"") ->  | C91: =IF([1]TEEN!C91<>"",[1]TEEN!C91,"") ->  | D91: =IF([1]TEEN!D91<>"",[1]TEEN!D91,"") ->  | E91: =IF([1]TEEN!E91<>"",[1]TEEN!E91,"") ->  | F91: =IF([1]TEEN!F91<>"",[1]TEEN!F91,"") -> 
B92: =IF([1]TEEN!B92<>"",[1]TEEN!B92,"") ->  | C92: =IF([1]TEEN!C92<>"",[1]TEEN!C92,"") ->  | D92: =IF([1]TEEN!D92<>"",[1]TEEN!D92,"") ->  | E92: =IF([1]TEEN!E92<>"",[1]TEEN!E92,"") ->  | F92: =IF([1]TEEN!F92<>"",[1]TEEN!F92,"") -> 
B93: =IF([1]TEEN!B93<>"",[1]TEEN!B93,"") ->  | C93: =IF([1]TEEN!C93<>"",[1]TEEN!C93,"") ->  | D93: =IF([1]TEEN!D93<>"",[1]TEEN!D93,"") ->  | E93: =IF([1]TEEN!E93<>"",[1]TEEN!E93,"") ->  | F93: =IF([1]TEEN!F93<>"",[1]TEEN!F93,"") -> 
B94: =IF([1]TEEN!B94<>"",[1]TEEN!B94,"") ->  | C94: =IF([1]TEEN!C94<>"",[1]TEEN!C94,"") ->  | D94: =IF([1]TEEN!D94<>"",[1]TEEN!D94,"") ->  | E94: =IF([1]TEEN!E94<>"",[1]TEEN!E94,"") ->  | F94: =IF([1]TEEN!F94<>"",[1]TEEN!F94,"") -> 
B95: =IF([1]TEEN!B95<>"",[1]TEEN!B95,"") ->  | C95: =IF([1]TEEN!C95<>"",[1]TEEN!C95,"") ->  | D95: =IF([1]TEEN!D95<>"",[1]TEEN!D95,"") ->  | E95: =IF([1]TEEN!E95<>"",[1]TEEN!E95,"") ->  | F95: =IF([1]TEEN!F95<>"",[1]TEEN!F95,"") -> 
B96: =IF([1]TEEN!B96<>"",[1]TEEN!B96,"") ->  | C96: =IF([1]TEEN!C96<>"",[1]TEEN!C96,"") ->  | D96: =IF([1]TEEN!D96<>"",[1]TEEN!D96,"") ->  | E96: =IF([1]TEEN!E96<>"",[1]TEEN!E96,"") ->  | F96: =IF([1]TEEN!F96<>"",[1]TEEN!F96,"") -> 
B97: =IF([1]TEEN!B97<>"",[1]TEEN!B97,"") ->  | C97: =IF([1]TEEN!C97<>"",[1]TEEN!C97,"") ->  | D97: =IF([1]TEEN!D97<>"",[1]TEEN!D97,"") ->  | E97: =IF([1]TEEN!E97<>"",[1]TEEN!E97,"") ->  | F97: =IF([1]TEEN!F97<>"",[1]TEEN!F97,"") -> 
B98: =IF([1]TEEN!B98<>"",[1]TEEN!B98,"") ->  | C98: =IF([1]TEEN!C98<>"",[1]TEEN!C98,"") ->  | D98: =IF([1]TEEN!D98<>"",[1]TEEN!D98,"") ->  | E98: =IF([1]TEEN!E98<>"",[1]TEEN!E98,"") ->  | F98: =IF([1]TEEN!F98<>"",[1]TEEN!F98,"") -> 
B99: =IF([1]TEEN!B99<>"",[1]TEEN!B99,"") ->  | C99: =IF([1]TEEN!C99<>"",[1]TEEN!C99,"") ->  | D99: =IF([1]TEEN!D99<>"",[1]TEEN!D99,"") ->  | E99: =IF([1]TEEN!E99<>"",[1]TEEN!E99,"") ->  | F99: =IF([1]TEEN!F99<>"",[1]TEEN!F99,"") -> 
B100: =IF([1]TEEN!B100<>"",[1]TEEN!B100,"") ->  | C100: =IF([1]TEEN!C100<>"",[1]TEEN!C100,"") ->  | D100: =IF([1]TEEN!D100<>"",[1]TEEN!D100,"") ->  | E100: =IF([1]TEEN!E100<>"",[1]TEEN!E100,"") ->  | F100: =IF([1]TEEN!F100<>"",[1]TEEN!F100,"") -> 
B101: =IF([1]TEEN!B101<>"",[1]TEEN!B101,"") ->  | C101: =IF([1]TEEN!C101<>"",[1]TEEN!C101,"") ->  | D101: =IF([1]TEEN!D101<>"",[1]TEEN!D101,"") ->  | E101: =IF([1]TEEN!E101<>"",[1]TEEN!E101,"") ->  | F101: =IF([1]TEEN!F101<>"",[1]TEEN!F101,"") -> 
B102: =IF([1]TEEN!B102<>"",[1]TEEN!B102,"") ->  | C102: =IF([1]TEEN!C102<>"",[1]TEEN!C102,"") ->  | D102: =IF([1]TEEN!D102<>"",[1]TEEN!D102,"") ->  | E102: =IF([1]TEEN!E102<>"",[1]TEEN!E102,"") ->  | F102: =IF([1]TEEN!F102<>"",[1]TEEN!F102,"") -> 
B103: =IF([1]TEEN!B103<>"",[1]TEEN!B103,"") ->  | C103: =IF([1]TEEN!C103<>"",[1]TEEN!C103,"") ->  | D103: =IF([1]TEEN!D103<>"",[1]TEEN!D103,"") ->  | E103: =IF([1]TEEN!E103<>"",[1]TEEN!E103,"") ->  | F103: =IF([1]TEEN!F103<>"",[1]TEEN!F103,"") ->  | G103: =IF(C103<>"",CONCATENATE(C103," [",D103,"] "),"") -> 
B104: =IF([1]TEEN!B104<>"",[1]TEEN!B104,"") ->  | C104: =IF([1]TEEN!C104<>"",[1]TEEN!C104,"") ->  | D104: =IF([1]TEEN!D104<>"",[1]TEEN!D104,"") ->  | E104: =IF([1]TEEN!E104<>"",[1]TEEN!E104,"") ->  | F104: =IF([1]TEEN!F104<>"",[1]TEEN!F104,"") -> 
B105: =IF([1]TEEN!B105<>"",[1]TEEN!B105,"") ->  | C105: =IF([1]TEEN!C105<>"",[1]TEEN!C105,"") ->  | D105: =IF([1]TEEN!D105<>"",[1]TEEN!D105,"") ->  | E105: =IF([1]TEEN!E105<>"",[1]TEEN!E105,"") ->  | F105: =IF([1]TEEN!F105<>"",[1]TEEN!F105,"") -> 
B106: =IF([1]TEEN!B106<>"",[1]TEEN!B106,"") ->  | C106: =IF([1]TEEN!C106<>"",[1]TEEN!C106,"") ->  | D106: =IF([1]TEEN!D106<>"",[1]TEEN!D106,"") ->  | E106: =IF([1]TEEN!E106<>"",[1]TEEN!E106,"") ->  | F106: =IF([1]TEEN!F106<>"",[1]TEEN!F106,"") -> 
B107: =IF([1]TEEN!B107<>"",[1]TEEN!B107,"") ->  | C107: =IF([1]TEEN!C107<>"",[1]TEEN!C107,"") ->  | D107: =IF([1]TEEN!D107<>"",[1]TEEN!D107,"") ->  | E107: =IF([1]TEEN!E107<>"",[1]TEEN!E107,"") ->  | F107: =IF([1]TEEN!F107<>"",[1]TEEN!F107,"") -> 
B108: =IF([1]TEEN!B108<>"",[1]TEEN!B108,"") ->  | C108: =IF([1]TEEN!C108<>"",[1]TEEN!C108,"") ->  | D108: =IF([1]TEEN!D108<>"",[1]TEEN!D108,"") ->  | E108: =IF([1]TEEN!E108<>"",[1]TEEN!E108,"") ->  | F108: =IF([1]TEEN!F108<>"",[1]TEEN!F108,"") -> 
B109: =IF([1]TEEN!B109<>"",[1]TEEN!B109,"") ->  | C109: =IF([1]TEEN!C109<>"",[1]TEEN!C109,"") ->  | D109: =IF([1]TEEN!D109<>"",[1]TEEN!D109,"") ->  | E109: =IF([1]TEEN!E109<>"",[1]TEEN!E109,"") ->  | F109: =IF([1]TEEN!F109<>"",[1]TEEN!F109,"") -> 
B110: =IF([1]TEEN!B110<>"",[1]TEEN!B110,"") ->  | C110: =IF([1]TEEN!C110<>"",[1]TEEN!C110,"") ->  | D110: =IF([1]TEEN!D110<>"",[1]TEEN!D110,"") ->  | E110: =IF([1]TEEN!E110<>"",[1]TEEN!E110,"") ->  | F110: =IF([1]TEEN!F110<>"",[1]TEEN!F110,"") -> 
B111: =IF([1]TEEN!B111<>"",[1]TEEN!B111,"") ->  | C111: =IF([1]TEEN!C111<>"",[1]TEEN!C111,"") ->  | D111: =IF([1]TEEN!D111<>"",[1]TEEN!D111,"") ->  | E111: =IF([1]TEEN!E111<>"",[1]TEEN!E111,"") ->  | F111: =IF([1]TEEN!F111<>"",[1]TEEN!F111,"") -> 

Sheet Výsledky
B1: =+CONTEST!B8 -> GIANT SLALOM | D1: =+CONTEST!B9 -> HYBRID SLALOM | F1: =+CONTEST!B10 -> TIGHT SLALOM | H1: reg
A2: Final Position | B2: Racer No. & Name | C2: Final Position | D2: Racer No. & Name | E2: Final Position | F2: Racer No. & Name
A3: =+'G H2H'!H91 -> 1 | B3: =IF('G Q 1-2'!AQ12<>"BYE",(+'G H2H'!I91),"") -> Voves Jindřich [CZE] | C3: =+'H H2H'!H91 -> 1 | D3: =IF('H Q 1-2'!AQ12<>"BYE",(+'H H2H'!I91),"") -> Rezková Anna [CZE] | E3: =+'T H2H'!H91 -> 1 | F3: =IF('T Q 1-2'!AQ12<>"BYE",(+'T H2H'!I91),"") -> Voves Jindřich [CZE]
A4: =+'G H2H'!H92 -> 2 | B4: =IF('G Q 1-2'!AQ13<>"BYE",(+'G H2H'!I92),"") -> Rezková Anna [CZE] | C4: =+'H H2H'!H92 -> 2 | D4: =IF('H Q 1-2'!AQ13<>"BYE",(+'H H2H'!I92),"") -> Voves Jindřich [CZE] | E4: =+'T H2H'!H92 -> 2 | F4: =IF('T Q 1-2'!AQ13<>"BYE",(+'T H2H'!I92),"") -> Rezková Anna [CZE]
A5: =+'G H2H'!H93 -> 3 | B5: =IF('G Q 1-2'!AQ14<>"BYE",(+'G H2H'!I93),"") ->  | C5: =+'H H2H'!H93 -> 3 | D5: =IF('H Q 1-2'!AQ14<>"BYE",(+'H H2H'!I93),"") ->  | E5: =+'T H2H'!H93 -> 3 | F5: =IF('T Q 1-2'!AQ14<>"BYE",(+'T H2H'!I93),"") -> 
A6: =+'G H2H'!H94 -> 4 | B6: =IF('G Q 1-2'!AQ15<>"BYE",(+'G H2H'!I94),"") ->  | C6: =+'H H2H'!H94 -> 4 | D6: =IF('H Q 1-2'!AQ15<>"BYE",(+'H H2H'!I94),"") ->  | E6: =+'T H2H'!H94 -> 4 | F6: =IF('T Q 1-2'!AQ15<>"BYE",(+'T H2H'!I94),"") -> 
A7: =+'G H2H'!H95 -> 5 | B7: =IF('G Q 1-2'!AQ16<>"BYE",(+'G H2H'!I95),"") ->  | C7: =+'H H2H'!H95 -> 5 | D7: =IF('H Q 1-2'!AQ16<>"BYE",(+'H H2H'!I95),"") ->  | E7: =+'T H2H'!H95 -> 5 | F7: =IF('T Q 1-2'!AQ16<>"BYE",(+'T H2H'!I95),"") -> 
A8: =+'G H2H'!H96 -> 6 | B8: =IF('G Q 1-2'!AQ17<>"BYE",(+'G H2H'!I96),"") ->  | C8: =+'H H2H'!H96 -> 6 | D8: =IF('H Q 1-2'!AQ17<>"BYE",(+'H H2H'!I96),"") ->  | E8: =+'T H2H'!H96 -> 6 | F8: =IF('T Q 1-2'!AQ17<>"BYE",(+'T H2H'!I96),"") -> 
A9: =+'G H2H'!H97 -> 7 | B9: =IF('G Q 1-2'!AQ18<>"BYE",(+'G H2H'!I97),"") ->  | C9: =+'H H2H'!H97 -> 7 | D9: =IF('H Q 1-2'!AQ18<>"BYE",(+'H H2H'!I97),"") ->  | E9: =+'T H2H'!H97 -> 7 | F9: =IF('T Q 1-2'!AQ18<>"BYE",(+'T H2H'!I97),"") -> 
A10: =+'G H2H'!H98 -> 8 | B10: =IF('G Q 1-2'!AQ19<>"BYE",(+'G H2H'!I98),"") ->  | C10: =+'H H2H'!H98 -> 8 | D10: =IF('H Q 1-2'!AQ19<>"BYE",(+'H H2H'!I98),"") ->  | E10: =+'T H2H'!H98 -> 8 | F10: =IF('T Q 1-2'!AQ19<>"BYE",(+'T H2H'!I98),"") -> 
A11: =+'G H2H'!H99 -> 9 | B11: =IF('G Q 1-2'!AQ20<>"BYE",(+'G H2H'!I99),"") ->  | C11: =+'H H2H'!H99 -> 9 | D11: =IF('H Q 1-2'!AQ20<>"BYE",(+'H H2H'!I99),"") ->  | E11: =+'T H2H'!H99 -> 9 | F11: =IF('T Q 1-2'!AQ20<>"BYE",(+'T H2H'!I99),"") -> 
A12: =+'G H2H'!H100 -> 10 | B12: =IF('G Q 1-2'!AQ21<>"BYE",(+'G H2H'!I100),"") ->  | C12: =+'H H2H'!H100 -> 10 | D12: =IF('H Q 1-2'!AQ21<>"BYE",(+'H H2H'!I100),"") ->  | E12: =+'T H2H'!H100 -> 10 | F12: =IF('T Q 1-2'!AQ21<>"BYE",(+'T H2H'!I100),"") -> 
A13: =+'G H2H'!H101 -> 11 | B13: =IF('G Q 1-2'!AQ22<>"BYE",(+'G H2H'!I101),"") ->  | C13: =+'H H2H'!H101 -> 11 | D13: =IF('H Q 1-2'!AQ22<>"BYE",(+'H H2H'!I101),"") ->  | E13: =+'T H2H'!H101 -> 11 | F13: =IF('T Q 1-2'!AQ22<>"BYE",(+'T H2H'!I101),"") -> 
A14: =+'G H2H'!H102 -> 12 | B14: =IF('G Q 1-2'!AQ23<>"BYE",(+'G H2H'!I102),"") ->  | C14: =+'H H2H'!H102 -> 12 | D14: =IF('H Q 1-2'!AQ23<>"BYE",(+'H H2H'!I102),"") ->  | E14: =+'T H2H'!H102 -> 12 | F14: =IF('T Q 1-2'!AQ23<>"BYE",(+'T H2H'!I102),"") -> 
A15: =+'G H2H'!H103 -> 13 | B15: =IF('G Q 1-2'!AQ24<>"BYE",(+'G H2H'!I103),"") ->  | C15: =+'H H2H'!H103 -> 13 | D15: =IF('H Q 1-2'!AQ24<>"BYE",(+'H H2H'!I103),"") ->  | E15: =+'T H2H'!H103 -> 13 | F15: =IF('T Q 1-2'!AQ24<>"BYE",(+'T H2H'!I103),"") -> 
A16: =+'G H2H'!H104 -> 14 | B16: =IF('G Q 1-2'!AQ25<>"BYE",(+'G H2H'!I104),"") ->  | C16: =+'H H2H'!H104 -> 14 | D16: =IF('H Q 1-2'!AQ25<>"BYE",(+'H H2H'!I104),"") ->  | E16: =+'T H2H'!H104 -> 14 | F16: =IF('T Q 1-2'!AQ25<>"BYE",(+'T H2H'!I104),"") -> 
A17: =+'G H2H'!H105 -> 15 | B17: =IF('G Q 1-2'!AQ26<>"BYE",(+'G H2H'!I105),"") ->  | C17: =+'H H2H'!H105 -> 15 | D17: =IF('H Q 1-2'!AQ26<>"BYE",(+'H H2H'!I105),"") ->  | E17: =+'T H2H'!H105 -> 15 | F17: =IF('T Q 1-2'!AQ26<>"BYE",(+'T H2H'!I105),"") -> 
A18: =+'G H2H'!H106 -> 16 | B18: =IF('G Q 1-2'!AQ27<>"BYE",(+'G H2H'!I106),"") ->  | C18: =+'H H2H'!H106 -> 16 | D18: =IF('H Q 1-2'!AQ27<>"BYE",(+'H H2H'!I106),"") ->  | E18: =+'T H2H'!H106 -> 16 | F18: =IF('T Q 1-2'!AQ27<>"BYE",(+'T H2H'!I106),"") -> 
A19: =+'G H2H'!H107 -> 17 | B19: =IF('G Q 1-2'!AQ28<>"BYE",(+'G H2H'!I107),"") ->  | C19: =+'H H2H'!H107 -> 17 | D19: =IF('H Q 1-2'!AQ28<>"BYE",(+'H H2H'!I107),"") ->  | E19: =+'T H2H'!H107 -> 17 | F19: =IF('T Q 1-2'!AQ28<>"BYE",(+'T H2H'!I107),"") -> 
A20: =+'G H2H'!H108 -> 18 | B20: =IF('G Q 1-2'!AQ29<>"BYE",(+'G H2H'!I108),"") ->  | C20: =+'H H2H'!H108 -> 18 | D20: =IF('H Q 1-2'!AQ29<>"BYE",(+'H H2H'!I108),"") ->  | E20: =+'T H2H'!H108 -> 18 | F20: =IF('T Q 1-2'!AQ29<>"BYE",(+'T H2H'!I108),"") -> 
A21: =+'G H2H'!H109 -> 19 | B21: =IF('G Q 1-2'!AQ30<>"BYE",(+'G H2H'!I109),"") ->  | C21: =+'H H2H'!H109 -> 19 | D21: =IF('H Q 1-2'!AQ30<>"BYE",(+'H H2H'!I109),"") ->  | E21: =+'T H2H'!H109 -> 19 | F21: =IF('T Q 1-2'!AQ30<>"BYE",(+'T H2H'!I109),"") -> 
A22: =+'G H2H'!H110 -> 20 | B22: =IF('G Q 1-2'!AQ31<>"BYE",(+'G H2H'!I110),"") ->  | C22: =+'H H2H'!H110 -> 20 | D22: =IF('H Q 1-2'!AQ31<>"BYE",(+'H H2H'!I110),"") ->  | E22: =+'T H2H'!H110 -> 20 | F22: =IF('T Q 1-2'!AQ31<>"BYE",(+'T H2H'!I110),"") -> 
A23: =+'G H2H'!H111 -> 21 | B23: =IF('G Q 1-2'!AQ32<>"BYE",(+'G H2H'!I111),"") ->  | C23: =+'H H2H'!H111 -> 21 | D23: =IF('H Q 1-2'!AQ32<>"BYE",(+'H H2H'!I111),"") ->  | E23: =+'T H2H'!H111 -> 21 | F23: =IF('T Q 1-2'!AQ32<>"BYE",(+'T H2H'!I111),"") -> 
A24: =+'G H2H'!H112 -> 22 | B24: =IF('G Q 1-2'!AQ33<>"BYE",(+'G H2H'!I112),"") ->  | C24: =+'H H2H'!H112 -> 22 | D24: =IF('H Q 1-2'!AQ33<>"BYE",(+'H H2H'!I112),"") ->  | E24: =+'T H2H'!H112 -> 22 | F24: =IF('T Q 1-2'!AQ33<>"BYE",(+'T H2H'!I112),"") -> 
A25: =+'G H2H'!H113 -> 23 | B25: =IF('G Q 1-2'!AQ34<>"BYE",(+'G H2H'!I113),"") ->  | C25: =+'H H2H'!H113 -> 23 | D25: =IF('H Q 1-2'!AQ34<>"BYE",(+'H H2H'!I113),"") ->  | E25: =+'T H2H'!H113 -> 23 | F25: =IF('T Q 1-2'!AQ34<>"BYE",(+'T H2H'!I113),"") -> 
A26: =+'G H2H'!H114 -> 24 | B26: =IF('G Q 1-2'!AQ35<>"BYE",(+'G H2H'!I114),"") ->  | C26: =+'H H2H'!H114 -> 24 | D26: =IF('H Q 1-2'!AQ35<>"BYE",(+'H H2H'!I114),"") ->  | E26: =+'T H2H'!H114 -> 24 | F26: =IF('T Q 1-2'!AQ35<>"BYE",(+'T H2H'!I114),"") -> 
A27: =+'G H2H'!H115 -> 25 | B27: =IF('G Q 1-2'!AQ36<>"BYE",(+'G H2H'!I115),"") ->  | C27: =+'H H2H'!H115 -> 25 | D27: =IF('H Q 1-2'!AQ36<>"BYE",(+'H H2H'!I115),"") ->  | E27: =+'T H2H'!H115 -> 25 | F27: =IF('T Q 1-2'!AQ36<>"BYE",(+'T H2H'!I115),"") -> 
A28: =+'G H2H'!H116 -> 26 | B28: =IF('G Q 1-2'!AQ37<>"BYE",(+'G H2H'!I116),"") ->  | C28: =+'H H2H'!H116 -> 26 | D28: =IF('H Q 1-2'!AQ37<>"BYE",(+'H H2H'!I116),"") ->  | E28: =+'T H2H'!H116 -> 26 | F28: =IF('T Q 1-2'!AQ37<>"BYE",(+'T H2H'!I116),"") -> 
A29: =+'G H2H'!H117 -> 27 | B29: =IF('G Q 1-2'!AQ38<>"BYE",(+'G H2H'!I117),"") ->  | C29: =+'H H2H'!H117 -> 27 | D29: =IF('H Q 1-2'!AQ38<>"BYE",(+'H H2H'!I117),"") ->  | E29: =+'T H2H'!H117 -> 27 | F29: =IF('T Q 1-2'!AQ38<>"BYE",(+'T H2H'!I117),"") -> 
A30: =+'G H2H'!H118 -> 28 | B30: =IF('G Q 1-2'!AQ39<>"BYE",(+'G H2H'!I118),"") ->  | C30: =+'H H2H'!H118 -> 28 | D30: =IF('H Q 1-2'!AQ39<>"BYE",(+'H H2H'!I118),"") ->  | E30: =+'T H2H'!H118 -> 28 | F30: =IF('T Q 1-2'!AQ39<>"BYE",(+'T H2H'!I118),"") -> 
A31: =+'G H2H'!H119 -> 29 | B31: =IF('G Q 1-2'!AQ40<>"BYE",(+'G H2H'!I119),"") ->  | C31: =+'H H2H'!H119 -> 29 | D31: =IF('H Q 1-2'!AQ40<>"BYE",(+'H H2H'!I119),"") ->  | E31: =+'T H2H'!H119 -> 29 | F31: =IF('T Q 1-2'!AQ40<>"BYE",(+'T H2H'!I119),"") -> 
A32: =+'G H2H'!H120 -> 30 | B32: =IF('G Q 1-2'!AQ41<>"BYE",(+'G H2H'!I120),"") ->  | C32: =+'H H2H'!H120 -> 30 | D32: =IF('H Q 1-2'!AQ41<>"BYE",(+'H H2H'!I120),"") ->  | E32: =+'T H2H'!H120 -> 30 | F32: =IF('T Q 1-2'!AQ41<>"BYE",(+'T H2H'!I120),"") -> 
A33: =+'G H2H'!H121 -> 31 | B33: =IF('G Q 1-2'!AQ42<>"BYE",(+'G H2H'!I121),"") ->  | C33: =+'H H2H'!H121 -> 31 | D33: =IF('H Q 1-2'!AQ42<>"BYE",(+'H H2H'!I121),"") ->  | E33: =+'T H2H'!H121 -> 31 | F33: =IF('T Q 1-2'!AQ42<>"BYE",(+'T H2H'!I121),"") -> 
A34: =+'G H2H'!H122 -> 32 | B34: =IF('G Q 1-2'!AQ43<>"BYE",(+'G H2H'!I122),"") ->  | C34: =+'H H2H'!H122 -> 32 | D34: =IF('H Q 1-2'!AQ43<>"BYE",(+'H H2H'!I122),"") ->  | E34: =+'T H2H'!H122 -> 32 | F34: =IF('T Q 1-2'!AQ43<>"BYE",(+'T H2H'!I122),"") -> 
A35: =+'G H2H'!H123 -> 33 | B35: =IF('G Q 1-2'!AQ44<>"BYE",(+'G H2H'!I123),"") ->  | C35: =+'H H2H'!H123 -> 33 | D35: =IF('H Q 1-2'!AQ44<>"BYE",(+'H H2H'!I123),"") ->  | E35: =+'T H2H'!H123 -> 33 | F35: =IF('T Q 1-2'!AQ44<>"BYE",(+'T H2H'!I123),"") -> 
A36: =+'G H2H'!H124 -> 34 | B36: =IF('G Q 1-2'!AQ45<>"BYE",(+'G H2H'!I124),"") ->  | C36: =+'H H2H'!H124 -> 34 | D36: =IF('H Q 1-2'!AQ45<>"BYE",(+'H H2H'!I124),"") ->  | E36: =+'T H2H'!H124 -> 34 | F36: =IF('T Q 1-2'!AQ45<>"BYE",(+'T H2H'!I124),"") -> 
A37: =+'G H2H'!H125 -> 35 | B37: =IF('G Q 1-2'!AQ46<>"BYE",(+'G H2H'!I125),"") ->  | C37: =+'H H2H'!H125 -> 35 | D37: =IF('H Q 1-2'!AQ46<>"BYE",(+'H H2H'!I125),"") ->  | E37: =+'T H2H'!H125 -> 35 | F37: =IF('T Q 1-2'!AQ46<>"BYE",(+'T H2H'!I125),"") -> 
A38: =+'G H2H'!H126 -> 36 | B38: =IF('G Q 1-2'!AQ47<>"BYE",(+'G H2H'!I126),"") ->  | C38: =+'H H2H'!H126 -> 36 | D38: =IF('H Q 1-2'!AQ47<>"BYE",(+'H H2H'!I126),"") ->  | E38: =+'T H2H'!H126 -> 36 | F38: =IF('T Q 1-2'!AQ47<>"BYE",(+'T H2H'!I126),"") -> 
A39: =+'G H2H'!H127 -> 37 | B39: =IF('G Q 1-2'!AQ48<>"BYE",(+'G H2H'!I127),"") ->  | C39: =+'H H2H'!H127 -> 37 | D39: =IF('H Q 1-2'!AQ48<>"BYE",(+'H H2H'!I127),"") ->  | E39: =+'T H2H'!H127 -> 37 | F39: =IF('T Q 1-2'!AQ48<>"BYE",(+'T H2H'!I127),"") -> 
A40: =+'G H2H'!H128 -> 38 | B40: =IF('G Q 1-2'!AQ49<>"BYE",(+'G H2H'!I128),"") ->  | C40: =+'H H2H'!H128 -> 38 | D40: =IF('H Q 1-2'!AQ49<>"BYE",(+'H H2H'!I128),"") ->  | E40: =+'T H2H'!H128 -> 38 | F40: =IF('T Q 1-2'!AQ49<>"BYE",(+'T H2H'!I128),"") -> 
A41: =+'G H2H'!H129 -> 39 | B41: =IF('G Q 1-2'!AQ50<>"BYE",(+'G H2H'!I129),"") ->  | C41: =+'H H2H'!H129 -> 39 | D41: =IF('H Q 1-2'!AQ50<>"BYE",(+'H H2H'!I129),"") ->  | E41: =+'T H2H'!H129 -> 39 | F41: =IF('T Q 1-2'!AQ50<>"BYE",(+'T H2H'!I129),"") -> 
A42: =+'G H2H'!H130 -> 40 | B42: =IF('G Q 1-2'!AQ51<>"BYE",(+'G H2H'!I130),"") ->  | C42: =+'H H2H'!H130 -> 40 | D42: =IF('H Q 1-2'!AQ51<>"BYE",(+'H H2H'!I130),"") ->  | E42: =+'T H2H'!H130 -> 40 | F42: =IF('T Q 1-2'!AQ51<>"BYE",(+'T H2H'!I130),"") -> 
A43: =+'G H2H'!H131 -> 41 | B43: =IF('G Q 1-2'!AQ52<>"BYE",(+'G H2H'!I131),"") ->  | C43: =+'H H2H'!H131 -> 41 | D43: =IF('H Q 1-2'!AQ52<>"BYE",(+'H H2H'!I131),"") ->  | E43: =+'T H2H'!H131 -> 41 | F43: =IF('T Q 1-2'!AQ52<>"BYE",(+'T H2H'!I131),"") -> 
A44: =+'G H2H'!H132 -> 42 | B44: =IF('G Q 1-2'!AQ53<>"BYE",(+'G H2H'!I132),"") ->  | C44: =+'H H2H'!H132 -> 42 | D44: =IF('H Q 1-2'!AQ53<>"BYE",(+'H H2H'!I132),"") ->  | E44: =+'T H2H'!H132 -> 42 | F44: =IF('T Q 1-2'!AQ53<>"BYE",(+'T H2H'!I132),"") -> 
A45: =+'G H2H'!H133 -> 43 | B45: =IF('G Q 1-2'!AQ54<>"BYE",(+'G H2H'!I133),"") ->  | C45: =+'H H2H'!H133 -> 43 | D45: =IF('H Q 1-2'!AQ54<>"BYE",(+'H H2H'!I133),"") ->  | E45: =+'T H2H'!H133 -> 43 | F45: =IF('T Q 1-2'!AQ54<>"BYE",(+'T H2H'!I133),"") -> 
A46: =+'G H2H'!H134 -> 44 | B46: =IF('G Q 1-2'!AQ55<>"BYE",(+'G H2H'!I134),"") ->  | C46: =+'H H2H'!H134 -> 44 | D46: =IF('H Q 1-2'!AQ55<>"BYE",(+'H H2H'!I134),"") ->  | E46: =+'T H2H'!H134 -> 44 | F46: =IF('T Q 1-2'!AQ55<>"BYE",(+'T H2H'!I134),"") -> 
A47: =+'G H2H'!H135 -> 45 | B47: =IF('G Q 1-2'!AQ56<>"BYE",(+'G H2H'!I135),"") ->  | C47: =+'H H2H'!H135 -> 45 | D47: =IF('H Q 1-2'!AQ56<>"BYE",(+'H H2H'!I135),"") ->  | E47: =+'T H2H'!H135 -> 45 | F47: =IF('T Q 1-2'!AQ56<>"BYE",(+'T H2H'!I135),"") -> 
A48: =+'G H2H'!H136 -> 46 | B48: =IF('G Q 1-2'!AQ57<>"BYE",(+'G H2H'!I136),"") ->  | C48: =+'H H2H'!H136 -> 46 | D48: =IF('H Q 1-2'!AQ57<>"BYE",(+'H H2H'!I136),"") ->  | E48: =+'T H2H'!H136 -> 46 | F48: =IF('T Q 1-2'!AQ57<>"BYE",(+'T H2H'!I136),"") -> 
A49: =+'G H2H'!H137 -> 47 | B49: =IF('G Q 1-2'!AQ58<>"BYE",(+'G H2H'!I137),"") ->  | C49: =+'H H2H'!H137 -> 47 | D49: =IF('H Q 1-2'!AQ58<>"BYE",(+'H H2H'!I137),"") ->  | E49: =+'T H2H'!H137 -> 47 | F49: =IF('T Q 1-2'!AQ58<>"BYE",(+'T H2H'!I137),"") -> 
A50: =+'G H2H'!H138 -> 48 | B50: =IF('G Q 1-2'!AQ59<>"BYE",(+'G H2H'!I138),"") ->  | C50: =+'H H2H'!H138 -> 48 | D50: =IF('H Q 1-2'!AQ59<>"BYE",(+'H H2H'!I138),"") ->  | E50: =+'T H2H'!H138 -> 48 | F50: =IF('T Q 1-2'!AQ59<>"BYE",(+'T H2H'!I138),"") -> 
A51: =+'G H2H'!H139 -> 49 | B51: =IF('G Q 1-2'!AQ60<>"BYE",(+'G H2H'!I139),"") ->  | C51: =+'H H2H'!H139 -> 49 | D51: =IF('H Q 1-2'!AQ60<>"BYE",(+'H H2H'!I139),"") ->  | E51: =+'T H2H'!H139 -> 49 | F51: =IF('T Q 1-2'!AQ60<>"BYE",(+'T H2H'!I139),"") -> 
A52: =+'G H2H'!H140 -> 50 | B52: =IF('G Q 1-2'!AQ61<>"BYE",(+'G H2H'!I140),"") ->  | C52: =+'H H2H'!H140 -> 50 | D52: =IF('H Q 1-2'!AQ61<>"BYE",(+'H H2H'!I140),"") ->  | E52: =+'T H2H'!H140 -> 50 | F52: =IF('T Q 1-2'!AQ61<>"BYE",(+'T H2H'!I140),"") -> 
A53: =+'G H2H'!H141 -> 51 | B53: =IF('G Q 1-2'!AQ62<>"BYE",(+'G H2H'!I141),"") ->  | C53: =+'H H2H'!H141 -> 51 | D53: =IF('H Q 1-2'!AQ62<>"BYE",(+'H H2H'!I141),"") ->  | E53: =+'T H2H'!H141 -> 51 | F53: =IF('T Q 1-2'!AQ62<>"BYE",(+'T H2H'!I141),"") -> 
A54: =+'G H2H'!H142 -> 52 | B54: =IF('G Q 1-2'!AQ63<>"BYE",(+'G H2H'!I142),"") ->  | C54: =+'H H2H'!H142 -> 52 | D54: =IF('H Q 1-2'!AQ63<>"BYE",(+'H H2H'!I142),"") ->  | E54: =+'T H2H'!H142 -> 52 | F54: =IF('T Q 1-2'!AQ63<>"BYE",(+'T H2H'!I142),"") -> 
A55: =+'G H2H'!H143 -> 53 | B55: =IF('G Q 1-2'!AQ64<>"BYE",(+'G H2H'!I143),"") ->  | C55: =+'H H2H'!H143 -> 53 | D55: =IF('H Q 1-2'!AQ64<>"BYE",(+'H H2H'!I143),"") ->  | E55: =+'T H2H'!H143 -> 53 | F55: =IF('T Q 1-2'!AQ64<>"BYE",(+'T H2H'!I143),"") -> 
A56: =+'G H2H'!H144 -> 54 | B56: =IF('G Q 1-2'!AQ65<>"BYE",(+'G H2H'!I144),"") ->  | C56: =+'H H2H'!H144 -> 54 | D56: =IF('H Q 1-2'!AQ65<>"BYE",(+'H H2H'!I144),"") ->  | E56: =+'T H2H'!H144 -> 54 | F56: =IF('T Q 1-2'!AQ65<>"BYE",(+'T H2H'!I144),"") -> 
A57: =+'G H2H'!H145 -> 55 | B57: =IF('G Q 1-2'!AQ66<>"BYE",(+'G H2H'!I145),"") ->  | C57: =+'H H2H'!H145 -> 55 | D57: =IF('H Q 1-2'!AQ66<>"BYE",(+'H H2H'!I145),"") ->  | E57: =+'T H2H'!H145 -> 55 | F57: =IF('T Q 1-2'!AQ66<>"BYE",(+'T H2H'!I145),"") -> 
A58: =+'G H2H'!H146 -> 56 | B58: =IF('G Q 1-2'!AQ67<>"BYE",(+'G H2H'!I146),"") ->  | C58: =+'H H2H'!H146 -> 56 | D58: =IF('H Q 1-2'!AQ67<>"BYE",(+'H H2H'!I146),"") ->  | E58: =+'T H2H'!H146 -> 56 | F58: =IF('T Q 1-2'!AQ67<>"BYE",(+'T H2H'!I146),"") -> 
A59: =+'G H2H'!H147 -> 57 | B59: =IF('G Q 1-2'!AQ68<>"BYE",(+'G H2H'!I147),"") ->  | C59: =+'H H2H'!H147 -> 57 | D59: =IF('H Q 1-2'!AQ68<>"BYE",(+'H H2H'!I147),"") ->  | E59: =+'T H2H'!H147 -> 57 | F59: =IF('T Q 1-2'!AQ68<>"BYE",(+'T H2H'!I147),"") -> 
A60: =+'G H2H'!H148 -> 58 | B60: =IF('G Q 1-2'!AQ69<>"BYE",(+'G H2H'!I148),"") ->  | C60: =+'H H2H'!H148 -> 58 | D60: =IF('H Q 1-2'!AQ69<>"BYE",(+'H H2H'!I148),"") ->  | E60: =+'T H2H'!H148 -> 58 | F60: =IF('T Q 1-2'!AQ69<>"BYE",(+'T H2H'!I148),"") -> 
A61: =+'G H2H'!H149 -> 59 | B61: =IF('G Q 1-2'!AQ70<>"BYE",(+'G H2H'!I149),"") ->  | C61: =+'H H2H'!H149 -> 59 | D61: =IF('H Q 1-2'!AQ70<>"BYE",(+'H H2H'!I149),"") ->  | E61: =+'T H2H'!H149 -> 59 | F61: =IF('T Q 1-2'!AQ70<>"BYE",(+'T H2H'!I149),"") -> 
A62: =+'G H2H'!H150 -> 60 | B62: =IF('G Q 1-2'!AQ71<>"BYE",(+'G H2H'!I150),"") ->  | C62: =+'H H2H'!H150 -> 60 | D62: =IF('H Q 1-2'!AQ71<>"BYE",(+'H H2H'!I150),"") ->  | E62: =+'T H2H'!H150 -> 60 | F62: =IF('T Q 1-2'!AQ71<>"BYE",(+'T H2H'!I150),"") -> 
A63: =+'G H2H'!H151 -> 61 | B63: =IF('G Q 1-2'!AQ72<>"BYE",(+'G H2H'!I151),"") ->  | C63: =+'H H2H'!H151 -> 61 | D63: =IF('H Q 1-2'!AQ72<>"BYE",(+'H H2H'!I151),"") ->  | E63: =+'T H2H'!H151 -> 61 | F63: =IF('T Q 1-2'!AQ72<>"BYE",(+'T H2H'!I151),"") -> 
A64: =+'G H2H'!H152 -> 62 | B64: =IF('G Q 1-2'!AQ73<>"BYE",(+'G H2H'!I152),"") ->  | C64: =+'H H2H'!H152 -> 62 | D64: =IF('H Q 1-2'!AQ73<>"BYE",(+'H H2H'!I152),"") ->  | E64: =+'T H2H'!H152 -> 62 | F64: =IF('T Q 1-2'!AQ73<>"BYE",(+'T H2H'!I152),"") -> 
A65: =+'G H2H'!H153 -> 63 | B65: =IF('G Q 1-2'!AQ74<>"BYE",(+'G H2H'!I153),"") ->  | C65: =+'H H2H'!H153 -> 63 | D65: =IF('H Q 1-2'!AQ74<>"BYE",(+'H H2H'!I153),"") ->  | E65: =+'T H2H'!H153 -> 63 | F65: =IF('T Q 1-2'!AQ74<>"BYE",(+'T H2H'!I153),"") -> 
A66: =+'G H2H'!H154 -> 64 | B66: =IF('G Q 1-2'!AQ75<>"BYE",(+'G H2H'!I154),"") ->  | C66: =+'H H2H'!H154 -> 64 | D66: =IF('H Q 1-2'!AQ75<>"BYE",(+'H H2H'!I154),"") ->  | E66: =+'T H2H'!H154 -> 64 | F66: =IF('T Q 1-2'!AQ75<>"BYE",(+'T H2H'!I154),"") -> 
A67: =+'G H2H'!H155 -> 65 | B67: =IF('G Q 1-2'!AQ76<>"BYE",(+'G H2H'!I155),"") ->  | C67: =+'H H2H'!H155 -> 65 | D67: =IF('H Q 1-2'!AQ76<>"BYE",(+'H H2H'!I155),"") ->  | E67: =+'T H2H'!H155 -> 65 | F67: =IF('T Q 1-2'!AQ76<>"BYE",(+'T H2H'!I155),"") -> 
A68: =+'G H2H'!H156 -> 66 | B68: =IF('G Q 1-2'!AQ77<>"BYE",(+'G H2H'!I156),"") ->  | C68: =+'H H2H'!H156 -> 66 | D68: =IF('H Q 1-2'!AQ77<>"BYE",(+'H H2H'!I156),"") ->  | E68: =+'T H2H'!H156 -> 66 | F68: =IF('T Q 1-2'!AQ77<>"BYE",(+'T H2H'!I156),"") -> 
A69: =+'G H2H'!H157 -> 67 | B69: =IF('G Q 1-2'!AQ78<>"BYE",(+'G H2H'!I157),"") ->  | C69: =+'H H2H'!H157 -> 67 | D69: =IF('H Q 1-2'!AQ78<>"BYE",(+'H H2H'!I157),"") ->  | E69: =+'T H2H'!H157 -> 67 | F69: =IF('T Q 1-2'!AQ78<>"BYE",(+'T H2H'!I157),"") -> 
A70: =+'G H2H'!H158 -> 68 | B70: =IF('G Q 1-2'!AQ79<>"BYE",(+'G H2H'!I158),"") ->  | C70: =+'H H2H'!H158 -> 68 | D70: =IF('H Q 1-2'!AQ79<>"BYE",(+'H H2H'!I158),"") ->  | E70: =+'T H2H'!H158 -> 68 | F70: =IF('T Q 1-2'!AQ79<>"BYE",(+'T H2H'!I158),"") -> 
A71: =+'G H2H'!H159 -> 69 | B71: =IF('G Q 1-2'!AQ80<>"BYE",(+'G H2H'!I159),"") ->  | C71: =+'H H2H'!H159 -> 69 | D71: =IF('H Q 1-2'!AQ80<>"BYE",(+'H H2H'!I159),"") ->  | E71: =+'T H2H'!H159 -> 69 | F71: =IF('T Q 1-2'!AQ80<>"BYE",(+'T H2H'!I159),"") -> 
A72: =+'G H2H'!H160 -> 70 | B72: =IF('G Q 1-2'!AQ81<>"BYE",(+'G H2H'!I160),"") ->  | C72: =+'H H2H'!H160 -> 70 | D72: =IF('H Q 1-2'!AQ81<>"BYE",(+'H H2H'!I160),"") ->  | E72: =+'T H2H'!H160 -> 70 | F72: =IF('T Q 1-2'!AQ81<>"BYE",(+'T H2H'!I160),"") -> 
A73: =+'G H2H'!H161 -> 71 | B73: =IF('G Q 1-2'!AQ82<>"BYE",(+'G H2H'!I161),"") ->  | C73: =+'H H2H'!H161 -> 71 | D73: =IF('H Q 1-2'!AQ82<>"BYE",(+'H H2H'!I161),"") ->  | E73: =+'T H2H'!H161 -> 71 | F73: =IF('T Q 1-2'!AQ82<>"BYE",(+'T H2H'!I161),"") -> 
A74: =+'G H2H'!H162 -> 72 | B74: =IF('G Q 1-2'!AQ83<>"BYE",(+'G H2H'!I162),"") ->  | C74: =+'H H2H'!H162 -> 72 | D74: =IF('H Q 1-2'!AQ83<>"BYE",(+'H H2H'!I162),"") ->  | E74: =+'T H2H'!H162 -> 72 | F74: =IF('T Q 1-2'!AQ83<>"BYE",(+'T H2H'!I162),"") -> 
A75: =+'G H2H'!H163 -> 73 | B75: =IF('G Q 1-2'!AQ84<>"BYE",(+'G H2H'!I163),"") ->  | C75: =+'H H2H'!H163 -> 73 | D75: =IF('H Q 1-2'!AQ84<>"BYE",(+'H H2H'!I163),"") ->  | E75: =+'T H2H'!H163 -> 73 | F75: =IF('T Q 1-2'!AQ84<>"BYE",(+'T H2H'!I163),"") -> 
A76: =+'G H2H'!H164 -> 74 | B76: =IF('G Q 1-2'!AQ85<>"BYE",(+'G H2H'!I164),"") ->  | C76: =+'H H2H'!H164 -> 74 | D76: =IF('H Q 1-2'!AQ85<>"BYE",(+'H H2H'!I164),"") ->  | E76: =+'T H2H'!H164 -> 74 | F76: =IF('T Q 1-2'!AQ85<>"BYE",(+'T H2H'!I164),"") -> 
A77: =+'G H2H'!H165 -> 75 | B77: =IF('G Q 1-2'!AQ86<>"BYE",(+'G H2H'!I165),"") ->  | C77: =+'H H2H'!H165 -> 75 | D77: =IF('H Q 1-2'!AQ86<>"BYE",(+'H H2H'!I165),"") ->  | E77: =+'T H2H'!H165 -> 75 | F77: =IF('T Q 1-2'!AQ86<>"BYE",(+'T H2H'!I165),"") -> 
A78: =+'G H2H'!H166 -> 76 | B78: =IF('G Q 1-2'!AQ87<>"BYE",(+'G H2H'!I166),"") ->  | C78: =+'H H2H'!H166 -> 76 | D78: =IF('H Q 1-2'!AQ87<>"BYE",(+'H H2H'!I166),"") ->  | E78: =+'T H2H'!H166 -> 76 | F78: =IF('T Q 1-2'!AQ87<>"BYE",(+'T H2H'!I166),"") -> 
A79: =+'G H2H'!H167 -> 77 | B79: =IF('G Q 1-2'!AQ88<>"BYE",(+'G H2H'!I167),"") ->  | C79: =+'H H2H'!H167 -> 77 | D79: =IF('H Q 1-2'!AQ88<>"BYE",(+'H H2H'!I167),"") ->  | E79: =+'T H2H'!H167 -> 77 | F79: =IF('T Q 1-2'!AQ88<>"BYE",(+'T H2H'!I167),"") -> 
A80: =+'G H2H'!H168 -> 78 | B80: =IF('G Q 1-2'!AQ89<>"BYE",(+'G H2H'!I168),"") ->  | C80: =+'H H2H'!H168 -> 78 | D80: =IF('H Q 1-2'!AQ89<>"BYE",(+'H H2H'!I168),"") ->  | E80: =+'T H2H'!H168 -> 78 | F80: =IF('T Q 1-2'!AQ89<>"BYE",(+'T H2H'!I168),"") -> 
A81: =+'G H2H'!H169 -> 79 | B81: =IF('G Q 1-2'!AQ90<>"BYE",(+'G H2H'!I169),"") ->  | C81: =+'H H2H'!H169 -> 79 | D81: =IF('H Q 1-2'!AQ90<>"BYE",(+'H H2H'!I169),"") ->  | E81: =+'T H2H'!H169 -> 79 | F81: =IF('T Q 1-2'!AQ90<>"BYE",(+'T H2H'!I169),"") -> 
A82: =+'G H2H'!H170 -> 80 | B82: =IF('G Q 1-2'!AQ91<>"BYE",(+'G H2H'!I170),"") ->  | C82: =+'H H2H'!H170 -> 80 | D82: =IF('H Q 1-2'!AQ91<>"BYE",(+'H H2H'!I170),"") ->  | E82: =+'T H2H'!H170 -> 80 | F82: =IF('T Q 1-2'!AQ91<>"BYE",(+'T H2H'!I170),"") -> 
A83: =+'G H2H'!H171 -> 81 | B83: =IF('G Q 1-2'!AQ92<>"BYE",(+'G H2H'!I171),"") ->  | C83: =+'H H2H'!H171 -> 81 | D83: =IF('H Q 1-2'!AQ92<>"BYE",(+'H H2H'!I171),"") ->  | E83: =+'T H2H'!H171 -> 81 | F83: =IF('T Q 1-2'!AQ92<>"BYE",(+'T H2H'!I171),"") -> 
A84: =+'G H2H'!H172 -> 82 | B84: =IF('G Q 1-2'!AQ93<>"BYE",(+'G H2H'!I172),"") ->  | C84: =+'H H2H'!H172 -> 82 | D84: =IF('H Q 1-2'!AQ93<>"BYE",(+'H H2H'!I172),"") ->  | E84: =+'T H2H'!H172 -> 82 | F84: =IF('T Q 1-2'!AQ93<>"BYE",(+'T H2H'!I172),"") -> 
A85: =+'G H2H'!H173 -> 83 | B85: =IF('G Q 1-2'!AQ94<>"BYE",(+'G H2H'!I173),"") ->  | C85: =+'H H2H'!H173 -> 83 | D85: =IF('H Q 1-2'!AQ94<>"BYE",(+'H H2H'!I173),"") ->  | E85: =+'T H2H'!H173 -> 83 | F85: =IF('T Q 1-2'!AQ94<>"BYE",(+'T H2H'!I173),"") -> 
A86: =+'G H2H'!H174 -> 84 | B86: =IF('G Q 1-2'!AQ95<>"BYE",(+'G H2H'!I174),"") ->  | C86: =+'H H2H'!H174 -> 84 | D86: =IF('H Q 1-2'!AQ95<>"BYE",(+'H H2H'!I174),"") ->  | E86: =+'T H2H'!H174 -> 84 | F86: =IF('T Q 1-2'!AQ95<>"BYE",(+'T H2H'!I174),"") -> 
A87: =+'G H2H'!H175 -> 85 | B87: =IF('G Q 1-2'!AQ96<>"BYE",(+'G H2H'!I175),"") ->  | C87: =+'H H2H'!H175 -> 85 | D87: =IF('H Q 1-2'!AQ96<>"BYE",(+'H H2H'!I175),"") ->  | E87: =+'T H2H'!H175 -> 85 | F87: =IF('T Q 1-2'!AQ96<>"BYE",(+'T H2H'!I175),"") -> 
A88: =+'G H2H'!H176 -> 86 | B88: =IF('G Q 1-2'!AQ97<>"BYE",(+'G H2H'!I176),"") ->  | C88: =+'H H2H'!H176 -> 86 | D88: =IF('H Q 1-2'!AQ97<>"BYE",(+'H H2H'!I176),"") ->  | E88: =+'T H2H'!H176 -> 86 | F88: =IF('T Q 1-2'!AQ97<>"BYE",(+'T H2H'!I176),"") -> 
A89: =+'G H2H'!H177 -> 87 | B89: =IF('G Q 1-2'!AQ98<>"BYE",(+'G H2H'!I177),"") ->  | C89: =+'H H2H'!H177 -> 87 | D89: =IF('H Q 1-2'!AQ98<>"BYE",(+'H H2H'!I177),"") ->  | E89: =+'T H2H'!H177 -> 87 | F89: =IF('T Q 1-2'!AQ98<>"BYE",(+'T H2H'!I177),"") -> 
A90: =+'G H2H'!H178 -> 88 | B90: =IF('G Q 1-2'!AQ99<>"BYE",(+'G H2H'!I178),"") ->  | C90: =+'H H2H'!H178 -> 88 | D90: =IF('H Q 1-2'!AQ99<>"BYE",(+'H H2H'!I178),"") ->  | E90: =+'T H2H'!H178 -> 88 | F90: =IF('T Q 1-2'!AQ99<>"BYE",(+'T H2H'!I178),"") -> 
A91: =+'G H2H'!H179 -> 89 | B91: =IF('G Q 1-2'!AQ100<>"BYE",(+'G H2H'!I179),"") ->  | C91: =+'H H2H'!H179 -> 89 | D91: =IF('H Q 1-2'!AQ100<>"BYE",(+'H H2H'!I179),"") ->  | E91: =+'T H2H'!H179 -> 89 | F91: =IF('T Q 1-2'!AQ100<>"BYE",(+'T H2H'!I179),"") -> 
A92: =+'G H2H'!H180 -> 90 | B92: =IF('G Q 1-2'!AQ101<>"BYE",(+'G H2H'!I180),"") ->  | C92: =+'H H2H'!H180 -> 90 | D92: =IF('H Q 1-2'!AQ101<>"BYE",(+'H H2H'!I180),"") ->  | E92: =+'T H2H'!H180 -> 90 | F92: =IF('T Q 1-2'!AQ101<>"BYE",(+'T H2H'!I180),"") -> 
A93: =+'G H2H'!H181 -> 91 | B93: =IF('G Q 1-2'!AQ102<>"BYE",(+'G H2H'!I181),"") ->  | C93: =+'H H2H'!H181 -> 91 | D93: =IF('H Q 1-2'!AQ102<>"BYE",(+'H H2H'!I181),"") ->  | E93: =+'T H2H'!H181 -> 91 | F93: =IF('T Q 1-2'!AQ102<>"BYE",(+'T H2H'!I181),"") -> 
A94: =+'G H2H'!H182 -> 92 | B94: =IF('G Q 1-2'!AQ103<>"BYE",(+'G H2H'!I182),"") ->  | C94: =+'H H2H'!H182 -> 92 | D94: =IF('H Q 1-2'!AQ103<>"BYE",(+'H H2H'!I182),"") ->  | E94: =+'T H2H'!H182 -> 92 | F94: =IF('T Q 1-2'!AQ103<>"BYE",(+'T H2H'!I182),"") -> 
A95: =+'G H2H'!H183 -> 93 | B95: =IF('G Q 1-2'!AQ104<>"BYE",(+'G H2H'!I183),"") ->  | C95: =+'H H2H'!H183 -> 93 | D95: =IF('H Q 1-2'!AQ104<>"BYE",(+'H H2H'!I183),"") ->  | E95: =+'T H2H'!H183 -> 93 | F95: =IF('T Q 1-2'!AQ104<>"BYE",(+'T H2H'!I183),"") -> 
A96: =+'G H2H'!H184 -> 94 | B96: =IF('G Q 1-2'!AQ105<>"BYE",(+'G H2H'!I184),"") ->  | C96: =+'H H2H'!H184 -> 94 | D96: =IF('H Q 1-2'!AQ105<>"BYE",(+'H H2H'!I184),"") ->  | E96: =+'T H2H'!H184 -> 94 | F96: =IF('T Q 1-2'!AQ105<>"BYE",(+'T H2H'!I184),"") -> 
A97: =+'G H2H'!H185 -> 95 | B97: =IF('G Q 1-2'!AQ106<>"BYE",(+'G H2H'!I185),"") ->  | C97: =+'H H2H'!H185 -> 95 | D97: =IF('H Q 1-2'!AQ106<>"BYE",(+'H H2H'!I185),"") ->  | E97: =+'T H2H'!H185 -> 95 | F97: =IF('T Q 1-2'!AQ106<>"BYE",(+'T H2H'!I185),"") -> 
A98: =+'G H2H'!H186 -> 96 | B98: =IF('G Q 1-2'!AQ107<>"BYE",(+'G H2H'!I186),"") ->  | C98: =+'H H2H'!H186 -> 96 | D98: =IF('H Q 1-2'!AQ107<>"BYE",(+'H H2H'!I186),"") ->  | E98: =+'T H2H'!H186 -> 96 | F98: =IF('T Q 1-2'!AQ107<>"BYE",(+'T H2H'!I186),"") -> 
A99: =+'G H2H'!H187 -> 97 | B99: =IF('G Q 1-2'!AQ108<>"BYE",(+'G H2H'!I187),"") ->  | C99: =+'H H2H'!H187 -> 97 | D99: =IF('H Q 1-2'!AQ108<>"BYE",(+'H H2H'!I187),"") ->  | E99: =+'T H2H'!H187 -> 97 | F99: =IF('T Q 1-2'!AQ108<>"BYE",(+'T H2H'!I187),"") -> 
A100: =+'G H2H'!H188 -> 98 | B100: =IF('G Q 1-2'!AQ109<>"BYE",(+'G H2H'!I188),"") ->  | C100: =+'H H2H'!H188 -> 98 | D100: =IF('H Q 1-2'!AQ109<>"BYE",(+'H H2H'!I188),"") ->  | E100: =+'T H2H'!H188 -> 98 | F100: =IF('T Q 1-2'!AQ109<>"BYE",(+'T H2H'!I188),"") -> 
A101: =+'G H2H'!H189 -> 99 | B101: =IF('G Q 1-2'!AQ110<>"BYE",(+'G H2H'!I189),"") ->  | C101: =+'H H2H'!H189 -> 99 | D101: =IF('H Q 1-2'!AQ110<>"BYE",(+'H H2H'!I189),"") ->  | E101: =+'T H2H'!H189 -> 99 | F101: =IF('T Q 1-2'!AQ110<>"BYE",(+'T H2H'!I189),"") -> 
A102: =+'G H2H'!H190 -> 100 | B102: =IF('G Q 1-2'!AQ111<>"BYE",(+'G H2H'!I190),"") ->  | C102: =+'H H2H'!H190 -> 100 | D102: =IF('H Q 1-2'!AQ111<>"BYE",(+'H H2H'!I190),"") ->  | E102: =+'T H2H'!H190 -> 100 | F102: =IF('T Q 1-2'!AQ111<>"BYE",(+'T H2H'!I190),"") -> 

Sheet OVERALL
B1: =CONTEST!B13 -> TEEN 12-14 | C1: Place in the slalom | F1: Sum of points | G1: Points of the slalom | K1: Umístění
C2: GIANT | D2: HYBRID | E2: TIGHT | G2: =+C2 -> GIANT | H2: =+D2 -> HYBRID | I2: =+E2 -> TIGHT | K2: =+G2 -> GIANT | L2: =+H2 -> HYBRID | M2: =+I2 -> TIGHT | W2: Overall place | X2: =CONCATENATE("OVERALL ",CONTEST!B13) -> OVERALL TEEN 12-14 | Y2: Sum of points | AC2: rank | AD2: rada | AE2: prenos | AG2: prenos | AH2: over all | AI2: over all | AJ2: over all
A3: 1 | B3: =+REG!G11 -> Voves Jindřich [CZE] | C3: =IF(K3=K$101,0,K3) -> 1 | D3: =IF(L3=L$101,0,L3) -> 2 | E3: =IF(M3=M$101,0,M3) -> 1 | F3: =SUM(G3:I3)+A3/1000 -> 580.001 | G3: =IF(C3=1,200,IF(C3=2,180,IF(C3=3,160,IF(C3=4,150,IF(C3=5,145,IF(C3=6,140,IF(C3=7,136,IF(C3=8,132,O3)))))))) -> 200 | H3: 180 | I3: 200 | K3: =+'G Q 4'!S12 -> 1 | L3: =+'H Q 4'!S12 -> 2 | M3: =+'T Q 4'!S12 -> 1 | O3: =IF(C3=9,129,IF(C3=10,126,IF(C3=11,124,IF(C3=12,122,IF(C3=13,120,IF(C3=14,118,IF(C3>14,116+15-C3,50))))))) -> 50 | P3: 50 | Q3: 50 | W3: 1 | X3: =IF(AE3<>"",AI3,"") -> Voves Jindřich [CZE] | Y3: =IF(AE3<>"",AJ3,"") -> 580.001 | AC3: =RANK(F3,F:F,0) -> 1 | AD3: 1 | AE3: =B3 -> Voves Jindřich [CZE] | AG3: =+F3 -> 580.001 | AH3: 1 | AI3: =VLOOKUP($AD$3:$AD$100,$AC$3:$AG$100,3,0) -> Voves Jindřich [CZE] | AJ3: =VLOOKUP($AD$3:$AD$100,$AC$3:$AG$100,5,0) -> 580.001
A4: 2 | B4: =+REG!G12 -> Rezková Anna [CZE] | C4: 2 | D4: 1 | E4: 2 | F4: =SUM(G4:I4)+A4/1000 -> 560.002 | G4: 180 | H4: 200 | I4: 180 | K4: =+'G Q 4'!S13 -> 2 | L4: =+'H Q 4'!S13 -> 1 | M4: =+'T Q 4'!S13 -> 2 | O4: 50 | P4: 50 | Q4: 50 | W4: =IF(Y4<>"",IF(Y3-Y4<1,AD3,AD4),"") -> 2 | X4: =IF(AE4<>"",AI4,"") -> Rezková Anna [CZE] | Y4: =IF(AE4<>"",AJ4,"") -> 560.002 | AC4: 2 | AD4: 2 | AE4: Rezková Anna [CZE] | AG4: =+F4 -> 560.002 | AH4: 2 | AI4: =VLOOKUP($AD$3:$AD$100,$AC$3:$AG$100,3,0) -> Rezková Anna [CZE] | AJ4: =VLOOKUP($AD$3:$AD$100,$AC$3:$AG$100,5,0) -> 560.002
A5: 3 | B5: =+REG!G13 ->  | C5: 0 | D5: 0 | E5: 0 | F5: 150.003 | G5: 50 | H5: 50 | I5: 50 | K5: =+'G Q 4'!S14 -> 3 | L5: =+'H Q 4'!S14 -> 3 | M5: =+'T Q 4'!S14 -> 3 | O5: 50 | P5: 50 | Q5: =IF(E5=9,129,IF(E5=10,126,IF(E5=11,124,IF(E5=12,122,IF(E5=13,120,IF(E5=14,118,IF(E5>14,116+15-E5,50))))))) -> 50 | W5: =IF(Y5<>"",IF(Y4-Y5<1,AD4,AD5),"") ->  | AC5: 98 | AD5: 3 | AG5: 150.003 | AH5: 3 | AJ5: 150.098
A6: 4 | B6: =+REG!G14 ->  | C6: 0 | D6: 0 | E6: 0 | F6: 150.004 | G6: 50 | H6: 50 | I6: 50 | K6: =+'G Q 4'!S15 -> 3 | L6: =+'H Q 4'!S15 -> 3 | M6: =+'T Q 4'!S15 -> 3 | O6: 50 | P6: 50 | Q6: 50 | AC6: 97 | AD6: 4 | AG6: 150.004 | AH6: 4 | AJ6: 150.097
A7: 5 | B7: =+REG!G15 ->  | C7: 0 | D7: 0 | E7: 0 | F7: 150.005 | G7: 50 | H7: 50 | I7: 50 | K7: =+'G Q 4'!S16 -> 3 | L7: =+'H Q 4'!S16 -> 3 | M7: =+'T Q 4'!S16 -> 3 | O7: 50 | P7: 50 | Q7: 50 | AC7: 96 | AD7: 5 | AG7: 150.005 | AH7: 5 | AJ7: 150.096
A8: 6 | B8: =+REG!G16 ->  | C8: 0 | D8: 0 | E8: 0 | F8: 150.006 | G8: 50 | H8: 50 | I8: 50 | K8: =+'G Q 4'!S17 -> 3 | L8: =+'H Q 4'!S17 -> 3 | M8: =+'T Q 4'!S17 -> 3 | O8: 50 | P8: 50 | Q8: 50 | AC8: 95 | AD8: 6 | AG8: 150.006 | AH8: 6 | AJ8: 150.095
A9: 7 | B9: =+REG!G17 ->  | C9: 0 | D9: 0 | E9: 0 | F9: 150.007 | G9: 50 | H9: 50 | I9: 50 | K9: =+'G Q 4'!S18 -> 3 | L9: =+'H Q 4'!S18 -> 3 | M9: =+'T Q 4'!S18 -> 3 | O9: 50 | P9: 50 | Q9: 50 | AC9: 94 | AD9: 7 | AG9: 150.007 | AH9: 7 | AJ9: 150.094
A10: 8 | B10: =+REG!G18 ->  | C10: 0 | D10: 0 | E10: 0 | F10: 150.008 | G10: 50 | H10: 50 | I10: 50 | K10: =+'G Q 4'!S19 -> 3 | L10: =+'H Q 4'!S19 -> 3 | M10: =+'T Q 4'!S19 -> 3 | O10: 50 | P10: 50 | Q10: 50 | AC10: 93 | AD10: 8 | AG10: 150.008 | AH10: 8 | AJ10: 150.093
A11: 9 | B11: =+REG!G19 ->  | C11: 0 | D11: 0 | E11: 0 | F11: 150.009 | G11: 50 | H11: 50 | I11: 50 | K11: =+'G Q 4'!S20 -> 3 | L11: =+'H Q 4'!S20 -> 3 | M11: =+'T Q 4'!S20 -> 3 | O11: 50 | P11: 50 | Q11: 50 | AC11: 92 | AD11: 9 | AG11: 150.009 | AH11: 9 | AJ11: 150.092
A12: 10 | B12: =+REG!G20 ->  | C12: =IF(K12=K$101,0,K12) -> 0 | D12: 0 | E12: 0 | F12: 150.01 | G12: 50 | H12: 50 | I12: 50 | K12: =+'G Q 4'!S21 -> 3 | L12: =+'H Q 4'!S21 -> 3 | M12: =+'T Q 4'!S21 -> 3 | O12: 50 | P12: 50 | Q12: 50 | AC12: 91 | AD12: 10 | AG12: 150.01 | AH12: 10 | AJ12: 150.091
A13: 11 | B13: =+REG!G21 ->  | C13: 0 | D13: 0 | E13: 0 | F13: 150.011 | G13: 50 | H13: 50 | I13: 50 | K13: =+'G Q 4'!S22 -> 3 | L13: =+'H Q 4'!S22 -> 3 | M13: =+'T Q 4'!S22 -> 3 | O13: 50 | P13: 50 | Q13: 50 | AC13: 90 | AD13: 11 | AG13: 150.011 | AH13: 11 | AJ13: 150.09
A14: 12 | B14: =+REG!G22 ->  | C14: 0 | D14: 0 | E14: 0 | F14: 150.012 | G14: 50 | H14: 50 | I14: 50 | K14: =+'G Q 4'!S23 -> 3 | L14: =+'H Q 4'!S23 -> 3 | M14: =+'T Q 4'!S23 -> 3 | O14: 50 | P14: 50 | Q14: 50 | AC14: 89 | AD14: 12 | AG14: 150.012 | AH14: 12 | AJ14: 150.089
A15: 13 | B15: =+REG!G23 ->  | C15: 0 | D15: 0 | E15: 0 | F15: 150.013 | G15: 50 | H15: 50 | I15: 50 | K15: =+'G Q 4'!S24 -> 3 | L15: =+'H Q 4'!S24 -> 3 | M15: =+'T Q 4'!S24 -> 3 | O15: 50 | P15: 50 | Q15: 50 | AC15: 88 | AD15: 13 | AG15: 150.013 | AH15: 13 | AJ15: 150.088
A16: 14 | B16: =+REG!G24 ->  | C16: 0 | D16: 0 | E16: 0 | F16: 150.014 | G16: 50 | H16: 50 | I16: 50 | K16: =+'G Q 4'!S25 -> 3 | L16: =+'H Q 4'!S25 -> 3 | M16: =+'T Q 4'!S25 -> 3 | O16: 50 | P16: 50 | Q16: 50 | AC16: 87 | AD16: 14 | AG16: 150.014 | AH16: 14 | AJ16: 150.087
A17: 15 | B17: =+REG!G25 ->  | C17: 0 | D17: 0 | E17: 0 | F17: 150.015 | G17: 50 | H17: 50 | I17: 50 | K17: =+'G Q 4'!S26 -> 3 | L17: =+'H Q 4'!S26 -> 3 | M17: =+'T Q 4'!S26 -> 3 | O17: 50 | P17: 50 | Q17: 50 | AC17: 86 | AD17: 15 | AG17: 150.015 | AH17: 15 | AJ17: 150.086
A18: 16 | B18: =+REG!G26 ->  | C18: 0 | D18: 0 | E18: 0 | F18: 150.016 | G18: 50 | H18: 50 | I18: 50 | K18: =+'G Q 4'!S27 -> 3 | L18: =+'H Q 4'!S27 -> 3 | M18: =+'T Q 4'!S27 -> 3 | O18: 50 | P18: 50 | Q18: 50 | AC18: 85 | AD18: 16 | AG18: 150.016 | AH18: 16 | AJ18: 150.085
A19: 17 | B19: =+REG!G27 ->  | C19: =IF(K19=K$101,0,K19) -> 0 | D19: 0 | E19: 0 | F19: 150.017 | G19: 50 | H19: 50 | I19: 50 | K19: =+'G Q 4'!S28 -> 3 | L19: =+'H Q 4'!S28 -> 3 | M19: =+'T Q 4'!S28 -> 3 | O19: 50 | P19: 50 | Q19: 50 | AC19: 84 | AD19: 17 | AG19: 150.017 | AH19: 17 | AJ19: 150.084
A20: 18 | B20: =+REG!G28 ->  | C20: 0 | D20: 0 | E20: 0 | F20: 150.018 | G20: 50 | H20: 50 | I20: 50 | K20: =+'G Q 4'!S29 -> 3 | L20: =+'H Q 4'!S29 -> 3 | M20: =+'T Q 4'!S29 -> 3 | O20: 50 | P20: 50 | Q20: 50 | AC20: 83 | AD20: 18 | AG20: 150.018 | AH20: 18 | AJ20: 150.083
A21: 19 | B21: =+REG!G29 ->  | C21: 0 | D21: 0 | E21: 0 | F21: 150.019 | G21: 50 | H21: 50 | I21: 50 | K21: =+'G Q 4'!S30 -> 3 | L21: =+'H Q 4'!S30 -> 3 | M21: =+'T Q 4'!S30 -> 3 | O21: 50 | P21: 50 | Q21: 50 | AC21: 82 | AD21: 19 | AG21: 150.019 | AH21: 19 | AJ21: 150.082
A22: 20 | B22: =+REG!G30 ->  | C22: 0 | D22: 0 | E22: 0 | F22: 150.02 | G22: 50 | H22: 50 | I22: 50 | K22: =+'G Q 4'!S31 -> 3 | L22: =+'H Q 4'!S31 -> 3 | M22: =+'T Q 4'!S31 -> 3 | O22: 50 | P22: 50 | Q22: 50 | AC22: 81 | AD22: 20 | AG22: 150.02 | AH22: 20 | AJ22: 150.081
A23: 21 | B23: =+REG!G31 ->  | C23: 0 | D23: 0 | E23: 0 | F23: 150.021 | G23: 50 | H23: 50 | I23: 50 | K23: =+'G Q 4'!S32 -> 3 | L23: =+'H Q 4'!S32 -> 3 | M23: =+'T Q 4'!S32 -> 3 | O23: 50 | P23: 50 | Q23: 50 | AC23: 80 | AD23: 21 | AG23: 150.021 | AH23: 21 | AJ23: 150.08
A24: 22 | B24: =+REG!G32 ->  | C24: 0 | D24: 0 | E24: 0 | F24: 150.022 | G24: 50 | H24: 50 | I24: 50 | K24: =+'G Q 4'!S33 -> 3 | L24: =+'H Q 4'!S33 -> 3 | M24: =+'T Q 4'!S33 -> 3 | O24: 50 | P24: 50 | Q24: 50 | AC24: 79 | AD24: 22 | AG24: 150.022 | AH24: 22 | AJ24: 150.079
A25: 23 | B25: =+REG!G33 ->  | C25: 0 | D25: 0 | E25: 0 | F25: 150.023 | G25: 50 | H25: 50 | I25: 50 | K25: =+'G Q 4'!S34 -> 3 | L25: =+'H Q 4'!S34 -> 3 | M25: =+'T Q 4'!S34 -> 3 | O25: 50 | P25: 50 | Q25: 50 | AC25: 78 | AD25: 23 | AG25: 150.023 | AH25: 23 | AJ25: 150.078
A26: 24 | B26: =+REG!G34 ->  | C26: 0 | D26: 0 | E26: 0 | F26: 150.024 | G26: 50 | H26: 50 | I26: 50 | K26: =+'G Q 4'!S35 -> 3 | L26: =+'H Q 4'!S35 -> 3 | M26: =+'T Q 4'!S35 -> 3 | O26: 50 | P26: 50 | Q26: 50 | AC26: 77 | AD26: 24 | AG26: 150.024 | AH26: 24 | AJ26: 150.077
A27: 25 | B27: =+REG!G35 ->  | C27: 0 | D27: 0 | E27: 0 | F27: 150.025 | G27: 50 | H27: 50 | I27: 50 | K27: =+'G Q 4'!S36 -> 3 | L27: =+'H Q 4'!S36 -> 3 | M27: =+'T Q 4'!S36 -> 3 | O27: 50 | P27: 50 | Q27: 50 | AC27: 76 | AD27: 25 | AG27: 150.025 | AH27: 25 | AJ27: 150.076
A28: 26 | B28: =+REG!G36 ->  | C28: 0 | D28: 0 | E28: 0 | F28: 150.026 | G28: 50 | H28: 50 | I28: 50 | K28: =+'G Q 4'!S37 -> 3 | L28: =+'H Q 4'!S37 -> 3 | M28: =+'T Q 4'!S37 -> 3 | O28: 50 | P28: 50 | Q28: 50 | AC28: 75 | AD28: 26 | AG28: 150.026 | AH28: 26 | AJ28: 150.075
A29: 27 | B29: =+REG!G37 ->  | C29: 0 | D29: 0 | E29: 0 | F29: 150.027 | G29: 50 | H29: 50 | I29: 50 | K29: =+'G Q 4'!S38 -> 3 | L29: =+'H Q 4'!S38 -> 3 | M29: =+'T Q 4'!S38 -> 3 | O29: 50 | P29: 50 | Q29: 50 | AC29: 74 | AD29: 27 | AG29: 150.027 | AH29: 27 | AJ29: 150.074
A30: 28 | B30: =+REG!G38 ->  | C30: 0 | D30: 0 | E30: 0 | F30: 150.028 | G30: 50 | H30: 50 | I30: 50 | K30: =+'G Q 4'!S39 -> 3 | L30: =+'H Q 4'!S39 -> 3 | M30: =+'T Q 4'!S39 -> 3 | O30: 50 | P30: 50 | Q30: 50 | AC30: 73 | AD30: 28 | AG30: 150.028 | AH30: 28 | AJ30: 150.073
A31: 29 | B31: =+REG!G39 ->  | C31: 0 | D31: 0 | E31: 0 | F31: 150.029 | G31: 50 | H31: 50 | I31: 50 | K31: =+'G Q 4'!S40 -> 3 | L31: =+'H Q 4'!S40 -> 3 | M31: =+'T Q 4'!S40 -> 3 | O31: 50 | P31: 50 | Q31: 50 | AC31: 72 | AD31: 29 | AG31: 150.029 | AH31: 29 | AJ31: 150.072
A32: 30 | B32: =+REG!G40 ->  | C32: 0 | D32: 0 | E32: 0 | F32: 150.03 | G32: 50 | H32: 50 | I32: 50 | K32: =+'G Q 4'!S41 -> 3 | L32: =+'H Q 4'!S41 -> 3 | M32: =+'T Q 4'!S41 -> 3 | O32: 50 | P32: 50 | Q32: 50 | AC32: 71 | AD32: 30 | AG32: 150.03 | AH32: 30 | AJ32: 150.071
A33: 31 | B33: =+REG!G41 ->  | C33: 0 | D33: 0 | E33: 0 | F33: 150.031 | G33: 50 | H33: 50 | I33: 50 | K33: =+'G Q 4'!S42 -> 3 | L33: =+'H Q 4'!S42 -> 3 | M33: =+'T Q 4'!S42 -> 3 | O33: 50 | P33: 50 | Q33: 50 | AC33: 70 | AD33: 31 | AG33: 150.031 | AH33: 31 | AJ33: 150.07
A34: 32 | B34: =+REG!G42 ->  | C34: 0 | D34: 0 | E34: 0 | F34: 150.032 | G34: 50 | H34: 50 | I34: 50 | K34: =+'G Q 4'!S43 -> 3 | L34: =+'H Q 4'!S43 -> 3 | M34: =+'T Q 4'!S43 -> 3 | O34: 50 | P34: 50 | Q34: 50 | AC34: 69 | AD34: 32 | AG34: 150.032 | AH34: 32 | AJ34: 150.069
A35: 33 | B35: =+REG!G43 ->  | C35: 0 | D35: 0 | E35: 0 | F35: 150.033 | G35: =IF(C35=1,200,IF(C35=2,180,IF(C35=3,160,IF(C35=4,150,IF(C35=5,145,IF(C35=6,140,IF(C35=7,136,IF(C35=8,132,O35)))))))) -> 50 | H35: 50 | I35: 50 | K35: =+'G Q 4'!S44 -> 3 | L35: =+'H Q 4'!S44 -> 3 | M35: =+'T Q 4'!S44 -> 3 | O35: =IF(C35=9,129,IF(C35=10,126,IF(C35=11,124,IF(C35=12,122,IF(C35=13,120,IF(C35=14,118,IF(C35>14,116+15-C35,50))))))) -> 50 | P35: 50 | Q35: 50 | AC35: 68 | AD35: 33 | AG35: 150.033 | AH35: 33 | AJ35: 150.068
A36: 34 | B36: =+REG!G44 ->  | C36: 0 | D36: 0 | E36: 0 | F36: 150.034 | G36: 50 | H36: 50 | I36: 50 | K36: =+'G Q 4'!S45 -> 3 | L36: =+'H Q 4'!S45 -> 3 | M36: =+'T Q 4'!S45 -> 3 | O36: 50 | P36: 50 | Q36: 50 | AC36: 67 | AD36: 34 | AG36: 150.034 | AH36: 34 | AJ36: 150.067
A37: 35 | B37: =+REG!G45 ->  | C37: 0 | D37: 0 | E37: 0 | F37: 150.035 | G37: 50 | H37: 50 | I37: 50 | K37: =+'G Q 4'!S46 -> 3 | L37: =+'H Q 4'!S46 -> 3 | M37: =+'T Q 4'!S46 -> 3 | O37: 50 | P37: 50 | Q37: 50 | AC37: 66 | AD37: 35 | AG37: 150.035 | AH37: 35 | AJ37: 150.066
A38: 36 | B38: =+REG!G46 ->  | C38: 0 | D38: 0 | E38: 0 | F38: 150.036 | G38: 50 | H38: 50 | I38: 50 | K38: =+'G Q 4'!S47 -> 3 | L38: =+'H Q 4'!S47 -> 3 | M38: =+'T Q 4'!S47 -> 3 | O38: 50 | P38: 50 | Q38: 50 | AC38: 65 | AD38: 36 | AG38: 150.036 | AH38: 36 | AJ38: 150.065
A39: 37 | B39: =+REG!G47 ->  | C39: 0 | D39: 0 | E39: 0 | F39: 150.037 | G39: 50 | H39: 50 | I39: 50 | K39: =+'G Q 4'!S48 -> 3 | L39: =+'H Q 4'!S48 -> 3 | M39: =+'T Q 4'!S48 -> 3 | O39: 50 | P39: 50 | Q39: 50 | AC39: 64 | AD39: 37 | AG39: 150.037 | AH39: 37 | AJ39: 150.064
A40: 38 | B40: =+REG!G48 ->  | C40: 0 | D40: 0 | E40: 0 | F40: 150.038 | G40: 50 | H40: 50 | I40: 50 | K40: =+'G Q 4'!S49 -> 3 | L40: =+'H Q 4'!S49 -> 3 | M40: =+'T Q 4'!S49 -> 3 | O40: 50 | P40: 50 | Q40: 50 | AC40: 63 | AD40: 38 | AG40: 150.038 | AH40: 38 | AJ40: 150.063
A41: 39 | B41: =+REG!G49 ->  | C41: 0 | D41: 0 | E41: 0 | F41: 150.039 | G41: 50 | H41: 50 | I41: 50 | K41: =+'G Q 4'!S50 -> 3 | L41: =+'H Q 4'!S50 -> 3 | M41: =+'T Q 4'!S50 -> 3 | O41: 50 | P41: 50 | Q41: 50 | AC41: 62 | AD41: 39 | AG41: 150.039 | AH41: 39 | AJ41: 150.062
A42: 40 | B42: =+REG!G50 ->  | C42: 0 | D42: 0 | E42: 0 | F42: 150.04 | G42: 50 | H42: 50 | I42: 50 | K42: =+'G Q 4'!S51 -> 3 | L42: =+'H Q 4'!S51 -> 3 | M42: =+'T Q 4'!S51 -> 3 | O42: 50 | P42: 50 | Q42: 50 | AC42: 61 | AD42: 40 | AG42: 150.04 | AH42: 40 | AJ42: 150.061
A43: 41 | B43: =+REG!G51 ->  | C43: 0 | D43: 0 | E43: 0 | F43: 150.041 | G43: 50 | H43: 50 | I43: 50 | K43: =+'G Q 4'!S52 -> 3 | L43: =+'H Q 4'!S52 -> 3 | M43: =+'T Q 4'!S52 -> 3 | O43: 50 | P43: 50 | Q43: 50 | AC43: 60 | AD43: 41 | AG43: 150.041 | AH43: 41 | AJ43: 150.06
A44: 42 | B44: =+REG!G52 ->  | C44: 0 | D44: 0 | E44: 0 | F44: 150.042 | G44: 50 | H44: 50 | I44: 50 | K44: =+'G Q 4'!S53 -> 3 | L44: =+'H Q 4'!S53 -> 3 | M44: =+'T Q 4'!S53 -> 3 | O44: 50 | P44: 50 | Q44: 50 | AC44: 59 | AD44: 42 | AG44: 150.042 | AH44: 42 | AJ44: 150.059
A45: 43 | B45: =+REG!G53 ->  | C45: 0 | D45: 0 | E45: 0 | F45: 150.043 | G45: 50 | H45: 50 | I45: 50 | K45: =+'G Q 4'!S54 -> 3 | L45: =+'H Q 4'!S54 -> 3 | M45: =+'T Q 4'!S54 -> 3 | O45: 50 | P45: 50 | Q45: 50 | AC45: 58 | AD45: 43 | AG45: 150.043 | AH45: 43 | AJ45: 150.058
A46: 44 | B46: =+REG!G54 ->  | C46: 0 | D46: 0 | E46: 0 | F46: 150.044 | G46: 50 | H46: 50 | I46: 50 | K46: =+'G Q 4'!S55 -> 3 | L46: =+'H Q 4'!S55 -> 3 | M46: =+'T Q 4'!S55 -> 3 | O46: 50 | P46: 50 | Q46: 50 | AC46: 57 | AD46: 44 | AG46: 150.044 | AH46: 44 | AJ46: 150.057
A47: 45 | B47: =+REG!G55 ->  | C47: 0 | D47: 0 | E47: 0 | F47: 150.045 | G47: 50 | H47: 50 | I47: 50 | K47: =+'G Q 4'!S56 -> 3 | L47: =+'H Q 4'!S56 -> 3 | M47: =+'T Q 4'!S56 -> 3 | O47: 50 | P47: 50 | Q47: 50 | AC47: 56 | AD47: 45 | AG47: 150.045 | AH47: 45 | AJ47: 150.056
A48: 46 | B48: =+REG!G56 ->  | C48: 0 | D48: 0 | E48: 0 | F48: 150.046 | G48: 50 | H48: 50 | I48: 50 | K48: =+'G Q 4'!S57 -> 3 | L48: =+'H Q 4'!S57 -> 3 | M48: =+'T Q 4'!S57 -> 3 | O48: 50 | P48: 50 | Q48: 50 | AC48: 55 | AD48: 46 | AG48: 150.046 | AH48: 46 | AJ48: 150.055
A49: 47 | B49: =+REG!G57 ->  | C49: 0 | D49: 0 | E49: 0 | F49: 150.047 | G49: 50 | H49: 50 | I49: 50 | K49: =+'G Q 4'!S58 -> 3 | L49: =+'H Q 4'!S58 -> 3 | M49: =+'T Q 4'!S58 -> 3 | O49: 50 | P49: 50 | Q49: 50 | AC49: 54 | AD49: 47 | AG49: 150.047 | AH49: 47 | AJ49: 150.054
A50: 48 | B50: =+REG!G58 ->  | C50: 0 | D50: 0 | E50: 0 | F50: 150.048 | G50: 50 | H50: 50 | I50: 50 | K50: =+'G Q 4'!S59 -> 3 | L50: =+'H Q 4'!S59 -> 3 | M50: =+'T Q 4'!S59 -> 3 | O50: 50 | P50: 50 | Q50: 50 | AC50: 53 | AD50: 48 | AG50: 150.048 | AH50: 48 | AJ50: 150.053
A51: 49 | B51: =+REG!G59 ->  | C51: 0 | D51: 0 | E51: 0 | F51: 150.049 | G51: 50 | H51: 50 | I51: 50 | K51: =+'G Q 4'!S60 -> 3 | L51: =+'H Q 4'!S60 -> 3 | M51: =+'T Q 4'!S60 -> 3 | O51: 50 | P51: 50 | Q51: 50 | AC51: 52 | AD51: 49 | AG51: 150.049 | AH51: 49 | AJ51: 150.052
A52: 50 | B52: =+REG!G60 ->  | C52: 0 | D52: 0 | E52: 0 | F52: 150.05 | G52: 50 | H52: 50 | I52: 50 | K52: =+'G Q 4'!S61 -> 3 | L52: =+'H Q 4'!S61 -> 3 | M52: =+'T Q 4'!S61 -> 3 | O52: 50 | P52: 50 | Q52: 50 | AC52: 51 | AD52: 50 | AG52: 150.05 | AH52: 50 | AJ52: 150.051
A53: 51 | B53: =+REG!G61 ->  | C53: 0 | D53: 0 | E53: 0 | F53: 150.051 | G53: 50 | H53: 50 | I53: 50 | K53: =+'G Q 4'!S62 -> 3 | L53: =+'H Q 4'!S62 -> 3 | M53: =+'T Q 4'!S62 -> 3 | O53: 50 | P53: 50 | Q53: 50 | AC53: 50 | AD53: 51 | AG53: 150.051 | AH53: 51 | AJ53: 150.05
A54: 52 | B54: =+REG!G62 ->  | C54: 0 | D54: 0 | E54: 0 | F54: 150.052 | G54: 50 | H54: 50 | I54: 50 | K54: =+'G Q 4'!S63 -> 3 | L54: =+'H Q 4'!S63 -> 3 | M54: =+'T Q 4'!S63 -> 3 | O54: 50 | P54: 50 | Q54: 50 | AC54: 49 | AD54: 52 | AG54: 150.052 | AH54: 52 | AJ54: 150.049
A55: 53 | B55: =+REG!G63 ->  | C55: 0 | D55: 0 | E55: 0 | F55: 150.053 | G55: 50 | H55: 50 | I55: 50 | K55: =+'G Q 4'!S64 -> 3 | L55: =+'H Q 4'!S64 -> 3 | M55: =+'T Q 4'!S64 -> 3 | O55: 50 | P55: 50 | Q55: 50 | AC55: 48 | AD55: 53 | AG55: 150.053 | AH55: 53 | AJ55: 150.048
A56: 54 | B56: =+REG!G64 ->  | C56: 0 | D56: 0 | E56: 0 | F56: 150.054 | G56: 50 | H56: 50 | I56: 50 | K56: =+'G Q 4'!S65 -> 3 | L56: =+'H Q 4'!S65 -> 3 | M56: =+'T Q 4'!S65 -> 3 | O56: 50 | P56: 50 | Q56: 50 | AC56: 47 | AD56: 54 | AG56: 150.054 | AH56: 54 | AJ56: 150.047
A57: 55 | B57: =+REG!G65 ->  | C57: 0 | D57: 0 | E57: 0 | F57: 150.055 | G57: 50 | H57: 50 | I57: 50 | K57: =+'G Q 4'!S66 -> 3 | L57: =+'H Q 4'!S66 -> 3 | M57: =+'T Q 4'!S66 -> 3 | O57: 50 | P57: 50 | Q57: 50 | AC57: 46 | AD57: 55 | AG57: 150.055 | AH57: 55 | AJ57: 150.046
A58: 56 | B58: =+REG!G66 ->  | C58: 0 | D58: 0 | E58: 0 | F58: 150.056 | G58: 50 | H58: 50 | I58: 50 | K58: =+'G Q 4'!S67 -> 3 | L58: =+'H Q 4'!S67 -> 3 | M58: =+'T Q 4'!S67 -> 3 | O58: 50 | P58: 50 | Q58: 50 | AC58: 45 | AD58: 56 | AG58: 150.056 | AH58: 56 | AJ58: 150.045
A59: 57 | B59: =+REG!G67 ->  | C59: 0 | D59: 0 | E59: 0 | F59: 150.057 | G59: 50 | H59: 50 | I59: 50 | K59: =+'G Q 4'!S68 -> 3 | L59: =+'H Q 4'!S68 -> 3 | M59: =+'T Q 4'!S68 -> 3 | O59: 50 | P59: 50 | Q59: 50 | AC59: 44 | AD59: 57 | AG59: 150.057 | AH59: 57 | AJ59: 150.044
A60: 58 | B60: =+REG!G68 ->  | C60: 0 | D60: 0 | E60: 0 | F60: 150.058 | G60: 50 | H60: 50 | I60: 50 | K60: =+'G Q 4'!S69 -> 3 | L60: =+'H Q 4'!S69 -> 3 | M60: =+'T Q 4'!S69 -> 3 | O60: 50 | P60: 50 | Q60: 50 | AC60: 43 | AD60: 58 | AG60: 150.058 | AH60: 58 | AJ60: 150.043
A61: 59 | B61: =+REG!G69 ->  | C61: 0 | D61: 0 | E61: 0 | F61: 150.059 | G61: 50 | H61: 50 | I61: 50 | K61: =+'G Q 4'!S70 -> 3 | L61: =+'H Q 4'!S70 -> 3 | M61: =+'T Q 4'!S70 -> 3 | O61: 50 | P61: 50 | Q61: 50 | AC61: 42 | AD61: 59 | AG61: 150.059 | AH61: 59 | AJ61: 150.042
A62: 60 | B62: =+REG!G70 ->  | C62: 0 | D62: 0 | E62: 0 | F62: 150.06 | G62: 50 | H62: 50 | I62: 50 | K62: =+'G Q 4'!S71 -> 3 | L62: =+'H Q 4'!S71 -> 3 | M62: =+'T Q 4'!S71 -> 3 | O62: 50 | P62: 50 | Q62: 50 | AC62: 41 | AD62: 60 | AG62: 150.06 | AH62: 60 | AJ62: 150.041
A63: 61 | B63: =+REG!G71 ->  | C63: 0 | D63: 0 | E63: 0 | F63: 150.061 | G63: 50 | H63: 50 | I63: 50 | K63: =+'G Q 4'!S72 -> 3 | L63: =+'H Q 4'!S72 -> 3 | M63: =+'T Q 4'!S72 -> 3 | O63: 50 | P63: 50 | Q63: 50 | AC63: 40 | AD63: 61 | AG63: 150.061 | AH63: 61 | AJ63: 150.04
A64: 62 | B64: =+REG!G72 ->  | C64: 0 | D64: 0 | E64: 0 | F64: 150.062 | G64: 50 | H64: 50 | I64: 50 | K64: =+'G Q 4'!S73 -> 3 | L64: =+'H Q 4'!S73 -> 3 | M64: =+'T Q 4'!S73 -> 3 | O64: 50 | P64: 50 | Q64: 50 | AC64: 39 | AD64: 62 | AG64: 150.062 | AH64: 62 | AJ64: 150.039
A65: 63 | B65: =+REG!G73 ->  | C65: 0 | D65: 0 | E65: 0 | F65: 150.063 | G65: 50 | H65: 50 | I65: 50 | K65: =+'G Q 4'!S74 -> 3 | L65: =+'H Q 4'!S74 -> 3 | M65: =+'T Q 4'!S74 -> 3 | O65: 50 | P65: 50 | Q65: 50 | AC65: 38 | AD65: 63 | AG65: 150.063 | AH65: 63 | AJ65: 150.038
A66: 64 | B66: =+REG!G74 ->  | C66: 0 | D66: 0 | E66: 0 | F66: 150.064 | G66: 50 | H66: 50 | I66: 50 | K66: =+'G Q 4'!S75 -> 3 | L66: =+'H Q 4'!S75 -> 3 | M66: =+'T Q 4'!S75 -> 3 | O66: 50 | P66: 50 | Q66: 50 | AC66: 37 | AD66: 64 | AG66: 150.064 | AH66: 64 | AJ66: 150.037
A67: 65 | B67: =+REG!G75 ->  | C67: 0 | D67: 0 | E67: 0 | F67: 150.065 | G67: =IF(C67=1,200,IF(C67=2,180,IF(C67=3,160,IF(C67=4,150,IF(C67=5,145,IF(C67=6,140,IF(C67=7,136,IF(C67=8,132,O67)))))))) -> 50 | H67: 50 | I67: 50 | K67: =+'G Q 4'!S76 -> 3 | L67: =+'H Q 4'!S76 -> 3 | M67: =+'T Q 4'!S76 -> 3 | O67: =IF(C67=9,129,IF(C67=10,126,IF(C67=11,124,IF(C67=12,122,IF(C67=13,120,IF(C67=14,118,IF(C67>14,116+15-C67,50))))))) -> 50 | P67: 50 | Q67: 50 | AC67: =RANK(F67,F:F,0) -> 36 | AD67: 65 | AE67: =B67 ->  | AG67: 150.065 | AH67: 65 | AJ67: 150.036
A68: 66 | B68: =+REG!G76 ->  | C68: =IF(K68=K$101,0,K68) -> 0 | D68: 0 | E68: 0 | F68: =SUM(G68:I68)+A68/1000 -> 150.066 | G68: 50 | H68: 50 | I68: 50 | K68: =+'G Q 4'!S77 -> 3 | L68: =+'H Q 4'!S77 -> 3 | M68: =+'T Q 4'!S77 -> 3 | O68: 50 | P68: 50 | Q68: 50 | X68: =IF(AE68<>"",AI68,"") ->  | Y68: =IF(AE68<>"",AJ68,"") ->  | AC68: 35 | AD68: 66 | AG68: =+F68 -> 150.066 | AH68: 66 | AI68: =VLOOKUP($AD$3:$AD$100,$AC$3:$AG$100,3,0) ->  | AJ68: =VLOOKUP($AD$3:$AD$100,$AC$3:$AG$100,5,0) -> 150.035
A69: 67 | B69: =+REG!G77 ->  | C69: 0 | D69: 0 | E69: 0 | F69: 150.067 | G69: 50 | H69: 50 | I69: 50 | K69: =+'G Q 4'!S78 -> 3 | L69: =+'H Q 4'!S78 -> 3 | M69: =+'T Q 4'!S78 -> 3 | O69: 50 | P69: 50 | Q69: 50 | W69: =IF(Y69<>"",IF(Y68-Y69<1,AD68,AD69),"") ->  | AC69: 34 | AD69: 67 | AG69: 150.067 | AH69: 67 | AJ69: 150.034
A70: 68 | B70: =+REG!G78 ->  | C70: 0 | D70: 0 | E70: 0 | F70: 150.068 | G70: 50 | H70: 50 | I70: 50 | K70: =+'G Q 4'!S79 -> 3 | L70: =+'H Q 4'!S79 -> 3 | M70: =+'T Q 4'!S79 -> 3 | O70: 50 | P70: 50 | Q70: 50 | AC70: 33 | AD70: 68 | AG70: 150.068 | AH70: 68 | AJ70: 150.033
A71: 69 | B71: =+REG!G79 ->  | C71: 0 | D71: 0 | E71: 0 | F71: 150.069 | G71: 50 | H71: 50 | I71: 50 | K71: =+'G Q 4'!S80 -> 3 | L71: =+'H Q 4'!S80 -> 3 | M71: =+'T Q 4'!S80 -> 3 | O71: 50 | P71: 50 | Q71: 50 | AC71: 32 | AD71: 69 | AG71: 150.069 | AH71: 69 | AJ71: 150.032
A72: 70 | B72: =+REG!G80 ->  | C72: 0 | D72: 0 | E72: 0 | F72: 150.07 | G72: 50 | H72: 50 | I72: 50 | K72: =+'G Q 4'!S81 -> 3 | L72: =+'H Q 4'!S81 -> 3 | M72: =+'T Q 4'!S81 -> 3 | O72: 50 | P72: 50 | Q72: 50 | AC72: 31 | AD72: 70 | AG72: 150.07 | AH72: 70 | AJ72: 150.031
A73: 71 | B73: =+REG!G81 ->  | C73: 0 | D73: 0 | E73: 0 | F73: 150.071 | G73: 50 | H73: 50 | I73: 50 | K73: =+'G Q 4'!S82 -> 3 | L73: =+'H Q 4'!S82 -> 3 | M73: =+'T Q 4'!S82 -> 3 | O73: 50 | P73: 50 | Q73: 50 | AC73: 30 | AD73: 71 | AG73: 150.071 | AH73: 71 | AJ73: 150.03
A74: 72 | B74: =+REG!G82 ->  | C74: 0 | D74: 0 | E74: 0 | F74: 150.072 | G74: 50 | H74: 50 | I74: 50 | K74: =+'G Q 4'!S83 -> 3 | L74: =+'H Q 4'!S83 -> 3 | M74: =+'T Q 4'!S83 -> 3 | O74: 50 | P74: 50 | Q74: 50 | AC74: 29 | AD74: 72 | AG74: 150.072 | AH74: 72 | AJ74: 150.029
A75: 73 | B75: =+REG!G83 ->  | C75: 0 | D75: 0 | E75: 0 | F75: 150.073 | G75: 50 | H75: 50 | I75: 50 | K75: =+'G Q 4'!S84 -> 3 | L75: =+'H Q 4'!S84 -> 3 | M75: =+'T Q 4'!S84 -> 3 | O75: 50 | P75: 50 | Q75: 50 | AC75: 28 | AD75: 73 | AG75: 150.073 | AH75: 73 | AJ75: 150.028
A76: 74 | B76: =+REG!G84 ->  | C76: 0 | D76: 0 | E76: 0 | F76: 150.074 | G76: 50 | H76: 50 | I76: 50 | K76: =+'G Q 4'!S85 -> 3 | L76: =+'H Q 4'!S85 -> 3 | M76: =+'T Q 4'!S85 -> 3 | O76: 50 | P76: 50 | Q76: 50 | AC76: 27 | AD76: 74 | AG76: 150.074 | AH76: 74 | AJ76: 150.027
A77: 75 | B77: =+REG!G85 ->  | C77: 0 | D77: 0 | E77: 0 | F77: 150.075 | G77: 50 | H77: 50 | I77: 50 | K77: =+'G Q 4'!S86 -> 3 | L77: =+'H Q 4'!S86 -> 3 | M77: =+'T Q 4'!S86 -> 3 | O77: 50 | P77: 50 | Q77: 50 | AC77: 26 | AD77: 75 | AG77: 150.075 | AH77: 75 | AJ77: 150.026
A78: 76 | B78: =+REG!G86 ->  | C78: 0 | D78: 0 | E78: 0 | F78: 150.076 | G78: 50 | H78: 50 | I78: 50 | K78: =+'G Q 4'!S87 -> 3 | L78: =+'H Q 4'!S87 -> 3 | M78: =+'T Q 4'!S87 -> 3 | O78: 50 | P78: 50 | Q78: 50 | AC78: 25 | AD78: 76 | AG78: 150.076 | AH78: 76 | AJ78: 150.025
A79: 77 | B79: =+REG!G87 ->  | C79: 0 | D79: 0 | E79: 0 | F79: 150.077 | G79: 50 | H79: 50 | I79: 50 | K79: =+'G Q 4'!S88 -> 3 | L79: =+'H Q 4'!S88 -> 3 | M79: =+'T Q 4'!S88 -> 3 | O79: 50 | P79: 50 | Q79: 50 | AC79: 24 | AD79: 77 | AG79: 150.077 | AH79: 77 | AJ79: 150.024
A80: 78 | B80: =+REG!G88 ->  | C80: 0 | D80: 0 | E80: 0 | F80: 150.078 | G80: 50 | H80: 50 | I80: 50 | K80: =+'G Q 4'!S89 -> 3 | L80: =+'H Q 4'!S89 -> 3 | M80: =+'T Q 4'!S89 -> 3 | O80: 50 | P80: 50 | Q80: 50 | AC80: 23 | AD80: 78 | AG80: 150.078 | AH80: 78 | AJ80: 150.023
A81: 79 | B81: =+REG!G89 ->  | C81: 0 | D81: 0 | E81: 0 | F81: 150.079 | G81: 50 | H81: 50 | I81: 50 | K81: =+'G Q 4'!S90 -> 3 | L81: =+'H Q 4'!S90 -> 3 | M81: =+'T Q 4'!S90 -> 3 | O81: 50 | P81: 50 | Q81: 50 | AC81: 22 | AD81: 79 | AG81: 150.079 | AH81: 79 | AJ81: 150.022
A82: 80 | B82: =+REG!G90 ->  | C82: 0 | D82: 0 | E82: 0 | F82: 150.08 | G82: 50 | H82: 50 | I82: 50 | K82: =+'G Q 4'!S91 -> 3 | L82: =+'H Q 4'!S91 -> 3 | M82: =+'T Q 4'!S91 -> 3 | O82: 50 | P82: 50 | Q82: 50 | AC82: 21 | AD82: 80 | AG82: 150.08 | AH82: 80 | AJ82: 150.021
A83: 81 | B83: =+REG!G91 ->  | C83: 0 | D83: 0 | E83: 0 | F83: 150.081 | G83: 50 | H83: 50 | I83: 50 | K83: =+'G Q 4'!S92 -> 3 | L83: =+'H Q 4'!S92 -> 3 | M83: =+'T Q 4'!S92 -> 3 | O83: 50 | P83: 50 | Q83: 50 | AC83: 20 | AD83: 81 | AG83: 150.081 | AH83: 81 | AJ83: 150.02
A84: 82 | B84: =+REG!G92 ->  | C84: 0 | D84: 0 | E84: 0 | F84: 150.082 | G84: 50 | H84: 50 | I84: 50 | K84: =+'G Q 4'!S93 -> 3 | L84: =+'H Q 4'!S93 -> 3 | M84: =+'T Q 4'!S93 -> 3 | O84: 50 | P84: 50 | Q84: 50 | AC84: 19 | AD84: 82 | AG84: 150.082 | AH84: 82 | AJ84: 150.019
A85: 83 | B85: =+REG!G93 ->  | C85: 0 | D85: 0 | E85: 0 | F85: 150.083 | G85: 50 | H85: 50 | I85: 50 | K85: =+'G Q 4'!S94 -> 3 | L85: =+'H Q 4'!S94 -> 3 | M85: =+'T Q 4'!S94 -> 3 | O85: 50 | P85: 50 | Q85: 50 | AC85: 18 | AD85: 83 | AG85: 150.083 | AH85: 83 | AJ85: 150.018
A86: 84 | B86: =+REG!G94 ->  | C86: 0 | D86: 0 | E86: 0 | F86: 150.084 | G86: 50 | H86: 50 | I86: 50 | K86: =+'G Q 4'!S95 -> 3 | L86: =+'H Q 4'!S95 -> 3 | M86: =+'T Q 4'!S95 -> 3 | O86: 50 | P86: 50 | Q86: 50 | AC86: 17 | AD86: 84 | AG86: 150.084 | AH86: 84 | AJ86: 150.017
A87: 85 | B87: =+REG!G95 ->  | C87: 0 | D87: 0 | E87: 0 | F87: 150.085 | G87: 50 | H87: 50 | I87: 50 | K87: =+'G Q 4'!S96 -> 3 | L87: =+'H Q 4'!S96 -> 3 | M87: =+'T Q 4'!S96 -> 3 | O87: 50 | P87: 50 | Q87: 50 | AC87: 16 | AD87: 85 | AG87: 150.085 | AH87: 85 | AJ87: 150.016
A88: 86 | B88: =+REG!G96 ->  | C88: 0 | D88: 0 | E88: 0 | F88: 150.086 | G88: 50 | H88: 50 | I88: 50 | K88: =+'G Q 4'!S97 -> 3 | L88: =+'H Q 4'!S97 -> 3 | M88: =+'T Q 4'!S97 -> 3 | O88: 50 | P88: 50 | Q88: 50 | AC88: 15 | AD88: 86 | AG88: 150.086 | AH88: 86 | AJ88: 150.015
A89: 87 | B89: =+REG!G97 ->  | C89: 0 | D89: 0 | E89: 0 | F89: 150.087 | G89: 50 | H89: 50 | I89: 50 | K89: =+'G Q 4'!S98 -> 3 | L89: =+'H Q 4'!S98 -> 3 | M89: =+'T Q 4'!S98 -> 3 | O89: 50 | P89: 50 | Q89: 50 | AC89: 14 | AD89: 87 | AG89: 150.087 | AH89: 87 | AJ89: 150.014
A90: 88 | B90: =+REG!G98 ->  | C90: 0 | D90: 0 | E90: 0 | F90: 150.088 | G90: 50 | H90: 50 | I90: 50 | K90: =+'G Q 4'!S99 -> 3 | L90: =+'H Q 4'!S99 -> 3 | M90: =+'T Q 4'!S99 -> 3 | O90: 50 | P90: 50 | Q90: 50 | AC90: 13 | AD90: 88 | AG90: 150.088 | AH90: 88 | AJ90: 150.013
A91: 89 | B91: =+REG!G99 ->  | C91: 0 | D91: 0 | E91: 0 | F91: 150.089 | G91: 50 | H91: 50 | I91: 50 | K91: =+'G Q 4'!S100 -> 3 | L91: =+'H Q 4'!S100 -> 3 | M91: =+'T Q 4'!S100 -> 3 | O91: 50 | P91: 50 | Q91: 50 | AC91: 12 | AD91: 89 | AG91: 150.089 | AH91: 89 | AJ91: 150.012
A92: 90 | B92: =+REG!G100 ->  | C92: 0 | D92: 0 | E92: 0 | F92: 150.09 | G92: 50 | H92: 50 | I92: 50 | K92: =+'G Q 4'!S101 -> 3 | L92: =+'H Q 4'!S101 -> 3 | M92: =+'T Q 4'!S101 -> 3 | O92: 50 | P92: 50 | Q92: 50 | AC92: 11 | AD92: 90 | AG92: 150.09 | AH92: 90 | AJ92: 150.011
A93: 91 | B93: =+REG!G101 ->  | C93: 0 | D93: 0 | E93: 0 | F93: 150.091 | G93: 50 | H93: 50 | I93: 50 | K93: =+'G Q 4'!S102 -> 3 | L93: =+'H Q 4'!S102 -> 3 | M93: =+'T Q 4'!S102 -> 3 | O93: 50 | P93: 50 | Q93: 50 | AC93: 10 | AD93: 91 | AG93: 150.091 | AH93: 91 | AJ93: 150.01
A94: 92 | B94: =+REG!G102 ->  | C94: 0 | D94: 0 | E94: 0 | F94: 150.092 | G94: 50 | H94: 50 | I94: 50 | K94: =+'G Q 4'!S103 -> 3 | L94: =+'H Q 4'!S103 -> 3 | M94: =+'T Q 4'!S103 -> 3 | O94: 50 | P94: 50 | Q94: 50 | AC94: 9 | AD94: 92 | AG94: 150.092 | AH94: 92 | AJ94: 150.009
A95: 93 | B95: =+REG!G103 ->  | C95: 0 | D95: 0 | E95: 0 | F95: 150.093 | G95: 50 | H95: 50 | I95: 50 | K95: =+'G Q 4'!S104 -> 3 | L95: =+'H Q 4'!S104 -> 3 | M95: =+'T Q 4'!S104 -> 3 | O95: 50 | P95: 50 | Q95: 50 | AC95: 8 | AD95: 93 | AG95: 150.093 | AH95: 93 | AJ95: 150.008
A96: 94 | B96: =+REG!G104 ->  | C96: 0 | D96: 0 | E96: 0 | F96: 150.094 | G96: 50 | H96: 50 | I96: 50 | K96: =+'G Q 4'!S105 -> 3 | L96: =+'H Q 4'!S105 -> 3 | M96: =+'T Q 4'!S105 -> 3 | O96: 50 | P96: 50 | Q96: 50 | AC96: 7 | AD96: 94 | AG96: 150.094 | AH96: 94 | AJ96: 150.007
A97: 95 | B97: =+REG!G105 ->  | C97: 0 | D97: 0 | E97: 0 | F97: 150.095 | G97: 50 | H97: 50 | I97: 50 | K97: =+'G Q 4'!S106 -> 3 | L97: =+'H Q 4'!S106 -> 3 | M97: =+'T Q 4'!S106 -> 3 | O97: 50 | P97: 50 | Q97: 50 | AC97: 6 | AD97: 95 | AG97: 150.095 | AH97: 95 | AJ97: 150.006
A98: 96 | B98: =+REG!G106 ->  | C98: 0 | D98: 0 | E98: 0 | F98: 150.096 | G98: 50 | H98: 50 | I98: 50 | K98: =+'G Q 4'!S107 -> 3 | L98: =+'H Q 4'!S107 -> 3 | M98: =+'T Q 4'!S107 -> 3 | O98: 50 | P98: 50 | Q98: 50 | AC98: 5 | AD98: 96 | AG98: 150.096 | AH98: 96 | AJ98: 150.005
A99: 97 | B99: =+REG!G107 ->  | C99: 0 | D99: 0 | E99: 0 | F99: 150.097 | G99: 50 | H99: 50 | I99: 50 | K99: =+'G Q 4'!S108 -> 3 | L99: =+'H Q 4'!S108 -> 3 | M99: =+'T Q 4'!S108 -> 3 | O99: 50 | P99: 50 | Q99: 50 | AC99: 4 | AD99: 97 | AG99: 150.097 | AH99: 97 | AJ99: 150.004
A100: 98 | B100: =+REG!G108 ->  | C100: 0 | D100: 0 | E100: 0 | F100: 150.098 | G100: 50 | H100: 50 | I100: 50 | K100: =+'G Q 4'!S109 -> 3 | L100: =+'H Q 4'!S109 -> 3 | M100: =+'T Q 4'!S109 -> 3 | O100: 50 | P100: 50 | Q100: 50 | AC100: 3 | AD100: 98 | AG100: 150.098 | AH100: 98 | AJ100: 150.003
K101: =MAX(K3:K100) -> 3 | L101: =MAX(L3:L100) -> 3 | M101: =MAX(M3:M100) -> 3 | W101: =IF(Y101<>"",IF(Y100-Y101<1,AN100,AN101),"") -> 

Sheet G Q 1-2
D1: =CONTEST!B4 -> Skate n Roll Polička 2022
D2: =CONTEST!B6 -> 13.8. - 14.8.2022
D3: =CONCATENATE(CONTEST!B8," / ",CONTEST!B16," / ",CONTEST!B13) -> GIANT SLALOM / Qualifications / TEEN 12-14
C4: =_xll.iPush("TEEN_Giant_Q", "WCH_SK8_2018", 'G Q 1-2'!$A$5:$S$111, 'G Q 1-2'!$A$5:$S$111, 'G Q 1-2'!$A$5:$S$111, 1, TRUE) -> 
A5: 0.2 | B5: secs penalty per hit cone
A6: 7 | B6: maximum hit cones before DQ
A7: 2 | B7: false start multiplication factor | D7: Under "Raw Time," enter "DQ" or"DNF" for | AP7: Advance Racers who DQ | AS7: Y
A8: =IF(ISERROR(0.1*AR12)=TRUE,"",ROUND(0.1*AR12,2)) -> 3.72 | B8: secs head-to-head DQ/DNR penalty | D8: "Disqualified" and "DNR" for "Did Not Race." | AP8: all Qualifying Runs? (Y/N)
A9: =IF(ISERROR(0.1*AR12)=TRUE,"",ROUND(0.1*AR12,2)) -> 3.72 | B9: secs max head-to-head victory margin
B10: START Number | C10: Racer Name | D10: Run 1 | K10: Run 2 | Q10: Qual Rank (w/out DQs) | R10: Best Time | S10: Qualifying Position | T10: Qual Rank (w/DQs sequenced) | U10: Racer No. & Name | V10: Best Time | W10: Double DQ Place Factor | X10: No. of Ties per Best Time | Y10: Tied-at Time | Z10: Tied-at Time Rank | AA10: Run 1 Time w/DQ Adjust | AB10: Run 2 Time w/DQ Adjust | AC10: Total Time w/DQ Adjust | AD10: Total Time Rank | AE10: Total Tie Place Factor | AF10: Tie 1 Total Time Rank | AG10: Tie 1 Place Factor | AH10: Tie 2 Total Time Rank | AI10: Tie 2 Place Factor | AJ10: Tie 3 Total Time Rank | AK10: Tie 3 Place Factor | AL10: Placed Racer No. & Name | AM10: Withdrawal Place Factor | AN10: Double DQ Place Factor 2 | AO10: Final Spot - Withdrawals | AP10: Qualifying Position | AQ10: =CONCATENATE(+CONTEST!B4," ",+CONTEST!B8," ","RUN 1-2"," "," Racer No. & Name") -> Skate n Roll Polička 2022 GIANT SLALOM RUN 1-2 Racer No. & Name | AR10: Best Time | AS10: Withdraw (W)
D11: Raw Time | E11: Cones | F11: Reaction Time | G11: False Start | H11: Final Time | I11: Run Rank | K11: Raw Time | L11: Cones | M11: Reaction Time | N11: False Start | O11: Final Time | P11: Run Rank
A12: 1 | B12: =IF(REG!B11<>"",REG!B11,"") ->  | C12: =IF(REG!C11<>"",REG!G11,"") -> Voves Jindřich [CZE] | D12: 38.445 | E12: 0 | F12: 0.908 | H12: =IF(LEFT(D12:D111,1)="D","-",IF(E12:E111>A6,"-",IF(D12:D111>0,D12:D111+E12:E111*A5+G12:G111*A7,""))) -> 38.445 | I12: =IF(H12:H111="","",IF(H12:H111="-","",RANK(H12:H111,H12:H111,1))) -> 2 | K12: 37.204 | L12: 0 | M12: 4.042 | O12: =IF(LEFT(K12:K111,1)="D","-",IF(L12:L111>A6,"-",IF(K12:K111>0,K12:K111+L12:L111*A5+N12:N111*A7,""))) -> 37.204 | P12: =IF(O12:O111="","",IF(O12:O111="-","",RANK(O12:O111,O12:O111,1))) -> 1 | Q12: =IF(R12:R111="","",IF(R12:R111="-","",RANK(R12:R111,R12:R111,1))) -> 1 | R12: =IF(AND(ISBLANK(D12),ISBLANK(K12)),"",IF(AND(H12="-",O12="-"),"-",IF(AND(H12="-",ISBLANK(K12)),"-",MIN(H12,O12)))) -> 37.204 | S12: =IF(R12:R111="","",VLOOKUP(U12:U111,AL12:AP111,5,FALSE)) -> 1 | T12: =IF(R12:R111="","",IF(R12:R111="-",COUNT(Q12:Q111)+W12:W111,Q12:Q111+AE12:AE111+AG12:AG111+AI12:AI111+AK12:AK111)) -> 1 | U12: =IF(B12:B111 ="","",B12:B111 & " ")&C12:C111 -> Voves Jindřich [CZE] | V12: =R12:R111 -> 37.204 | W12: =IF(R12="","",COUNTIF(R12:R12,"-")) -> 0 | X12: =IF(Q12:Q111="","",COUNTIF(Q12:Q111,Q12:Q111)-1) -> 0 | Y12: =IF(R12:R111="-","",IF(X12:X111=0,"",R12:R111)) ->  | Z12: =IF(Y12:Y111="","",RANK(Y12:Y111,Y12:Y111,1)) ->  | AA12: =IF(X12:X111="","",IF(X12:X111=0,"",IF(LEFT(H12:H111,1)="-","199",H12:H111))) ->  | AB12: =IF(X12:X111="","",IF(X12:X111=0,"",IF(LEFT(O12:O111,1)="-","199",O12:O111))) ->  | AC12: =IF(ISERROR(AA12:AA111+AB12:AB111)=TRUE,AA12:AA111,AA12:AA111+AB12:AB111) ->  | AD12: =IF(R12:R111="","",IF(X12:X111=0,"0",IF(ISERROR(RANK(AC12:AC111,AC12:AC111,1))=TRUE,"0",RANK(AC12:AC111,AC12:AC111,1)))) -> 0 | AE12: 0 | AF12: =IF(ISERROR(X12:X111)=TRUE,"",IF(Z12:Z111=1,AD12:AD111,"")) ->  | AG12: =IF(R12:R111="","",IF(AF12:AF111="","0",RANK(AF12:AF111,AF12:AF111,1)-1)) -> 0 | AH12: =IF(ISERROR(X12:X111)=TRUE,"",IF(Z12:Z111=COUNT(AF12:AF111)+1,AD12:AD111,"")) ->  | AI12: =IF(R12:R111="","",IF(AH12:AH111="","0",RANK(AH12:AH111,AH12:AH111,1)-1)) -> 0 | AJ12: =IF(ISERROR(X12:X111)=TRUE,"",IF(Z12:Z111=COUNT(AF12:AF111)+COUNT(AH12:AH111)+1,AD12:AD111,"")) ->  | AK12: =IF(R12:R111="","",IF(AJ12:AJ111="","0",RANK(AJ12:AJ111,AJ12:AJ111,1)-1)) -> 0 | AL12: =AQ12:AQ111 -> Voves Jindřich [CZE] | AM12: =COUNTIF(AS12:AS12,"W") -> 0 | AN12: =IF(AR12="","",COUNTIF(AR12:AR12,"-")) -> 0 | AO12: =IF(AQ12:AQ111="BYE","",IF(AS12:AS111="W","",IF(AS7="N",IF(AP12:AP111<=COUNT(Q12:Q111),AP12:AP111-AM12:AM111,""),IF(AP12:AP111<=COUNT(Q12:Q111),AP12:AP111-AM12:AM111,AP12:AP111-AM12:AM111+AN12:AN111-1)))) -> 1 | AP12: =IF(R12:R111="","",IF(AP11:AP110+1<=COUNT(Q12:Q111),AP11:AP110+1,COUNT(Q12:Q111)+1)) -> 1 | AQ12: =IF(R12:R111="","BYE",IF(ISERROR(VLOOKUP(A12:A111,T12:U111,2,FALSE))=TRUE,"",VLOOKUP(A12:A111,T12:U111,2,FALSE))) -> Voves Jindřich [CZE] | AR12: =IF(C12:C111="BYE", "",IF(A12:A111="","",IF(ISERROR(VLOOKUP(A12:A111,T12:V111,3,FALSE))=TRUE,"",VLOOKUP(A12:A111,T12:V111,3,FALSE)))) -> 37.204
A13: 2 | B13: =IF(REG!B12<>"",REG!B12,"") ->  | C13: =IF(REG!C12<>"",REG!G12,"") -> Rezková Anna [CZE] | D13: 38.09 | E13: 0 | F13: 0.227 | H13: 38.09 | I13: 1 | K13: 38.729 | L13: 1 | M13: 4.668 | O13: 38.929 | P13: 2 | Q13: 2 | R13: 38.09 | S13: 2 | T13: 2 | U13: Rezková Anna [CZE] | V13: 38.09 | W13: =IF(R13="","",COUNTIF(R12:R13,"-")) -> 0 | X13: 0 | AD13: 0 | AE13: =IF(R13="","",IF(AD13="0","0",COUNTIF(AD12:AD12,AD13))) -> 0 | AG13: 0 | AI13: 0 | AK13: 0 | AL13: Rezková Anna [CZE] | AM13: =COUNTIF(AS12:AS13,"W") -> 0 | AN13: =IF(AR13="","",COUNTIF(AR12:AR13,"-")) -> 0 | AO13: 2 | AP13: 2 | AQ13: Rezková Anna [CZE] | AR13: 38.09
A14: 3 | B14: =IF(REG!B13<>"",REG!B13,"") ->  | C14: =IF(REG!C13<>"",REG!G13,"") ->  | W14: =IF(R14="","",COUNTIF(R12:R14,"-")) ->  | AE14: =IF(R14="","",IF(AD14="0","0",COUNTIF(AD12:AD13,AD14))) ->  | AL14: BYE | AM14: =COUNTIF(AS12:AS14,"W") -> 0 | AN14: =IF(AR14="","",COUNTIF(AR12:AR14,"-")) ->  | AQ14: BYE
A15: 4 | B15: =IF(REG!B14<>"",REG!B14,"") ->  | C15: =IF(REG!C14<>"",REG!G14,"") ->  | W15: =IF(R15="","",COUNTIF(R12:R15,"-")) ->  | AE15: =IF(R15="","",IF(AD15="0","0",COUNTIF(AD12:AD14,AD15))) ->  | AL15: BYE | AM15: =COUNTIF(AS12:AS15,"W") -> 0 | AN15: =IF(AR15="","",COUNTIF(AR12:AR15,"-")) ->  | AQ15: BYE
A16: 5 | B16: =IF(REG!B15<>"",REG!B15,"") ->  | C16: =IF(REG!C15<>"",REG!G15,"") ->  | W16: =IF(R16="","",COUNTIF(R12:R16,"-")) ->  | AE16: =IF(R16="","",IF(AD16="0","0",COUNTIF(AD12:AD15,AD16))) ->  | AL16: BYE | AM16: =COUNTIF(AS12:AS16,"W") -> 0 | AN16: =IF(AR16="","",COUNTIF(AR12:AR16,"-")) ->  | AQ16: BYE
A17: 6 | B17: =IF(REG!B16<>"",REG!B16,"") ->  | C17: =IF(REG!C16<>"",REG!G16,"") ->  | W17: =IF(R17="","",COUNTIF(R12:R17,"-")) ->  | AE17: =IF(R17="","",IF(AD17="0","0",COUNTIF(AD12:AD16,AD17))) ->  | AL17: BYE | AM17: =COUNTIF(AS12:AS17,"W") -> 0 | AN17: =IF(AR17="","",COUNTIF(AR12:AR17,"-")) ->  | AQ17: BYE
A18: 7 | B18: =IF(REG!B17<>"",REG!B17,"") ->  | C18: =IF(REG!C17<>"",REG!G17,"") ->  | W18: =IF(R18="","",COUNTIF(R12:R18,"-")) ->  | AE18: =IF(R18="","",IF(R18="","",IF(AD18="0","0",COUNTIF(AD12:AD17,AD18)))) ->  | AL18: BYE | AM18: =COUNTIF(AS12:AS18,"W") -> 0 | AN18: =IF(AR18="","",COUNTIF(AR12:AR18,"-")) ->  | AQ18: BYE
A19: 8 | B19: =IF(REG!B18<>"",REG!B18,"") ->  | C19: =IF(REG!C18<>"",REG!G18,"") ->  | W19: =IF(R19="","",COUNTIF(R12:R19,"-")) ->  | AE19: =IF(R19="","",IF(R19="","",IF(AD19="0","0",COUNTIF(AD12:AD18,AD19)))) ->  | AL19: BYE | AM19: =COUNTIF(AS12:AS19,"W") -> 0 | AN19: =IF(AR19="","",COUNTIF(AR12:AR19,"-")) ->  | AQ19: BYE
A20: 9 | B20: =IF(REG!B19<>"",REG!B19,"") ->  | C20: =IF(REG!C19<>"",REG!G19,"") ->  | W20: =IF(R20="","",COUNTIF(R12:R20,"-")) ->  | AE20: =IF(R20="","",IF(R20="","",IF(AD20="0","0",COUNTIF(AD12:AD19,AD20)))) ->  | AL20: BYE | AM20: =COUNTIF(AS12:AS20,"W") -> 0 | AN20: =IF(AR20="","",COUNTIF(AR12:AR20,"-")) ->  | AQ20: BYE
A21: 10 | B21: =IF(REG!B20<>"",REG!B20,"") ->  | C21: =IF(REG!C20<>"",REG!G20,"") ->  | W21: =IF(R21="","",COUNTIF(R12:R21,"-")) ->  | AE21: =IF(R21="","",IF(AD21="0","0",COUNTIF(AD12:AD20,AD21))) ->  | AL21: BYE | AM21: =COUNTIF(AS12:AS21,"W") -> 0 | AN21: =IF(AR21="","",COUNTIF(AR12:AR21,"-")) ->  | AQ21: BYE
A22: 11 | B22: =IF(REG!B21<>"",REG!B21,"") ->  | C22: =IF(REG!C21<>"",REG!G21,"") ->  | W22: =IF(R22="","",COUNTIF(R12:R22,"-")) ->  | AE22: =IF(R22="","",IF(AD22="0","0",COUNTIF(AD1:AD21,AD22))) ->  | AL22: BYE | AM22: =COUNTIF(AS12:AS22,"W") -> 0 | AN22: =IF(AR22="","",COUNTIF(AR12:AR22,"-")) ->  | AQ22: BYE
A23: 12 | B23: =IF(REG!B22<>"",REG!B22,"") ->  | C23: =IF(REG!C22<>"",REG!G22,"") ->  | W23: =IF(R23="","",COUNTIF(R12:R23,"-")) ->  | AE23: =IF(R23="","",IF(AD23="0","0",COUNTIF(AD12:AD22,AD23))) ->  | AL23: BYE | AM23: =COUNTIF(AS12:AS23,"W") -> 0 | AN23: =IF(AR23="","",COUNTIF(AR12:AR23,"-")) ->  | AQ23: BYE
A24: 13 | B24: =IF(REG!B23<>"",REG!B23,"") ->  | C24: =IF(REG!C23<>"",REG!G23,"") ->  | W24: =IF(R24="","",COUNTIF(R12:R24,"-")) ->  | AE24: =IF(R24="","",IF(AD24="0","0",COUNTIF(AD12:AD23,AD24))) ->  | AL24: BYE | AM24: =COUNTIF(AS12:AS24,"W") -> 0 | AN24: =IF(AR24="","",COUNTIF(AR12:AR24,"-")) ->  | AQ24: BYE
A25: 14 | B25: =IF(REG!B24<>"",REG!B24,"") ->  | C25: =IF(REG!C24<>"",REG!G24,"") ->  | W25: =IF(R25="","",COUNTIF(R12:R25,"-")) ->  | AE25: =IF(R25="","",IF(AD25="0","0",COUNTIF(AD12:AD24,AD25))) ->  | AL25: BYE | AM25: =COUNTIF(AS12:AS25,"W") -> 0 | AN25: =IF(AR25="","",COUNTIF(AR12:AR25,"-")) ->  | AQ25: BYE
A26: 15 | B26: =IF(REG!B25<>"",REG!B25,"") ->  | C26: =IF(REG!C25<>"",REG!G25,"") ->  | W26: =IF(R26="","",COUNTIF(R12:R26,"-")) ->  | AE26: =IF(R26="","",IF(AD26="0","0",COUNTIF(AD12:AD25,AD26))) ->  | AL26: BYE | AM26: =COUNTIF(AS12:AS26,"W") -> 0 | AN26: =IF(AR26="","",COUNTIF(AR12:AR26,"-")) ->  | AQ26: BYE
A27: 16 | B27: =IF(REG!B26<>"",REG!B26,"") ->  | C27: =IF(REG!C26<>"",REG!G26,"") ->  | W27: =IF(R27="","",COUNTIF(R12:R27,"-")) ->  | AE27: =IF(R27="","",IF(AD27="0","0",COUNTIF(AD12:AD26,AD27))) ->  | AL27: BYE | AM27: =COUNTIF(AS12:AS27,"W") -> 0 | AN27: =IF(AR27="","",COUNTIF(AR12:AR27,"-")) ->  | AQ27: BYE
A28: 17 | B28: =IF(REG!B27<>"",REG!B27,"") ->  | C28: =IF(REG!C27<>"",REG!G27,"") ->  | W28: =IF(R28="","",COUNTIF(R12:R28,"-")) ->  | AE28: =IF(R28="","",IF(AD28="0","0",COUNTIF(AD12:AD27,AD28))) ->  | AL28: BYE | AM28: =COUNTIF(AS12:AS28,"W") -> 0 | AN28: =IF(AR28="","",COUNTIF(AR12:AR28,"-")) ->  | AQ28: BYE
A29: 18 | B29: =IF(REG!B28<>"",REG!B28,"") ->  | C29: =IF(REG!C28<>"",REG!G28,"") ->  | W29: =IF(R29="","",COUNTIF(R12:R29,"-")) ->  | AE29: =IF(R29="","",IF(AD29="0","0",COUNTIF(AD12:AD28,AD29))) ->  | AL29: BYE | AM29: =COUNTIF(AS12:AS29,"W") -> 0 | AN29: =IF(AR29="","",COUNTIF(AR12:AR29,"-")) ->  | AQ29: BYE
A30: 19 | B30: =IF(REG!B29<>"",REG!B29,"") ->  | C30: =IF(REG!C29<>"",REG!G29,"") ->  | W30: =IF(R30="","",COUNTIF(R12:R30,"-")) ->  | AE30: =IF(R30="","",IF(AD30="0","0",COUNTIF(AD12:AD29,AD30))) ->  | AL30: BYE | AM30: =COUNTIF(AS12:AS30,"W") -> 0 | AN30: =IF(AR30="","",COUNTIF(AR12:AR30,"-")) ->  | AQ30: BYE
A31: 20 | B31: =IF(REG!B30<>"",REG!B30,"") ->  | C31: =IF(REG!C30<>"",REG!G30,"") ->  | W31: =IF(R31="","",COUNTIF(R12:R31,"-")) ->  | AE31: =IF(R31="","",IF(AD31="0","0",COUNTIF(AD12:AD30,AD31))) ->  | AL31: BYE | AM31: =COUNTIF(AS12:AS31,"W") -> 0 | AN31: =IF(AR31="","",COUNTIF(AR12:AR31,"-")) ->  | AQ31: BYE
A32: 21 | B32: =IF(REG!B31<>"",REG!B31,"") ->  | C32: =IF(REG!C31<>"",REG!G31,"") ->  | W32: =IF(R32="","",COUNTIF(R12:R32,"-")) ->  | AE32: =IF(R32="","",IF(AD32="0","0",COUNTIF(AD12:AD31,AD32))) ->  | AL32: BYE | AM32: =COUNTIF(AS12:AS32,"W") -> 0 | AN32: =IF(AR32="","",COUNTIF(AR12:AR32,"-")) ->  | AQ32: BYE
A33: 22 | B33: =IF(REG!B32<>"",REG!B32,"") ->  | C33: =IF(REG!C32<>"",REG!G32,"") ->  | W33: =IF(R33="","",COUNTIF(R12:R33,"-")) ->  | AE33: =IF(R33="","",IF(AD33="0","0",COUNTIF(AD12:AD32,AD33))) ->  | AL33: BYE | AM33: =COUNTIF(AS12:AS33,"W") -> 0 | AN33: =IF(AR33="","",COUNTIF(AR12:AR33,"-")) ->  | AQ33: BYE
A34: 23 | B34: =IF(REG!B33<>"",REG!B33,"") ->  | C34: =IF(REG!C33<>"",REG!G33,"") ->  | W34: =IF(R34="","",COUNTIF(R12:R34,"-")) ->  | AE34: =IF(R34="","",IF(AD34="0","0",COUNTIF(AD12:AD33,AD34))) ->  | AL34: BYE | AM34: =COUNTIF(AS12:AS34,"W") -> 0 | AN34: =IF(AR34="","",COUNTIF(AR12:AR34,"-")) ->  | AQ34: BYE
A35: 24 | B35: =IF(REG!B34<>"",REG!B34,"") ->  | C35: =IF(REG!C34<>"",REG!G34,"") ->  | W35: =IF(R35="","",COUNTIF(R12:R35,"-")) ->  | AE35: =IF(R35="","",IF(AD35="0","0",COUNTIF(AD12:AD34,AD35))) ->  | AL35: BYE | AM35: =COUNTIF(AS12:AS35,"W") -> 0 | AN35: =IF(AR35="","",COUNTIF(AR12:AR35,"-")) ->  | AQ35: BYE
A36: 25 | B36: =IF(REG!B35<>"",REG!B35,"") ->  | C36: =IF(REG!C35<>"",REG!G35,"") ->  | W36: =IF(R36="","",COUNTIF(R12:R36,"-")) ->  | AE36: =IF(R36="","",IF(AD36="0","0",COUNTIF(AD12:AD35,AD36))) ->  | AL36: BYE | AM36: =COUNTIF(AS12:AS36,"W") -> 0 | AN36: =IF(AR36="","",COUNTIF(AR12:AR36,"-")) ->  | AQ36: BYE
A37: 26 | B37: =IF(REG!B36<>"",REG!B36,"") ->  | C37: =IF(REG!C36<>"",REG!G36,"") ->  | W37: =IF(R37="","",COUNTIF(R12:R37,"-")) ->  | AE37: =IF(R37="","",IF(AD37="0","0",COUNTIF(AD12:AD36,AD37))) ->  | AL37: BYE | AM37: =COUNTIF(AS12:AS37,"W") -> 0 | AN37: =IF(AR37="","",COUNTIF(AR12:AR37,"-")) ->  | AQ37: BYE
A38: 27 | B38: =IF(REG!B37<>"",REG!B37,"") ->  | C38: =IF(REG!C37<>"",REG!G37,"") ->  | W38: =IF(R38="","",COUNTIF(R12:R38,"-")) ->  | AE38: =IF(R38="","",IF(AD38="0","0",COUNTIF(AD12:AD37,AD38))) ->  | AL38: BYE | AM38: =COUNTIF(AS12:AS38,"W") -> 0 | AN38: =IF(AR38="","",COUNTIF(AR12:AR38,"-")) ->  | AQ38: BYE
A39: 28 | B39: =IF(REG!B38<>"",REG!B38,"") ->  | C39: =IF(REG!C38<>"",REG!G38,"") ->  | W39: =IF(R39="","",COUNTIF(R12:R39,"-")) ->  | AE39: =IF(R39="","",IF(AD39="0","0",COUNTIF(AD12:AD38,AD39))) ->  | AL39: BYE | AM39: =COUNTIF(AS12:AS39,"W") -> 0 | AN39: =IF(AR39="","",COUNTIF(AR12:AR39,"-")) ->  | AQ39: BYE
A40: 29 | B40: =IF(REG!B39<>"",REG!B39,"") ->  | C40: =IF(REG!C39<>"",REG!G39,"") ->  | W40: =IF(R40="","",COUNTIF(R12:R40,"-")) ->  | AE40: =IF(R40="","",IF(AD40="0","0",COUNTIF(AD12:AD39,AD40))) ->  | AL40: BYE | AM40: =COUNTIF(AS12:AS40,"W") -> 0 | AN40: =IF(AR40="","",COUNTIF(AR12:AR40,"-")) ->  | AQ40: BYE
A41: 30 | B41: =IF(REG!B40<>"",REG!B40,"") ->  | C41: =IF(REG!C40<>"",REG!G40,"") ->  | W41: =IF(R41="","",COUNTIF(R12:R41,"-")) ->  | AE41: =IF(R41="","",IF(AD41="0","0",COUNTIF(AD12:AD40,AD41))) ->  | AL41: BYE | AM41: =COUNTIF(AS12:AS41,"W") -> 0 | AN41: =IF(AR41="","",COUNTIF(AR12:AR41,"-")) ->  | AQ41: BYE
A42: 31 | B42: =IF(REG!B41<>"",REG!B41,"") ->  | C42: =IF(REG!C41<>"",REG!G41,"") ->  | W42: =IF(R42="","",COUNTIF(R12:R42,"-")) ->  | AE42: =IF(R42="","",IF(AD42="0","0",COUNTIF(AD12:AD41,AD42))) ->  | AL42: BYE | AM42: =COUNTIF(AS12:AS42,"W") -> 0 | AN42: =IF(AR42="","",COUNTIF(AR12:AR42,"-")) ->  | AQ42: BYE
A43: 32 | B43: =IF(REG!B42<>"",REG!B42,"") ->  | C43: =IF(REG!C42<>"",REG!G42,"") ->  | W43: =IF(R43="","",COUNTIF(R12:R43,"-")) ->  | AE43: =IF(R43="","",IF(AD43="0","0",COUNTIF(AD12:AD42,AD43))) ->  | AL43: BYE | AM43: =COUNTIF(AS12:AS43,"W") -> 0 | AN43: =IF(AR43="","",COUNTIF(AR12:AR43,"-")) ->  | AQ43: BYE
A44: 33 | B44: =IF(REG!B43<>"",REG!B43,"") ->  | C44: =IF(REG!C43<>"",REG!G43,"") ->  | W44: =IF(R44="","",COUNTIF(R12:R44,"-")) ->  | AE44: =IF(R44="","",IF(AD44="0","0",COUNTIF(AD12:AD43,AD44))) ->  | AL44: BYE | AM44: =COUNTIF(AS12:AS44,"W") -> 0 | AN44: =IF(AR44="","",COUNTIF(AR12:AR44,"-")) ->  | AQ44: BYE
A45: 34 | B45: =IF(REG!B44<>"",REG!B44,"") ->  | C45: =IF(REG!C44<>"",REG!G44,"") ->  | W45: =IF(R45="","",COUNTIF(R12:R45,"-")) ->  | AE45: =IF(R45="","",IF(AD45="0","0",COUNTIF(AD12:AD44,AD45))) ->  | AL45: BYE | AM45: =COUNTIF(AS12:AS45,"W") -> 0 | AN45: =IF(AR45="","",COUNTIF(AR12:AR45,"-")) ->  | AQ45: BYE
A46: 35 | B46: =IF(REG!B45<>"",REG!B45,"") ->  | C46: =IF(REG!C45<>"",REG!G45,"") ->  | W46: =IF(R46="","",COUNTIF(R12:R46,"-")) ->  | AE46: =IF(R46="","",IF(AD46="0","0",COUNTIF(AD12:AD45,AD46))) ->  | AL46: BYE | AM46: =COUNTIF(AS12:AS46,"W") -> 0 | AN46: =IF(AR46="","",COUNTIF(AR12:AR46,"-")) ->  | AQ46: BYE
A47: 36 | B47: =IF(REG!B46<>"",REG!B46,"") ->  | C47: =IF(REG!C46<>"",REG!G46,"") ->  | W47: =IF(R47="","",COUNTIF(R12:R47,"-")) ->  | AE47: =IF(R47="","",IF(AD47="0","0",COUNTIF(AD12:AD46,AD47))) ->  | AL47: BYE | AM47: =COUNTIF(AS12:AS47,"W") -> 0 | AN47: =IF(AR47="","",COUNTIF(AR12:AR47,"-")) ->  | AQ47: BYE
A48: 37 | B48: =IF(REG!B47<>"",REG!B47,"") ->  | C48: =IF(REG!C47<>"",REG!G47,"") ->  | W48: =IF(R48="","",COUNTIF(R12:R48,"-")) ->  | AE48: =IF(R48="","",IF(AD48="0","0",COUNTIF(AD12:AD47,AD48))) ->  | AL48: BYE | AM48: =COUNTIF(AS12:AS48,"W") -> 0 | AN48: =IF(AR48="","",COUNTIF(AR12:AR48,"-")) ->  | AQ48: BYE
A49: 38 | B49: =IF(REG!B48<>"",REG!B48,"") ->  | C49: =IF(REG!C48<>"",REG!G48,"") ->  | W49: =IF(R49="","",COUNTIF(R12:R49,"-")) ->  | AE49: =IF(R49="","",IF(AD49="0","0",COUNTIF(AD12:AD48,AD49))) ->  | AL49: BYE | AM49: =COUNTIF(AS12:AS49,"W") -> 0 | AN49: =IF(AR49="","",COUNTIF(AR12:AR49,"-")) ->  | AQ49: BYE
A50: 39 | B50: =IF(REG!B49<>"",REG!B49,"") ->  | C50: =IF(REG!C49<>"",REG!G49,"") ->  | W50: =IF(R50="","",COUNTIF(R12:R50,"-")) ->  | AE50: =IF(R50="","",IF(AD50="0","0",COUNTIF(AD12:AD49,AD50))) ->  | AL50: BYE | AM50: =COUNTIF(AS12:AS50,"W") -> 0 | AN50: =IF(AR50="","",COUNTIF(AR12:AR50,"-")) ->  | AQ50: BYE
A51: 40 | B51: =IF(REG!B50<>"",REG!B50,"") ->  | C51: =IF(REG!C50<>"",REG!G50,"") ->  | W51: =IF(R51="","",COUNTIF(R12:R51,"-")) ->  | AE51: =IF(R51="","",IF(AD51="0","0",COUNTIF(AD12:AD50,AD51))) ->  | AL51: BYE | AM51: =COUNTIF(AS12:AS51,"W") -> 0 | AN51: =IF(AR51="","",COUNTIF(AR12:AR51,"-")) ->  | AQ51: BYE
A52: 41 | B52: =IF(REG!B51<>"",REG!B51,"") ->  | C52: =IF(REG!C51<>"",REG!G51,"") ->  | W52: =IF(R52="","",COUNTIF(R12:R52,"-")) ->  | AE52: =IF(R52="","",IF(AD52="0","0",COUNTIF(AD12:AD51,AD52))) ->  | AL52: BYE | AM52: =COUNTIF(AS12:AS52,"W") -> 0 | AN52: =IF(AR52="","",COUNTIF(AR12:AR52,"-")) ->  | AQ52: BYE
A53: 42 | B53: =IF(REG!B52<>"",REG!B52,"") ->  | C53: =IF(REG!C52<>"",REG!G52,"") ->  | W53: =IF(R53="","",COUNTIF(R12:R53,"-")) ->  | AE53: =IF(R53="","",IF(AD53="0","0",COUNTIF(AD12:AD52,AD53))) ->  | AL53: BYE | AM53: =COUNTIF(AS12:AS53,"W") -> 0 | AN53: =IF(AR53="","",COUNTIF(AR12:AR53,"-")) ->  | AQ53: BYE
A54: 43 | B54: =IF(REG!B53<>"",REG!B53,"") ->  | C54: =IF(REG!C53<>"",REG!G53,"") ->  | W54: =IF(R54="","",COUNTIF(R12:R54,"-")) ->  | AE54: =IF(R54="","",IF(AD54="0","0",COUNTIF(AD12:AD53,AD54))) ->  | AL54: BYE | AM54: =COUNTIF(AS12:AS54,"W") -> 0 | AN54: =IF(AR54="","",COUNTIF(AR12:AR54,"-")) ->  | AQ54: BYE
A55: 44 | B55: =IF(REG!B54<>"",REG!B54,"") ->  | C55: =IF(REG!C54<>"",REG!G54,"") ->  | W55: =IF(R55="","",COUNTIF(R12:R55,"-")) ->  | AE55: =IF(R55="","",IF(AD55="0","0",COUNTIF(AD12:AD54,AD55))) ->  | AL55: BYE | AM55: =COUNTIF(AS12:AS55,"W") -> 0 | AN55: =IF(AR55="","",COUNTIF(AR12:AR55,"-")) ->  | AQ55: BYE
A56: 45 | B56: =IF(REG!B55<>"",REG!B55,"") ->  | C56: =IF(REG!C55<>"",REG!G55,"") ->  | W56: =IF(R56="","",COUNTIF(R12:R56,"-")) ->  | AE56: =IF(R56="","",IF(AD56="0","0",COUNTIF(AD12:AD55,AD56))) ->  | AL56: BYE | AM56: =COUNTIF(AS12:AS56,"W") -> 0 | AN56: =IF(AR56="","",COUNTIF(AR12:AR56,"-")) ->  | AQ56: BYE
A57: 46 | B57: =IF(REG!B56<>"",REG!B56,"") ->  | C57: =IF(REG!C56<>"",REG!G56,"") ->  | W57: =IF(R57="","",COUNTIF(R12:R57,"-")) ->  | AE57: =IF(R57="","",IF(AD57="0","0",COUNTIF(AD12:AD56,AD57))) ->  | AL57: BYE | AM57: =COUNTIF(AS12:AS57,"W") -> 0 | AN57: =IF(AR57="","",COUNTIF(AR12:AR57,"-")) ->  | AQ57: BYE
A58: 47 | B58: =IF(REG!B57<>"",REG!B57,"") ->  | C58: =IF(REG!C57<>"",REG!G57,"") ->  | W58: =IF(R58="","",COUNTIF(R12:R58,"-")) ->  | AE58: =IF(R58="","",IF(AD58="0","0",COUNTIF(AD12:AD57,AD58))) ->  | AL58: BYE | AM58: =COUNTIF(AS12:AS58,"W") -> 0 | AN58: =IF(AR58="","",COUNTIF(AR12:AR58,"-")) ->  | AQ58: BYE
A59: 48 | B59: =IF(REG!B58<>"",REG!B58,"") ->  | C59: =IF(REG!C58<>"",REG!G58,"") ->  | W59: =IF(R59="","",COUNTIF(R12:R59,"-")) ->  | AE59: =IF(R59="","",IF(AD59="0","0",COUNTIF(AD12:AD58,AD59))) ->  | AL59: BYE | AM59: =COUNTIF(AS12:AS59,"W") -> 0 | AN59: =IF(AR59="","",COUNTIF(AR12:AR59,"-")) ->  | AQ59: BYE
A60: 49 | B60: =IF(REG!B59<>"",REG!B59,"") ->  | C60: =IF(REG!C59<>"",REG!G59,"") ->  | W60: =IF(R60="","",COUNTIF(R12:R60,"-")) ->  | AE60: =IF(R60="","",IF(AD60="0","0",COUNTIF(AD12:AD59,AD60))) ->  | AL60: BYE | AM60: =COUNTIF(AS12:AS60,"W") -> 0 | AN60: =IF(AR60="","",COUNTIF(AR12:AR60,"-")) ->  | AQ60: BYE
A61: 50 | B61: =IF(REG!B60<>"",REG!B60,"") ->  | C61: =IF(REG!C60<>"",REG!G60,"") ->  | W61: =IF(R61="","",COUNTIF(R12:R61,"-")) ->  | AE61: =IF(R61="","",IF(AD61="0","0",COUNTIF(AD12:AD60,AD61))) ->  | AL61: BYE | AM61: =COUNTIF(AS12:AS61,"W") -> 0 | AN61: =IF(AR61="","",COUNTIF(AR12:AR61,"-")) ->  | AQ61: BYE
A62: 51 | B62: =IF(REG!B61<>"",REG!B61,"") ->  | C62: =IF(REG!C61<>"",REG!G61,"") ->  | W62: =IF(R62="","",COUNTIF(R12:R62,"-")) ->  | AE62: =IF(R62="","",IF(AD62="0","0",COUNTIF(AD12:AD61,AD62))) ->  | AL62: BYE | AM62: =COUNTIF(AS12:AS62,"W") -> 0 | AN62: =IF(AR62="","",COUNTIF(AR12:AR62,"-")) ->  | AQ62: BYE
A63: 52 | B63: =IF(REG!B62<>"",REG!B62,"") ->  | C63: =IF(REG!C62<>"",REG!G62,"") ->  | W63: =IF(R63="","",COUNTIF(R12:R63,"-")) ->  | AE63: =IF(R63="","",IF(AD63="0","0",COUNTIF(AD12:AD62,AD63))) ->  | AL63: BYE | AM63: =COUNTIF(AS12:AS63,"W") -> 0 | AN63: =IF(AR63="","",COUNTIF(AR12:AR63,"-")) ->  | AQ63: BYE
A64: 53 | B64: =IF(REG!B63<>"",REG!B63,"") ->  | C64: =IF(REG!C63<>"",REG!G63,"") ->  | W64: =IF(R64="","",COUNTIF(R12:R64,"-")) ->  | AE64: =IF(R64="","",IF(AD64="0","0",COUNTIF(AD12:AD63,AD64))) ->  | AL64: BYE | AM64: =COUNTIF(AS12:AS64,"W") -> 0 | AN64: =IF(AR64="","",COUNTIF(AR12:AR64,"-")) ->  | AQ64: BYE
A65: 54 | B65: =IF(REG!B64<>"",REG!B64,"") ->  | C65: =IF(REG!C64<>"",REG!G64,"") ->  | W65: =IF(R65="","",COUNTIF(R12:R65,"-")) ->  | AE65: =IF(R65="","",IF(AD65="0","0",COUNTIF(AD12:AD64,AD65))) ->  | AL65: BYE | AM65: =COUNTIF(AS12:AS65,"W") -> 0 | AN65: =IF(AR65="","",COUNTIF(AR12:AR65,"-")) ->  | AQ65: BYE
A66: 55 | B66: =IF(REG!B65<>"",REG!B65,"") ->  | C66: =IF(REG!C65<>"",REG!G65,"") ->  | W66: =IF(R66="","",COUNTIF(R12:R66,"-")) ->  | AE66: =IF(R66="","",IF(AD66="0","0",COUNTIF(AD12:AD65,AD66))) ->  | AL66: BYE | AM66: =COUNTIF(AS12:AS66,"W") -> 0 | AN66: =IF(AR66="","",COUNTIF(AR12:AR66,"-")) ->  | AQ66: BYE
A67: 56 | B67: =IF(REG!B66<>"",REG!B66,"") ->  | C67: =IF(REG!C66<>"",REG!G66,"") ->  | W67: =IF(R67="","",COUNTIF(R12:R67,"-")) ->  | AE67: =IF(R67="","",IF(AD67="0","0",COUNTIF(AD12:AD66,AD67))) ->  | AL67: BYE | AM67: =COUNTIF(AS12:AS67,"W") -> 0 | AN67: =IF(AR67="","",COUNTIF(AR12:AR67,"-")) ->  | AQ67: BYE
A68: 57 | B68: =IF(REG!B67<>"",REG!B67,"") ->  | C68: =IF(REG!C67<>"",REG!G67,"") ->  | W68: =IF(R68="","",COUNTIF(R12:R68,"-")) ->  | AE68: =IF(R68="","",IF(R68="","",IF(AD68="0","0",COUNTIF(AD12:AD67,AD68)))) ->  | AL68: BYE | AM68: =COUNTIF(AS12:AS68,"W") -> 0 | AN68: =IF(AR68="","",COUNTIF(AR12:AR68,"-")) ->  | AQ68: BYE
A69: 58 | B69: =IF(REG!B68<>"",REG!B68,"") ->  | C69: =IF(REG!C68<>"",REG!G68,"") ->  | W69: =IF(R69="","",COUNTIF(R12:R69,"-")) ->  | AE69: =IF(R69="","",IF(R69="","",IF(AD69="0","0",COUNTIF(AD12:AD68,AD69)))) ->  | AL69: BYE | AM69: =COUNTIF(AS12:AS69,"W") -> 0 | AN69: =IF(AR69="","",COUNTIF(AR12:AR69,"-")) ->  | AQ69: BYE
A70: 59 | B70: =IF(REG!B69<>"",REG!B69,"") ->  | C70: =IF(REG!C69<>"",REG!G69,"") ->  | W70: =IF(R70="","",COUNTIF(R12:R70,"-")) ->  | AE70: =IF(R70="","",IF(R70="","",IF(AD70="0","0",COUNTIF(AD12:AD69,AD70)))) ->  | AL70: BYE | AM70: =COUNTIF(AS12:AS70,"W") -> 0 | AN70: =IF(AR70="","",COUNTIF(AR12:AR70,"-")) ->  | AQ70: BYE
A71: 60 | B71: =IF(REG!B70<>"",REG!B70,"") ->  | C71: =IF(REG!C70<>"",REG!G70,"") ->  | W71: =IF(R71="","",COUNTIF(R12:R71,"-")) ->  | AE71: =IF(R71="","",IF(AD71="0","0",COUNTIF(AD12:AD70,AD71))) ->  | AL71: BYE | AM71: =COUNTIF(AS12:AS71,"W") -> 0 | AN71: =IF(AR71="","",COUNTIF(AR12:AR71,"-")) ->  | AQ71: BYE
A72: 61 | B72: =IF(REG!B71<>"",REG!B71,"") ->  | C72: =IF(REG!C71<>"",REG!G71,"") ->  | W72: =IF(R72="","",COUNTIF(R12:R72,"-")) ->  | AE72: =IF(R72="","",IF(AD72="0","0",COUNTIF(AD52:AD71,AD72))) ->  | AL72: BYE | AM72: =COUNTIF(AS12:AS72,"W") -> 0 | AN72: =IF(AR72="","",COUNTIF(AR12:AR72,"-")) ->  | AQ72: BYE
A73: 62 | B73: =IF(REG!B72<>"",REG!B72,"") ->  | C73: =IF(REG!C72<>"",REG!G72,"") ->  | W73: =IF(R73="","",COUNTIF(R12:R73,"-")) ->  | AE73: =IF(R73="","",IF(AD73="0","0",COUNTIF(AD12:AD72,AD73))) ->  | AL73: BYE | AM73: =COUNTIF(AS12:AS73,"W") -> 0 | AN73: =IF(AR73="","",COUNTIF(AR12:AR73,"-")) ->  | AQ73: BYE
A74: 63 | B74: =IF(REG!B73<>"",REG!B73,"") ->  | C74: =IF(REG!C73<>"",REG!G73,"") ->  | W74: =IF(R74="","",COUNTIF(R12:R74,"-")) ->  | AE74: =IF(R74="","",IF(AD74="0","0",COUNTIF(AD12:AD73,AD74))) ->  | AL74: BYE | AM74: =COUNTIF(AS12:AS74,"W") -> 0 | AN74: =IF(AR74="","",COUNTIF(AR12:AR74,"-")) ->  | AQ74: BYE
A75: 64 | B75: =IF(REG!B74<>"",REG!B74,"") ->  | C75: =IF(REG!C74<>"",REG!G74,"") ->  | W75: =IF(R75="","",COUNTIF(R12:R75,"-")) ->  | AE75: =IF(R75="","",IF(AD75="0","0",COUNTIF(AD12:AD74,AD75))) ->  | AL75: BYE | AM75: =COUNTIF(AS12:AS75,"W") -> 0 | AN75: =IF(AR75="","",COUNTIF(AR12:AR75,"-")) ->  | AQ75: BYE
A76: 65 | B76: =IF(REG!B75<>"",REG!B75,"") ->  | C76: =IF(REG!C75<>"",REG!G75,"") ->  | R76: =IF(AND(ISBLANK(D76),ISBLANK(K76)),"",IF(AND(H76="-",O76="-"),"-",IF(AND(H76="-",ISBLANK(K76)),"-",MIN(H76,O76)))) ->  | W76: =IF(R76="","",COUNTIF(R12:R76,"-")) ->  | AE76: =IF(R76="","",IF(AD76="0","0",COUNTIF(AD12:AD75,AD76))) ->  | AL76: BYE | AM76: =COUNTIF(AS12:AS76,"W") -> 0 | AN76: =IF(AR76="","",COUNTIF(AR12:AR76,"-")) ->  | AQ76: BYE
A77: 66 | B77: =IF(REG!B76<>"",REG!B76,"") ->  | C77: =IF(REG!C76<>"",REG!G76,"") ->  | W77: =IF(R77="","",COUNTIF(R12:R77,"-")) ->  | AE77: =IF(R77="","",IF(AD77="0","0",COUNTIF(AD12:AD76,AD77))) ->  | AL77: BYE | AM77: =COUNTIF(AS12:AS77,"W") -> 0 | AN77: =IF(AR77="","",COUNTIF(AR12:AR77,"-")) ->  | AQ77: BYE
A78: 67 | B78: =IF(REG!B77<>"",REG!B77,"") ->  | C78: =IF(REG!C77<>"",REG!G77,"") ->  | W78: =IF(R78="","",COUNTIF(R12:R78,"-")) ->  | AE78: =IF(R78="","",IF(AD78="0","0",COUNTIF(AD12:AD77,AD78))) ->  | AL78: BYE | AM78: =COUNTIF(AS12:AS78,"W") -> 0 | AN78: =IF(AR78="","",COUNTIF(AR12:AR78,"-")) ->  | AQ78: BYE
A79: 68 | B79: =IF(REG!B78<>"",REG!B78,"") ->  | C79: =IF(REG!C78<>"",REG!G78,"") ->  | W79: =IF(R79="","",COUNTIF(R12:R79,"-")) ->  | AE79: =IF(R79="","",IF(AD79="0","0",COUNTIF(AD12:AD78,AD79))) ->  | AL79: BYE | AM79: =COUNTIF(AS12:AS79,"W") -> 0 | AN79: =IF(AR79="","",COUNTIF(AR12:AR79,"-")) ->  | AQ79: BYE
A80: 69 | B80: =IF(REG!B79<>"",REG!B79,"") ->  | C80: =IF(REG!C79<>"",REG!G79,"") ->  | W80: =IF(R80="","",COUNTIF(R12:R80,"-")) ->  | AE80: =IF(R80="","",IF(AD80="0","0",COUNTIF(AD12:AD79,AD80))) ->  | AL80: BYE | AM80: =COUNTIF(AS12:AS80,"W") -> 0 | AN80: =IF(AR80="","",COUNTIF(AR12:AR80,"-")) ->  | AQ80: BYE
A81: 70 | B81: =IF(REG!B80<>"",REG!B80,"") ->  | C81: =IF(REG!C80<>"",REG!G80,"") ->  | W81: =IF(R81="","",COUNTIF(R12:R81,"-")) ->  | AE81: =IF(R81="","",IF(AD81="0","0",COUNTIF(AD12:AD80,AD81))) ->  | AL81: BYE | AM81: =COUNTIF(AS12:AS81,"W") -> 0 | AN81: =IF(AR81="","",COUNTIF(AR12:AR81,"-")) ->  | AQ81: BYE
A82: 71 | B82: =IF(REG!B81<>"",REG!B81,"") ->  | C82: =IF(REG!C81<>"",REG!G81,"") ->  | W82: =IF(R82="","",COUNTIF(R12:R82,"-")) ->  | AE82: =IF(R82="","",IF(AD82="0","0",COUNTIF(AD12:AD81,AD82))) ->  | AL82: BYE | AM82: =COUNTIF(AS12:AS82,"W") -> 0 | AN82: =IF(AR82="","",COUNTIF(AR12:AR82,"-")) ->  | AQ82: BYE
A83: 72 | B83: =IF(REG!B82<>"",REG!B82,"") ->  | C83: =IF(REG!C82<>"",REG!G82,"") ->  | W83: =IF(R83="","",COUNTIF(R12:R83,"-")) ->  | AE83: =IF(R83="","",IF(AD83="0","0",COUNTIF(AD12:AD82,AD83))) ->  | AL83: BYE | AM83: =COUNTIF(AS12:AS83,"W") -> 0 | AN83: =IF(AR83="","",COUNTIF(AR12:AR83,"-")) ->  | AQ83: BYE
A84: 73 | B84: =IF(REG!B83<>"",REG!B83,"") ->  | C84: =IF(REG!C83<>"",REG!G83,"") ->  | W84: =IF(R84="","",COUNTIF(R12:R84,"-")) ->  | AE84: =IF(R84="","",IF(AD84="0","0",COUNTIF(AD12:AD83,AD84))) ->  | AL84: BYE | AM84: =COUNTIF(AS12:AS84,"W") -> 0 | AN84: =IF(AR84="","",COUNTIF(AR12:AR84,"-")) ->  | AQ84: BYE
A85: 74 | B85: =IF(REG!B84<>"",REG!B84,"") ->  | C85: =IF(REG!C84<>"",REG!G84,"") ->  | W85: =IF(R85="","",COUNTIF(R12:R85,"-")) ->  | AE85: =IF(R85="","",IF(AD85="0","0",COUNTIF(AD12:AD84,AD85))) ->  | AL85: BYE | AM85: =COUNTIF(AS12:AS85,"W") -> 0 | AN85: =IF(AR85="","",COUNTIF(AR12:AR85,"-")) ->  | AQ85: BYE
A86: 75 | B86: =IF(REG!B85<>"",REG!B85,"") ->  | C86: =IF(REG!C85<>"",REG!G85,"") ->  | W86: =IF(R86="","",COUNTIF(R12:R86,"-")) ->  | AE86: =IF(R86="","",IF(AD86="0","0",COUNTIF(AD12:AD85,AD86))) ->  | AL86: BYE | AM86: =COUNTIF(AS12:AS86,"W") -> 0 | AN86: =IF(AR86="","",COUNTIF(AR12:AR86,"-")) ->  | AQ86: BYE
A87: 76 | B87: =IF(REG!B86<>"",REG!B86,"") ->  | C87: =IF(REG!C86<>"",REG!G86,"") ->  | W87: =IF(R87="","",COUNTIF(R12:R87,"-")) ->  | AE87: =IF(R87="","",IF(AD87="0","0",COUNTIF(AD12:AD86,AD87))) ->  | AL87: BYE | AM87: =COUNTIF(AS12:AS87,"W") -> 0 | AN87: =IF(AR87="","",COUNTIF(AR12:AR87,"-")) ->  | AQ87: BYE
A88: 77 | B88: =IF(REG!B87<>"",REG!B87,"") ->  | C88: =IF(REG!C87<>"",REG!G87,"") ->  | W88: =IF(R88="","",COUNTIF(R12:R88,"-")) ->  | AE88: =IF(R88="","",IF(AD88="0","0",COUNTIF(AD12:AD87,AD88))) ->  | AL88: BYE | AM88: =COUNTIF(AS12:AS88,"W") -> 0 | AN88: =IF(AR88="","",COUNTIF(AR12:AR88,"-")) ->  | AQ88: BYE
A89: 78 | B89: =IF(REG!B88<>"",REG!B88,"") ->  | C89: =IF(REG!C88<>"",REG!G88,"") ->  | W89: =IF(R89="","",COUNTIF(R12:R89,"-")) ->  | AE89: =IF(R89="","",IF(AD89="0","0",COUNTIF(AD12:AD88,AD89))) ->  | AL89: BYE | AM89: =COUNTIF(AS12:AS89,"W") -> 0 | AN89: =IF(AR89="","",COUNTIF(AR12:AR89,"-")) ->  | AQ89: BYE
A90: 79 | B90: =IF(REG!B89<>"",REG!B89,"") ->  | C90: =IF(REG!C89<>"",REG!G89,"") ->  | W90: =IF(R90="","",COUNTIF(R12:R90,"-")) ->  | AE90: =IF(R90="","",IF(AD90="0","0",COUNTIF(AD12:AD89,AD90))) ->  | AL90: BYE | AM90: =COUNTIF(AS12:AS90,"W") -> 0 | AN90: =IF(AR90="","",COUNTIF(AR12:AR90,"-")) ->  | AQ90: BYE
A91: 80 | B91: =IF(REG!B90<>"",REG!B90,"") ->  | C91: =IF(REG!C90<>"",REG!G90,"") ->  | W91: =IF(R91="","",COUNTIF(R12:R91,"-")) ->  | AE91: =IF(R91="","",IF(AD91="0","0",COUNTIF(AD12:AD90,AD91))) ->  | AL91: BYE | AM91: =COUNTIF(AS12:AS91,"W") -> 0 | AN91: =IF(AR91="","",COUNTIF(AR12:AR91,"-")) ->  | AQ91: BYE
A92: 81 | B92: =IF(REG!B91<>"",REG!B91,"") ->  | C92: =IF(REG!C91<>"",REG!G91,"") ->  | W92: =IF(R92="","",COUNTIF(R12:R92,"-")) ->  | AE92: =IF(R92="","",IF(AD92="0","0",COUNTIF(AD12:AD91,AD92))) ->  | AL92: BYE | AM92: =COUNTIF(AS12:AS92,"W") -> 0 | AN92: =IF(AR92="","",COUNTIF(AR12:AR92,"-")) ->  | AQ92: BYE
A93: 82 | B93: =IF(REG!B92<>"",REG!B92,"") ->  | C93: =IF(REG!C92<>"",REG!G92,"") ->  | W93: =IF(R93="","",COUNTIF(R12:R93,"-")) ->  | AE93: =IF(R93="","",IF(AD93="0","0",COUNTIF(AD12:AD92,AD93))) ->  | AL93: BYE | AM93: =COUNTIF(AS12:AS93,"W") -> 0 | AN93: =IF(AR93="","",COUNTIF(AR12:AR93,"-")) ->  | AQ93: BYE
A94: 83 | B94: =IF(REG!B93<>"",REG!B93,"") ->  | C94: =IF(REG!C93<>"",REG!G93,"") ->  | W94: =IF(R94="","",COUNTIF(R12:R94,"-")) ->  | AE94: =IF(R94="","",IF(AD94="0","0",COUNTIF(AD12:AD93,AD94))) ->  | AL94: BYE | AM94: =COUNTIF(AS12:AS94,"W") -> 0 | AN94: =IF(AR94="","",COUNTIF(AR12:AR94,"-")) ->  | AQ94: BYE
A95: 84 | B95: =IF(REG!B94<>"",REG!B94,"") ->  | C95: =IF(REG!C94<>"",REG!G94,"") ->  | W95: =IF(R95="","",COUNTIF(R12:R95,"-")) ->  | AE95: =IF(R95="","",IF(AD95="0","0",COUNTIF(AD12:AD94,AD95))) ->  | AL95: BYE | AM95: =COUNTIF(AS12:AS95,"W") -> 0 | AN95: =IF(AR95="","",COUNTIF(AR12:AR95,"-")) ->  | AQ95: BYE
A96: 85 | B96: =IF(REG!B95<>"",REG!B95,"") ->  | C96: =IF(REG!C95<>"",REG!G95,"") ->  | W96: =IF(R96="","",COUNTIF(R12:R96,"-")) ->  | AE96: =IF(R96="","",IF(AD96="0","0",COUNTIF(AD12:AD95,AD96))) ->  | AL96: BYE | AM96: =COUNTIF(AS12:AS96,"W") -> 0 | AN96: =IF(AR96="","",COUNTIF(AR12:AR96,"-")) ->  | AQ96: BYE
A97: 86 | B97: =IF(REG!B96<>"",REG!B96,"") ->  | C97: =IF(REG!C96<>"",REG!G96,"") ->  | W97: =IF(R97="","",COUNTIF(R12:R97,"-")) ->  | AE97: =IF(R97="","",IF(AD97="0","0",COUNTIF(AD12:AD96,AD97))) ->  | AL97: BYE | AM97: =COUNTIF(AS12:AS97,"W") -> 0 | AN97: =IF(AR97="","",COUNTIF(AR12:AR97,"-")) ->  | AQ97: BYE
A98: 87 | B98: =IF(REG!B97<>"",REG!B97,"") ->  | C98: =IF(REG!C97<>"",REG!G97,"") ->  | W98: =IF(R98="","",COUNTIF(R12:R98,"-")) ->  | AE98: =IF(R98="","",IF(AD98="0","0",COUNTIF(AD12:AD97,AD98))) ->  | AL98: BYE | AM98: =COUNTIF(AS12:AS98,"W") -> 0 | AN98: =IF(AR98="","",COUNTIF(AR12:AR98,"-")) ->  | AQ98: BYE
A99: 88 | B99: =IF(REG!B98<>"",REG!B98,"") ->  | C99: =IF(REG!C98<>"",REG!G98,"") ->  | W99: =IF(R99="","",COUNTIF(R12:R99,"-")) ->  | AE99: =IF(R99="","",IF(AD99="0","0",COUNTIF(AD12:AD98,AD99))) ->  | AL99: BYE | AM99: =COUNTIF(AS12:AS99,"W") -> 0 | AN99: =IF(AR99="","",COUNTIF(AR12:AR99,"-")) ->  | AQ99: BYE
A100: 89 | B100: =IF(REG!B99<>"",REG!B99,"") ->  | C100: =IF(REG!C99<>"",REG!G99,"") ->  | W100: =IF(R100="","",COUNTIF(R12:R100,"-")) ->  | AE100: =IF(R100="","",IF(AD100="0","0",COUNTIF(AD12:AD99,AD100))) ->  | AL100: BYE | AM100: =COUNTIF(AS12:AS100,"W") -> 0 | AN100: =IF(AR100="","",COUNTIF(AR12:AR100,"-")) ->  | AQ100: BYE
A101: 90 | B101: =IF(REG!B100<>"",REG!B100,"") ->  | C101: =IF(REG!C100<>"",REG!G100,"") ->  | W101: =IF(R101="","",COUNTIF(R12:R101,"-")) ->  | AE101: =IF(R101="","",IF(AD101="0","0",COUNTIF(AD12:AD100,AD101))) ->  | AL101: BYE | AM101: =COUNTIF(AS12:AS101,"W") -> 0 | AN101: =IF(AR101="","",COUNTIF(AR12:AR101,"-")) ->  | AQ101: BYE
A102: 91 | B102: =IF(REG!B101<>"",REG!B101,"") ->  | C102: =IF(REG!C101<>"",REG!G101,"") ->  | W102: =IF(R102="","",COUNTIF(R12:R102,"-")) ->  | AE102: =IF(R102="","",IF(AD102="0","0",COUNTIF(AD12:AD101,AD102))) ->  | AL102: BYE | AM102: =COUNTIF(AS12:AS102,"W") -> 0 | AN102: =IF(AR102="","",COUNTIF(AR12:AR102,"-")) ->  | AQ102: BYE
A103: 92 | B103: =IF(REG!B102<>"",REG!B102,"") ->  | C103: =IF(REG!C102<>"",REG!G102,"") ->  | W103: =IF(R103="","",COUNTIF(R12:R103,"-")) ->  | AE103: =IF(R103="","",IF(AD103="0","0",COUNTIF(AD12:AD102,AD103))) ->  | AL103: BYE | AM103: =COUNTIF(AS12:AS103,"W") -> 0 | AN103: =IF(AR103="","",COUNTIF(AR12:AR103,"-")) ->  | AQ103: BYE
A104: 93 | B104: =IF(REG!B103<>"",REG!B103,"") ->  | C104: =IF(REG!C103<>"",REG!G103,"") ->  | W104: =IF(R104="","",COUNTIF(R12:R104,"-")) ->  | AE104: =IF(R104="","",IF(AD104="0","0",COUNTIF(AD12:AD103,AD104))) ->  | AL104: BYE | AM104: =COUNTIF(AS12:AS104,"W") -> 0 | AN104: =IF(AR104="","",COUNTIF(AR12:AR104,"-")) ->  | AQ104: BYE
A105: 94 | B105: =IF(REG!B104<>"",REG!B104,"") ->  | C105: =IF(REG!C104<>"",REG!G104,"") ->  | W105: =IF(R105="","",COUNTIF(R12:R105,"-")) ->  | AE105: =IF(R105="","",IF(AD105="0","0",COUNTIF(AD12:AD104,AD105))) ->  | AL105: BYE | AM105: =COUNTIF(AS12:AS105,"W") -> 0 | AN105: =IF(AR105="","",COUNTIF(AR12:AR105,"-")) ->  | AQ105: BYE
A106: 95 | B106: =IF(REG!B105<>"",REG!B105,"") ->  | C106: =IF(REG!C105<>"",REG!G105,"") ->  | W106: =IF(R106="","",COUNTIF(R12:R106,"-")) ->  | AE106: =IF(R106="","",IF(AD106="0","0",COUNTIF(AD12:AD105,AD106))) ->  | AL106: BYE | AM106: =COUNTIF(AS12:AS106,"W") -> 0 | AN106: =IF(AR106="","",COUNTIF(AR12:AR106,"-")) ->  | AQ106: BYE
A107: 96 | B107: =IF(REG!B106<>"",REG!B106,"") ->  | C107: =IF(REG!C106<>"",REG!G106,"") ->  | W107: =IF(R107="","",COUNTIF(R12:R107,"-")) ->  | AE107: =IF(R107="","",IF(AD107="0","0",COUNTIF(AD12:AD106,AD107))) ->  | AL107: BYE | AM107: =COUNTIF(AS12:AS107,"W") -> 0 | AN107: =IF(AR107="","",COUNTIF(AR12:AR107,"-")) ->  | AQ107: BYE
A108: 97 | B108: =IF(REG!B107<>"",REG!B107,"") ->  | C108: =IF(REG!C107<>"",REG!G107,"") ->  | W108: =IF(R108="","",COUNTIF(R12:R108,"-")) ->  | AE108: =IF(R108="","",IF(AD108="0","0",COUNTIF(AD12:AD107,AD108))) ->  | AL108: BYE | AM108: =COUNTIF(AS12:AS108,"W") -> 0 | AN108: =IF(AR108="","",COUNTIF(AR12:AR108,"-")) ->  | AQ108: BYE
A109: 98 | B109: =IF(REG!B108<>"",REG!B108,"") ->  | C109: =IF(REG!C108<>"",REG!G108,"") ->  | W109: =IF(R109="","",COUNTIF(R12:R109,"-")) ->  | AE109: =IF(R109="","",IF(AD109="0","0",COUNTIF(AD12:AD108,AD109))) ->  | AL109: BYE | AM109: =COUNTIF(AS12:AS109,"W") -> 0 | AN109: =IF(AR109="","",COUNTIF(AR12:AR109,"-")) ->  | AQ109: BYE
A110: 99 | B110: =IF(REG!B109<>"",REG!B109,"") ->  | C110: =IF(REG!C109<>"",REG!G109,"") ->  | W110: =IF(R110="","",COUNTIF(R12:R110,"-")) ->  | AE110: =IF(R110="","",IF(AD110="0","0",COUNTIF(AD12:AD109,AD110))) ->  | AL110: BYE | AM110: =COUNTIF(AS12:AS110,"W") -> 0 | AN110: =IF(AR110="","",COUNTIF(AR12:AR110,"-")) ->  | AQ110: BYE
A111: 100 | B111: =IF(REG!B110<>"",REG!B110,"") ->  | C111: =IF(REG!C110<>"",REG!G110,"") ->  | W111: =IF(R111="","",COUNTIF(R12:R111,"-")) ->  | AE111: =IF(R111="","",IF(AD111="0","0",COUNTIF(AD12:AD110,AD111))) ->  | AL111: BYE | AM111: =COUNTIF(AS12:AS111,"W") -> 0 | AN111: =IF(AR111="","",COUNTIF(AR12:AR111,"-")) ->  | AQ111: BYE

Sheet G Q 3
D1: =CONTEST!B4 -> Skate n Roll Polička 2022
D2: =CONTEST!B6 -> 13.8. - 14.8.2022
D3: =CONCATENATE(CONTEST!B8," / ",CONTEST!B16," / ",CONTEST!B13) -> GIANT SLALOM / Qualifications / TEEN 12-14
A5: =+'G Q 1-2'!A5 -> 0.2 | B5: secs penalty per hit cone
A6: =+'G Q 1-2'!A6 -> 7 | B6: maximum hit cones before DQ
A7: =+'G Q 1-2'!A8 -> 3.72 | B7: false start multiplication factor | D7: Under "Raw Time," enter "DQ" or"DNF" for | AP7: Advance Racers who DQ | AS7: Y
A8: =IF(ISERROR(0.1*AR12)=TRUE,"",ROUND(0.1*AR12,2)) -> 3.72 | B8: secs head-to-head DQ/DNR penalty | D8: "Disqualified" and "DNR" for "Did Not Race." | AP8: all Qualifying Runs? (Y/N)
A9: =+'G Q 1-2'!A9 -> 3.72 | B9: secs max head-to-head victory margin
B10: START Number | C10: Racer Name | D10: Run 1-2 | K10: Run 3 | Q10: Qual Rank (w/out DQs) | R10: Best Time | S10: Qualifying Position | T10: Qual Rank (w/DQs sequenced) | U10: Racer No. & Name | V10: Best Time | W10: Double DQ Place Factor | X10: No. of Ties per Best Time | Y10: Tied-at Time | Z10: Tied-at Time Rank | AA10: Run 1 Time w/DQ Adjust | AB10: Run 2 Time w/DQ Adjust | AC10: Total Time w/DQ Adjust | AD10: Total Time Rank | AE10: Total Tie Place Factor | AF10: Tie 1 Total Time Rank | AG10: Tie 1 Place Factor | AH10: Tie 2 Total Time Rank | AI10: Tie 2 Place Factor | AJ10: Tie 3 Total Time Rank | AK10: Tie 3 Place Factor | AL10: Placed Racer No. & Name | AM10: Withdrawal Place Factor | AN10: Double DQ Place Factor 2 | AO10: Final Spot - Withdrawals | AP10: Qualifying Position | AQ10: =CONCATENATE(+CONTEST!B4," ",+CONTEST!B8," ","RUN 1-3"," "," Racer No. & Name") -> Skate n Roll Polička 2022 GIANT SLALOM RUN 1-3 Racer No. & Name | AR10: Best Time | AS10: Withdraw (W)
D11: BEST of 1-2 | E11: Cones | F11: Reaction Time | G11: False Start | H11: Final Time | I11: Run Rank | K11: Raw Time | L11: Cones | M11: Reaction Time | N11: False Start | O11: Final Time | P11: Run Rank
A12: 1 | B12: =IF(REG!B11<>"",REG!B11,"") ->  | C12: =IF(REG!C11<>"",REG!G11,"") -> Voves Jindřich [CZE] | D12: =IF('G Q 1-2'!R12="","DNR",IF('G Q 1-2'!R12="-",+'G Q 1-2'!D12,+'G Q 1-2'!R12)) -> 37.204 | H12: =IF(LEFT(D12:D111,1)="D","-",IF(E12:E111>A6,"-",IF(D12:D111>0,D12:D111+E12:E111*A5+G12:G111*A7,""))) -> 37.204 | I12: =IF(H12:H111="","",IF(H12:H111="-","",RANK(H12:H111,H12:H111,1))) -> 1 | O12: =IF(LEFT(K12:K111,1)="D","-",IF(L12:L111>A6,"-",IF(K12:K111>0,K12:K111+L12:L111*A5+N12:N111*A7,""))) ->  | P12: =IF(O12:O111="","",IF(O12:O111="-","",RANK(O12:O111,O12:O111,1))) ->  | Q12: =IF(R12:R111="","",IF(R12:R111="-","",RANK(R12:R111,R12:R111,1))) -> 1 | R12: =IF(AND(ISBLANK(D12),ISBLANK(K12)),"",IF(AND(H12="-",O12="-"),"-",IF(AND(H12="-",ISBLANK(K12)),"-",MIN(H12,O12)))) -> 37.204 | S12: =IF(R12:R111="","",VLOOKUP(U12:U111,AL12:AP111,5,FALSE)) -> 1 | T12: =IF(R12:R111="","",IF(R12:R111="-",COUNT(Q12:Q111)+W12:W111,Q12:Q111+AE12:AE111+AG12:AG111+AI12:AI111+AK12:AK111)) -> 1 | U12: =IF(B12:B111 ="","",B12:B111 & " ")&C12:C111 -> Voves Jindřich [CZE] | V12: =R12:R111 -> 37.204 | W12: =IF(R12="","",COUNTIF(R12:R12,"-")) -> 0 | X12: =IF(Q12:Q111="","",COUNTIF(Q12:Q111,Q12:Q111)-1) -> 0 | Y12: =IF(R12:R111="-","",IF(X12:X111=0,"",R12:R111)) ->  | Z12: =IF(Y12:Y111="","",RANK(Y12:Y111,Y12:Y111,1)) ->  | AA12: =IF(X12:X111="","",IF(X12:X111=0,"",IF(LEFT(H12:H111,1)="-","199",H12:H111))) ->  | AB12: =IF(X12:X111="","",IF(X12:X111=0,"",IF(LEFT(O12:O111,1)="-","199",O12:O111))) ->  | AC12: =IF(ISERROR(AA12:AA111+AB12:AB111)=TRUE,AA12:AA111,AA12:AA111+AB12:AB111) ->  | AD12: =IF(R12:R111="","",IF(X12:X111=0,"0",IF(ISERROR(RANK(AC12:AC111,AC12:AC111,1))=TRUE,"0",RANK(AC12:AC111,AC12:AC111,1)))) -> 0 | AE12: 0 | AF12: =IF(ISERROR(X12:X111)=TRUE,"",IF(Z12:Z111=1,AD12:AD111,"")) ->  | AG12: =IF(R12:R111="","",IF(AF12:AF111="","0",RANK(AF12:AF111,AF12:AF111,1)-1)) -> 0 | AH12: =IF(ISERROR(X12:X111)=TRUE,"",IF(Z12:Z111=COUNT(AF12:AF111)+1,AD12:AD111,"")) ->  | AI12: =IF(R12:R111="","",IF(AH12:AH111="","0",RANK(AH12:AH111,AH12:AH111,1)-1)) -> 0 | AJ12: =IF(ISERROR(X12:X111)=TRUE,"",IF(Z12:Z111=COUNT(AF12:AF111)+COUNT(AH12:AH111)+1,AD12:AD111,"")) ->  | AK12: =IF(R12:R111="","",IF(AJ12:AJ111="","0",RANK(AJ12:AJ111,AJ12:AJ111,1)-1)) -> 0 | AL12: =AQ12:AQ111 -> Voves Jindřich [CZE] | AM12: =COUNTIF(AS12:AS12,"W") -> 0 | AN12: =IF(AR12="","",COUNTIF(AR12:AR12,"-")) -> 0 | AO12: =IF(AQ12:AQ111="BYE","",IF(AS12:AS111="W","",IF(AS7="N",IF(AP12:AP111<=COUNT(Q12:Q111),AP12:AP111-AM12:AM111,""),IF(AP12:AP111<=COUNT(Q12:Q111),AP12:AP111-AM12:AM111,AP12:AP111-AM12:AM111+AN12:AN111-1)))) -> 1 | AP12: =IF(R12:R111="","",IF(AP11:AP110+1<=COUNT(Q12:Q111),AP11:AP110+1,COUNT(Q12:Q111)+1)) -> 1 | AQ12: =IF(R12:R111="","BYE",IF(ISERROR(VLOOKUP(A12:A111,T12:U111,2,FALSE))=TRUE,"",VLOOKUP(A12:A111,T12:U111,2,FALSE))) -> Voves Jindřich [CZE] | AR12: =IF(C12:C111="BYE", "",IF(A12:A111="","",IF(ISERROR(VLOOKUP(A12:A111,T12:V111,3,FALSE))=TRUE,"",VLOOKUP(A12:A111,T12:V111,3,FALSE)))) -> 37.204
A13: 2 | B13: =IF(REG!B12<>"",REG!B12,"") ->  | C13: =IF(REG!C12<>"",REG!G12,"") -> Rezková Anna [CZE] | D13: =IF('G Q 1-2'!R13="","DNR",IF('G Q 1-2'!R13="-",+'G Q 1-2'!D13,+'G Q 1-2'!R13)) -> 38.09 | H13: 38.09 | I13: 2 | Q13: 2 | R13: 38.09 | S13: 2 | T13: 2 | U13: Rezková Anna [CZE] | V13: 38.09 | W13: =IF(R13="","",COUNTIF(R12:R13,"-")) -> 0 | X13: 0 | AD13: 0 | AE13: =IF(R13="","",IF(AD13="0","0",COUNTIF(AD12:AD12,AD13))) -> 0 | AG13: 0 | AI13: 0 | AK13: 0 | AL13: Rezková Anna [CZE] | AM13: =COUNTIF(AS12:AS13,"W") -> 0 | AN13: =IF(AR13="","",COUNTIF(AR12:AR13,"-")) -> 0 | AO13: 2 | AP13: 2 | AQ13: Rezková Anna [CZE] | AR13: 38.09
A14: 3 | B14: =IF(REG!B13<>"",REG!B13,"") ->  | C14: =IF(REG!C13<>"",REG!G13,"") ->  | D14: =IF('G Q 1-2'!R14="","DNR",IF('G Q 1-2'!R14="-",+'G Q 1-2'!D14,+'G Q 1-2'!R14)) -> DNR | H14: - | R14: - | S14: 3 | T14: 3 | V14: - | W14: =IF(R14="","",COUNTIF(R12:R14,"-")) -> 1 | AD14: 0 | AE14: =IF(R14="","",IF(AD14="0","0",COUNTIF(AD12:AD13,AD14))) -> 0 | AG14: 0 | AI14: 0 | AK14: 0 | AM14: =COUNTIF(AS12:AS14,"W") -> 0 | AN14: =IF(AR14="","",COUNTIF(AR12:AR14,"-")) -> 1 | AO14: 3 | AP14: 3 | AR14: -
A15: 4 | B15: =IF(REG!B14<>"",REG!B14,"") ->  | C15: =IF(REG!C14<>"",REG!G14,"") ->  | D15: =IF('G Q 1-2'!R15="","DNR",IF('G Q 1-2'!R15="-",+'G Q 1-2'!D15,+'G Q 1-2'!R15)) -> DNR | H15: - | R15: - | S15: 3 | T15: 4 | V15: - | W15: =IF(R15="","",COUNTIF(R12:R15,"-")) -> 2 | AD15: 0 | AE15: =IF(R15="","",IF(AD15="0","0",COUNTIF(AD12:AD14,AD15))) -> 0 | AG15: 0 | AI15: 0 | AK15: 0 | AM15: =COUNTIF(AS12:AS15,"W") -> 0 | AN15: =IF(AR15="","",COUNTIF(AR12:AR15,"-")) -> 2 | AO15: 4 | AP15: 3 | AR15: -
A16: 5 | B16: =IF(REG!B15<>"",REG!B15,"") ->  | C16: =IF(REG!C15<>"",REG!G15,"") ->  | D16: =IF('G Q 1-2'!R16="","DNR",IF('G Q 1-2'!R16="-",+'G Q 1-2'!D16,+'G Q 1-2'!R16)) -> DNR | H16: - | R16: - | S16: 3 | T16: 5 | V16: - | W16: =IF(R16="","",COUNTIF(R12:R16,"-")) -> 3 | AD16: 0 | AE16: =IF(R16="","",IF(AD16="0","0",COUNTIF(AD12:AD15,AD16))) -> 0 | AG16: 0 | AI16: 0 | AK16: 0 | AM16: =COUNTIF(AS12:AS16,"W") -> 0 | AN16: =IF(AR16="","",COUNTIF(AR12:AR16,"-")) -> 3 | AO16: 5 | AP16: 3 | AR16: -
A17: 6 | B17: =IF(REG!B16<>"",REG!B16,"") ->  | C17: =IF(REG!C16<>"",REG!G16,"") ->  | D17: =IF('G Q 1-2'!R17="","DNR",IF('G Q 1-2'!R17="-",+'G Q 1-2'!D17,+'G Q 1-2'!R17)) -> DNR | H17: - | R17: - | S17: 3 | T17: 6 | V17: - | W17: =IF(R17="","",COUNTIF(R12:R17,"-")) -> 4 | AD17: 0 | AE17: =IF(R17="","",IF(AD17="0","0",COUNTIF(AD12:AD16,AD17))) -> 0 | AG17: 0 | AI17: 0 | AK17: 0 | AM17: =COUNTIF(AS12:AS17,"W") -> 0 | AN17: =IF(AR17="","",COUNTIF(AR12:AR17,"-")) -> 4 | AO17: 6 | AP17: 3 | AR17: -
A18: 7 | B18: =IF(REG!B17<>"",REG!B17,"") ->  | C18: =IF(REG!C17<>"",REG!G17,"") ->  | D18: =IF('G Q 1-2'!R18="","DNR",IF('G Q 1-2'!R18="-",+'G Q 1-2'!D18,+'G Q 1-2'!R18)) -> DNR | H18: - | R18: - | S18: 3 | T18: 7 | V18: - | W18: =IF(R18="","",COUNTIF(R12:R18,"-")) -> 5 | AD18: 0 | AE18: =IF(R18="","",IF(R18="","",IF(AD18="0","0",COUNTIF(AD12:AD17,AD18)))) -> 0 | AG18: 0 | AI18: 0 | AK18: 0 | AM18: =COUNTIF(AS12:AS18,"W") -> 0 | AN18: =IF(AR18="","",COUNTIF(AR12:AR18,"-")) -> 5 | AO18: 7 | AP18: 3 | AR18: -
A19: 8 | B19: =IF(REG!B18<>"",REG!B18,"") ->  | C19: =IF(REG!C18<>"",REG!G18,"") ->  | D19: =IF('G Q 1-2'!R19="","DNR",IF('G Q 1-2'!R19="-",+'G Q 1-2'!D19,+'G Q 1-2'!R19)) -> DNR | H19: - | R19: - | S19: 3 | T19: 8 | V19: - | W19: =IF(R19="","",COUNTIF(R12:R19,"-")) -> 6 | AD19: 0 | AE19: =IF(R19="","",IF(R19="","",IF(AD19="0","0",COUNTIF(AD12:AD18,AD19)))) -> 0 | AG19: 0 | AI19: 0 | AK19: 0 | AM19: =COUNTIF(AS12:AS19,"W") -> 0 | AN19: =IF(AR19="","",COUNTIF(AR12:AR19,"-")) -> 6 | AO19: 8 | AP19: 3 | AR19: -
A20: 9 | B20: =IF(REG!B19<>"",REG!B19,"") ->  | C20: =IF(REG!C19<>"",REG!G19,"") ->  | D20: =IF('G Q 1-2'!R20="","DNR",IF('G Q 1-2'!R20="-",+'G Q 1-2'!D20,+'G Q 1-2'!R20)) -> DNR | H20: - | R20: - | S20: 3 | T20: 9 | V20: - | W20: =IF(R20="","",COUNTIF(R12:R20,"-")) -> 7 | AD20: 0 | AE20: =IF(R20="","",IF(R20="","",IF(AD20="0","0",COUNTIF(AD12:AD19,AD20)))) -> 0 | AG20: 0 | AI20: 0 | AK20: 0 | AM20: =COUNTIF(AS12:AS20,"W") -> 0 | AN20: =IF(AR20="","",COUNTIF(AR12:AR20,"-")) -> 7 | AO20: 9 | AP20: 3 | AR20: -
A21: 10 | B21: =IF(REG!B20<>"",REG!B20,"") ->  | C21: =IF(REG!C20<>"",REG!G20,"") ->  | D21: =IF('G Q 1-2'!R21="","DNR",IF('G Q 1-2'!R21="-",+'G Q 1-2'!D21,+'G Q 1-2'!R21)) -> DNR | H21: - | R21: - | S21: 3 | T21: 10 | V21: - | W21: =IF(R21="","",COUNTIF(R12:R21,"-")) -> 8 | AD21: 0 | AE21: =IF(R21="","",IF(AD21="0","0",COUNTIF(AD12:AD20,AD21))) -> 0 | AG21: 0 | AI21: 0 | AK21: 0 | AM21: =COUNTIF(AS12:AS21,"W") -> 0 | AN21: =IF(AR21="","",COUNTIF(AR12:AR21,"-")) -> 8 | AO21: 10 | AP21: 3 | AR21: -
A22: 11 | B22: =IF(REG!B21<>"",REG!B21,"") ->  | C22: =IF(REG!C21<>"",REG!G21,"") ->  | D22: =IF('G Q 1-2'!R22="","DNR",IF('G Q 1-2'!R22="-",+'G Q 1-2'!D22,+'G Q 1-2'!R22)) -> DNR | H22: - | R22: - | S22: 3 | T22: 11 | V22: - | W22: =IF(R22="","",COUNTIF(R12:R22,"-")) -> 9 | AD22: 0 | AE22: =IF(R22="","",IF(AD22="0","0",COUNTIF(AD1:AD21,AD22))) -> 0 | AG22: 0 | AI22: 0 | AK22: 0 | AM22: =COUNTIF(AS12:AS22,"W") -> 0 | AN22: =IF(AR22="","",COUNTIF(AR12:AR22,"-")) -> 9 | AO22: 11 | AP22: 3 | AR22: -
A23: 12 | B23: =IF(REG!B22<>"",REG!B22,"") ->  | C23: =IF(REG!C22<>"",REG!G22,"") ->  | D23: =IF('G Q 1-2'!R23="","DNR",IF('G Q 1-2'!R23="-",+'G Q 1-2'!D23,+'G Q 1-2'!R23)) -> DNR | H23: - | R23: - | S23: 3 | T23: 12 | V23: - | W23: =IF(R23="","",COUNTIF(R12:R23,"-")) -> 10 | AD23: 0 | AE23: =IF(R23="","",IF(AD23="0","0",COUNTIF(AD12:AD22,AD23))) -> 0 | AG23: 0 | AI23: 0 | AK23: 0 | AM23: =COUNTIF(AS12:AS23,"W") -> 0 | AN23: =IF(AR23="","",COUNTIF(AR12:AR23,"-")) -> 10 | AO23: 12 | AP23: 3 | AR23: -
A24: 13 | B24: =IF(REG!B23<>"",REG!B23,"") ->  | C24: =IF(REG!C23<>"",REG!G23,"") ->  | D24: =IF('G Q 1-2'!R24="","DNR",IF('G Q 1-2'!R24="-",+'G Q 1-2'!D24,+'G Q 1-2'!R24)) -> DNR | H24: - | R24: - | S24: 3 | T24: 13 | V24: - | W24: =IF(R24="","",COUNTIF(R12:R24,"-")) -> 11 | AD24: 0 | AE24: =IF(R24="","",IF(AD24="0","0",COUNTIF(AD12:AD23,AD24))) -> 0 | AG24: 0 | AI24: 0 | AK24: 0 | AM24: =COUNTIF(AS12:AS24,"W") -> 0 | AN24: =IF(AR24="","",COUNTIF(AR12:AR24,"-")) -> 11 | AO24: 13 | AP24: 3 | AR24: -
A25: 14 | B25: =IF(REG!B24<>"",REG!B24,"") ->  | C25: =IF(REG!C24<>"",REG!G24,"") ->  | D25: =IF('G Q 1-2'!R25="","DNR",IF('G Q 1-2'!R25="-",+'G Q 1-2'!D25,+'G Q 1-2'!R25)) -> DNR | H25: - | R25: - | S25: 3 | T25: 14 | V25: - | W25: =IF(R25="","",COUNTIF(R12:R25,"-")) -> 12 | AD25: 0 | AE25: =IF(R25="","",IF(AD25="0","0",COUNTIF(AD12:AD24,AD25))) -> 0 | AG25: 0 | AI25: 0 | AK25: 0 | AM25: =COUNTIF(AS12:AS25,"W") -> 0 | AN25: =IF(AR25="","",COUNTIF(AR12:AR25,"-")) -> 12 | AO25: 14 | AP25: 3 | AR25: -
A26: 15 | B26: =IF(REG!B25<>"",REG!B25,"") ->  | C26: =IF(REG!C25<>"",REG!G25,"") ->  | D26: =IF('G Q 1-2'!R26="","DNR",IF('G Q 1-2'!R26="-",+'G Q 1-2'!D26,+'G Q 1-2'!R26)) -> DNR | H26: - | R26: - | S26: 3 | T26: 15 | V26: - | W26: =IF(R26="","",COUNTIF(R12:R26,"-")) -> 13 | AD26: 0 | AE26: =IF(R26="","",IF(AD26="0","0",COUNTIF(AD12:AD25,AD26))) -> 0 | AG26: 0 | AI26: 0 | AK26: 0 | AM26: =COUNTIF(AS12:AS26,"W") -> 0 | AN26: =IF(AR26="","",COUNTIF(AR12:AR26,"-")) -> 13 | AO26: 15 | AP26: 3 | AR26: -
A27: 16 | B27: =IF(REG!B26<>"",REG!B26,"") ->  | C27: =IF(REG!C26<>"",REG!G26,"") ->  | D27: =IF('G Q 1-2'!R27="","DNR",IF('G Q 1-2'!R27="-",+'G Q 1-2'!D27,+'G Q 1-2'!R27)) -> DNR | H27: - | R27: - | S27: 3 | T27: 16 | V27: - | W27: =IF(R27="","",COUNTIF(R12:R27,"-")) -> 14 | AD27: 0 | AE27: =IF(R27="","",IF(AD27="0","0",COUNTIF(AD12:AD26,AD27))) -> 0 | AG27: 0 | AI27: 0 | AK27: 0 | AM27: =COUNTIF(AS12:AS27,"W") -> 0 | AN27: =IF(AR27="","",COUNTIF(AR12:AR27,"-")) -> 14 | AO27: 16 | AP27: 3 | AR27: -
A28: 17 | B28: =IF(REG!B27<>"",REG!B27,"") ->  | C28: =IF(REG!C27<>"",REG!G27,"") ->  | D28: =IF('G Q 1-2'!R28="","DNR",IF('G Q 1-2'!R28="-",+'G Q 1-2'!D28,+'G Q 1-2'!R28)) -> DNR | H28: - | R28: - | S28: 3 | T28: 17 | V28: - | W28: =IF(R28="","",COUNTIF(R12:R28,"-")) -> 15 | AD28: 0 | AE28: =IF(R28="","",IF(AD28="0","0",COUNTIF(AD12:AD27,AD28))) -> 0 | AG28: 0 | AI28: 0 | AK28: 0 | AM28: =COUNTIF(AS12:AS28,"W") -> 0 | AN28: =IF(AR28="","",COUNTIF(AR12:AR28,"-")) -> 15 | AO28: 17 | AP28: 3 | AR28: -
A29: 18 | B29: =IF(REG!B28<>"",REG!B28,"") ->  | C29: =IF(REG!C28<>"",REG!G28,"") ->  | D29: =IF('G Q 1-2'!R29="","DNR",IF('G Q 1-2'!R29="-",+'G Q 1-2'!D29,+'G Q 1-2'!R29)) -> DNR | H29: - | R29: - | S29: 3 | T29: 18 | V29: - | W29: =IF(R29="","",COUNTIF(R12:R29,"-")) -> 16 | AD29: 0 | AE29: =IF(R29="","",IF(AD29="0","0",COUNTIF(AD12:AD28,AD29))) -> 0 | AG29: 0 | AI29: 0 | AK29: 0 | AM29: =COUNTIF(AS12:AS29,"W") -> 0 | AN29: =IF(AR29="","",COUNTIF(AR12:AR29,"-")) -> 16 | AO29: 18 | AP29: 3 | AR29: -
A30: 19 | B30: =IF(REG!B29<>"",REG!B29,"") ->  | C30: =IF(REG!C29<>"",REG!G29,"") ->  | D30: =IF('G Q 1-2'!R30="","DNR",IF('G Q 1-2'!R30="-",+'G Q 1-2'!D30,+'G Q 1-2'!R30)) -> DNR | H30: - | R30: - | S30: 3 | T30: 19 | V30: - | W30: =IF(R30="","",COUNTIF(R12:R30,"-")) -> 17 | AD30: 0 | AE30: =IF(R30="","",IF(AD30="0","0",COUNTIF(AD12:AD29,AD30))) -> 0 | AG30: 0 | AI30: 0 | AK30: 0 | AM30: =COUNTIF(AS12:AS30,"W") -> 0 | AN30: =IF(AR30="","",COUNTIF(AR12:AR30,"-")) -> 17 | AO30: 19 | AP30: 3 | AR30: -
A31: 20 | B31: =IF(REG!B30<>"",REG!B30,"") ->  | C31: =IF(REG!C30<>"",REG!G30,"") ->  | D31: =IF('G Q 1-2'!R31="","DNR",IF('G Q 1-2'!R31="-",+'G Q 1-2'!D31,+'G Q 1-2'!R31)) -> DNR | H31: - | R31: - | S31: 3 | T31: 20 | V31: - | W31: =IF(R31="","",COUNTIF(R12:R31,"-")) -> 18 | AD31: 0 | AE31: =IF(R31="","",IF(AD31="0","0",COUNTIF(AD12:AD30,AD31))) -> 0 | AG31: 0 | AI31: 0 | AK31: 0 | AM31: =COUNTIF(AS12:AS31,"W") -> 0 | AN31: =IF(AR31="","",COUNTIF(AR12:AR31,"-")) -> 18 | AO31: 20 | AP31: 3 | AR31: -
A32: 21 | B32: =IF(REG!B31<>"",REG!B31,"") ->  | C32: =IF(REG!C31<>"",REG!G31,"") ->  | D32: =IF('G Q 1-2'!R32="","DNR",IF('G Q 1-2'!R32="-",+'G Q 1-2'!D32,+'G Q 1-2'!R32)) -> DNR | H32: - | R32: - | S32: 3 | T32: 21 | V32: - | W32: =IF(R32="","",COUNTIF(R12:R32,"-")) -> 19 | AD32: 0 | AE32: =IF(R32="","",IF(AD32="0","0",COUNTIF(AD12:AD31,AD32))) -> 0 | AG32: 0 | AI32: 0 | AK32: 0 | AM32: =COUNTIF(AS12:AS32,"W") -> 0 | AN32: =IF(AR32="","",COUNTIF(AR12:AR32,"-")) -> 19 | AO32: 21 | AP32: 3 | AR32: -
A33: 22 | B33: =IF(REG!B32<>"",REG!B32,"") ->  | C33: =IF(REG!C32<>"",REG!G32,"") ->  | D33: =IF('G Q 1-2'!R33="","DNR",IF('G Q 1-2'!R33="-",+'G Q 1-2'!D33,+'G Q 1-2'!R33)) -> DNR | H33: - | R33: - | S33: 3 | T33: 22 | V33: - | W33: =IF(R33="","",COUNTIF(R12:R33,"-")) -> 20 | AD33: 0 | AE33: =IF(R33="","",IF(AD33="0","0",COUNTIF(AD12:AD32,AD33))) -> 0 | AG33: 0 | AI33: 0 | AK33: 0 | AM33: =COUNTIF(AS12:AS33,"W") -> 0 | AN33: =IF(AR33="","",COUNTIF(AR12:AR33,"-")) -> 20 | AO33: 22 | AP33: 3 | AR33: -
A34: 23 | B34: =IF(REG!B33<>"",REG!B33,"") ->  | C34: =IF(REG!C33<>"",REG!G33,"") ->  | D34: =IF('G Q 1-2'!R34="","DNR",IF('G Q 1-2'!R34="-",+'G Q 1-2'!D34,+'G Q 1-2'!R34)) -> DNR | H34: - | R34: - | S34: 3 | T34: 23 | V34: - | W34: =IF(R34="","",COUNTIF(R12:R34,"-")) -> 21 | AD34: 0 | AE34: =IF(R34="","",IF(AD34="0","0",COUNTIF(AD12:AD33,AD34))) -> 0 | AG34: 0 | AI34: 0 | AK34: 0 | AM34: =COUNTIF(AS12:AS34,"W") -> 0 | AN34: =IF(AR34="","",COUNTIF(AR12:AR34,"-")) -> 21 | AO34: 23 | AP34: 3 | AR34: -
A35: 24 | B35: =IF(REG!B34<>"",REG!B34,"") ->  | C35: =IF(REG!C34<>"",REG!G34,"") ->  | D35: =IF('G Q 1-2'!R35="","DNR",IF('G Q 1-2'!R35="-",+'G Q 1-2'!D35,+'G Q 1-2'!R35)) -> DNR | H35: - | R35: - | S35: 3 | T35: 24 | V35: - | W35: =IF(R35="","",COUNTIF(R12:R35,"-")) -> 22 | AD35: 0 | AE35: =IF(R35="","",IF(AD35="0","0",COUNTIF(AD12:AD34,AD35))) -> 0 | AG35: 0 | AI35: 0 | AK35: 0 | AM35: =COUNTIF(AS12:AS35,"W") -> 0 | AN35: =IF(AR35="","",COUNTIF(AR12:AR35,"-")) -> 22 | AO35: 24 | AP35: 3 | AR35: -
A36: 25 | B36: =IF(REG!B35<>"",REG!B35,"") ->  | C36: =IF(REG!C35<>"",REG!G35,"") ->  | D36: =IF('G Q 1-2'!R36="","DNR",IF('G Q 1-2'!R36="-",+'G Q 1-2'!D36,+'G Q 1-2'!R36)) -> DNR | H36: - | R36: - | S36: 3 | T36: 25 | V36: - | W36: =IF(R36="","",COUNTIF(R12:R36,"-")) -> 23 | AD36: 0 | AE36: =IF(R36="","",IF(AD36="0","0",COUNTIF(AD12:AD35,AD36))) -> 0 | AG36: 0 | AI36: 0 | AK36: 0 | AM36: =COUNTIF(AS12:AS36,"W") -> 0 | AN36: =IF(AR36="","",COUNTIF(AR12:AR36,"-")) -> 23 | AO36: 25 | AP36: 3 | AR36: -
A37: 26 | B37: =IF(REG!B36<>"",REG!B36,"") ->  | C37: =IF(REG!C36<>"",REG!G36,"") ->  | D37: =IF('G Q 1-2'!R37="","DNR",IF('G Q 1-2'!R37="-",+'G Q 1-2'!D37,+'G Q 1-2'!R37)) -> DNR | H37: - | R37: - | S37: 3 | T37: 26 | V37: - | W37: =IF(R37="","",COUNTIF(R12:R37,"-")) -> 24 | AD37: 0 | AE37: =IF(R37="","",IF(AD37="0","0",COUNTIF(AD12:AD36,AD37))) -> 0 | AG37: 0 | AI37: 0 | AK37: 0 | AM37: =COUNTIF(AS12:AS37,"W") -> 0 | AN37: =IF(AR37="","",COUNTIF(AR12:AR37,"-")) -> 24 | AO37: 26 | AP37: 3 | AR37: -
A38: 27 | B38: =IF(REG!B37<>"",REG!B37,"") ->  | C38: =IF(REG!C37<>"",REG!G37,"") ->  | D38: =IF('G Q 1-2'!R38="","DNR",IF('G Q 1-2'!R38="-",+'G Q 1-2'!D38,+'G Q 1-2'!R38)) -> DNR | H38: - | R38: - | S38: 3 | T38: 27 | V38: - | W38: =IF(R38="","",COUNTIF(R12:R38,"-")) -> 25 | AD38: 0 | AE38: =IF(R38="","",IF(AD38="0","0",COUNTIF(AD12:AD37,AD38))) -> 0 | AG38: 0 | AI38: 0 | AK38: 0 | AM38: =COUNTIF(AS12:AS38,"W") -> 0 | AN38: =IF(AR38="","",COUNTIF(AR12:AR38,"-")) -> 25 | AO38: 27 | AP38: 3 | AR38: -
A39: 28 | B39: =IF(REG!B38<>"",REG!B38,"") ->  | C39: =IF(REG!C38<>"",REG!G38,"") ->  | D39: =IF('G Q 1-2'!R39="","DNR",IF('G Q 1-2'!R39="-",+'G Q 1-2'!D39,+'G Q 1-2'!R39)) -> DNR | H39: - | R39: - | S39: 3 | T39: 28 | V39: - | W39: =IF(R39="","",COUNTIF(R12:R39,"-")) -> 26 | AD39: 0 | AE39: =IF(R39="","",IF(AD39="0","0",COUNTIF(AD12:AD38,AD39))) -> 0 | AG39: 0 | AI39: 0 | AK39: 0 | AM39: =COUNTIF(AS12:AS39,"W") -> 0 | AN39: =IF(AR39="","",COUNTIF(AR12:AR39,"-")) -> 26 | AO39: 28 | AP39: 3 | AR39: -
A40: 29 | B40: =IF(REG!B39<>"",REG!B39,"") ->  | C40: =IF(REG!C39<>"",REG!G39,"") ->  | D40: =IF('G Q 1-2'!R40="","DNR",IF('G Q 1-2'!R40="-",+'G Q 1-2'!D40,+'G Q 1-2'!R40)) -> DNR | H40: - | R40: - | S40: 3 | T40: 29 | V40: - | W40: =IF(R40="","",COUNTIF(R12:R40,"-")) -> 27 | AD40: 0 | AE40: =IF(R40="","",IF(AD40="0","0",COUNTIF(AD12:AD39,AD40))) -> 0 | AG40: 0 | AI40: 0 | AK40: 0 | AM40: =COUNTIF(AS12:AS40,"W") -> 0 | AN40: =IF(AR40="","",COUNTIF(AR12:AR40,"-")) -> 27 | AO40: 29 | AP40: 3 | AR40: -
A41: 30 | B41: =IF(REG!B40<>"",REG!B40,"") ->  | C41: =IF(REG!C40<>"",REG!G40,"") ->  | D41: =IF('G Q 1-2'!R41="","DNR",IF('G Q 1-2'!R41="-",+'G Q 1-2'!D41,+'G Q 1-2'!R41)) -> DNR | H41: - | R41: - | S41: 3 | T41: 30 | V41: - | W41: =IF(R41="","",COUNTIF(R12:R41,"-")) -> 28 | AD41: 0 | AE41: =IF(R41="","",IF(AD41="0","0",COUNTIF(AD12:AD40,AD41))) -> 0 | AG41: 0 | AI41: 0 | AK41: 0 | AM41: =COUNTIF(AS12:AS41,"W") -> 0 | AN41: =IF(AR41="","",COUNTIF(AR12:AR41,"-")) -> 28 | AO41: 30 | AP41: 3 | AR41: -
A42: 31 | B42: =IF(REG!B41<>"",REG!B41,"") ->  | C42: =IF(REG!C41<>"",REG!G41,"") ->  | D42: =IF('G Q 1-2'!R42="","DNR",IF('G Q 1-2'!R42="-",+'G Q 1-2'!D42,+'G Q 1-2'!R42)) -> DNR | H42: - | R42: - | S42: 3 | T42: 31 | V42: - | W42: =IF(R42="","",COUNTIF(R12:R42,"-")) -> 29 | AD42: 0 | AE42: =IF(R42="","",IF(AD42="0","0",COUNTIF(AD12:AD41,AD42))) -> 0 | AG42: 0 | AI42: 0 | AK42: 0 | AM42: =COUNTIF(AS12:AS42,"W") -> 0 | AN42: =IF(AR42="","",COUNTIF(AR12:AR42,"-")) -> 29 | AO42: 31 | AP42: 3 | AR42: -
A43: 32 | B43: =IF(REG!B42<>"",REG!B42,"") ->  | C43: =IF(REG!C42<>"",REG!G42,"") ->  | D43: =IF('G Q 1-2'!R43="","DNR",IF('G Q 1-2'!R43="-",+'G Q 1-2'!D43,+'G Q 1-2'!R43)) -> DNR | H43: - | R43: - | S43: 3 | T43: 32 | V43: - | W43: =IF(R43="","",COUNTIF(R12:R43,"-")) -> 30 | AD43: 0 | AE43: =IF(R43="","",IF(AD43="0","0",COUNTIF(AD12:AD42,AD43))) -> 0 | AG43: 0 | AI43: 0 | AK43: 0 | AM43: =COUNTIF(AS12:AS43,"W") -> 0 | AN43: =IF(AR43="","",COUNTIF(AR12:AR43,"-")) -> 30 | AO43: 32 | AP43: 3 | AR43: -
A44: 33 | B44: =IF(REG!B43<>"",REG!B43,"") ->  | C44: =IF(REG!C43<>"",REG!G43,"") ->  | D44: =IF('G Q 1-2'!R44="","DNR",IF('G Q 1-2'!R44="-",+'G Q 1-2'!D44,+'G Q 1-2'!R44)) -> DNR | H44: - | R44: =IF(AND(ISBLANK(D44),ISBLANK(K44)),"",IF(AND(H44="-",O44="-"),"-",IF(AND(H44="-",ISBLANK(K44)),"-",MIN(H44,O44)))) -> - | S44: 3 | T44: 33 | V44: - | W44: =IF(R44="","",COUNTIF(R12:R44,"-")) -> 31 | AD44: 0 | AE44: =IF(R44="","",IF(AD44="0","0",COUNTIF(AD12:AD43,AD44))) -> 0 | AG44: 0 | AI44: 0 | AK44: 0 | AM44: =COUNTIF(AS12:AS44,"W") -> 0 | AN44: =IF(AR44="","",COUNTIF(AR12:AR44,"-")) -> 31 | AO44: 33 | AP44: 3 | AR44: -
A45: 34 | B45: =IF(REG!B44<>"",REG!B44,"") ->  | C45: =IF(REG!C44<>"",REG!G44,"") ->  | D45: =IF('G Q 1-2'!R45="","DNR",IF('G Q 1-2'!R45="-",+'G Q 1-2'!D45,+'G Q 1-2'!R45)) -> DNR | H45: - | R45: - | S45: 3 | T45: 34 | V45: - | W45: =IF(R45="","",COUNTIF(R12:R45,"-")) -> 32 | AD45: 0 | AE45: =IF(R45="","",IF(AD45="0","0",COUNTIF(AD12:AD44,AD45))) -> 0 | AG45: 0 | AI45: 0 | AK45: 0 | AM45: =COUNTIF(AS12:AS45,"W") -> 0 | AN45: =IF(AR45="","",COUNTIF(AR12:AR45,"-")) -> 32 | AO45: 34 | AP45: 3 | AR45: -
A46: 35 | B46: =IF(REG!B45<>"",REG!B45,"") ->  | C46: =IF(REG!C45<>"",REG!G45,"") ->  | D46: =IF('G Q 1-2'!R46="","DNR",IF('G Q 1-2'!R46="-",+'G Q 1-2'!D46,+'G Q 1-2'!R46)) -> DNR | H46: - | R46: - | S46: 3 | T46: 35 | V46: - | W46: =IF(R46="","",COUNTIF(R12:R46,"-")) -> 33 | AD46: 0 | AE46: =IF(R46="","",IF(AD46="0","0",COUNTIF(AD12:AD45,AD46))) -> 0 | AG46: 0 | AI46: 0 | AK46: 0 | AM46: =COUNTIF(AS12:AS46,"W") -> 0 | AN46: =IF(AR46="","",COUNTIF(AR12:AR46,"-")) -> 33 | AO46: 35 | AP46: 3 | AR46: -
A47: 36 | B47: =IF(REG!B46<>"",REG!B46,"") ->  | C47: =IF(REG!C46<>"",REG!G46,"") ->  | D47: =IF('G Q 1-2'!R47="","DNR",IF('G Q 1-2'!R47="-",+'G Q 1-2'!D47,+'G Q 1-2'!R47)) -> DNR | H47: - | R47: - | S47: 3 | T47: 36 | V47: - | W47: =IF(R47="","",COUNTIF(R12:R47,"-")) -> 34 | AD47: 0 | AE47: =IF(R47="","",IF(AD47="0","0",COUNTIF(AD12:AD46,AD47))) -> 0 | AG47: 0 | AI47: 0 | AK47: 0 | AM47: =COUNTIF(AS12:AS47,"W") -> 0 | AN47: =IF(AR47="","",COUNTIF(AR12:AR47,"-")) -> 34 | AO47: 36 | AP47: 3 | AR47: -
A48: 37 | B48: =IF(REG!B47<>"",REG!B47,"") ->  | C48: =IF(REG!C47<>"",REG!G47,"") ->  | D48: =IF('G Q 1-2'!R48="","DNR",IF('G Q 1-2'!R48="-",+'G Q 1-2'!D48,+'G Q 1-2'!R48)) -> DNR | H48: - | R48: - | S48: 3 | T48: 37 | V48: - | W48: =IF(R48="","",COUNTIF(R12:R48,"-")) -> 35 | AD48: 0 | AE48: =IF(R48="","",IF(AD48="0","0",COUNTIF(AD12:AD47,AD48))) -> 0 | AG48: 0 | AI48: 0 | AK48: 0 | AM48: =COUNTIF(AS12:AS48,"W") -> 0 | AN48: =IF(AR48="","",COUNTIF(AR12:AR48,"-")) -> 35 | AO48: 37 | AP48: 3 | AR48: -
A49: 38 | B49: =IF(REG!B48<>"",REG!B48,"") ->  | C49: =IF(REG!C48<>"",REG!G48,"") ->  | D49: =IF('G Q 1-2'!R49="","DNR",IF('G Q 1-2'!R49="-",+'G Q 1-2'!D49,+'G Q 1-2'!R49)) -> DNR | H49: - | R49: - | S49: 3 | T49: 38 | V49: - | W49: =IF(R49="","",COUNTIF(R12:R49,"-")) -> 36 | AD49: 0 | AE49: =IF(R49="","",IF(AD49="0","0",COUNTIF(AD12:AD48,AD49))) -> 0 | AG49: 0 | AI49: 0 | AK49: 0 | AM49: =COUNTIF(AS12:AS49,"W") -> 0 | AN49: =IF(AR49="","",COUNTIF(AR12:AR49,"-")) -> 36 | AO49: 38 | AP49: 3 | AR49: -
A50: 39 | B50: =IF(REG!B49<>"",REG!B49,"") ->  | C50: =IF(REG!C49<>"",REG!G49,"") ->  | D50: =IF('G Q 1-2'!R50="","DNR",IF('G Q 1-2'!R50="-",+'G Q 1-2'!D50,+'G Q 1-2'!R50)) -> DNR | H50: - | R50: - | S50: 3 | T50: 39 | V50: - | W50: =IF(R50="","",COUNTIF(R12:R50,"-")) -> 37 | AD50: 0 | AE50: =IF(R50="","",IF(AD50="0","0",COUNTIF(AD12:AD49,AD50))) -> 0 | AG50: 0 | AI50: 0 | AK50: 0 | AM50: =COUNTIF(AS12:AS50,"W") -> 0 | AN50: =IF(AR50="","",COUNTIF(AR12:AR50,"-")) -> 37 | AO50: 39 | AP50: 3 | AR50: -
A51: 40 | B51: =IF(REG!B50<>"",REG!B50,"") ->  | C51: =IF(REG!C50<>"",REG!G50,"") ->  | D51: =IF('G Q 1-2'!R51="","DNR",IF('G Q 1-2'!R51="-",+'G Q 1-2'!D51,+'G Q 1-2'!R51)) -> DNR | H51: - | R51: - | S51: 3 | T51: 40 | V51: - | W51: =IF(R51="","",COUNTIF(R12:R51,"-")) -> 38 | AD51: 0 | AE51: =IF(R51="","",IF(AD51="0","0",COUNTIF(AD12:AD50,AD51))) -> 0 | AG51: 0 | AI51: 0 | AK51: 0 | AM51: =COUNTIF(AS12:AS51,"W") -> 0 | AN51: =IF(AR51="","",COUNTIF(AR12:AR51,"-")) -> 38 | AO51: 40 | AP51: 3 | AR51: -
A52: 41 | B52: =IF(REG!B51<>"",REG!B51,"") ->  | C52: =IF(REG!C51<>"",REG!G51,"") ->  | D52: =IF('G Q 1-2'!R52="","DNR",IF('G Q 1-2'!R52="-",+'G Q 1-2'!D52,+'G Q 1-2'!R52)) -> DNR | H52: - | R52: - | S52: 3 | T52: 41 | V52: - | W52: =IF(R52="","",COUNTIF(R12:R52,"-")) -> 39 | AD52: 0 | AE52: =IF(R52="","",IF(AD52="0","0",COUNTIF(AD12:AD51,AD52))) -> 0 | AG52: 0 | AI52: 0 | AK52: 0 | AM52: =COUNTIF(AS12:AS52,"W") -> 0 | AN52: =IF(AR52="","",COUNTIF(AR12:AR52,"-")) -> 39 | AO52: 41 | AP52: 3 | AR52: -
A53: 42 | B53: =IF(REG!B52<>"",REG!B52,"") ->  | C53: =IF(REG!C52<>"",REG!G52,"") ->  | D53: =IF('G Q 1-2'!R53="","DNR",IF('G Q 1-2'!R53="-",+'G Q 1-2'!D53,+'G Q 1-2'!R53)) -> DNR | H53: - | R53: - | S53: 3 | T53: 42 | V53: - | W53: =IF(R53="","",COUNTIF(R12:R53,"-")) -> 40 | AD53: 0 | AE53: =IF(R53="","",IF(AD53="0","0",COUNTIF(AD12:AD52,AD53))) -> 0 | AG53: 0 | AI53: 0 | AK53: 0 | AM53: =COUNTIF(AS12:AS53,"W") -> 0 | AN53: =IF(AR53="","",COUNTIF(AR12:AR53,"-")) -> 40 | AO53: 42 | AP53: 3 | AR53: -
A54: 43 | B54: =IF(REG!B53<>"",REG!B53,"") ->  | C54: =IF(REG!C53<>"",REG!G53,"") ->  | D54: =IF('G Q 1-2'!R54="","DNR",IF('G Q 1-2'!R54="-",+'G Q 1-2'!D54,+'G Q 1-2'!R54)) -> DNR | H54: - | R54: - | S54: 3 | T54: 43 | V54: - | W54: =IF(R54="","",COUNTIF(R12:R54,"-")) -> 41 | AD54: 0 | AE54: =IF(R54="","",IF(AD54="0","0",COUNTIF(AD12:AD53,AD54))) -> 0 | AG54: 0 | AI54: 0 | AK54: 0 | AM54: =COUNTIF(AS12:AS54,"W") -> 0 | AN54: =IF(AR54="","",COUNTIF(AR12:AR54,"-")) -> 41 | AO54: 43 | AP54: 3 | AR54: -
A55: 44 | B55: =IF(REG!B54<>"",REG!B54,"") ->  | C55: =IF(REG!C54<>"",REG!G54,"") ->  | D55: =IF('G Q 1-2'!R55="","DNR",IF('G Q 1-2'!R55="-",+'G Q 1-2'!D55,+'G Q 1-2'!R55)) -> DNR | H55: - | R55: - | S55: 3 | T55: 44 | V55: - | W55: =IF(R55="","",COUNTIF(R12:R55,"-")) -> 42 | AD55: 0 | AE55: =IF(R55="","",IF(AD55="0","0",COUNTIF(AD12:AD54,AD55))) -> 0 | AG55: 0 | AI55: 0 | AK55: 0 | AM55: =COUNTIF(AS12:AS55,"W") -> 0 | AN55: =IF(AR55="","",COUNTIF(AR12:AR55,"-")) -> 42 | AO55: 44 | AP55: 3 | AR55: -
A56: 45 | B56: =IF(REG!B55<>"",REG!B55,"") ->  | C56: =IF(REG!C55<>"",REG!G55,"") ->  | D56: =IF('G Q 1-2'!R56="","DNR",IF('G Q 1-2'!R56="-",+'G Q 1-2'!D56,+'G Q 1-2'!R56)) -> DNR | H56: - | R56: - | S56: 3 | T56: 45 | V56: - | W56: =IF(R56="","",COUNTIF(R12:R56,"-")) -> 43 | AD56: 0 | AE56: =IF(R56="","",IF(AD56="0","0",COUNTIF(AD12:AD55,AD56))) -> 0 | AG56: 0 | AI56: 0 | AK56: 0 | AM56: =COUNTIF(AS12:AS56,"W") -> 0 | AN56: =IF(AR56="","",COUNTIF(AR12:AR56,"-")) -> 43 | AO56: 45 | AP56: 3 | AR56: -
A57: 46 | B57: =IF(REG!B56<>"",REG!B56,"") ->  | C57: =IF(REG!C56<>"",REG!G56,"") ->  | D57: =IF('G Q 1-2'!R57="","DNR",IF('G Q 1-2'!R57="-",+'G Q 1-2'!D57,+'G Q 1-2'!R57)) -> DNR | H57: - | R57: - | S57: 3 | T57: 46 | V57: - | W57: =IF(R57="","",COUNTIF(R12:R57,"-")) -> 44 | AD57: 0 | AE57: =IF(R57="","",IF(AD57="0","0",COUNTIF(AD12:AD56,AD57))) -> 0 | AG57: 0 | AI57: 0 | AK57: 0 | AM57: =COUNTIF(AS12:AS57,"W") -> 0 | AN57: =IF(AR57="","",COUNTIF(AR12:AR57,"-")) -> 44 | AO57: 46 | AP57: 3 | AR57: -
A58: 47 | B58: =IF(REG!B57<>"",REG!B57,"") ->  | C58: =IF(REG!C57<>"",REG!G57,"") ->  | D58: =IF('G Q 1-2'!R58="","DNR",IF('G Q 1-2'!R58="-",+'G Q 1-2'!D58,+'G Q 1-2'!R58)) -> DNR | H58: - | R58: - | S58: 3 | T58: 47 | V58: - | W58: =IF(R58="","",COUNTIF(R12:R58,"-")) -> 45 | AD58: 0 | AE58: =IF(R58="","",IF(AD58="0","0",COUNTIF(AD12:AD57,AD58))) -> 0 | AG58: 0 | AI58: 0 | AK58: 0 | AM58: =COUNTIF(AS12:AS58,"W") -> 0 | AN58: =IF(AR58="","",COUNTIF(AR12:AR58,"-")) -> 45 | AO58: 47 | AP58: 3 | AR58: -
A59: 48 | B59: =IF(REG!B58<>"",REG!B58,"") ->  | C59: =IF(REG!C58<>"",REG!G58,"") ->  | D59: =IF('G Q 1-2'!R59="","DNR",IF('G Q 1-2'!R59="-",+'G Q 1-2'!D59,+'G Q 1-2'!R59)) -> DNR | H59: - | R59: - | S59: 3 | T59: 48 | V59: - | W59: =IF(R59="","",COUNTIF(R12:R59,"-")) -> 46 | AD59: 0 | AE59: =IF(R59="","",IF(AD59="0","0",COUNTIF(AD12:AD58,AD59))) -> 0 | AG59: 0 | AI59: 0 | AK59: 0 | AM59: =COUNTIF(AS12:AS59,"W") -> 0 | AN59: =IF(AR59="","",COUNTIF(AR12:AR59,"-")) -> 46 | AO59: 48 | AP59: 3 | AR59: -
A60: 49 | B60: =IF(REG!B59<>"",REG!B59,"") ->  | C60: =IF(REG!C59<>"",REG!G59,"") ->  | D60: =IF('G Q 1-2'!R60="","DNR",IF('G Q 1-2'!R60="-",+'G Q 1-2'!D60,+'G Q 1-2'!R60)) -> DNR | H60: - | R60: - | S60: 3 | T60: 49 | V60: - | W60: =IF(R60="","",COUNTIF(R12:R60,"-")) -> 47 | AD60: 0 | AE60: =IF(R60="","",IF(AD60="0","0",COUNTIF(AD12:AD59,AD60))) -> 0 | AG60: 0 | AI60: 0 | AK60: 0 | AM60: =COUNTIF(AS12:AS60,"W") -> 0 | AN60: =IF(AR60="","",COUNTIF(AR12:AR60,"-")) -> 47 | AO60: 49 | AP60: 3 | AR60: -
A61: 50 | B61: =IF(REG!B60<>"",REG!B60,"") ->  | C61: =IF(REG!C60<>"",REG!G60,"") ->  | D61: =IF('G Q 1-2'!R61="","DNR",IF('G Q 1-2'!R61="-",+'G Q 1-2'!D61,+'G Q 1-2'!R61)) -> DNR | H61: - | R61: - | S61: 3 | T61: 50 | V61: - | W61: =IF(R61="","",COUNTIF(R12:R61,"-")) -> 48 | AD61: 0 | AE61: =IF(R61="","",IF(AD61="0","0",COUNTIF(AD12:AD60,AD61))) -> 0 | AG61: 0 | AI61: 0 | AK61: 0 | AM61: =COUNTIF(AS12:AS61,"W") -> 0 | AN61: =IF(AR61="","",COUNTIF(AR12:AR61,"-")) -> 48 | AO61: 50 | AP61: 3 | AR61: -
A62: 51 | B62: =IF(REG!B61<>"",REG!B61,"") ->  | C62: =IF(REG!C61<>"",REG!G61,"") ->  | D62: =IF('G Q 1-2'!R62="","DNR",IF('G Q 1-2'!R62="-",+'G Q 1-2'!D62,+'G Q 1-2'!R62)) -> DNR | H62: - | R62: - | S62: 3 | T62: 51 | V62: - | W62: =IF(R62="","",COUNTIF(R12:R62,"-")) -> 49 | AD62: 0 | AE62: =IF(R62="","",IF(AD62="0","0",COUNTIF(AD12:AD61,AD62))) -> 0 | AG62: 0 | AI62: 0 | AK62: 0 | AM62: =COUNTIF(AS12:AS62,"W") -> 0 | AN62: =IF(AR62="","",COUNTIF(AR12:AR62,"-")) -> 49 | AO62: 51 | AP62: 3 | AR62: -
A63: 52 | B63: =IF(REG!B62<>"",REG!B62,"") ->  | C63: =IF(REG!C62<>"",REG!G62,"") ->  | D63: =IF('G Q 1-2'!R63="","DNR",IF('G Q 1-2'!R63="-",+'G Q 1-2'!D63,+'G Q 1-2'!R63)) -> DNR | H63: - | R63: - | S63: 3 | T63: 52 | V63: - | W63: =IF(R63="","",COUNTIF(R12:R63,"-")) -> 50 | AD63: 0 | AE63: =IF(R63="","",IF(AD63="0","0",COUNTIF(AD12:AD62,AD63))) -> 0 | AG63: 0 | AI63: 0 | AK63: 0 | AM63: =COUNTIF(AS12:AS63,"W") -> 0 | AN63: =IF(AR63="","",COUNTIF(AR12:AR63,"-")) -> 50 | AO63: 52 | AP63: 3 | AR63: -
A64: 53 | B64: =IF(REG!B63<>"",REG!B63,"") ->  | C64: =IF(REG!C63<>"",REG!G63,"") ->  | D64: =IF('G Q 1-2'!R64="","DNR",IF('G Q 1-2'!R64="-",+'G Q 1-2'!D64,+'G Q 1-2'!R64)) -> DNR | H64: - | R64: - | S64: 3 | T64: 53 | V64: - | W64: =IF(R64="","",COUNTIF(R12:R64,"-")) -> 51 | AD64: 0 | AE64: =IF(R64="","",IF(AD64="0","0",COUNTIF(AD12:AD63,AD64))) -> 0 | AG64: 0 | AI64: 0 | AK64: 0 | AM64: =COUNTIF(AS12:AS64,"W") -> 0 | AN64: =IF(AR64="","",COUNTIF(AR12:AR64,"-")) -> 51 | AO64: 53 | AP64: 3 | AR64: -
A65: 54 | B65: =IF(REG!B64<>"",REG!B64,"") ->  | C65: =IF(REG!C64<>"",REG!G64,"") ->  | D65: =IF('G Q 1-2'!R65="","DNR",IF('G Q 1-2'!R65="-",+'G Q 1-2'!D65,+'G Q 1-2'!R65)) -> DNR | H65: - | R65: - | S65: 3 | T65: 54 | V65: - | W65: =IF(R65="","",COUNTIF(R12:R65,"-")) -> 52 | AD65: 0 | AE65: =IF(R65="","",IF(AD65="0","0",COUNTIF(AD12:AD64,AD65))) -> 0 | AG65: 0 | AI65: 0 | AK65: 0 | AM65: =COUNTIF(AS12:AS65,"W") -> 0 | AN65: =IF(AR65="","",COUNTIF(AR12:AR65,"-")) -> 52 | AO65: 54 | AP65: 3 | AR65: -
A66: 55 | B66: =IF(REG!B65<>"",REG!B65,"") ->  | C66: =IF(REG!C65<>"",REG!G65,"") ->  | D66: =IF('G Q 1-2'!R66="","DNR",IF('G Q 1-2'!R66="-",+'G Q 1-2'!D66,+'G Q 1-2'!R66)) -> DNR | H66: - | R66: - | S66: 3 | T66: 55 | V66: - | W66: =IF(R66="","",COUNTIF(R12:R66,"-")) -> 53 | AD66: 0 | AE66: =IF(R66="","",IF(AD66="0","0",COUNTIF(AD12:AD65,AD66))) -> 0 | AG66: 0 | AI66: 0 | AK66: 0 | AM66: =COUNTIF(AS12:AS66,"W") -> 0 | AN66: =IF(AR66="","",COUNTIF(AR12:AR66,"-")) -> 53 | AO66: 55 | AP66: 3 | AR66: -
A67: 56 | B67: =IF(REG!B66<>"",REG!B66,"") ->  | C67: =IF(REG!C66<>"",REG!G66,"") ->  | D67: =IF('G Q 1-2'!R67="","DNR",IF('G Q 1-2'!R67="-",+'G Q 1-2'!D67,+'G Q 1-2'!R67)) -> DNR | H67: - | R67: - | S67: 3 | T67: 56 | V67: - | W67: =IF(R67="","",COUNTIF(R12:R67,"-")) -> 54 | AD67: 0 | AE67: =IF(R67="","",IF(AD67="0","0",COUNTIF(AD12:AD66,AD67))) -> 0 | AG67: 0 | AI67: 0 | AK67: 0 | AM67: =COUNTIF(AS12:AS67,"W") -> 0 | AN67: =IF(AR67="","",COUNTIF(AR12:AR67,"-")) -> 54 | AO67: 56 | AP67: 3 | AR67: -
A68: 57 | B68: =IF(REG!B67<>"",REG!B67,"") ->  | C68: =IF(REG!C67<>"",REG!G67,"") ->  | D68: =IF('G Q 1-2'!R68="","DNR",IF('G Q 1-2'!R68="-",+'G Q 1-2'!D68,+'G Q 1-2'!R68)) -> DNR | H68: - | R68: - | S68: 3 | T68: 57 | V68: - | W68: =IF(R68="","",COUNTIF(R12:R68,"-")) -> 55 | AD68: 0 | AE68: =IF(R68="","",IF(R68="","",IF(AD68="0","0",COUNTIF(AD12:AD67,AD68)))) -> 0 | AG68: 0 | AI68: 0 | AK68: 0 | AM68: =COUNTIF(AS12:AS68,"W") -> 0 | AN68: =IF(AR68="","",COUNTIF(AR12:AR68,"-")) -> 55 | AO68: 57 | AP68: 3 | AR68: -
A69: 58 | B69: =IF(REG!B68<>"",REG!B68,"") ->  | C69: =IF(REG!C68<>"",REG!G68,"") ->  | D69: =IF('G Q 1-2'!R69="","DNR",IF('G Q 1-2'!R69="-",+'G Q 1-2'!D69,+'G Q 1-2'!R69)) -> DNR | H69: - | R69: - | S69: 3 | T69: 58 | V69: - | W69: =IF(R69="","",COUNTIF(R12:R69,"-")) -> 56 | AD69: 0 | AE69: =IF(R69="","",IF(R69="","",IF(AD69="0","0",COUNTIF(AD12:AD68,AD69)))) -> 0 | AG69: 0 | AI69: 0 | AK69: 0 | AM69: =COUNTIF(AS12:AS69,"W") -> 0 | AN69: =IF(AR69="","",COUNTIF(AR12:AR69,"-")) -> 56 | AO69: 58 | AP69: 3 | AR69: -
A70: 59 | B70: =IF(REG!B69<>"",REG!B69,"") ->  | C70: =IF(REG!C69<>"",REG!G69,"") ->  | D70: =IF('G Q 1-2'!R70="","DNR",IF('G Q 1-2'!R70="-",+'G Q 1-2'!D70,+'G Q 1-2'!R70)) -> DNR | H70: - | R70: - | S70: 3 | T70: 59 | V70: - | W70: =IF(R70="","",COUNTIF(R12:R70,"-")) -> 57 | AD70: 0 | AE70: =IF(R70="","",IF(R70="","",IF(AD70="0","0",COUNTIF(AD12:AD69,AD70)))) -> 0 | AG70: 0 | AI70: 0 | AK70: 0 | AM70: =COUNTIF(AS12:AS70,"W") -> 0 | AN70: =IF(AR70="","",COUNTIF(AR12:AR70,"-")) -> 57 | AO70: 59 | AP70: 3 | AR70: -
A71: 60 | B71: =IF(REG!B70<>"",REG!B70,"") ->  | C71: =IF(REG!C70<>"",REG!G70,"") ->  | D71: =IF('G Q 1-2'!R71="","DNR",IF('G Q 1-2'!R71="-",+'G Q 1-2'!D71,+'G Q 1-2'!R71)) -> DNR | H71: - | R71: - | S71: 3 | T71: 60 | V71: - | W71: =IF(R71="","",COUNTIF(R12:R71,"-")) -> 58 | AD71: 0 | AE71: =IF(R71="","",IF(AD71="0","0",COUNTIF(AD12:AD70,AD71))) -> 0 | AG71: 0 | AI71: 0 | AK71: 0 | AM71: =COUNTIF(AS12:AS71,"W") -> 0 | AN71: =IF(AR71="","",COUNTIF(AR12:AR71,"-")) -> 58 | AO71: 60 | AP71: 3 | AR71: -
A72: 61 | B72: =IF(REG!B71<>"",REG!B71,"") ->  | C72: =IF(REG!C71<>"",REG!G71,"") ->  | D72: =IF('G Q 1-2'!R72="","DNR",IF('G Q 1-2'!R72="-",+'G Q 1-2'!D72,+'G Q 1-2'!R72)) -> DNR | H72: - | R72: - | S72: 3 | T72: 61 | V72: - | W72: =IF(R72="","",COUNTIF(R12:R72,"-")) -> 59 | AD72: 0 | AE72: =IF(R72="","",IF(AD72="0","0",COUNTIF(AD52:AD71,AD72))) -> 0 | AG72: 0 | AI72: 0 | AK72: 0 | AM72: =COUNTIF(AS12:AS72,"W") -> 0 | AN72: =IF(AR72="","",COUNTIF(AR12:AR72,"-")) -> 59 | AO72: 61 | AP72: 3 | AR72: -
A73: 62 | B73: =IF(REG!B72<>"",REG!B72,"") ->  | C73: =IF(REG!C72<>"",REG!G72,"") ->  | D73: =IF('G Q 1-2'!R73="","DNR",IF('G Q 1-2'!R73="-",+'G Q 1-2'!D73,+'G Q 1-2'!R73)) -> DNR | H73: - | R73: - | S73: 3 | T73: 62 | V73: - | W73: =IF(R73="","",COUNTIF(R12:R73,"-")) -> 60 | AD73: 0 | AE73: =IF(R73="","",IF(AD73="0","0",COUNTIF(AD12:AD72,AD73))) -> 0 | AG73: 0 | AI73: 0 | AK73: 0 | AM73: =COUNTIF(AS12:AS73,"W") -> 0 | AN73: =IF(AR73="","",COUNTIF(AR12:AR73,"-")) -> 60 | AO73: 62 | AP73: 3 | AR73: -
A74: 63 | B74: =IF(REG!B73<>"",REG!B73,"") ->  | C74: =IF(REG!C73<>"",REG!G73,"") ->  | D74: =IF('G Q 1-2'!R74="","DNR",IF('G Q 1-2'!R74="-",+'G Q 1-2'!D74,+'G Q 1-2'!R74)) -> DNR | H74: - | R74: - | S74: 3 | T74: 63 | V74: - | W74: =IF(R74="","",COUNTIF(R12:R74,"-")) -> 61 | AD74: 0 | AE74: =IF(R74="","",IF(AD74="0","0",COUNTIF(AD12:AD73,AD74))) -> 0 | AG74: 0 | AI74: 0 | AK74: 0 | AM74: =COUNTIF(AS12:AS74,"W") -> 0 | AN74: =IF(AR74="","",COUNTIF(AR12:AR74,"-")) -> 61 | AO74: 63 | AP74: 3 | AR74: -
A75: 64 | B75: =IF(REG!B74<>"",REG!B74,"") ->  | C75: =IF(REG!C74<>"",REG!G74,"") ->  | D75: =IF('G Q 1-2'!R75="","DNR",IF('G Q 1-2'!R75="-",+'G Q 1-2'!D75,+'G Q 1-2'!R75)) -> DNR | H75: - | R75: - | S75: 3 | T75: 64 | V75: - | W75: =IF(R75="","",COUNTIF(R12:R75,"-")) -> 62 | AD75: 0 | AE75: =IF(R75="","",IF(AD75="0","0",COUNTIF(AD12:AD74,AD75))) -> 0 | AG75: 0 | AI75: 0 | AK75: 0 | AM75: =COUNTIF(AS12:AS75,"W") -> 0 | AN75: =IF(AR75="","",COUNTIF(AR12:AR75,"-")) -> 62 | AO75: 64 | AP75: 3 | AR75: -
A76: 65 | B76: =IF(REG!B75<>"",REG!B75,"") ->  | C76: =IF(REG!C75<>"",REG!G75,"") ->  | D76: =IF('G Q 1-2'!R76="","DNR",IF('G Q 1-2'!R76="-",+'G Q 1-2'!D76,+'G Q 1-2'!R76)) -> DNR | H76: - | R76: =IF(AND(ISBLANK(D76),ISBLANK(K76)),"",IF(AND(H76="-",O76="-"),"-",IF(AND(H76="-",ISBLANK(K76)),"-",MIN(H76,O76)))) -> - | S76: 3 | T76: 65 | V76: - | W76: =IF(R76="","",COUNTIF(R12:R76,"-")) -> 63 | AD76: 0 | AE76: =IF(R76="","",IF(AD76="0","0",COUNTIF(AD12:AD75,AD76))) -> 0 | AG76: 0 | AI76: 0 | AK76: 0 | AM76: =COUNTIF(AS12:AS76,"W") -> 0 | AN76: =IF(AR76="","",COUNTIF(AR12:AR76,"-")) -> 63 | AO76: 65 | AP76: 3 | AR76: -
A77: 66 | B77: =IF(REG!B76<>"",REG!B76,"") ->  | C77: =IF(REG!C76<>"",REG!G76,"") ->  | D77: =IF('G Q 1-2'!R77="","DNR",IF('G Q 1-2'!R77="-",+'G Q 1-2'!D77,+'G Q 1-2'!R77)) -> DNR | H77: - | R77: - | S77: 3 | T77: 66 | V77: - | W77: =IF(R77="","",COUNTIF(R12:R77,"-")) -> 64 | AD77: 0 | AE77: =IF(R77="","",IF(AD77="0","0",COUNTIF(AD12:AD76,AD77))) -> 0 | AG77: 0 | AI77: 0 | AK77: 0 | AM77: =COUNTIF(AS12:AS77,"W") -> 0 | AN77: =IF(AR77="","",COUNTIF(AR12:AR77,"-")) -> 64 | AO77: 66 | AP77: 3 | AR77: -
A78: 67 | B78: =IF(REG!B77<>"",REG!B77,"") ->  | C78: =IF(REG!C77<>"",REG!G77,"") ->  | D78: =IF('G Q 1-2'!R78="","DNR",IF('G Q 1-2'!R78="-",+'G Q 1-2'!D78,+'G Q 1-2'!R78)) -> DNR | H78: - | R78: - | S78: 3 | T78: 67 | V78: - | W78: =IF(R78="","",COUNTIF(R12:R78,"-")) -> 65 | AD78: 0 | AE78: =IF(R78="","",IF(AD78="0","0",COUNTIF(AD12:AD77,AD78))) -> 0 | AG78: 0 | AI78: 0 | AK78: 0 | AM78: =COUNTIF(AS12:AS78,"W") -> 0 | AN78: =IF(AR78="","",COUNTIF(AR12:AR78,"-")) -> 65 | AO78: 67 | AP78: 3 | AR78: -
A79: 68 | B79: =IF(REG!B78<>"",REG!B78,"") ->  | C79: =IF(REG!C78<>"",REG!G78,"") ->  | D79: =IF('G Q 1-2'!R79="","DNR",IF('G Q 1-2'!R79="-",+'G Q 1-2'!D79,+'G Q 1-2'!R79)) -> DNR | H79: - | R79: - | S79: 3 | T79: 68 | V79: - | W79: =IF(R79="","",COUNTIF(R12:R79,"-")) -> 66 | AD79: 0 | AE79: =IF(R79="","",IF(AD79="0","0",COUNTIF(AD12:AD78,AD79))) -> 0 | AG79: 0 | AI79: 0 | AK79: 0 | AM79: =COUNTIF(AS12:AS79,"W") -> 0 | AN79: =IF(AR79="","",COUNTIF(AR12:AR79,"-")) -> 66 | AO79: 68 | AP79: 3 | AR79: -
A80: 69 | B80: =IF(REG!B79<>"",REG!B79,"") ->  | C80: =IF(REG!C79<>"",REG!G79,"") ->  | D80: =IF('G Q 1-2'!R80="","DNR",IF('G Q 1-2'!R80="-",+'G Q 1-2'!D80,+'G Q 1-2'!R80)) -> DNR | H80: - | R80: - | S80: 3 | T80: 69 | V80: - | W80: =IF(R80="","",COUNTIF(R12:R80,"-")) -> 67 | AD80: 0 | AE80: =IF(R80="","",IF(AD80="0","0",COUNTIF(AD12:AD79,AD80))) -> 0 | AG80: 0 | AI80: 0 | AK80: 0 | AM80: =COUNTIF(AS12:AS80,"W") -> 0 | AN80: =IF(AR80="","",COUNTIF(AR12:AR80,"-")) -> 67 | AO80: 69 | AP80: 3 | AR80: -
A81: 70 | B81: =IF(REG!B80<>"",REG!B80,"") ->  | C81: =IF(REG!C80<>"",REG!G80,"") ->  | D81: =IF('G Q 1-2'!R81="","DNR",IF('G Q 1-2'!R81="-",+'G Q 1-2'!D81,+'G Q 1-2'!R81)) -> DNR | H81: - | R81: - | S81: 3 | T81: 70 | V81: - | W81: =IF(R81="","",COUNTIF(R12:R81,"-")) -> 68 | AD81: 0 | AE81: =IF(R81="","",IF(AD81="0","0",COUNTIF(AD12:AD80,AD81))) -> 0 | AG81: 0 | AI81: 0 | AK81: 0 | AM81: =COUNTIF(AS12:AS81,"W") -> 0 | AN81: =IF(AR81="","",COUNTIF(AR12:AR81,"-")) -> 68 | AO81: 70 | AP81: 3 | AR81: -
A82: 71 | B82: =IF(REG!B81<>"",REG!B81,"") ->  | C82: =IF(REG!C81<>"",REG!G81,"") ->  | D82: =IF('G Q 1-2'!R82="","DNR",IF('G Q 1-2'!R82="-",+'G Q 1-2'!D82,+'G Q 1-2'!R82)) -> DNR | H82: - | R82: - | S82: 3 | T82: 71 | V82: - | W82: =IF(R82="","",COUNTIF(R12:R82,"-")) -> 69 | AD82: 0 | AE82: =IF(R82="","",IF(AD82="0","0",COUNTIF(AD12:AD81,AD82))) -> 0 | AG82: 0 | AI82: 0 | AK82: 0 | AM82: =COUNTIF(AS12:AS82,"W") -> 0 | AN82: =IF(AR82="","",COUNTIF(AR12:AR82,"-")) -> 69 | AO82: 71 | AP82: 3 | AR82: -
A83: 72 | B83: =IF(REG!B82<>"",REG!B82,"") ->  | C83: =IF(REG!C82<>"",REG!G82,"") ->  | D83: =IF('G Q 1-2'!R83="","DNR",IF('G Q 1-2'!R83="-",+'G Q 1-2'!D83,+'G Q 1-2'!R83)) -> DNR | H83: - | R83: - | S83: 3 | T83: 72 | V83: - | W83: =IF(R83="","",COUNTIF(R12:R83,"-")) -> 70 | AD83: 0 | AE83: =IF(R83="","",IF(AD83="0","0",COUNTIF(AD12:AD82,AD83))) -> 0 | AG83: 0 | AI83: 0 | AK83: 0 | AM83: =COUNTIF(AS12:AS83,"W") -> 0 | AN83: =IF(AR83="","",COUNTIF(AR12:AR83,"-")) -> 70 | AO83: 72 | AP83: 3 | AR83: -
A84: 73 | B84: =IF(REG!B83<>"",REG!B83,"") ->  | C84: =IF(REG!C83<>"",REG!G83,"") ->  | D84: =IF('G Q 1-2'!R84="","DNR",IF('G Q 1-2'!R84="-",+'G Q 1-2'!D84,+'G Q 1-2'!R84)) -> DNR | H84: - | R84: - | S84: 3 | T84: 73 | V84: - | W84: =IF(R84="","",COUNTIF(R12:R84,"-")) -> 71 | AD84: 0 | AE84: =IF(R84="","",IF(AD84="0","0",COUNTIF(AD12:AD83,AD84))) -> 0 | AG84: 0 | AI84: 0 | AK84: 0 | AM84: =COUNTIF(AS12:AS84,"W") -> 0 | AN84: =IF(AR84="","",COUNTIF(AR12:AR84,"-")) -> 71 | AO84: 73 | AP84: 3 | AR84: -
A85: 74 | B85: =IF(REG!B84<>"",REG!B84,"") ->  | C85: =IF(REG!C84<>"",REG!G84,"") ->  | D85: =IF('G Q 1-2'!R85="","DNR",IF('G Q 1-2'!R85="-",+'G Q 1-2'!D85,+'G Q 1-2'!R85)) -> DNR | H85: - | R85: - | S85: 3 | T85: 74 | V85: - | W85: =IF(R85="","",COUNTIF(R12:R85,"-")) -> 72 | AD85: 0 | AE85: =IF(R85="","",IF(AD85="0","0",COUNTIF(AD12:AD84,AD85))) -> 0 | AG85: 0 | AI85: 0 | AK85: 0 | AM85: =COUNTIF(AS12:AS85,"W") -> 0 | AN85: =IF(AR85="","",COUNTIF(AR12:AR85,"-")) -> 72 | AO85: 74 | AP85: 3 | AR85: -
A86: 75 | B86: =IF(REG!B85<>"",REG!B85,"") ->  | C86: =IF(REG!C85<>"",REG!G85,"") ->  | D86: =IF('G Q 1-2'!R86="","DNR",IF('G Q 1-2'!R86="-",+'G Q 1-2'!D86,+'G Q 1-2'!R86)) -> DNR | H86: - | R86: - | S86: 3 | T86: 75 | V86: - | W86: =IF(R86="","",COUNTIF(R12:R86,"-")) -> 73 | AD86: 0 | AE86: =IF(R86="","",IF(AD86="0","0",COUNTIF(AD12:AD85,AD86))) -> 0 | AG86: 0 | AI86: 0 | AK86: 0 | AM86: =COUNTIF(AS12:AS86,"W") -> 0 | AN86: =IF(AR86="","",COUNTIF(AR12:AR86,"-")) -> 73 | AO86: 75 | AP86: 3 | AR86: -
A87: 76 | B87: =IF(REG!B86<>"",REG!B86,"") ->  | C87: =IF(REG!C86<>"",REG!G86,"") ->  | D87: =IF('G Q 1-2'!R87="","DNR",IF('G Q 1-2'!R87="-",+'G Q 1-2'!D87,+'G Q 1-2'!R87)) -> DNR | H87: - | R87: - | S87: 3 | T87: 76 | V87: - | W87: =IF(R87="","",COUNTIF(R12:R87,"-")) -> 74 | AD87: 0 | AE87: =IF(R87="","",IF(AD87="0","0",COUNTIF(AD12:AD86,AD87))) -> 0 | AG87: 0 | AI87: 0 | AK87: 0 | AM87: =COUNTIF(AS12:AS87,"W") -> 0 | AN87: =IF(AR87="","",COUNTIF(AR12:AR87,"-")) -> 74 | AO87: 76 | AP87: 3 | AR87: -
A88: 77 | B88: =IF(REG!B87<>"",REG!B87,"") ->  | C88: =IF(REG!C87<>"",REG!G87,"") ->  | D88: =IF('G Q 1-2'!R88="","DNR",IF('G Q 1-2'!R88="-",+'G Q 1-2'!D88,+'G Q 1-2'!R88)) -> DNR | H88: - | R88: - | S88: 3 | T88: 77 | V88: - | W88: =IF(R88="","",COUNTIF(R12:R88,"-")) -> 75 | AD88: 0 | AE88: =IF(R88="","",IF(AD88="0","0",COUNTIF(AD12:AD87,AD88))) -> 0 | AG88: 0 | AI88: 0 | AK88: 0 | AM88: =COUNTIF(AS12:AS88,"W") -> 0 | AN88: =IF(AR88="","",COUNTIF(AR12:AR88,"-")) -> 75 | AO88: 77 | AP88: 3 | AR88: -
A89: 78 | B89: =IF(REG!B88<>"",REG!B88,"") ->  | C89: =IF(REG!C88<>"",REG!G88,"") ->  | D89: =IF('G Q 1-2'!R89="","DNR",IF('G Q 1-2'!R89="-",+'G Q 1-2'!D89,+'G Q 1-2'!R89)) -> DNR | H89: - | R89: - | S89: 3 | T89: 78 | V89: - | W89: =IF(R89="","",COUNTIF(R12:R89,"-")) -> 76 | AD89: 0 | AE89: =IF(R89="","",IF(AD89="0","0",COUNTIF(AD12:AD88,AD89))) -> 0 | AG89: 0 | AI89: 0 | AK89: 0 | AM89: =COUNTIF(AS12:AS89,"W") -> 0 | AN89: =IF(AR89="","",COUNTIF(AR12:AR89,"-")) -> 76 | AO89: 78 | AP89: 3 | AR89: -
A90: 79 | B90: =IF(REG!B89<>"",REG!B89,"") ->  | C90: =IF(REG!C89<>"",REG!G89,"") ->  | D90: =IF('G Q 1-2'!R90="","DNR",IF('G Q 1-2'!R90="-",+'G Q 1-2'!D90,+'G Q 1-2'!R90)) -> DNR | H90: - | R90: - | S90: 3 | T90: 79 | V90: - | W90: =IF(R90="","",COUNTIF(R12:R90,"-")) -> 77 | AD90: 0 | AE90: =IF(R90="","",IF(AD90="0","0",COUNTIF(AD12:AD89,AD90))) -> 0 | AG90: 0 | AI90: 0 | AK90: 0 | AM90: =COUNTIF(AS12:AS90,"W") -> 0 | AN90: =IF(AR90="","",COUNTIF(AR12:AR90,"-")) -> 77 | AO90: 79 | AP90: 3 | AR90: -
A91: 80 | B91: =IF(REG!B90<>"",REG!B90,"") ->  | C91: =IF(REG!C90<>"",REG!G90,"") ->  | D91: =IF('G Q 1-2'!R91="","DNR",IF('G Q 1-2'!R91="-",+'G Q 1-2'!D91,+'G Q 1-2'!R91)) -> DNR | H91: - | R91: - | S91: 3 | T91: 80 | V91: - | W91: =IF(R91="","",COUNTIF(R12:R91,"-")) -> 78 | AD91: 0 | AE91: =IF(R91="","",IF(AD91="0","0",COUNTIF(AD12:AD90,AD91))) -> 0 | AG91: 0 | AI91: 0 | AK91: 0 | AM91: =COUNTIF(AS12:AS91,"W") -> 0 | AN91: =IF(AR91="","",COUNTIF(AR12:AR91,"-")) -> 78 | AO91: 80 | AP91: 3 | AR91: -
A92: 81 | B92: =IF(REG!B91<>"",REG!B91,"") ->  | C92: =IF(REG!C91<>"",REG!G91,"") ->  | D92: =IF('G Q 1-2'!R92="","DNR",IF('G Q 1-2'!R92="-",+'G Q 1-2'!D92,+'G Q 1-2'!R92)) -> DNR | H92: - | R92: - | S92: 3 | T92: 81 | V92: - | W92: =IF(R92="","",COUNTIF(R12:R92,"-")) -> 79 | AD92: 0 | AE92: =IF(R92="","",IF(AD92="0","0",COUNTIF(AD12:AD91,AD92))) -> 0 | AG92: 0 | AI92: 0 | AK92: 0 | AM92: =COUNTIF(AS12:AS92,"W") -> 0 | AN92: =IF(AR92="","",COUNTIF(AR12:AR92,"-")) -> 79 | AO92: 81 | AP92: 3 | AR92: -
A93: 82 | B93: =IF(REG!B92<>"",REG!B92,"") ->  | C93: =IF(REG!C92<>"",REG!G92,"") ->  | D93: =IF('G Q 1-2'!R93="","DNR",IF('G Q 1-2'!R93="-",+'G Q 1-2'!D93,+'G Q 1-2'!R93)) -> DNR | H93: - | R93: - | S93: 3 | T93: 82 | V93: - | W93: =IF(R93="","",COUNTIF(R12:R93,"-")) -> 80 | AD93: 0 | AE93: =IF(R93="","",IF(AD93="0","0",COUNTIF(AD12:AD92,AD93))) -> 0 | AG93: 0 | AI93: 0 | AK93: 0 | AM93: =COUNTIF(AS12:AS93,"W") -> 0 | AN93: =IF(AR93="","",COUNTIF(AR12:AR93,"-")) -> 80 | AO93: 82 | AP93: 3 | AR93: -
A94: 83 | B94: =IF(REG!B93<>"",REG!B93,"") ->  | C94: =IF(REG!C93<>"",REG!G93,"") ->  | D94: =IF('G Q 1-2'!R94="","DNR",IF('G Q 1-2'!R94="-",+'G Q 1-2'!D94,+'G Q 1-2'!R94)) -> DNR | H94: - | R94: - | S94: 3 | T94: 83 | V94: - | W94: =IF(R94="","",COUNTIF(R12:R94,"-")) -> 81 | AD94: 0 | AE94: =IF(R94="","",IF(AD94="0","0",COUNTIF(AD12:AD93,AD94))) -> 0 | AG94: 0 | AI94: 0 | AK94: 0 | AM94: =COUNTIF(AS12:AS94,"W") -> 0 | AN94: =IF(AR94="","",COUNTIF(AR12:AR94,"-")) -> 81 | AO94: 83 | AP94: 3 | AR94: -
A95: 84 | B95: =IF(REG!B94<>"",REG!B94,"") ->  | C95: =IF(REG!C94<>"",REG!G94,"") ->  | D95: =IF('G Q 1-2'!R95="","DNR",IF('G Q 1-2'!R95="-",+'G Q 1-2'!D95,+'G Q 1-2'!R95)) -> DNR | H95: - | R95: - | S95: 3 | T95: 84 | V95: - | W95: =IF(R95="","",COUNTIF(R12:R95,"-")) -> 82 | AD95: 0 | AE95: =IF(R95="","",IF(AD95="0","0",COUNTIF(AD12:AD94,AD95))) -> 0 | AG95: 0 | AI95: 0 | AK95: 0 | AM95: =COUNTIF(AS12:AS95,"W") -> 0 | AN95: =IF(AR95="","",COUNTIF(AR12:AR95,"-")) -> 82 | AO95: 84 | AP95: 3 | AR95: -
A96: 85 | B96: =IF(REG!B95<>"",REG!B95,"") ->  | C96: =IF(REG!C95<>"",REG!G95,"") ->  | D96: =IF('G Q 1-2'!R96="","DNR",IF('G Q 1-2'!R96="-",+'G Q 1-2'!D96,+'G Q 1-2'!R96)) -> DNR | H96: - | R96: - | S96: 3 | T96: 85 | V96: - | W96: =IF(R96="","",COUNTIF(R12:R96,"-")) -> 83 | AD96: 0 | AE96: =IF(R96="","",IF(AD96="0","0",COUNTIF(AD12:AD95,AD96))) -> 0 | AG96: 0 | AI96: 0 | AK96: 0 | AM96: =COUNTIF(AS12:AS96,"W") -> 0 | AN96: =IF(AR96="","",COUNTIF(AR12:AR96,"-")) -> 83 | AO96: 85 | AP96: 3 | AR96: -
A97: 86 | B97: =IF(REG!B96<>"",REG!B96,"") ->  | C97: =IF(REG!C96<>"",REG!G96,"") ->  | D97: =IF('G Q 1-2'!R97="","DNR",IF('G Q 1-2'!R97="-",+'G Q 1-2'!D97,+'G Q 1-2'!R97)) -> DNR | H97: - | R97: - | S97: 3 | T97: 86 | V97: - | W97: =IF(R97="","",COUNTIF(R12:R97,"-")) -> 84 | AD97: 0 | AE97: =IF(R97="","",IF(AD97="0","0",COUNTIF(AD12:AD96,AD97))) -> 0 | AG97: 0 | AI97: 0 | AK97: 0 | AM97: =COUNTIF(AS12:AS97,"W") -> 0 | AN97: =IF(AR97="","",COUNTIF(AR12:AR97,"-")) -> 84 | AO97: 86 | AP97: 3 | AR97: -
A98: 87 | B98: =IF(REG!B97<>"",REG!B97,"") ->  | C98: =IF(REG!C97<>"",REG!G97,"") ->  | D98: =IF('G Q 1-2'!R98="","DNR",IF('G Q 1-2'!R98="-",+'G Q 1-2'!D98,+'G Q 1-2'!R98)) -> DNR | H98: - | R98: - | S98: 3 | T98: 87 | V98: - | W98: =IF(R98="","",COUNTIF(R12:R98,"-")) -> 85 | AD98: 0 | AE98: =IF(R98="","",IF(AD98="0","0",COUNTIF(AD12:AD97,AD98))) -> 0 | AG98: 0 | AI98: 0 | AK98: 0 | AM98: =COUNTIF(AS12:AS98,"W") -> 0 | AN98: =IF(AR98="","",COUNTIF(AR12:AR98,"-")) -> 85 | AO98: 87 | AP98: 3 | AR98: -
A99: 88 | B99: =IF(REG!B98<>"",REG!B98,"") ->  | C99: =IF(REG!C98<>"",REG!G98,"") ->  | D99: =IF('G Q 1-2'!R99="","DNR",IF('G Q 1-2'!R99="-",+'G Q 1-2'!D99,+'G Q 1-2'!R99)) -> DNR | H99: - | R99: - | S99: 3 | T99: 88 | V99: - | W99: =IF(R99="","",COUNTIF(R12:R99,"-")) -> 86 | AD99: 0 | AE99: =IF(R99="","",IF(AD99="0","0",COUNTIF(AD12:AD98,AD99))) -> 0 | AG99: 0 | AI99: 0 | AK99: 0 | AM99: =COUNTIF(AS12:AS99,"W") -> 0 | AN99: =IF(AR99="","",COUNTIF(AR12:AR99,"-")) -> 86 | AO99: 88 | AP99: 3 | AR99: -
A100: 89 | B100: =IF(REG!B99<>"",REG!B99,"") ->  | C100: =IF(REG!C99<>"",REG!G99,"") ->  | D100: =IF('G Q 1-2'!R100="","DNR",IF('G Q 1-2'!R100="-",+'G Q 1-2'!D100,+'G Q 1-2'!R100)) -> DNR | H100: - | R100: - | S100: 3 | T100: 89 | V100: - | W100: =IF(R100="","",COUNTIF(R12:R100,"-")) -> 87 | AD100: 0 | AE100: =IF(R100="","",IF(AD100="0","0",COUNTIF(AD12:AD99,AD100))) -> 0 | AG100: 0 | AI100: 0 | AK100: 0 | AM100: =COUNTIF(AS12:AS100,"W") -> 0 | AN100: =IF(AR100="","",COUNTIF(AR12:AR100,"-")) -> 87 | AO100: 89 | AP100: 3 | AR100: -
A101: 90 | B101: =IF(REG!B100<>"",REG!B100,"") ->  | C101: =IF(REG!C100<>"",REG!G100,"") ->  | D101: =IF('G Q 1-2'!R101="","DNR",IF('G Q 1-2'!R101="-",+'G Q 1-2'!D101,+'G Q 1-2'!R101)) -> DNR | H101: - | R101: - | S101: 3 | T101: 90 | V101: - | W101: =IF(R101="","",COUNTIF(R12:R101,"-")) -> 88 | AD101: 0 | AE101: =IF(R101="","",IF(AD101="0","0",COUNTIF(AD12:AD100,AD101))) -> 0 | AG101: 0 | AI101: 0 | AK101: 0 | AM101: =COUNTIF(AS12:AS101,"W") -> 0 | AN101: =IF(AR101="","",COUNTIF(AR12:AR101,"-")) -> 88 | AO101: 90 | AP101: 3 | AR101: -
A102: 91 | B102: =IF(REG!B101<>"",REG!B101,"") ->  | C102: =IF(REG!C101<>"",REG!G101,"") ->  | D102: =IF('G Q 1-2'!R102="","DNR",IF('G Q 1-2'!R102="-",+'G Q 1-2'!D102,+'G Q 1-2'!R102)) -> DNR | H102: - | R102: - | S102: 3 | T102: 91 | V102: - | W102: =IF(R102="","",COUNTIF(R12:R102,"-")) -> 89 | AD102: 0 | AE102: =IF(R102="","",IF(AD102="0","0",COUNTIF(AD12:AD101,AD102))) -> 0 | AG102: 0 | AI102: 0 | AK102: 0 | AM102: =COUNTIF(AS12:AS102,"W") -> 0 | AN102: =IF(AR102="","",COUNTIF(AR12:AR102,"-")) -> 89 | AO102: 91 | AP102: 3 | AR102: -
A103: 92 | B103: =IF(REG!B102<>"",REG!B102,"") ->  | C103: =IF(REG!C102<>"",REG!G102,"") ->  | D103: =IF('G Q 1-2'!R103="","DNR",IF('G Q 1-2'!R103="-",+'G Q 1-2'!D103,+'G Q 1-2'!R103)) -> DNR | H103: - | R103: - | S103: 3 | T103: 92 | V103: - | W103: =IF(R103="","",COUNTIF(R12:R103,"-")) -> 90 | AD103: 0 | AE103: =IF(R103="","",IF(AD103="0","0",COUNTIF(AD12:AD102,AD103))) -> 0 | AG103: 0 | AI103: 0 | AK103: 0 | AM103: =COUNTIF(AS12:AS103,"W") -> 0 | AN103: =IF(AR103="","",COUNTIF(AR12:AR103,"-")) -> 90 | AO103: 92 | AP103: 3 | AR103: -
A104: 93 | B104: =IF(REG!B103<>"",REG!B103,"") ->  | C104: =IF(REG!C103<>"",REG!G103,"") ->  | D104: =IF('G Q 1-2'!R104="","DNR",IF('G Q 1-2'!R104="-",+'G Q 1-2'!D104,+'G Q 1-2'!R104)) -> DNR | H104: - | R104: - | S104: 3 | T104: 93 | V104: - | W104: =IF(R104="","",COUNTIF(R12:R104,"-")) -> 91 | AD104: 0 | AE104: =IF(R104="","",IF(AD104="0","0",COUNTIF(AD12:AD103,AD104))) -> 0 | AG104: 0 | AI104: 0 | AK104: 0 | AM104: =COUNTIF(AS12:AS104,"W") -> 0 | AN104: =IF(AR104="","",COUNTIF(AR12:AR104,"-")) -> 91 | AO104: 93 | AP104: 3 | AR104: -
A105: 94 | B105: =IF(REG!B104<>"",REG!B104,"") ->  | C105: =IF(REG!C104<>"",REG!G104,"") ->  | D105: =IF('G Q 1-2'!R105="","DNR",IF('G Q 1-2'!R105="-",+'G Q 1-2'!D105,+'G Q 1-2'!R105)) -> DNR | H105: - | R105: - | S105: 3 | T105: 94 | V105: - | W105: =IF(R105="","",COUNTIF(R12:R105,"-")) -> 92 | AD105: 0 | AE105: =IF(R105="","",IF(AD105="0","0",COUNTIF(AD12:AD104,AD105))) -> 0 | AG105: 0 | AI105: 0 | AK105: 0 | AM105: =COUNTIF(AS12:AS105,"W") -> 0 | AN105: =IF(AR105="","",COUNTIF(AR12:AR105,"-")) -> 92 | AO105: 94 | AP105: 3 | AR105: -
A106: 95 | B106: =IF(REG!B105<>"",REG!B105,"") ->  | C106: =IF(REG!C105<>"",REG!G105,"") ->  | D106: =IF('G Q 1-2'!R106="","DNR",IF('G Q 1-2'!R106="-",+'G Q 1-2'!D106,+'G Q 1-2'!R106)) -> DNR | H106: - | R106: - | S106: 3 | T106: 95 | V106: - | W106: =IF(R106="","",COUNTIF(R12:R106,"-")) -> 93 | AD106: 0 | AE106: =IF(R106="","",IF(AD106="0","0",COUNTIF(AD12:AD105,AD106))) -> 0 | AG106: 0 | AI106: 0 | AK106: 0 | AM106: =COUNTIF(AS12:AS106,"W") -> 0 | AN106: =IF(AR106="","",COUNTIF(AR12:AR106,"-")) -> 93 | AO106: 95 | AP106: 3 | AR106: -
A107: 96 | B107: =IF(REG!B106<>"",REG!B106,"") ->  | C107: =IF(REG!C106<>"",REG!G106,"") ->  | D107: =IF('G Q 1-2'!R107="","DNR",IF('G Q 1-2'!R107="-",+'G Q 1-2'!D107,+'G Q 1-2'!R107)) -> DNR | H107: - | R107: - | S107: 3 | T107: 96 | V107: - | W107: =IF(R107="","",COUNTIF(R12:R107,"-")) -> 94 | AD107: 0 | AE107: =IF(R107="","",IF(AD107="0","0",COUNTIF(AD12:AD106,AD107))) -> 0 | AG107: 0 | AI107: 0 | AK107: 0 | AM107: =COUNTIF(AS12:AS107,"W") -> 0 | AN107: =IF(AR107="","",COUNTIF(AR12:AR107,"-")) -> 94 | AO107: 96 | AP107: 3 | AR107: -
A108: 97 | B108: =IF(REG!B107<>"",REG!B107,"") ->  | C108: =IF(REG!C107<>"",REG!G107,"") ->  | D108: =IF('G Q 1-2'!R108="","DNR",IF('G Q 1-2'!R108="-",+'G Q 1-2'!D108,+'G Q 1-2'!R108)) -> DNR | H108: - | R108: - | S108: 3 | T108: 97 | V108: - | W108: =IF(R108="","",COUNTIF(R12:R108,"-")) -> 95 | AD108: 0 | AE108: =IF(R108="","",IF(AD108="0","0",COUNTIF(AD12:AD107,AD108))) -> 0 | AG108: 0 | AI108: 0 | AK108: 0 | AM108: =COUNTIF(AS12:AS108,"W") -> 0 | AN108: =IF(AR108="","",COUNTIF(AR12:AR108,"-")) -> 95 | AO108: 97 | AP108: 3 | AR108: -
A109: 98 | B109: =IF(REG!B108<>"",REG!B108,"") ->  | C109: =IF(REG!C108<>"",REG!G108,"") ->  | D109: =IF('G Q 1-2'!R109="","DNR",IF('G Q 1-2'!R109="-",+'G Q 1-2'!D109,+'G Q 1-2'!R109)) -> DNR | H109: - | R109: - | S109: 3 | T109: 98 | V109: - | W109: =IF(R109="","",COUNTIF(R12:R109,"-")) -> 96 | AD109: 0 | AE109: =IF(R109="","",IF(AD109="0","0",COUNTIF(AD12:AD108,AD109))) -> 0 | AG109: 0 | AI109: 0 | AK109: 0 | AM109: =COUNTIF(AS12:AS109,"W") -> 0 | AN109: =IF(AR109="","",COUNTIF(AR12:AR109,"-")) -> 96 | AO109: 98 | AP109: 3 | AR109: -
A110: 99 | B110: =IF(REG!B109<>"",REG!B109,"") ->  | C110: =IF(REG!C109<>"",REG!G109,"") ->  | D110: =IF('G Q 1-2'!R110="","DNR",IF('G Q 1-2'!R110="-",+'G Q 1-2'!D110,+'G Q 1-2'!R110)) -> DNR | H110: - | R110: - | S110: 3 | T110: 99 | V110: - | W110: =IF(R110="","",COUNTIF(R12:R110,"-")) -> 97 | AD110: 0 | AE110: =IF(R110="","",IF(AD110="0","0",COUNTIF(AD12:AD109,AD110))) -> 0 | AG110: 0 | AI110: 0 | AK110: 0 | AM110: =COUNTIF(AS12:AS110,"W") -> 0 | AN110: =IF(AR110="","",COUNTIF(AR12:AR110,"-")) -> 97 | AO110: 99 | AP110: 3 | AR110: -
A111: 100 | B111: =IF(REG!B110<>"",REG!B110,"") ->  | C111: =IF(REG!C110<>"",REG!G110,"") ->  | D111: =IF('G Q 1-2'!R111="","DNR",IF('G Q 1-2'!R111="-",+'G Q 1-2'!D111,+'G Q 1-2'!R111)) -> DNR | H111: - | R111: - | S111: 3 | T111: 100 | V111: - | W111: =IF(R111="","",COUNTIF(R12:R111,"-")) -> 98 | AD111: 0 | AE111: =IF(R111="","",IF(AD111="0","0",COUNTIF(AD12:AD110,AD111))) -> 0 | AG111: 0 | AI111: 0 | AK111: 0 | AM111: =COUNTIF(AS12:AS111,"W") -> 0 | AN111: =IF(AR111="","",COUNTIF(AR12:AR111,"-")) -> 98 | AO111: 100 | AP111: 3 | AR111: -

Sheet G Q 4
D1: =CONTEST!B4 -> Skate n Roll Polička 2022
D2: =CONTEST!B6 -> 13.8. - 14.8.2022
D3: =CONCATENATE(CONTEST!B8," / ",CONTEST!B16," / ",CONTEST!B13) -> GIANT SLALOM / Qualifications / TEEN 12-14
A5: =+'G Q 1-2'!A5 -> 0.2 | B5: secs penalty per hit cone
A6: =+'G Q 1-2'!A6 -> 7 | B6: maximum hit cones before DQ
A7: =+'G Q 1-2'!A8 -> 3.72 | B7: false start multiplication factor | D7: Under "Raw Time," enter "DQ" or"DNF" for | AP7: Advance Racers who DQ | AS7: Y
A8: =IF(ISERROR(0.1*AR12)=TRUE,"",ROUND(0.1*AR12,2)) -> 3.72 | B8: secs head-to-head DQ/DNR penalty | D8: "Disqualified" and "DNR" for "Did Not Race." | AP8: all Qualifying Runs? (Y/N)
A9: =+'G Q 1-2'!A9 -> 3.72 | B9: secs max head-to-head victory margin
B10: START Number | C10: Racer Name | D10: Run 1-3 | K10: Run 4 | Q10: Qual Rank (w/out DQs) | R10: Best Time | S10: Qualifying Position | T10: Qual Rank (w/DQs sequenced) | U10: Racer No. & Name | V10: Best Time | W10: Double DQ Place Factor | X10: No. of Ties per Best Time | Y10: Tied-at Time | Z10: Tied-at Time Rank | AA10: Run 1 Time w/DQ Adjust | AB10: Run 2 Time w/DQ Adjust | AC10: Total Time w/DQ Adjust | AD10: Total Time Rank | AE10: Total Tie Place Factor | AF10: Tie 1 Total Time Rank | AG10: Tie 1 Place Factor | AH10: Tie 2 Total Time Rank | AI10: Tie 2 Place Factor | AJ10: Tie 3 Total Time Rank | AK10: Tie 3 Place Factor | AL10: Placed Racer No. & Name | AM10: Withdrawal Place Factor | AN10: Double DQ Place Factor 2 | AO10: Final Spot - Withdrawals | AP10: Qualifying Position | AQ10: =CONCATENATE(+CONTEST!B4," ",+CONTEST!B8," ","RUN 1-4"," "," Racer No. & Name") -> Skate n Roll Polička 2022 GIANT SLALOM RUN 1-4 Racer No. & Name | AR10: Best Time | AS10: Withdraw (W)
D11: BEST of 1-3 | E11: Cones | F11: Reaction Time | G11: False Start | H11: Final Time | I11: Run Rank | K11: Raw Time | L11: Cones | M11: Reaction Time | N11: False Start | O11: Final Time | P11: Run Rank
A12: 1 | B12: =IF(REG!B11<>"",REG!B11,"") ->  | C12: =IF(REG!C11<>"",REG!G11,"") -> Voves Jindřich [CZE] | D12: =IF('G Q 3'!R12="","DNR",IF('G Q 3'!R12="-",+'G Q 3'!D12,+'G Q 3'!R12)) -> 37.204 | H12: =IF(LEFT(D12:D111,1)="D","-",IF(E12:E111>A6,"-",IF(D12:D111>0,D12:D111+E12:E111*A5+G12:G111*A7,""))) -> 37.204 | I12: =IF(H12:H111="","",IF(H12:H111="-","",RANK(H12:H111,H12:H111,1))) -> 1 | O12: =IF(LEFT(K12:K111,1)="D","-",IF(L12:L111>A6,"-",IF(K12:K111>0,K12:K111+L12:L111*A5+N12:N111*A7,""))) ->  | P12: =IF(O12:O111="","",IF(O12:O111="-","",RANK(O12:O111,O12:O111,1))) ->  | Q12: =IF(R12:R111="","",IF(R12:R111="-","",RANK(R12:R111,R12:R111,1))) -> 1 | R12: =IF(AND(ISBLANK(D12),ISBLANK(K12)),"",IF(AND(H12="-",O12="-"),"-",IF(AND(H12="-",ISBLANK(K12)),"-",MIN(H12,O12)))) -> 37.204 | S12: =IF(R12:R111="","",VLOOKUP(U12:U111,AL12:AP111,5,FALSE)) -> 1 | T12: =IF(R12:R111="","",IF(R12:R111="-",COUNT(Q12:Q111)+W12:W111,Q12:Q111+AE12:AE111+AG12:AG111+AI12:AI111+AK12:AK111)) -> 1 | U12: =IF(B12:B111 ="","",B12:B111 & " ")&C12:C111 -> Voves Jindřich [CZE] | V12: =R12:R111 -> 37.204 | W12: =IF(R12="","",COUNTIF(R12:R12,"-")) -> 0 | X12: =IF(Q12:Q111="","",COUNTIF(Q12:Q111,Q12:Q111)-1) -> 0 | Y12: =IF(R12:R111="-","",IF(X12:X111=0,"",R12:R111)) ->  | Z12: =IF(Y12:Y111="","",RANK(Y12:Y111,Y12:Y111,1)) ->  | AA12: =IF(X12:X111="","",IF(X12:X111=0,"",IF(LEFT(H12:H111,1)="-","199",H12:H111))) ->  | AB12: =IF(X12:X111="","",IF(X12:X111=0,"",IF(LEFT(O12:O111,1)="-","199",O12:O111))) ->  | AC12: =IF(ISERROR(AA12:AA111+AB12:AB111)=TRUE,AA12:AA111,AA12:AA111+AB12:AB111) ->  | AD12: =IF(R12:R111="","",IF(X12:X111=0,"0",IF(ISERROR(RANK(AC12:AC111,AC12:AC111,1))=TRUE,"0",RANK(AC12:AC111,AC12:AC111,1)))) -> 0 | AE12: 0 | AF12: =IF(ISERROR(X12:X111)=TRUE,"",IF(Z12:Z111=1,AD12:AD111,"")) ->  | AG12: =IF(R12:R111="","",IF(AF12:AF111="","0",RANK(AF12:AF111,AF12:AF111,1)-1)) -> 0 | AH12: =IF(ISERROR(X12:X111)=TRUE,"",IF(Z12:Z111=COUNT(AF12:AF111)+1,AD12:AD111,"")) ->  | AI12: =IF(R12:R111="","",IF(AH12:AH111="","0",RANK(AH12:AH111,AH12:AH111,1)-1)) -> 0 | AJ12: =IF(ISERROR(X12:X111)=TRUE,"",IF(Z12:Z111=COUNT(AF12:AF111)+COUNT(AH12:AH111)+1,AD12:AD111,"")) ->  | AK12: =IF(R12:R111="","",IF(AJ12:AJ111="","0",RANK(AJ12:AJ111,AJ12:AJ111,1)-1)) -> 0 | AL12: =AQ12:AQ111 -> Voves Jindřich [CZE] | AM12: =COUNTIF(AS12:AS12,"W") -> 0 | AN12: =IF(AR12="","",COUNTIF(AR12:AR12,"-")) -> 0 | AO12: =IF(AQ12:AQ111="BYE","",IF(AS12:AS111="W","",IF(AS7="N",IF(AP12:AP111<=COUNT(Q12:Q111),AP12:AP111-AM12:AM111,""),IF(AP12:AP111<=COUNT(Q12:Q111),AP12:AP111-AM12:AM111,AP12:AP111-AM12:AM111+AN12:AN111-1)))) -> 1 | AP12: =IF(R12:R111="","",IF(AP11:AP110+1<=COUNT(Q12:Q111),AP11:AP110+1,COUNT(Q12:Q111)+1)) -> 1 | AQ12: =IF(R12:R111="","BYE",IF(ISERROR(VLOOKUP(A12:A111,T12:U111,2,FALSE))=TRUE,"",VLOOKUP(A12:A111,T12:U111,2,FALSE))) -> Voves Jindřich [CZE] | AR12: =IF(C12:C111="BYE", "",IF(A12:A111="","",IF(ISERROR(VLOOKUP(A12:A111,T12:V111,3,FALSE))=TRUE,"",VLOOKUP(A12:A111,T12:V111,3,FALSE)))) -> 37.204
A13: 2 | B13: =IF(REG!B12<>"",REG!B12,"") ->  | C13: =IF(REG!C12<>"",REG!G12,"") -> Rezková Anna [CZE] | D13: =IF('G Q 3'!R13="","DNR",IF('G Q 3'!R13="-",+'G Q 3'!D13,+'G Q 3'!R13)) -> 38.09 | H13: 38.09 | I13: 2 | Q13: 2 | R13: 38.09 | S13: 2 | T13: 2 | U13: Rezková Anna [CZE] | V13: 38.09 | W13: =IF(R13="","",COUNTIF(R12:R13,"-")) -> 0 | X13: 0 | AD13: 0 | AE13: =IF(R13="","",IF(AD13="0","0",COUNTIF(AD12:AD12,AD13))) -> 0 | AG13: 0 | AI13: 0 | AK13: 0 | AL13: Rezková Anna [CZE] | AM13: =COUNTIF(AS12:AS13,"W") -> 0 | AN13: =IF(AR13="","",COUNTIF(AR12:AR13,"-")) -> 0 | AO13: 2 | AP13: 2 | AQ13: Rezková Anna [CZE] | AR13: 38.09
A14: 3 | B14: =IF(REG!B13<>"",REG!B13,"") ->  | C14: =IF(REG!C13<>"",REG!G13,"") ->  | D14: =IF('G Q 3'!R14="","DNR",IF('G Q 3'!R14="-",+'G Q 3'!D14,+'G Q 3'!R14)) -> DNR | H14: - | R14: - | S14: 3 | T14: 3 | V14: - | W14: =IF(R14="","",COUNTIF(R12:R14,"-")) -> 1 | AD14: 0 | AE14: =IF(R14="","",IF(AD14="0","0",COUNTIF(AD12:AD13,AD14))) -> 0 | AG14: 0 | AI14: 0 | AK14: 0 | AM14: =COUNTIF(AS12:AS14,"W") -> 0 | AN14: =IF(AR14="","",COUNTIF(AR12:AR14,"-")) -> 1 | AO14: 3 | AP14: 3 | AR14: -
A15: 4 | B15: =IF(REG!B14<>"",REG!B14,"") ->  | C15: =IF(REG!C14<>"",REG!G14,"") ->  | D15: =IF('G Q 3'!R15="","DNR",IF('G Q 3'!R15="-",+'G Q 3'!D15,+'G Q 3'!R15)) -> DNR | H15: - | R15: - | S15: 3 | T15: 4 | V15: - | W15: =IF(R15="","",COUNTIF(R12:R15,"-")) -> 2 | AD15: 0 | AE15: =IF(R15="","",IF(AD15="0","0",COUNTIF(AD12:AD14,AD15))) -> 0 | AG15: 0 | AI15: 0 | AK15: 0 | AM15: =COUNTIF(AS12:AS15,"W") -> 0 | AN15: =IF(AR15="","",COUNTIF(AR12:AR15,"-")) -> 2 | AO15: 4 | AP15: 3 | AR15: -
A16: 5 | B16: =IF(REG!B15<>"",REG!B15,"") ->  | C16: =IF(REG!C15<>"",REG!G15,"") ->  | D16: =IF('G Q 3'!R16="","DNR",IF('G Q 3'!R16="-",+'G Q 3'!D16,+'G Q 3'!R16)) -> DNR | H16: - | R16: - | S16: 3 | T16: 5 | V16: - | W16: =IF(R16="","",COUNTIF(R12:R16,"-")) -> 3 | AD16: 0 | AE16: =IF(R16="","",IF(AD16="0","0",COUNTIF(AD12:AD15,AD16))) -> 0 | AG16: 0 | AI16: 0 | AK16: 0 | AM16: =COUNTIF(AS12:AS16,"W") -> 0 | AN16: =IF(AR16="","",COUNTIF(AR12:AR16,"-")) -> 3 | AO16: 5 | AP16: 3 | AR16: -
A17: 6 | B17: =IF(REG!B16<>"",REG!B16,"") ->  | C17: =IF(REG!C16<>"",REG!G16,"") ->  | D17: =IF('G Q 3'!R17="","DNR",IF('G Q 3'!R17="-",+'G Q 3'!D17,+'G Q 3'!R17)) -> DNR | H17: - | R17: - | S17: 3 | T17: 6 | V17: - | W17: =IF(R17="","",COUNTIF(R12:R17,"-")) -> 4 | AD17: 0 | AE17: =IF(R17="","",IF(AD17="0","0",COUNTIF(AD12:AD16,AD17))) -> 0 | AG17: 0 | AI17: 0 | AK17: 0 | AM17: =COUNTIF(AS12:AS17,"W") -> 0 | AN17: =IF(AR17="","",COUNTIF(AR12:AR17,"-")) -> 4 | AO17: 6 | AP17: 3 | AR17: -
A18: 7 | B18: =IF(REG!B17<>"",REG!B17,"") ->  | C18: =IF(REG!C17<>"",REG!G17,"") ->  | D18: =IF('G Q 3'!R18="","DNR",IF('G Q 3'!R18="-",+'G Q 3'!D18,+'G Q 3'!R18)) -> DNR | H18: - | R18: - | S18: 3 | T18: 7 | V18: - | W18: =IF(R18="","",COUNTIF(R12:R18,"-")) -> 5 | AD18: 0 | AE18: =IF(R18="","",IF(R18="","",IF(AD18="0","0",COUNTIF(AD12:AD17,AD18)))) -> 0 | AG18: 0 | AI18: 0 | AK18: 0 | AM18: =COUNTIF(AS12:AS18,"W") -> 0 | AN18: =IF(AR18="","",COUNTIF(AR12:AR18,"-")) -> 5 | AO18: 7 | AP18: 3 | AR18: -
A19: 8 | B19: =IF(REG!B18<>"",REG!B18,"") ->  | C19: =IF(REG!C18<>"",REG!G18,"") ->  | D19: =IF('G Q 3'!R19="","DNR",IF('G Q 3'!R19="-",+'G Q 3'!D19,+'G Q 3'!R19)) -> DNR | H19: - | R19: - | S19: 3 | T19: 8 | V19: - | W19: =IF(R19="","",COUNTIF(R12:R19,"-")) -> 6 | AD19: 0 | AE19: =IF(R19="","",IF(R19="","",IF(AD19="0","0",COUNTIF(AD12:AD18,AD19)))) -> 0 | AG19: 0 | AI19: 0 | AK19: 0 | AM19: =COUNTIF(AS12:AS19,"W") -> 0 | AN19: =IF(AR19="","",COUNTIF(AR12:AR19,"-")) -> 6 | AO19: 8 | AP19: 3 | AR19: -
A20: 9 | B20: =IF(REG!B19<>"",REG!B19,"") ->  | C20: =IF(REG!C19<>"",REG!G19,"") ->  | D20: =IF('G Q 3'!R20="","DNR",IF('G Q 3'!R20="-",+'G Q 3'!D20,+'G Q 3'!R20)) -> DNR | H20: - | R20: - | S20: 3 | T20: 9 | V20: - | W20: =IF(R20="","",COUNTIF(R12:R20,"-")) -> 7 | AD20: 0 | AE20: =IF(R20="","",IF(R20="","",IF(AD20="0","0",COUNTIF(AD12:AD19,AD20)))) -> 0 | AG20: 0 | AI20: 0 | AK20: 0 | AM20: =COUNTIF(AS12:AS20,"W") -> 0 | AN20: =IF(AR20="","",COUNTIF(AR12:AR20,"-")) -> 7 | AO20: 9 | AP20: 3 | AR20: -
A21: 10 | B21: =IF(REG!B20<>"",REG!B20,"") ->  | C21: =IF(REG!C20<>"",REG!G20,"") ->  | D21: =IF('G Q 3'!R21="","DNR",IF('G Q 3'!R21="-",+'G Q 3'!D21,+'G Q 3'!R21)) -> DNR | H21: - | R21: - | S21: 3 | T21: 10 | V21: - | W21: =IF(R21="","",COUNTIF(R12:R21,"-")) -> 8 | AD21: 0 | AE21: =IF(R21="","",IF(AD21="0","0",COUNTIF(AD12:AD20,AD21))) -> 0 | AG21: 0 | AI21: 0 | AK21: 0 | AM21: =COUNTIF(AS12:AS21,"W") -> 0 | AN21: =IF(AR21="","",COUNTIF(AR12:AR21,"-")) -> 8 | AO21: 10 | AP21: 3 | AR21: -
A22: 11 | B22: =IF(REG!B21<>"",REG!B21,"") ->  | C22: =IF(REG!C21<>"",REG!G21,"") ->  | D22: =IF('G Q 3'!R22="","DNR",IF('G Q 3'!R22="-",+'G Q 3'!D22,+'G Q 3'!R22)) -> DNR | H22: - | R22: - | S22: 3 | T22: 11 | V22: - | W22: =IF(R22="","",COUNTIF(R12:R22,"-")) -> 9 | AD22: 0 | AE22: =IF(R22="","",IF(AD22="0","0",COUNTIF(AD1:AD21,AD22))) -> 0 | AG22: 0 | AI22: 0 | AK22: 0 | AM22: =COUNTIF(AS12:AS22,"W") -> 0 | AN22: =IF(AR22="","",COUNTIF(AR12:AR22,"-")) -> 9 | AO22: 11 | AP22: 3 | AR22: -
A23: 12 | B23: =IF(REG!B22<>"",REG!B22,"") ->  | C23: =IF(REG!C22<>"",REG!G22,"") ->  | D23: =IF('G Q 3'!R23="","DNR",IF('G Q 3'!R23="-",+'G Q 3'!D23,+'G Q 3'!R23)) -> DNR | H23: - | R23: - | S23: 3 | T23: 12 | V23: - | W23: =IF(R23="","",COUNTIF(R12:R23,"-")) -> 10 | AD23: 0 | AE23: =IF(R23="","",IF(AD23="0","0",COUNTIF(AD12:AD22,AD23))) -> 0 | AG23: 0 | AI23: 0 | AK23: 0 | AM23: =COUNTIF(AS12:AS23,"W") -> 0 | AN23: =IF(AR23="","",COUNTIF(AR12:AR23,"-")) -> 10 | AO23: 12 | AP23: 3 | AR23: -
A24: 13 | B24: =IF(REG!B23<>"",REG!B23,"") ->  | C24: =IF(REG!C23<>"",REG!G23,"") ->  | D24: =IF('G Q 3'!R24="","DNR",IF('G Q 3'!R24="-",+'G Q 3'!D24,+'G Q 3'!R24)) -> DNR | H24: - | R24: - | S24: 3 | T24: 13 | V24: - | W24: =IF(R24="","",COUNTIF(R12:R24,"-")) -> 11 | AD24: 0 | AE24: =IF(R24="","",IF(AD24="0","0",COUNTIF(AD12:AD23,AD24))) -> 0 | AG24: 0 | AI24: 0 | AK24: 0 | AM24: =COUNTIF(AS12:AS24,"W") -> 0 | AN24: =IF(AR24="","",COUNTIF(AR12:AR24,"-")) -> 11 | AO24: 13 | AP24: 3 | AR24: -
A25: 14 | B25: =IF(REG!B24<>"",REG!B24,"") ->  | C25: =IF(REG!C24<>"",REG!G24,"") ->  | D25: =IF('G Q 3'!R25="","DNR",IF('G Q 3'!R25="-",+'G Q 3'!D25,+'G Q 3'!R25)) -> DNR | H25: - | R25: - | S25: 3 | T25: 14 | V25: - | W25: =IF(R25="","",COUNTIF(R12:R25,"-")) -> 12 | AD25: 0 | AE25: =IF(R25="","",IF(AD25="0","0",COUNTIF(AD12:AD24,AD25))) -> 0 | AG25: 0 | AI25: 0 | AK25: 0 | AM25: =COUNTIF(AS12:AS25,"W") -> 0 | AN25: =IF(AR25="","",COUNTIF(AR12:AR25,"-")) -> 12 | AO25: 14 | AP25: 3 | AR25: -
A26: 15 | B26: =IF(REG!B25<>"",REG!B25,"") ->  | C26: =IF(REG!C25<>"",REG!G25,"") ->  | D26: =IF('G Q 3'!R26="","DNR",IF('G Q 3'!R26="-",+'G Q 3'!D26,+'G Q 3'!R26)) -> DNR | H26: - | R26: - | S26: 3 | T26: 15 | V26: - | W26: =IF(R26="","",COUNTIF(R12:R26,"-")) -> 13 | AD26: 0 | AE26: =IF(R26="","",IF(AD26="0","0",COUNTIF(AD12:AD25,AD26))) -> 0 | AG26: 0 | AI26: 0 | AK26: 0 | AM26: =COUNTIF(AS12:AS26,"W") -> 0 | AN26: =IF(AR26="","",COUNTIF(AR12:AR26,"-")) -> 13 | AO26: 15 | AP26: 3 | AR26: -
A27: 16 | B27: =IF(REG!B26<>"",REG!B26,"") ->  | C27: =IF(REG!C26<>"",REG!G26,"") ->  | D27: =IF('G Q 3'!R27="","DNR",IF('G Q 3'!R27="-",+'G Q 3'!D27,+'G Q 3'!R27)) -> DNR | H27: - | R27: - | S27: 3 | T27: 16 | V27: - | W27: =IF(R27="","",COUNTIF(R12:R27,"-")) -> 14 | AD27: 0 | AE27: =IF(R27="","",IF(AD27="0","0",COUNTIF(AD12:AD26,AD27))) -> 0 | AG27: 0 | AI27: 0 | AK27: 0 | AM27: =COUNTIF(AS12:AS27,"W") -> 0 | AN27: =IF(AR27="","",COUNTIF(AR12:AR27,"-")) -> 14 | AO27: 16 | AP27: 3 | AR27: -
A28: 17 | B28: =IF(REG!B27<>"",REG!B27,"") ->  | C28: =IF(REG!C27<>"",REG!G27,"") ->  | D28: =IF('G Q 3'!R28="","DNR",IF('G Q 3'!R28="-",+'G Q 3'!D28,+'G Q 3'!R28)) -> DNR | H28: - | R28: - | S28: 3 | T28: 17 | V28: - | W28: =IF(R28="","",COUNTIF(R12:R28,"-")) -> 15 | AD28: 0 | AE28: =IF(R28="","",IF(AD28="0","0",COUNTIF(AD12:AD27,AD28))) -> 0 | AG28: 0 | AI28: 0 | AK28: 0 | AM28: =COUNTIF(AS12:AS28,"W") -> 0 | AN28: =IF(AR28="","",COUNTIF(AR12:AR28,"-")) -> 15 | AO28: 17 | AP28: 3 | AR28: -
A29: 18 | B29: =IF(REG!B28<>"",REG!B28,"") ->  | C29: =IF(REG!C28<>"",REG!G28,"") ->  | D29: =IF('G Q 3'!R29="","DNR",IF('G Q 3'!R29="-",+'G Q 3'!D29,+'G Q 3'!R29)) -> DNR | H29: - | R29: - | S29: 3 | T29: 18 | V29: - | W29: =IF(R29="","",COUNTIF(R12:R29,"-")) -> 16 | AD29: 0 | AE29: =IF(R29="","",IF(AD29="0","0",COUNTIF(AD12:AD28,AD29))) -> 0 | AG29: 0 | AI29: 0 | AK29: 0 | AM29: =COUNTIF(AS12:AS29,"W") -> 0 | AN29: =IF(AR29="","",COUNTIF(AR12:AR29,"-")) -> 16 | AO29: 18 | AP29: 3 | AR29: -
A30: 19 | B30: =IF(REG!B29<>"",REG!B29,"") ->  | C30: =IF(REG!C29<>"",REG!G29,"") ->  | D30: =IF('G Q 3'!R30="","DNR",IF('G Q 3'!R30="-",+'G Q 3'!D30,+'G Q 3'!R30)) -> DNR | H30: - | R30: - | S30: 3 | T30: 19 | V30: - | W30: =IF(R30="","",COUNTIF(R12:R30,"-")) -> 17 | AD30: 0 | AE30: =IF(R30="","",IF(AD30="0","0",COUNTIF(AD12:AD29,AD30))) -> 0 | AG30: 0 | AI30: 0 | AK30: 0 | AM30: =COUNTIF(AS12:AS30,"W") -> 0 | AN30: =IF(AR30="","",COUNTIF(AR12:AR30,"-")) -> 17 | AO30: 19 | AP30: 3 | AR30: -
A31: 20 | B31: =IF(REG!B30<>"",REG!B30,"") ->  | C31: =IF(REG!C30<>"",REG!G30,"") ->  | D31: =IF('G Q 3'!R31="","DNR",IF('G Q 3'!R31="-",+'G Q 3'!D31,+'G Q 3'!R31)) -> DNR | H31: - | R31: - | S31: 3 | T31: 20 | V31: - | W31: =IF(R31="","",COUNTIF(R12:R31,"-")) -> 18 | AD31: 0 | AE31: =IF(R31="","",IF(AD31="0","0",COUNTIF(AD12:AD30,AD31))) -> 0 | AG31: 0 | AI31: 0 | AK31: 0 | AM31: =COUNTIF(AS12:AS31,"W") -> 0 | AN31: =IF(AR31="","",COUNTIF(AR12:AR31,"-")) -> 18 | AO31: 20 | AP31: 3 | AR31: -
A32: 21 | B32: =IF(REG!B31<>"",REG!B31,"") ->  | C32: =IF(REG!C31<>"",REG!G31,"") ->  | D32: =IF('G Q 3'!R32="","DNR",IF('G Q 3'!R32="-",+'G Q 3'!D32,+'G Q 3'!R32)) -> DNR | H32: - | R32: - | S32: 3 | T32: 21 | V32: - | W32: =IF(R32="","",COUNTIF(R12:R32,"-")) -> 19 | AD32: 0 | AE32: =IF(R32="","",IF(AD32="0","0",COUNTIF(AD12:AD31,AD32))) -> 0 | AG32: 0 | AI32: 0 | AK32: 0 | AM32: =COUNTIF(AS12:AS32,"W") -> 0 | AN32: =IF(AR32="","",COUNTIF(AR12:AR32,"-")) -> 19 | AO32: 21 | AP32: 3 | AR32: -
A33: 22 | B33: =IF(REG!B32<>"",REG!B32,"") ->  | C33: =IF(REG!C32<>"",REG!G32,"") ->  | D33: =IF('G Q 3'!R33="","DNR",IF('G Q 3'!R33="-",+'G Q 3'!D33,+'G Q 3'!R33)) -> DNR | H33: - | R33: - | S33: 3 | T33: 22 | V33: - | W33: =IF(R33="","",COUNTIF(R12:R33,"-")) -> 20 | AD33: 0 | AE33: =IF(R33="","",IF(AD33="0","0",COUNTIF(AD12:AD32,AD33))) -> 0 | AG33: 0 | AI33: 0 | AK33: 0 | AM33: =COUNTIF(AS12:AS33,"W") -> 0 | AN33: =IF(AR33="","",COUNTIF(AR12:AR33,"-")) -> 20 | AO33: 22 | AP33: 3 | AR33: -
A34: 23 | B34: =IF(REG!B33<>"",REG!B33,"") ->  | C34: =IF(REG!C33<>"",REG!G33,"") ->  | D34: =IF('G Q 3'!R34="","DNR",IF('G Q 3'!R34="-",+'G Q 3'!D34,+'G Q 3'!R34)) -> DNR | H34: - | R34: - | S34: 3 | T34: 23 | V34: - | W34: =IF(R34="","",COUNTIF(R12:R34,"-")) -> 21 | AD34: 0 | AE34: =IF(R34="","",IF(AD34="0","0",COUNTIF(AD12:AD33,AD34))) -> 0 | AG34: 0 | AI34: 0 | AK34: 0 | AM34: =COUNTIF(AS12:AS34,"W") -> 0 | AN34: =IF(AR34="","",COUNTIF(AR12:AR34,"-")) -> 21 | AO34: 23 | AP34: 3 | AR34: -
A35: 24 | B35: =IF(REG!B34<>"",REG!B34,"") ->  | C35: =IF(REG!C34<>"",REG!G34,"") ->  | D35: =IF('G Q 3'!R35="","DNR",IF('G Q 3'!R35="-",+'G Q 3'!D35,+'G Q 3'!R35)) -> DNR | H35: - | R35: - | S35: 3 | T35: 24 | V35: - | W35: =IF(R35="","",COUNTIF(R12:R35,"-")) -> 22 | AD35: 0 | AE35: =IF(R35="","",IF(AD35="0","0",COUNTIF(AD12:AD34,AD35))) -> 0 | AG35: 0 | AI35: 0 | AK35: 0 | AM35: =COUNTIF(AS12:AS35,"W") -> 0 | AN35: =IF(AR35="","",COUNTIF(AR12:AR35,"-")) -> 22 | AO35: 24 | AP35: 3 | AR35: -
A36: 25 | B36: =IF(REG!B35<>"",REG!B35,"") ->  | C36: =IF(REG!C35<>"",REG!G35,"") ->  | D36: =IF('G Q 3'!R36="","DNR",IF('G Q 3'!R36="-",+'G Q 3'!D36,+'G Q 3'!R36)) -> DNR | H36: - | R36: - | S36: 3 | T36: 25 | V36: - | W36: =IF(R36="","",COUNTIF(R12:R36,"-")) -> 23 | AD36: 0 | AE36: =IF(R36="","",IF(AD36="0","0",COUNTIF(AD12:AD35,AD36))) -> 0 | AG36: 0 | AI36: 0 | AK36: 0 | AM36: =COUNTIF(AS12:AS36,"W") -> 0 | AN36: =IF(AR36="","",COUNTIF(AR12:AR36,"-")) -> 23 | AO36: 25 | AP36: 3 | AR36: -
A37: 26 | B37: =IF(REG!B36<>"",REG!B36,"") ->  | C37: =IF(REG!C36<>"",REG!G36,"") ->  | D37: =IF('G Q 3'!R37="","DNR",IF('G Q 3'!R37="-",+'G Q 3'!D37,+'G Q 3'!R37)) -> DNR | H37: - | R37: - | S37: 3 | T37: 26 | V37: - | W37: =IF(R37="","",COUNTIF(R12:R37,"-")) -> 24 | AD37: 0 | AE37: =IF(R37="","",IF(AD37="0","0",COUNTIF(AD12:AD36,AD37))) -> 0 | AG37: 0 | AI37: 0 | AK37: 0 | AM37: =COUNTIF(AS12:AS37,"W") -> 0 | AN37: =IF(AR37="","",COUNTIF(AR12:AR37,"-")) -> 24 | AO37: 26 | AP37: 3 | AR37: -
A38: 27 | B38: =IF(REG!B37<>"",REG!B37,"") ->  | C38: =IF(REG!C37<>"",REG!G37,"") ->  | D38: =IF('G Q 3'!R38="","DNR",IF('G Q 3'!R38="-",+'G Q 3'!D38,+'G Q 3'!R38)) -> DNR | H38: - | R38: - | S38: 3 | T38: 27 | V38: - | W38: =IF(R38="","",COUNTIF(R12:R38,"-")) -> 25 | AD38: 0 | AE38: =IF(R38="","",IF(AD38="0","0",COUNTIF(AD12:AD37,AD38))) -> 0 | AG38: 0 | AI38: 0 | AK38: 0 | AM38: =COUNTIF(AS12:AS38,"W") -> 0 | AN38: =IF(AR38="","",COUNTIF(AR12:AR38,"-")) -> 25 | AO38: 27 | AP38: 3 | AR38: -
A39: 28 | B39: =IF(REG!B38<>"",REG!B38,"") ->  | C39: =IF(REG!C38<>"",REG!G38,"") ->  | D39: =IF('G Q 3'!R39="","DNR",IF('G Q 3'!R39="-",+'G Q 3'!D39,+'G Q 3'!R39)) -> DNR | H39: - | R39: - | S39: 3 | T39: 28 | V39: - | W39: =IF(R39="","",COUNTIF(R12:R39,"-")) -> 26 | AD39: 0 | AE39: =IF(R39="","",IF(AD39="0","0",COUNTIF(AD12:AD38,AD39))) -> 0 | AG39: 0 | AI39: 0 | AK39: 0 | AM39: =COUNTIF(AS12:AS39,"W") -> 0 | AN39: =IF(AR39="","",COUNTIF(AR12:AR39,"-")) -> 26 | AO39: 28 | AP39: 3 | AR39: -
A40: 29 | B40: =IF(REG!B39<>"",REG!B39,"") ->  | C40: =IF(REG!C39<>"",REG!G39,"") ->  | D40: =IF('G Q 3'!R40="","DNR",IF('G Q 3'!R40="-",+'G Q 3'!D40,+'G Q 3'!R40)) -> DNR | H40: - | R40: - | S40: 3 | T40: 29 | V40: - | W40: =IF(R40="","",COUNTIF(R12:R40,"-")) -> 27 | AD40: 0 | AE40: =IF(R40="","",IF(AD40="0","0",COUNTIF(AD12:AD39,AD40))) -> 0 | AG40: 0 | AI40: 0 | AK40: 0 | AM40: =COUNTIF(AS12:AS40,"W") -> 0 | AN40: =IF(AR40="","",COUNTIF(AR12:AR40,"-")) -> 27 | AO40: 29 | AP40: 3 | AR40: -
A41: 30 | B41: =IF(REG!B40<>"",REG!B40,"") ->  | C41: =IF(REG!C40<>"",REG!G40,"") ->  | D41: =IF('G Q 3'!R41="","DNR",IF('G Q 3'!R41="-",+'G Q 3'!D41,+'G Q 3'!R41)) -> DNR | H41: - | R41: - | S41: 3 | T41: 30 | V41: - | W41: =IF(R41="","",COUNTIF(R12:R41,"-")) -> 28 | AD41: 0 | AE41: =IF(R41="","",IF(AD41="0","0",COUNTIF(AD12:AD40,AD41))) -> 0 | AG41: 0 | AI41: 0 | AK41: 0 | AM41: =COUNTIF(AS12:AS41,"W") -> 0 | AN41: =IF(AR41="","",COUNTIF(AR12:AR41,"-")) -> 28 | AO41: 30 | AP41: 3 | AR41: -
A42: 31 | B42: =IF(REG!B41<>"",REG!B41,"") ->  | C42: =IF(REG!C41<>"",REG!G41,"") ->  | D42: =IF('G Q 3'!R42="","DNR",IF('G Q 3'!R42="-",+'G Q 3'!D42,+'G Q 3'!R42)) -> DNR | H42: - | R42: - | S42: 3 | T42: 31 | V42: - | W42: =IF(R42="","",COUNTIF(R12:R42,"-")) -> 29 | AD42: 0 | AE42: =IF(R42="","",IF(AD42="0","0",COUNTIF(AD12:AD41,AD42))) -> 0 | AG42: 0 | AI42: 0 | AK42: 0 | AM42: =COUNTIF(AS12:AS42,"W") -> 0 | AN42: =IF(AR42="","",COUNTIF(AR12:AR42,"-")) -> 29 | AO42: 31 | AP42: 3 | AR42: -
A43: 32 | B43: =IF(REG!B42<>"",REG!B42,"") ->  | C43: =IF(REG!C42<>"",REG!G42,"") ->  | D43: =IF('G Q 3'!R43="","DNR",IF('G Q 3'!R43="-",+'G Q 3'!D43,+'G Q 3'!R43)) -> DNR | H43: - | R43: - | S43: 3 | T43: 32 | V43: - | W43: =IF(R43="","",COUNTIF(R12:R43,"-")) -> 30 | AD43: 0 | AE43: =IF(R43="","",IF(AD43="0","0",COUNTIF(AD12:AD42,AD43))) -> 0 | AG43: 0 | AI43: 0 | AK43: 0 | AM43: =COUNTIF(AS12:AS43,"W") -> 0 | AN43: =IF(AR43="","",COUNTIF(AR12:AR43,"-")) -> 30 | AO43: 32 | AP43: 3 | AR43: -
A44: 33 | B44: =IF(REG!B43<>"",REG!B43,"") ->  | C44: =IF(REG!C43<>"",REG!G43,"") ->  | D44: =IF('G Q 3'!R44="","DNR",IF('G Q 3'!R44="-",+'G Q 3'!D44,+'G Q 3'!R44)) -> DNR | H44: - | R44: =IF(AND(ISBLANK(D44),ISBLANK(K44)),"",IF(AND(H44="-",O44="-"),"-",IF(AND(H44="-",ISBLANK(K44)),"-",MIN(H44,O44)))) -> - | S44: 3 | T44: 33 | V44: - | W44: =IF(R44="","",COUNTIF(R12:R44,"-")) -> 31 | AD44: 0 | AE44: =IF(R44="","",IF(AD44="0","0",COUNTIF(AD12:AD43,AD44))) -> 0 | AG44: 0 | AI44: 0 | AK44: 0 | AM44: =COUNTIF(AS12:AS44,"W") -> 0 | AN44: =IF(AR44="","",COUNTIF(AR12:AR44,"-")) -> 31 | AO44: 33 | AP44: 3 | AR44: -
A45: 34 | B45: =IF(REG!B44<>"",REG!B44,"") ->  | C45: =IF(REG!C44<>"",REG!G44,"") ->  | D45: =IF('G Q 3'!R45="","DNR",IF('G Q 3'!R45="-",+'G Q 3'!D45,+'G Q 3'!R45)) -> DNR | H45: - | R45: - | S45: 3 | T45: 34 | V45: - | W45: =IF(R45="","",COUNTIF(R12:R45,"-")) -> 32 | AD45: 0 | AE45: =IF(R45="","",IF(AD45="0","0",COUNTIF(AD12:AD44,AD45))) -> 0 | AG45: 0 | AI45: 0 | AK45: 0 | AM45: =COUNTIF(AS12:AS45,"W") -> 0 | AN45: =IF(AR45="","",COUNTIF(AR12:AR45,"-")) -> 32 | AO45: 34 | AP45: 3 | AR45: -
A46: 35 | B46: =IF(REG!B45<>"",REG!B45,"") ->  | C46: =IF(REG!C45<>"",REG!G45,"") ->  | D46: =IF('G Q 3'!R46="","DNR",IF('G Q 3'!R46="-",+'G Q 3'!D46,+'G Q 3'!R46)) -> DNR | H46: - | R46: - | S46: 3 | T46: 35 | V46: - | W46: =IF(R46="","",COUNTIF(R12:R46,"-")) -> 33 | AD46: 0 | AE46: =IF(R46="","",IF(AD46="0","0",COUNTIF(AD12:AD45,AD46))) -> 0 | AG46: 0 | AI46: 0 | AK46: 0 | AM46: =COUNTIF(AS12:AS46,"W") -> 0 | AN46: =IF(AR46="","",COUNTIF(AR12:AR46,"-")) -> 33 | AO46: 35 | AP46: 3 | AR46: -
A47: 36 | B47: =IF(REG!B46<>"",REG!B46,"") ->  | C47: =IF(REG!C46<>"",REG!G46,"") ->  | D47: =IF('G Q 3'!R47="","DNR",IF('G Q 3'!R47="-",+'G Q 3'!D47,+'G Q 3'!R47)) -> DNR | H47: - | R47: - | S47: 3 | T47: 36 | V47: - | W47: =IF(R47="","",COUNTIF(R12:R47,"-")) -> 34 | AD47: 0 | AE47: =IF(R47="","",IF(AD47="0","0",COUNTIF(AD12:AD46,AD47))) -> 0 | AG47: 0 | AI47: 0 | AK47: 0 | AM47: =COUNTIF(AS12:AS47,"W") -> 0 | AN47: =IF(AR47="","",COUNTIF(AR12:AR47,"-")) -> 34 | AO47: 36 | AP47: 3 | AR47: -
A48: 37 | B48: =IF(REG!B47<>"",REG!B47,"") ->  | C48: =IF(REG!C47<>"",REG!G47,"") ->  | D48: =IF('G Q 3'!R48="","DNR",IF('G Q 3'!R48="-",+'G Q 3'!D48,+'G Q 3'!R48)) -> DNR | H48: - | R48: - | S48: 3 | T48: 37 | V48: - | W48: =IF(R48="","",COUNTIF(R12:R48,"-")) -> 35 | AD48: 0 | AE48: =IF(R48="","",IF(AD48="0","0",COUNTIF(AD12:AD47,AD48))) -> 0 | AG48: 0 | AI48: 0 | AK48: 0 | AM48: =COUNTIF(AS12:AS48,"W") -> 0 | AN48: =IF(AR48="","",COUNTIF(AR12:AR48,"-")) -> 35 | AO48: 37 | AP48: 3 | AR48: -
A49: 38 | B49: =IF(REG!B48<>"",REG!B48,"") ->  | C49: =IF(REG!C48<>"",REG!G48,"") ->  | D49: =IF('G Q 3'!R49="","DNR",IF('G Q 3'!R49="-",+'G Q 3'!D49,+'G Q 3'!R49)) -> DNR | H49: - | R49: - | S49: 3 | T49: 38 | V49: - | W49: =IF(R49="","",COUNTIF(R12:R49,"-")) -> 36 | AD49: 0 | AE49: =IF(R49="","",IF(AD49="0","0",COUNTIF(AD12:AD48,AD49))) -> 0 | AG49: 0 | AI49: 0 | AK49: 0 | AM49: =COUNTIF(AS12:AS49,"W") -> 0 | AN49: =IF(AR49="","",COUNTIF(AR12:AR49,"-")) -> 36 | AO49: 38 | AP49: 3 | AR49: -
A50: 39 | B50: =IF(REG!B49<>"",REG!B49,"") ->  | C50: =IF(REG!C49<>"",REG!G49,"") ->  | D50: =IF('G Q 3'!R50="","DNR",IF('G Q 3'!R50="-",+'G Q 3'!D50,+'G Q 3'!R50)) -> DNR | H50: - | R50: - | S50: 3 | T50: 39 | V50: - | W50: =IF(R50="","",COUNTIF(R12:R50,"-")) -> 37 | AD50: 0 | AE50: =IF(R50="","",IF(AD50="0","0",COUNTIF(AD12:AD49,AD50))) -> 0 | AG50: 0 | AI50: 0 | AK50: 0 | AM50: =COUNTIF(AS12:AS50,"W") -> 0 | AN50: =IF(AR50="","",COUNTIF(AR12:AR50,"-")) -> 37 | AO50: 39 | AP50: 3 | AR50: -
A51: 40 | B51: =IF(REG!B50<>"",REG!B50,"") ->  | C51: =IF(REG!C50<>"",REG!G50,"") ->  | D51: =IF('G Q 3'!R51="","DNR",IF('G Q 3'!R51="-",+'G Q 3'!D51,+'G Q 3'!R51)) -> DNR | H51: - | R51: - | S51: 3 | T51: 40 | V51: - | W51: =IF(R51="","",COUNTIF(R12:R51,"-")) -> 38 | AD51: 0 | AE51: =IF(R51="","",IF(AD51="0","0",COUNTIF(AD12:AD50,AD51))) -> 0 | AG51: 0 | AI51: 0 | AK51: 0 | AM51: =COUNTIF(AS12:AS51,"W") -> 0 | AN51: =IF(AR51="","",COUNTIF(AR12:AR51,"-")) -> 38 | AO51: 40 | AP51: 3 | AR51: -
A52: 41 | B52: =IF(REG!B51<>"",REG!B51,"") ->  | C52: =IF(REG!C51<>"",REG!G51,"") ->  | D52: =IF('G Q 3'!R52="","DNR",IF('G Q 3'!R52="-",+'G Q 3'!D52,+'G Q 3'!R52)) -> DNR | H52: - | R52: - | S52: 3 | T52: 41 | V52: - | W52: =IF(R52="","",COUNTIF(R12:R52,"-")) -> 39 | AD52: 0 | AE52: =IF(R52="","",IF(AD52="0","0",COUNTIF(AD12:AD51,AD52))) -> 0 | AG52: 0 | AI52: 0 | AK52: 0 | AM52: =COUNTIF(AS12:AS52,"W") -> 0 | AN52: =IF(AR52="","",COUNTIF(AR12:AR52,"-")) -> 39 | AO52: 41 | AP52: 3 | AR52: -
A53: 42 | B53: =IF(REG!B52<>"",REG!B52,"") ->  | C53: =IF(REG!C52<>"",REG!G52,"") ->  | D53: =IF('G Q 3'!R53="","DNR",IF('G Q 3'!R53="-",+'G Q 3'!D53,+'G Q 3'!R53)) -> DNR | H53: - | R53: - | S53: 3 | T53: 42 | V53: - | W53: =IF(R53="","",COUNTIF(R12:R53,"-")) -> 40 | AD53: 0 | AE53: =IF(R53="","",IF(AD53="0","0",COUNTIF(AD12:AD52,AD53))) -> 0 | AG53: 0 | AI53: 0 | AK53: 0 | AM53: =COUNTIF(AS12:AS53,"W") -> 0 | AN53: =IF(AR53="","",COUNTIF(AR12:AR53,"-")) -> 40 | AO53: 42 | AP53: 3 | AR53: -
A54: 43 | B54: =IF(REG!B53<>"",REG!B53,"") ->  | C54: =IF(REG!C53<>"",REG!G53,"") ->  | D54: =IF('G Q 3'!R54="","DNR",IF('G Q 3'!R54="-",+'G Q 3'!D54,+'G Q 3'!R54)) -> DNR | H54: - | R54: - | S54: 3 | T54: 43 | V54: - | W54: =IF(R54="","",COUNTIF(R12:R54,"-")) -> 41 | AD54: 0 | AE54: =IF(R54="","",IF(AD54="0","0",COUNTIF(AD12:AD53,AD54))) -> 0 | AG54: 0 | AI54: 0 | AK54: 0 | AM54: =COUNTIF(AS12:AS54,"W") -> 0 | AN54: =IF(AR54="","",COUNTIF(AR12:AR54,"-")) -> 41 | AO54: 43 | AP54: 3 | AR54: -
A55: 44 | B55: =IF(REG!B54<>"",REG!B54,"") ->  | C55: =IF(REG!C54<>"",REG!G54,"") ->  | D55: =IF('G Q 3'!R55="","DNR",IF('G Q 3'!R55="-",+'G Q 3'!D55,+'G Q 3'!R55)) -> DNR | H55: - | R55: - | S55: 3 | T55: 44 | V55: - | W55: =IF(R55="","",COUNTIF(R12:R55,"-")) -> 42 | AD55: 0 | AE55: =IF(R55="","",IF(AD55="0","0",COUNTIF(AD12:AD54,AD55))) -> 0 | AG55: 0 | AI55: 0 | AK55: 0 | AM55: =COUNTIF(AS12:AS55,"W") -> 0 | AN55: =IF(AR55="","",COUNTIF(AR12:AR55,"-")) -> 42 | AO55: 44 | AP55: 3 | AR55: -
A56: 45 | B56: =IF(REG!B55<>"",REG!B55,"") ->  | C56: =IF(REG!C55<>"",REG!G55,"") ->  | D56: =IF('G Q 3'!R56="","DNR",IF('G Q 3'!R56="-",+'G Q 3'!D56,+'G Q 3'!R56)) -> DNR | H56: - | R56: - | S56: 3 | T56: 45 | V56: - | W56: =IF(R56="","",COUNTIF(R12:R56,"-")) -> 43 | AD56: 0 | AE56: =IF(R56="","",IF(AD56="0","0",COUNTIF(AD12:AD55,AD56))) -> 0 | AG56: 0 | AI56: 0 | AK56: 0 | AM56: =COUNTIF(AS12:AS56,"W") -> 0 | AN56: =IF(AR56="","",COUNTIF(AR12:AR56,"-")) -> 43 | AO56: 45 | AP56: 3 | AR56: -
A57: 46 | B57: =IF(REG!B56<>"",REG!B56,"") ->  | C57: =IF(REG!C56<>"",REG!G56,"") ->  | D57: =IF('G Q 3'!R57="","DNR",IF('G Q 3'!R57="-",+'G Q 3'!D57,+'G Q 3'!R57)) -> DNR | H57: - | R57: - | S57: 3 | T57: 46 | V57: - | W57: =IF(R57="","",COUNTIF(R12:R57,"-")) -> 44 | AD57: 0 | AE57: =IF(R57="","",IF(AD57="0","0",COUNTIF(AD12:AD56,AD57))) -> 0 | AG57: 0 | AI57: 0 | AK57: 0 | AM57: =COUNTIF(AS12:AS57,"W") -> 0 | AN57: =IF(AR57="","",COUNTIF(AR12:AR57,"-")) -> 44 | AO57: 46 | AP57: 3 | AR57: -
A58: 47 | B58: =IF(REG!B57<>"",REG!B57,"") ->  | C58: =IF(REG!C57<>"",REG!G57,"") ->  | D58: =IF('G Q 3'!R58="","DNR",IF('G Q 3'!R58="-",+'G Q 3'!D58,+'G Q 3'!R58)) -> DNR | H58: - | R58: - | S58: 3 | T58: 47 | V58: - | W58: =IF(R58="","",COUNTIF(R12:R58,"-")) -> 45 | AD58: 0 | AE58: =IF(R58="","",IF(AD58="0","0",COUNTIF(AD12:AD57,AD58))) -> 0 | AG58: 0 | AI58: 0 | AK58: 0 | AM58: =COUNTIF(AS12:AS58,"W") -> 0 | AN58: =IF(AR58="","",COUNTIF(AR12:AR58,"-")) -> 45 | AO58: 47 | AP58: 3 | AR58: -
A59: 48 | B59: =IF(REG!B58<>"",REG!B58,"") ->  | C59: =IF(REG!C58<>"",REG!G58,"") ->  | D59: =IF('G Q 3'!R59="","DNR",IF('G Q 3'!R59="-",+'G Q 3'!D59,+'G Q 3'!R59)) -> DNR | H59: - | R59: - | S59: 3 | T59: 48 | V59: - | W59: =IF(R59="","",COUNTIF(R12:R59,"-")) -> 46 | AD59: 0 | AE59: =IF(R59="","",IF(AD59="0","0",COUNTIF(AD12:AD58,AD59))) -> 0 | AG59: 0 | AI59: 0 | AK59: 0 | AM59: =COUNTIF(AS12:AS59,"W") -> 0 | AN59: =IF(AR59="","",COUNTIF(AR12:AR59,"-")) -> 46 | AO59: 48 | AP59: 3 | AR59: -
A60: 49 | B60: =IF(REG!B59<>"",REG!B59,"") ->  | C60: =IF(REG!C59<>"",REG!G59,"") ->  | D60: =IF('G Q 3'!R60="","DNR",IF('G Q 3'!R60="-",+'G Q 3'!D60,+'G Q 3'!R60)) -> DNR | H60: - | R60: - | S60: 3 | T60: 49 | V60: - | W60: =IF(R60="","",COUNTIF(R12:R60,"-")) -> 47 | AD60: 0 | AE60: =IF(R60="","",IF(AD60="0","0",COUNTIF(AD12:AD59,AD60))) -> 0 | AG60: 0 | AI60: 0 | AK60: 0 | AM60: =COUNTIF(AS12:AS60,"W") -> 0 | AN60: =IF(AR60="","",COUNTIF(AR12:AR60,"-")) -> 47 | AO60: 49 | AP60: 3 | AR60: -
A61: 50 | B61: =IF(REG!B60<>"",REG!B60,"") ->  | C61: =IF(REG!C60<>"",REG!G60,"") ->  | D61: =IF('G Q 3'!R61="","DNR",IF('G Q 3'!R61="-",+'G Q 3'!D61,+'G Q 3'!R61)) -> DNR | H61: - | R61: - | S61: 3 | T61: 50 | V61: - | W61: =IF(R61="","",COUNTIF(R12:R61,"-")) -> 48 | AD61: 0 | AE61: =IF(R61="","",IF(AD61="0","0",COUNTIF(AD12:AD60,AD61))) -> 0 | AG61: 0 | AI61: 0 | AK61: 0 | AM61: =COUNTIF(AS12:AS61,"W") -> 0 | AN61: =IF(AR61="","",COUNTIF(AR12:AR61,"-")) -> 48 | AO61: 50 | AP61: 3 | AR61: -
A62: 51 | B62: =IF(REG!B61<>"",REG!B61,"") ->  | C62: =IF(REG!C61<>"",REG!G61,"") ->  | D62: =IF('G Q 3'!R62="","DNR",IF('G Q 3'!R62="-",+'G Q 3'!D62,+'G Q 3'!R62)) -> DNR | H62: - | R62: - | S62: 3 | T62: 51 | V62: - | W62: =IF(R62="","",COUNTIF(R12:R62,"-")) -> 49 | AD62: 0 | AE62: =IF(R62="","",IF(AD62="0","0",COUNTIF(AD12:AD61,AD62))) -> 0 | AG62: 0 | AI62: 0 | AK62: 0 | AM62: =COUNTIF(AS12:AS62,"W") -> 0 | AN62: =IF(AR62="","",COUNTIF(AR12:AR62,"-")) -> 49 | AO62: 51 | AP62: 3 | AR62: -
A63: 52 | B63: =IF(REG!B62<>"",REG!B62,"") ->  | C63: =IF(REG!C62<>"",REG!G62,"") ->  | D63: =IF('G Q 3'!R63="","DNR",IF('G Q 3'!R63="-",+'G Q 3'!D63,+'G Q 3'!R63)) -> DNR | H63: - | R63: - | S63: 3 | T63: 52 | V63: - | W63: =IF(R63="","",COUNTIF(R12:R63,"-")) -> 50 | AD63: 0 | AE63: =IF(R63="","",IF(AD63="0","0",COUNTIF(AD12:AD62,AD63))) -> 0 | AG63: 0 | AI63: 0 | AK63: 0 | AM63: =COUNTIF(AS12:AS63,"W") -> 0 | AN63: =IF(AR63="","",COUNTIF(AR12:AR63,"-")) -> 50 | AO63: 52 | AP63: 3 | AR63: -
A64: 53 | B64: =IF(REG!B63<>"",REG!B63,"") ->  | C64: =IF(REG!C63<>"",REG!G63,"") ->  | D64: =IF('G Q 3'!R64="","DNR",IF('G Q 3'!R64="-",+'G Q 3'!D64,+'G Q 3'!R64)) -> DNR | H64: - | R64: - | S64: 3 | T64: 53 | V64: - | W64: =IF(R64="","",COUNTIF(R12:R64,"-")) -> 51 | AD64: 0 | AE64: =IF(R64="","",IF(AD64="0","0",COUNTIF(AD12:AD63,AD64))) -> 0 | AG64: 0 | AI64: 0 | AK64: 0 | AM64: =COUNTIF(AS12:AS64,"W") -> 0 | AN64: =IF(AR64="","",COUNTIF(AR12:AR64,"-")) -> 51 | AO64: 53 | AP64: 3 | AR64: -
A65: 54 | B65: =IF(REG!B64<>"",REG!B64,"") ->  | C65: =IF(REG!C64<>"",REG!G64,"") ->  | D65: =IF('G Q 3'!R65="","DNR",IF('G Q 3'!R65="-",+'G Q 3'!D65,+'G Q 3'!R65)) -> DNR | H65: - | R65: - | S65: 3 | T65: 54 | V65: - | W65: =IF(R65="","",COUNTIF(R12:R65,"-")) -> 52 | AD65: 0 | AE65: =IF(R65="","",IF(AD65="0","0",COUNTIF(AD12:AD64,AD65))) -> 0 | AG65: 0 | AI65: 0 | AK65: 0 | AM65: =COUNTIF(AS12:AS65,"W") -> 0 | AN65: =IF(AR65="","",COUNTIF(AR12:AR65,"-")) -> 52 | AO65: 54 | AP65: 3 | AR65: -
A66: 55 | B66: =IF(REG!B65<>"",REG!B65,"") ->  | C66: =IF(REG!C65<>"",REG!G65,"") ->  | D66: =IF('G Q 3'!R66="","DNR",IF('G Q 3'!R66="-",+'G Q 3'!D66,+'G Q 3'!R66)) -> DNR | H66: - | R66: - | S66: 3 | T66: 55 | V66: - | W66: =IF(R66="","",COUNTIF(R12:R66,"-")) -> 53 | AD66: 0 | AE66: =IF(R66="","",IF(AD66="0","0",COUNTIF(AD12:AD65,AD66))) -> 0 | AG66: 0 | AI66: 0 | AK66: 0 | AM66: =COUNTIF(AS12:AS66,"W") -> 0 | AN66: =IF(AR66="","",COUNTIF(AR12:AR66,"-")) -> 53 | AO66: 55 | AP66: 3 | AR66: -
A67: 56 | B67: =IF(REG!B66<>"",REG!B66,"") ->  | C67: =IF(REG!C66<>"",REG!G66,"") ->  | D67: =IF('G Q 3'!R67="","DNR",IF('G Q 3'!R67="-",+'G Q 3'!D67,+'G Q 3'!R67)) -> DNR | H67: - | R67: - | S67: 3 | T67: 56 | V67: - | W67: =IF(R67="","",COUNTIF(R12:R67,"-")) -> 54 | AD67: 0 | AE67: =IF(R67="","",IF(AD67="0","0",COUNTIF(AD12:AD66,AD67))) -> 0 | AG67: 0 | AI67: 0 | AK67: 0 | AM67: =COUNTIF(AS12:AS67,"W") -> 0 | AN67: =IF(AR67="","",COUNTIF(AR12:AR67,"-")) -> 54 | AO67: 56 | AP67: 3 | AR67: -
A68: 57 | B68: =IF(REG!B67<>"",REG!B67,"") ->  | C68: =IF(REG!C67<>"",REG!G67,"") ->  | D68: =IF('G Q 3'!R68="","DNR",IF('G Q 3'!R68="-",+'G Q 3'!D68,+'G Q 3'!R68)) -> DNR | H68: - | R68: - | S68: 3 | T68: 57 | V68: - | W68: =IF(R68="","",COUNTIF(R12:R68,"-")) -> 55 | AD68: 0 | AE68: =IF(R68="","",IF(R68="","",IF(AD68="0","0",COUNTIF(AD12:AD67,AD68)))) -> 0 | AG68: 0 | AI68: 0 | AK68: 0 | AM68: =COUNTIF(AS12:AS68,"W") -> 0 | AN68: =IF(AR68="","",COUNTIF(AR12:AR68,"-")) -> 55 | AO68: 57 | AP68: 3 | AR68: -
A69: 58 | B69: =IF(REG!B68<>"",REG!B68,"") ->  | C69: =IF(REG!C68<>"",REG!G68,"") ->  | D69: =IF('G Q 3'!R69="","DNR",IF('G Q 3'!R69="-",+'G Q 3'!D69,+'G Q 3'!R69)) -> DNR | H69: - | R69: - | S69: 3 | T69: 58 | V69: - | W69: =IF(R69="","",COUNTIF(R12:R69,"-")) -> 56 | AD69: 0 | AE69: =IF(R69="","",IF(R69="","",IF(AD69="0","0",COUNTIF(AD12:AD68,AD69)))) -> 0 | AG69: 0 | AI69: 0 | AK69: 0 | AM69: =COUNTIF(AS12:AS69,"W") -> 0 | AN69: =IF(AR69="","",COUNTIF(AR12:AR69,"-")) -> 56 | AO69: 58 | AP69: 3 | AR69: -
A70: 59 | B70: =IF(REG!B69<>"",REG!B69,"") ->  | C70: =IF(REG!C69<>"",REG!G69,"") ->  | D70: =IF('G Q 3'!R70="","DNR",IF('G Q 3'!R70="-",+'G Q 3'!D70,+'G Q 3'!R70)) -> DNR | H70: - | R70: - | S70: 3 | T70: 59 | V70: - | W70: =IF(R70="","",COUNTIF(R12:R70,"-")) -> 57 | AD70: 0 | AE70: =IF(R70="","",IF(R70="","",IF(AD70="0","0",COUNTIF(AD12:AD69,AD70)))) -> 0 | AG70: 0 | AI70: 0 | AK70: 0 | AM70: =COUNTIF(AS12:AS70,"W") -> 0 | AN70: =IF(AR70="","",COUNTIF(AR12:AR70,"-")) -> 57 | AO70: 59 | AP70: 3 | AR70: -
A71: 60 | B71: =IF(REG!B70<>"",REG!B70,"") ->  | C71: =IF(REG!C70<>"",REG!G70,"") ->  | D71: =IF('G Q 3'!R71="","DNR",IF('G Q 3'!R71="-",+'G Q 3'!D71,+'G Q 3'!R71)) -> DNR | H71: - | R71: - | S71: 3 | T71: 60 | V71: - | W71: =IF(R71="","",COUNTIF(R12:R71,"-")) -> 58 | AD71: 0 | AE71: =IF(R71="","",IF(AD71="0","0",COUNTIF(AD12:AD70,AD71))) -> 0 | AG71: 0 | AI71: 0 | AK71: 0 | AM71: =COUNTIF(AS12:AS71,"W") -> 0 | AN71: =IF(AR71="","",COUNTIF(AR12:AR71,"-")) -> 58 | AO71: 60 | AP71: 3 | AR71: -
A72: 61 | B72: =IF(REG!B71<>"",REG!B71,"") ->  | C72: =IF(REG!C71<>"",REG!G71,"") ->  | D72: =IF('G Q 3'!R72="","DNR",IF('G Q 3'!R72="-",+'G Q 3'!D72,+'G Q 3'!R72)) -> DNR | H72: - | R72: - | S72: 3 | T72: 61 | V72: - | W72: =IF(R72="","",COUNTIF(R12:R72,"-")) -> 59 | AD72: 0 | AE72: =IF(R72="","",IF(AD72="0","0",COUNTIF(AD52:AD71,AD72))) -> 0 | AG72: 0 | AI72: 0 | AK72: 0 | AM72: =COUNTIF(AS12:AS72,"W") -> 0 | AN72: =IF(AR72="","",COUNTIF(AR12:AR72,"-")) -> 59 | AO72: 61 | AP72: 3 | AR72: -
A73: 62 | B73: =IF(REG!B72<>"",REG!B72,"") ->  | C73: =IF(REG!C72<>"",REG!G72,"") ->  | D73: =IF('G Q 3'!R73="","DNR",IF('G Q 3'!R73="-",+'G Q 3'!D73,+'G Q 3'!R73)) -> DNR | H73: - | R73: - | S73: 3 | T73: 62 | V73: - | W73: =IF(R73="","",COUNTIF(R12:R73,"-")) -> 60 | AD73: 0 | AE73: =IF(R73="","",IF(AD73="0","0",COUNTIF(AD12:AD72,AD73))) -> 0 | AG73: 0 | AI73: 0 | AK73: 0 | AM73: =COUNTIF(AS12:AS73,"W") -> 0 | AN73: =IF(AR73="","",COUNTIF(AR12:AR73,"-")) -> 60 | AO73: 62 | AP73: 3 | AR73: -
A74: 63 | B74: =IF(REG!B73<>"",REG!B73,"") ->  | C74: =IF(REG!C73<>"",REG!G73,"") ->  | D74: =IF('G Q 3'!R74="","DNR",IF('G Q 3'!R74="-",+'G Q 3'!D74,+'G Q 3'!R74)) -> DNR | H74: - | R74: - | S74: 3 | T74: 63 | V74: - | W74: =IF(R74="","",COUNTIF(R12:R74,"-")) -> 61 | AD74: 0 | AE74: =IF(R74="","",IF(AD74="0","0",COUNTIF(AD12:AD73,AD74))) -> 0 | AG74: 0 | AI74: 0 | AK74: 0 | AM74: =COUNTIF(AS12:AS74,"W") -> 0 | AN74: =IF(AR74="","",COUNTIF(AR12:AR74,"-")) -> 61 | AO74: 63 | AP74: 3 | AR74: -
A75: 64 | B75: =IF(REG!B74<>"",REG!B74,"") ->  | C75: =IF(REG!C74<>"",REG!G74,"") ->  | D75: =IF('G Q 3'!R75="","DNR",IF('G Q 3'!R75="-",+'G Q 3'!D75,+'G Q 3'!R75)) -> DNR | H75: - | R75: - | S75: 3 | T75: 64 | V75: - | W75: =IF(R75="","",COUNTIF(R12:R75,"-")) -> 62 | AD75: 0 | AE75: =IF(R75="","",IF(AD75="0","0",COUNTIF(AD12:AD74,AD75))) -> 0 | AG75: 0 | AI75: 0 | AK75: 0 | AM75: =COUNTIF(AS12:AS75,"W") -> 0 | AN75: =IF(AR75="","",COUNTIF(AR12:AR75,"-")) -> 62 | AO75: 64 | AP75: 3 | AR75: -
A76: 65 | B76: =IF(REG!B75<>"",REG!B75,"") ->  | C76: =IF(REG!C75<>"",REG!G75,"") ->  | D76: =IF('G Q 3'!R76="","DNR",IF('G Q 3'!R76="-",+'G Q 3'!D76,+'G Q 3'!R76)) -> DNR | H76: - | R76: =IF(AND(ISBLANK(D76),ISBLANK(K76)),"",IF(AND(H76="-",O76="-"),"-",IF(AND(H76="-",ISBLANK(K76)),"-",MIN(H76,O76)))) -> - | S76: 3 | T76: 65 | V76: - | W76: =IF(R76="","",COUNTIF(R12:R76,"-")) -> 63 | AD76: 0 | AE76: =IF(R76="","",IF(AD76="0","0",COUNTIF(AD12:AD75,AD76))) -> 0 | AG76: 0 | AI76: 0 | AK76: 0 | AM76: =COUNTIF(AS12:AS76,"W") -> 0 | AN76: =IF(AR76="","",COUNTIF(AR12:AR76,"-")) -> 63 | AO76: 65 | AP76: 3 | AR76: -
A77: 66 | B77: =IF(REG!B76<>"",REG!B76,"") ->  | C77: =IF(REG!C76<>"",REG!G76,"") ->  | D77: =IF('G Q 3'!R77="","DNR",IF('G Q 3'!R77="-",+'G Q 3'!D77,+'G Q 3'!R77)) -> DNR | H77: - | R77: - | S77: 3 | T77: 66 | V77: - | W77: =IF(R77="","",COUNTIF(R12:R77,"-")) -> 64 | AD77: 0 | AE77: =IF(R77="","",IF(AD77="0","0",COUNTIF(AD12:AD76,AD77))) -> 0 | AG77: 0 | AI77: 0 | AK77: 0 | AM77: =COUNTIF(AS12:AS77,"W") -> 0 | AN77: =IF(AR77="","",COUNTIF(AR12:AR77,"-")) -> 64 | AO77: 66 | AP77: 3 | AR77: -
A78: 67 | B78: =IF(REG!B77<>"",REG!B77,"") ->  | C78: =IF(REG!C77<>"",REG!G77,"") ->  | D78: =IF('G Q 3'!R78="","DNR",IF('G Q 3'!R78="-",+'G Q 3'!D78,+'G Q 3'!R78)) -> DNR | H78: - | R78: - | S78: 3 | T78: 67 | V78: - | W78: =IF(R78="","",COUNTIF(R12:R78,"-")) -> 65 | AD78: 0 | AE78: =IF(R78="","",IF(AD78="0","0",COUNTIF(AD12:AD77,AD78))) -> 0 | AG78: 0 | AI78: 0 | AK78: 0 | AM78: =COUNTIF(AS12:AS78,"W") -> 0 | AN78: =IF(AR78="","",COUNTIF(AR12:AR78,"-")) -> 65 | AO78: 67 | AP78: 3 | AR78: -
A79: 68 | B79: =IF(REG!B78<>"",REG!B78,"") ->  | C79: =IF(REG!C78<>"",REG!G78,"") ->  | D79: =IF('G Q 3'!R79="","DNR",IF('G Q 3'!R79="-",+'G Q 3'!D79,+'G Q 3'!R79)) -> DNR | H79: - | R79: - | S79: 3 | T79: 68 | V79: - | W79: =IF(R79="","",COUNTIF(R12:R79,"-")) -> 66 | AD79: 0 | AE79: =IF(R79="","",IF(AD79="0","0",COUNTIF(AD12:AD78,AD79))) -> 0 | AG79: 0 | AI79: 0 | AK79: 0 | AM79: =COUNTIF(AS12:AS79,"W") -> 0 | AN79: =IF(AR79="","",COUNTIF(AR12:AR79,"-")) -> 66 | AO79: 68 | AP79: 3 | AR79: -
A80: 69 | B80: =IF(REG!B79<>"",REG!B79,"") ->  | C80: =IF(REG!C79<>"",REG!G79,"") ->  | D80: =IF('G Q 3'!R80="","DNR",IF('G Q 3'!R80="-",+'G Q 3'!D80,+'G Q 3'!R80)) -> DNR | H80: - | R80: - | S80: 3 | T80: 69 | V80: - | W80: =IF(R80="","",COUNTIF(R12:R80,"-")) -> 67 | AD80: 0 | AE80: =IF(R80="","",IF(AD80="0","0",COUNTIF(AD12:AD79,AD80))) -> 0 | AG80: 0 | AI80: 0 | AK80: 0 | AM80: =COUNTIF(AS12:AS80,"W") -> 0 | AN80: =IF(AR80="","",COUNTIF(AR12:AR80,"-")) -> 67 | AO80: 69 | AP80: 3 | AR80: -
A81: 70 | B81: =IF(REG!B80<>"",REG!B80,"") ->  | C81: =IF(REG!C80<>"",REG!G80,"") ->  | D81: =IF('G Q 3'!R81="","DNR",IF('G Q 3'!R81="-",+'G Q 3'!D81,+'G Q 3'!R81)) -> DNR | H81: - | R81: - | S81: 3 | T81: 70 | V81: - | W81: =IF(R81="","",COUNTIF(R12:R81,"-")) -> 68 | AD81: 0 | AE81: =IF(R81="","",IF(AD81="0","0",COUNTIF(AD12:AD80,AD81))) -> 0 | AG81: 0 | AI81: 0 | AK81: 0 | AM81: =COUNTIF(AS12:AS81,"W") -> 0 | AN81: =IF(AR81="","",COUNTIF(AR12:AR81,"-")) -> 68 | AO81: 70 | AP81: 3 | AR81: -
A82: 71 | B82: =IF(REG!B81<>"",REG!B81,"") ->  | C82: =IF(REG!C81<>"",REG!G81,"") ->  | D82: =IF('G Q 3'!R82="","DNR",IF('G Q 3'!R82="-",+'G Q 3'!D82,+'G Q 3'!R82)) -> DNR | H82: - | R82: - | S82: 3 | T82: 71 | V82: - | W82: =IF(R82="","",COUNTIF(R12:R82,"-")) -> 69 | AD82: 0 | AE82: =IF(R82="","",IF(AD82="0","0",COUNTIF(AD12:AD81,AD82))) -> 0 | AG82: 0 | AI82: 0 | AK82: 0 | AM82: =COUNTIF(AS12:AS82,"W") -> 0 | AN82: =IF(AR82="","",COUNTIF(AR12:AR82,"-")) -> 69 | AO82: 71 | AP82: 3 | AR82: -
A83: 72 | B83: =IF(REG!B82<>"",REG!B82,"") ->  | C83: =IF(REG!C82<>"",REG!G82,"") ->  | D83: =IF('G Q 3'!R83="","DNR",IF('G Q 3'!R83="-",+'G Q 3'!D83,+'G Q 3'!R83)) -> DNR | H83: - | R83: - | S83: 3 | T83: 72 | V83: - | W83: =IF(R83="","",COUNTIF(R12:R83,"-")) -> 70 | AD83: 0 | AE83: =IF(R83="","",IF(AD83="0","0",COUNTIF(AD12:AD82,AD83))) -> 0 | AG83: 0 | AI83: 0 | AK83: 0 | AM83: =COUNTIF(AS12:AS83,"W") -> 0 | AN83: =IF(AR83="","",COUNTIF(AR12:AR83,"-")) -> 70 | AO83: 72 | AP83: 3 | AR83: -
A84: 73 | B84: =IF(REG!B83<>"",REG!B83,"") ->  | C84: =IF(REG!C83<>"",REG!G83,"") ->  | D84: =IF('G Q 3'!R84="","DNR",IF('G Q 3'!R84="-",+'G Q 3'!D84,+'G Q 3'!R84)) -> DNR | H84: - | R84: - | S84: 3 | T84: 73 | V84: - | W84: =IF(R84="","",COUNTIF(R12:R84,"-")) -> 71 | AD84: 0 | AE84: =IF(R84="","",IF(AD84="0","0",COUNTIF(AD12:AD83,AD84))) -> 0 | AG84: 0 | AI84: 0 | AK84: 0 | AM84: =COUNTIF(AS12:AS84,"W") -> 0 | AN84: =IF(AR84="","",COUNTIF(AR12:AR84,"-")) -> 71 | AO84: 73 | AP84: 3 | AR84: -
A85: 74 | B85: =IF(REG!B84<>"",REG!B84,"") ->  | C85: =IF(REG!C84<>"",REG!G84,"") ->  | D85: =IF('G Q 3'!R85="","DNR",IF('G Q 3'!R85="-",+'G Q 3'!D85,+'G Q 3'!R85)) -> DNR | H85: - | R85: - | S85: 3 | T85: 74 | V85: - | W85: =IF(R85="","",COUNTIF(R12:R85,"-")) -> 72 | AD85: 0 | AE85: =IF(R85="","",IF(AD85="0","0",COUNTIF(AD12:AD84,AD85))) -> 0 | AG85: 0 | AI85: 0 | AK85: 0 | AM85: =COUNTIF(AS12:AS85,"W") -> 0 | AN85: =IF(AR85="","",COUNTIF(AR12:AR85,"-")) -> 72 | AO85: 74 | AP85: 3 | AR85: -
A86: 75 | B86: =IF(REG!B85<>"",REG!B85,"") ->  | C86: =IF(REG!C85<>"",REG!G85,"") ->  | D86: =IF('G Q 3'!R86="","DNR",IF('G Q 3'!R86="-",+'G Q 3'!D86,+'G Q 3'!R86)) -> DNR | H86: - | R86: - | S86: 3 | T86: 75 | V86: - | W86: =IF(R86="","",COUNTIF(R12:R86,"-")) -> 73 | AD86: 0 | AE86: =IF(R86="","",IF(AD86="0","0",COUNTIF(AD12:AD85,AD86))) -> 0 | AG86: 0 | AI86: 0 | AK86: 0 | AM86: =COUNTIF(AS12:AS86,"W") -> 0 | AN86: =IF(AR86="","",COUNTIF(AR12:AR86,"-")) -> 73 | AO86: 75 | AP86: 3 | AR86: -
A87: 76 | B87: =IF(REG!B86<>"",REG!B86,"") ->  | C87: =IF(REG!C86<>"",REG!G86,"") ->  | D87: =IF('G Q 3'!R87="","DNR",IF('G Q 3'!R87="-",+'G Q 3'!D87,+'G Q 3'!R87)) -> DNR | H87: - | R87: - | S87: 3 | T87: 76 | V87: - | W87: =IF(R87="","",COUNTIF(R12:R87,"-")) -> 74 | AD87: 0 | AE87: =IF(R87="","",IF(AD87="0","0",COUNTIF(AD12:AD86,AD87))) -> 0 | AG87: 0 | AI87: 0 | AK87: 0 | AM87: =COUNTIF(AS12:AS87,"W") -> 0 | AN87: =IF(AR87="","",COUNTIF(AR12:AR87,"-")) -> 74 | AO87: 76 | AP87: 3 | AR87: -
A88: 77 | B88: =IF(REG!B87<>"",REG!B87,"") ->  | C88: =IF(REG!C87<>"",REG!G87,"") ->  | D88: =IF('G Q 3'!R88="","DNR",IF('G Q 3'!R88="-",+'G Q 3'!D88,+'G Q 3'!R88)) -> DNR | H88: - | R88: - | S88: 3 | T88: 77 | V88: - | W88: =IF(R88="","",COUNTIF(R12:R88,"-")) -> 75 | AD88: 0 | AE88: =IF(R88="","",IF(AD88="0","0",COUNTIF(AD12:AD87,AD88))) -> 0 | AG88: 0 | AI88: 0 | AK88: 0 | AM88: =COUNTIF(AS12:AS88,"W") -> 0 | AN88: =IF(AR88="","",COUNTIF(AR12:AR88,"-")) -> 75 | AO88: 77 | AP88: 3 | AR88: -
A89: 78 | B89: =IF(REG!B88<>"",REG!B88,"") ->  | C89: =IF(REG!C88<>"",REG!G88,"") ->  | D89: =IF('G Q 3'!R89="","DNR",IF('G Q 3'!R89="-",+'G Q 3'!D89,+'G Q 3'!R89)) -> DNR | H89: - | R89: - | S89: 3 | T89: 78 | V89: - | W89: =IF(R89="","",COUNTIF(R12:R89,"-")) -> 76 | AD89: 0 | AE89: =IF(R89="","",IF(AD89="0","0",COUNTIF(AD12:AD88,AD89))) -> 0 | AG89: 0 | AI89: 0 | AK89: 0 | AM89: =COUNTIF(AS12:AS89,"W") -> 0 | AN89: =IF(AR89="","",COUNTIF(AR12:AR89,"-")) -> 76 | AO89: 78 | AP89: 3 | AR89: -
A90: 79 | B90: =IF(REG!B89<>"",REG!B89,"") ->  | C90: =IF(REG!C89<>"",REG!G89,"") ->  | D90: =IF('G Q 3'!R90="","DNR",IF('G Q 3'!R90="-",+'G Q 3'!D90,+'G Q 3'!R90)) -> DNR | H90: - | R90: - | S90: 3 | T90: 79 | V90: - | W90: =IF(R90="","",COUNTIF(R12:R90,"-")) -> 77 | AD90: 0 | AE90: =IF(R90="","",IF(AD90="0","0",COUNTIF(AD12:AD89,AD90))) -> 0 | AG90: 0 | AI90: 0 | AK90: 0 | AM90: =COUNTIF(AS12:AS90,"W") -> 0 | AN90: =IF(AR90="","",COUNTIF(AR12:AR90,"-")) -> 77 | AO90: 79 | AP90: 3 | AR90: -
A91: 80 | B91: =IF(REG!B90<>"",REG!B90,"") ->  | C91: =IF(REG!C90<>"",REG!G90,"") ->  | D91: =IF('G Q 3'!R91="","DNR",IF('G Q 3'!R91="-",+'G Q 3'!D91,+'G Q 3'!R91)) -> DNR | H91: - | R91: - | S91: 3 | T91: 80 | V91: - | W91: =IF(R91="","",COUNTIF(R12:R91,"-")) -> 78 | AD91: 0 | AE91: =IF(R91="","",IF(AD91="0","0",COUNTIF(AD12:AD90,AD91))) -> 0 | AG91: 0 | AI91: 0 | AK91: 0 | AM91: =COUNTIF(AS12:AS91,"W") -> 0 | AN91: =IF(AR91="","",COUNTIF(AR12:AR91,"-")) -> 78 | AO91: 80 | AP91: 3 | AR91: -
A92: 81 | B92: =IF(REG!B91<>"",REG!B91,"") ->  | C92: =IF(REG!C91<>"",REG!G91,"") ->  | D92: =IF('G Q 3'!R92="","DNR",IF('G Q 3'!R92="-",+'G Q 3'!D92,+'G Q 3'!R92)) -> DNR | H92: - | R92: - | S92: 3 | T92: 81 | V92: - | W92: =IF(R92="","",COUNTIF(R12:R92,"-")) -> 79 | AD92: 0 | AE92: =IF(R92="","",IF(AD92="0","0",COUNTIF(AD12:AD91,AD92))) -> 0 | AG92: 0 | AI92: 0 | AK92: 0 | AM92: =COUNTIF(AS12:AS92,"W") -> 0 | AN92: =IF(AR92="","",COUNTIF(AR12:AR92,"-")) -> 79 | AO92: 81 | AP92: 3 | AR92: -
A93: 82 | B93: =IF(REG!B92<>"",REG!B92,"") ->  | C93: =IF(REG!C92<>"",REG!G92,"") ->  | D93: =IF('G Q 3'!R93="","DNR",IF('G Q 3'!R93="-",+'G Q 3'!D93,+'G Q 3'!R93)) -> DNR | H93: - | R93: - | S93: 3 | T93: 82 | V93: - | W93: =IF(R93="","",COUNTIF(R12:R93,"-")) -> 80 | AD93: 0 | AE93: =IF(R93="","",IF(AD93="0","0",COUNTIF(AD12:AD92,AD93))) -> 0 | AG93: 0 | AI93: 0 | AK93: 0 | AM93: =COUNTIF(AS12:AS93,"W") -> 0 | AN93: =IF(AR93="","",COUNTIF(AR12:AR93,"-")) -> 80 | AO93: 82 | AP93: 3 | AR93: -
A94: 83 | B94: =IF(REG!B93<>"",REG!B93,"") ->  | C94: =IF(REG!C93<>"",REG!G93,"") ->  | D94: =IF('G Q 3'!R94="","DNR",IF('G Q 3'!R94="-",+'G Q 3'!D94,+'G Q 3'!R94)) -> DNR | H94: - | R94: - | S94: 3 | T94: 83 | V94: - | W94: =IF(R94="","",COUNTIF(R12:R94,"-")) -> 81 | AD94: 0 | AE94: =IF(R94="","",IF(AD94="0","0",COUNTIF(AD12:AD93,AD94))) -> 0 | AG94: 0 | AI94: 0 | AK94: 0 | AM94: =COUNTIF(AS12:AS94,"W") -> 0 | AN94: =IF(AR94="","",COUNTIF(AR12:AR94,"-")) -> 81 | AO94: 83 | AP94: 3 | AR94: -
A95: 84 | B95: =IF(REG!B94<>"",REG!B94,"") ->  | C95: =IF(REG!C94<>"",REG!G94,"") ->  | D95: =IF('G Q 3'!R95="","DNR",IF('G Q 3'!R95="-",+'G Q 3'!D95,+'G Q 3'!R95)) -> DNR | H95: - | R95: - | S95: 3 | T95: 84 | V95: - | W95: =IF(R95="","",COUNTIF(R12:R95,"-")) -> 82 | AD95: 0 | AE95: =IF(R95="","",IF(AD95="0","0",COUNTIF(AD12:AD94,AD95))) -> 0 | AG95: 0 | AI95: 0 | AK95: 0 | AM95: =COUNTIF(AS12:AS95,"W") -> 0 | AN95: =IF(AR95="","",COUNTIF(AR12:AR95,"-")) -> 82 | AO95: 84 | AP95: 3 | AR95: -
A96: 85 | B96: =IF(REG!B95<>"",REG!B95,"") ->  | C96: =IF(REG!C95<>"",REG!G95,"") ->  | D96: =IF('G Q 3'!R96="","DNR",IF('G Q 3'!R96="-",+'G Q 3'!D96,+'G Q 3'!R96)) -> DNR | H96: - | R96: - | S96: 3 | T96: 85 | V96: - | W96: =IF(R96="","",COUNTIF(R12:R96,"-")) -> 83 | AD96: 0 | AE96: =IF(R96="","",IF(AD96="0","0",COUNTIF(AD12:AD95,AD96))) -> 0 | AG96: 0 | AI96: 0 | AK96: 0 | AM96: =COUNTIF(AS12:AS96,"W") -> 0 | AN96: =IF(AR96="","",COUNTIF(AR12:AR96,"-")) -> 83 | AO96: 85 | AP96: 3 | AR96: -
A97: 86 | B97: =IF(REG!B96<>"",REG!B96,"") ->  | C97: =IF(REG!C96<>"",REG!G96,"") ->  | D97: =IF('G Q 3'!R97="","DNR",IF('G Q 3'!R97="-",+'G Q 3'!D97,+'G Q 3'!R97)) -> DNR | H97: - | R97: - | S97: 3 | T97: 86 | V97: - | W97: =IF(R97="","",COUNTIF(R12:R97,"-")) -> 84 | AD97: 0 | AE97: =IF(R97="","",IF(AD97="0","0",COUNTIF(AD12:AD96,AD97))) -> 0 | AG97: 0 | AI97: 0 | AK97: 0 | AM97: =COUNTIF(AS12:AS97,"W") -> 0 | AN97: =IF(AR97="","",COUNTIF(AR12:AR97,"-")) -> 84 | AO97: 86 | AP97: 3 | AR97: -
A98: 87 | B98: =IF(REG!B97<>"",REG!B97,"") ->  | C98: =IF(REG!C97<>"",REG!G97,"") ->  | D98: =IF('G Q 3'!R98="","DNR",IF('G Q 3'!R98="-",+'G Q 3'!D98,+'G Q 3'!R98)) -> DNR | H98: - | R98: - | S98: 3 | T98: 87 | V98: - | W98: =IF(R98="","",COUNTIF(R12:R98,"-")) -> 85 | AD98: 0 | AE98: =IF(R98="","",IF(AD98="0","0",COUNTIF(AD12:AD97,AD98))) -> 0 | AG98: 0 | AI98: 0 | AK98: 0 | AM98: =COUNTIF(AS12:AS98,"W") -> 0 | AN98: =IF(AR98="","",COUNTIF(AR12:AR98,"-")) -> 85 | AO98: 87 | AP98: 3 | AR98: -
A99: 88 | B99: =IF(REG!B98<>"",REG!B98,"") ->  | C99: =IF(REG!C98<>"",REG!G98,"") ->  | D99: =IF('G Q 3'!R99="","DNR",IF('G Q 3'!R99="-",+'G Q 3'!D99,+'G Q 3'!R99)) -> DNR | H99: - | R99: - | S99: 3 | T99: 88 | V99: - | W99: =IF(R99="","",COUNTIF(R12:R99,"-")) -> 86 | AD99: 0 | AE99: =IF(R99="","",IF(AD99="0","0",COUNTIF(AD12:AD98,AD99))) -> 0 | AG99: 0 | AI99: 0 | AK99: 0 | AM99: =COUNTIF(AS12:AS99,"W") -> 0 | AN99: =IF(AR99="","",COUNTIF(AR12:AR99,"-")) -> 86 | AO99: 88 | AP99: 3 | AR99: -
A100: 89 | B100: =IF(REG!B99<>"",REG!B99,"") ->  | C100: =IF(REG!C99<>"",REG!G99,"") ->  | D100: =IF('G Q 3'!R100="","DNR",IF('G Q 3'!R100="-",+'G Q 3'!D100,+'G Q 3'!R100)) -> DNR | H100: - | R100: - | S100: 3 | T100: 89 | V100: - | W100: =IF(R100="","",COUNTIF(R12:R100,"-")) -> 87 | AD100: 0 | AE100: =IF(R100="","",IF(AD100="0","0",COUNTIF(AD12:AD99,AD100))) -> 0 | AG100: 0 | AI100: 0 | AK100: 0 | AM100: =COUNTIF(AS12:AS100,"W") -> 0 | AN100: =IF(AR100="","",COUNTIF(AR12:AR100,"-")) -> 87 | AO100: 89 | AP100: 3 | AR100: -
A101: 90 | B101: =IF(REG!B100<>"",REG!B100,"") ->  | C101: =IF(REG!C100<>"",REG!G100,"") ->  | D101: =IF('G Q 3'!R101="","DNR",IF('G Q 3'!R101="-",+'G Q 3'!D101,+'G Q 3'!R101)) -> DNR | H101: - | R101: - | S101: 3 | T101: 90 | V101: - | W101: =IF(R101="","",COUNTIF(R12:R101,"-")) -> 88 | AD101: 0 | AE101: =IF(R101="","",IF(AD101="0","0",COUNTIF(AD12:AD100,AD101))) -> 0 | AG101: 0 | AI101: 0 | AK101: 0 | AM101: =COUNTIF(AS12:AS101,"W") -> 0 | AN101: =IF(AR101="","",COUNTIF(AR12:AR101,"-")) -> 88 | AO101: 90 | AP101: 3 | AR101: -
A102: 91 | B102: =IF(REG!B101<>"",REG!B101,"") ->  | C102: =IF(REG!C101<>"",REG!G101,"") ->  | D102: =IF('G Q 3'!R102="","DNR",IF('G Q 3'!R102="-",+'G Q 3'!D102,+'G Q 3'!R102)) -> DNR | H102: - | R102: - | S102: 3 | T102: 91 | V102: - | W102: =IF(R102="","",COUNTIF(R12:R102,"-")) -> 89 | AD102: 0 | AE102: =IF(R102="","",IF(AD102="0","0",COUNTIF(AD12:AD101,AD102))) -> 0 | AG102: 0 | AI102: 0 | AK102: 0 | AM102: =COUNTIF(AS12:AS102,"W") -> 0 | AN102: =IF(AR102="","",COUNTIF(AR12:AR102,"-")) -> 89 | AO102: 91 | AP102: 3 | AR102: -
A103: 92 | B103: =IF(REG!B102<>"",REG!B102,"") ->  | C103: =IF(REG!C102<>"",REG!G102,"") ->  | D103: =IF('G Q 3'!R103="","DNR",IF('G Q 3'!R103="-",+'G Q 3'!D103,+'G Q 3'!R103)) -> DNR | H103: - | R103: - | S103: 3 | T103: 92 | V103: - | W103: =IF(R103="","",COUNTIF(R12:R103,"-")) -> 90 | AD103: 0 | AE103: =IF(R103="","",IF(AD103="0","0",COUNTIF(AD12:AD102,AD103))) -> 0 | AG103: 0 | AI103: 0 | AK103: 0 | AM103: =COUNTIF(AS12:AS103,"W") -> 0 | AN103: =IF(AR103="","",COUNTIF(AR12:AR103,"-")) -> 90 | AO103: 92 | AP103: 3 | AR103: -
A104: 93 | B104: =IF(REG!B103<>"",REG!B103,"") ->  | C104: =IF(REG!C103<>"",REG!G103,"") ->  | D104: =IF('G Q 3'!R104="","DNR",IF('G Q 3'!R104="-",+'G Q 3'!D104,+'G Q 3'!R104)) -> DNR | H104: - | R104: - | S104: 3 | T104: 93 | V104: - | W104: =IF(R104="","",COUNTIF(R12:R104,"-")) -> 91 | AD104: 0 | AE104: =IF(R104="","",IF(AD104="0","0",COUNTIF(AD12:AD103,AD104))) -> 0 | AG104: 0 | AI104: 0 | AK104: 0 | AM104: =COUNTIF(AS12:AS104,"W") -> 0 | AN104: =IF(AR104="","",COUNTIF(AR12:AR104,"-")) -> 91 | AO104: 93 | AP104: 3 | AR104: -
A105: 94 | B105: =IF(REG!B104<>"",REG!B104,"") ->  | C105: =IF(REG!C104<>"",REG!G104,"") ->  | D105: =IF('G Q 3'!R105="","DNR",IF('G Q 3'!R105="-",+'G Q 3'!D105,+'G Q 3'!R105)) -> DNR | H105: - | R105: - | S105: 3 | T105: 94 | V105: - | W105: =IF(R105="","",COUNTIF(R12:R105,"-")) -> 92 | AD105: 0 | AE105: =IF(R105="","",IF(AD105="0","0",COUNTIF(AD12:AD104,AD105))) -> 0 | AG105: 0 | AI105: 0 | AK105: 0 | AM105: =COUNTIF(AS12:AS105,"W") -> 0 | AN105: =IF(AR105="","",COUNTIF(AR12:AR105,"-")) -> 92 | AO105: 94 | AP105: 3 | AR105: -
A106: 95 | B106: =IF(REG!B105<>"",REG!B105,"") ->  | C106: =IF(REG!C105<>"",REG!G105,"") ->  | D106: =IF('G Q 3'!R106="","DNR",IF('G Q 3'!R106="-",+'G Q 3'!D106,+'G Q 3'!R106)) -> DNR | H106: - | R106: - | S106: 3 | T106: 95 | V106: - | W106: =IF(R106="","",COUNTIF(R12:R106,"-")) -> 93 | AD106: 0 | AE106: =IF(R106="","",IF(AD106="0","0",COUNTIF(AD12:AD105,AD106))) -> 0 | AG106: 0 | AI106: 0 | AK106: 0 | AM106: =COUNTIF(AS12:AS106,"W") -> 0 | AN106: =IF(AR106="","",COUNTIF(AR12:AR106,"-")) -> 93 | AO106: 95 | AP106: 3 | AR106: -
A107: 96 | B107: =IF(REG!B106<>"",REG!B106,"") ->  | C107: =IF(REG!C106<>"",REG!G106,"") ->  | D107: =IF('G Q 3'!R107="","DNR",IF('G Q 3'!R107="-",+'G Q 3'!D107,+'G Q 3'!R107)) -> DNR | H107: - | R107: - | S107: 3 | T107: 96 | V107: - | W107: =IF(R107="","",COUNTIF(R12:R107,"-")) -> 94 | AD107: 0 | AE107: =IF(R107="","",IF(AD107="0","0",COUNTIF(AD12:AD106,AD107))) -> 0 | AG107: 0 | AI107: 0 | AK107: 0 | AM107: =COUNTIF(AS12:AS107,"W") -> 0 | AN107: =IF(AR107="","",COUNTIF(AR12:AR107,"-")) -> 94 | AO107: 96 | AP107: 3 | AR107: -
A108: 97 | B108: =IF(REG!B107<>"",REG!B107,"") ->  | C108: =IF(REG!C107<>"",REG!G107,"") ->  | D108: =IF('G Q 3'!R108="","DNR",IF('G Q 3'!R108="-",+'G Q 3'!D108,+'G Q 3'!R108)) -> DNR | H108: - | R108: - | S108: 3 | T108: 97 | V108: - | W108: =IF(R108="","",COUNTIF(R12:R108,"-")) -> 95 | AD108: 0 | AE108: =IF(R108="","",IF(AD108="0","0",COUNTIF(AD12:AD107,AD108))) -> 0 | AG108: 0 | AI108: 0 | AK108: 0 | AM108: =COUNTIF(AS12:AS108,"W") -> 0 | AN108: =IF(AR108="","",COUNTIF(AR12:AR108,"-")) -> 95 | AO108: 97 | AP108: 3 | AR108: -
A109: 98 | B109: =IF(REG!B108<>"",REG!B108,"") ->  | C109: =IF(REG!C108<>"",REG!G108,"") ->  | D109: =IF('G Q 3'!R109="","DNR",IF('G Q 3'!R109="-",+'G Q 3'!D109,+'G Q 3'!R109)) -> DNR | H109: - | R109: - | S109: 3 | T109: 98 | V109: - | W109: =IF(R109="","",COUNTIF(R12:R109,"-")) -> 96 | AD109: 0 | AE109: =IF(R109="","",IF(AD109="0","0",COUNTIF(AD12:AD108,AD109))) -> 0 | AG109: 0 | AI109: 0 | AK109: 0 | AM109: =COUNTIF(AS12:AS109,"W") -> 0 | AN109: =IF(AR109="","",COUNTIF(AR12:AR109,"-")) -> 96 | AO109: 98 | AP109: 3 | AR109: -
A110: 99 | B110: =IF(REG!B109<>"",REG!B109,"") ->  | C110: =IF(REG!C109<>"",REG!G109,"") ->  | D110: =IF('G Q 3'!R110="","DNR",IF('G Q 3'!R110="-",+'G Q 3'!D110,+'G Q 3'!R110)) -> DNR | H110: - | R110: - | S110: 3 | T110: 99 | V110: - | W110: =IF(R110="","",COUNTIF(R12:R110,"-")) -> 97 | AD110: 0 | AE110: =IF(R110="","",IF(AD110="0","0",COUNTIF(AD12:AD109,AD110))) -> 0 | AG110: 0 | AI110: 0 | AK110: 0 | AM110: =COUNTIF(AS12:AS110,"W") -> 0 | AN110: =IF(AR110="","",COUNTIF(AR12:AR110,"-")) -> 97 | AO110: 99 | AP110: 3 | AR110: -
A111: 100 | B111: =IF(REG!B110<>"",REG!B110,"") ->  | C111: =IF(REG!C110<>"",REG!G110,"") ->  | D111: =IF('G Q 3'!R111="","DNR",IF('G Q 3'!R111="-",+'G Q 3'!D111,+'G Q 3'!R111)) -> DNR | H111: - | R111: - | S111: 3 | T111: 100 | V111: - | W111: =IF(R111="","",COUNTIF(R12:R111,"-")) -> 98 | AD111: 0 | AE111: =IF(R111="","",IF(AD111="0","0",COUNTIF(AD12:AD110,AD111))) -> 0 | AG111: 0 | AI111: 0 | AK111: 0 | AM111: =COUNTIF(AS12:AS111,"W") -> 0 | AN111: =IF(AR111="","",COUNTIF(AR12:AR111,"-")) -> 98 | AO111: 100 | AP111: 3 | AR111: -

Sheet G H2H
C1: =CONTEST!B4 -> Skate n Roll Polička 2022
B2: =_xll.iPush("TEEN_Giant_H2H", "WCH_SK8_2018", 'G H2H'!$A$5:$S$86, 'G H2H'!$A$5:$S$86, 'G H2H'!$A$5:$S$86, 1, TRUE) ->  | C2: =CONTEST!B6 -> 13.8. - 14.8.2022
A3: 8 | B3: Top Bracket (32-16-8-4-2) | C3: =CONCATENATE(CONTEST!B8," / ",CONTEST!B17," / ",CONTEST!B13) -> GIANT SLALOM / Eliminations / TEEN 12-14
A5: Qualifying Position | B5: Racer No. & Name | C5: Run 1 | J5: R1 Margin | K5: Run 2 | R5: R2 Margin | S5: Round Winner & Combined Margin | T5: Loser’s Final Placement | U5: Round Loser | V5: Qualifying Time | W5: Qualifying Position
C6: Raw Time | D6: Cones | E6: Reaction Time | F6: False Start | G6: Final Time | H6: Run Rank | I6: Winner & Margin | K6: Raw Time | L6: Cones | M6: Reaction Time | N6: False Start | O6: Final Time | P6: Run Rank | Q6: Winner & Margin
B7: Round of 32
A8: 1 | B8: =IF(A3<A8,"BYE",IF(ISERROR(VLOOKUP(A8,'G Q 4'!AO12:'G Q 4'!AQ111,3,FALSE))=TRUE,"BYE",VLOOKUP(A8,'G Q 4'!AO12:'G Q 4'!AQ111,3,FALSE))) -> Voves Jindřich [CZE] | G8: =IF(LEFT(C8:C39,1)="D","-",IF(D8:D39>'G Q 4'!A6,"-",IF(C8:C39>0,C8:C39+D8:D39*'G Q 4'!A5+F8:F39*'G Q 4'!A7,""))) ->  | H8: =IF(G8:G39="","", IF(G8:G39="-","", RANK(G8:G39,G8:G39,1))) ->  | I8: =IF(AND(LEFT(C8,1)="D",LEFT(C9,1)="D"),"",IF(OR(C8="DNR",C9="DNR"),IF(C8="DNR",B9,B8),IF(OR(ISBLANK(C8),ISBLANK(C9)),"",IF(G8=G9,"TIE",IF(G8>G9,B9,B8))))) ->  | O8: =IF(LEFT(K8:K39,1)="D","-",IF(L8:L39>'G Q 4'!A6,"-",IF(K8:K39>0,K8:K39+L8:L39*'G Q 4'!A5+N8:N39*'G Q 4'!A7,""))) ->  | P8: =IF(O8:O39="","",IF(O8:O39="-","", RANK(O8:O39,O8:O39,1))) ->  | Q8: =IF(AND(LEFT(K8,1)="D",LEFT(K9,1)="D"),"",IF(OR(K8="DNR",K9="DNR"),IF(K8="DNR",B9,B8),IF(OR(ISBLANK(K8),ISBLANK(K9)),"",IF(O8=O9,"TIE",IF(O8>O9,B9,B8))))) ->  | S8: =IF(B9="BYE", B8, IF(ISERROR(J9+R9)=TRUE,"",IF(J9+R9=0,"TIE - HOLD RUNOFF",IF(J9+R9>0,B9,B8)))) -> Voves Jindřich [CZE]
A9: 32 | B9: =IF(A3<A9,"BYE",IF(ISERROR(VLOOKUP(A9,'G Q 4'!AO12:'G Q 4'!AQ111,3,FALSE))=TRUE,"BYE",VLOOKUP(A9,'G Q 4'!AO12:'G Q 4'!AQ111,3,FALSE))) -> BYE | I9: =IF(AND(LEFT(C8,1)="D",LEFT(C9,1)="D"),"",IF(OR(C8="DNR",C9="DNR"),"by "&ABS(J9)&" seconds",IF(OR(ISBLANK(C8),ISBLANK(C9),G8=G9),"","by "&ABS(J9)&" seconds"))) ->  | J9: =IF(AND(LEFT(C8,1)="D",LEFT(C9,1)="D"),"0",IF(OR(C8="DNR",C9="DNR"),IF(C8="DNR",1,-1)*'G Q 4'!A8,IF(OR(ISBLANK(C8),ISBLANK(C9)),"",IF(OR(G8="-",G9="-"),IF(G8="-",1,-1)*'G Q 4'!A8,IF(ABS(G8-G9)>'G Q 4'!A9,IF(G8-G9>'G Q 4'!A9,1,-1)*'G Q 4'!A9,ROUND(G8-G9,3)))))) ->  | Q9: =IF(AND(LEFT(K8,1)="D",LEFT(K9,1)="D"),"",IF(OR(K8="DNR",K9="DNR"),"by "&ABS(R9)&" seconds",IF(OR(ISBLANK(K8),ISBLANK(K9),O8=O9),"","by "&ABS(R9)&" seconds"))) ->  | R9: =IF(AND(LEFT(K8,1)="D",LEFT(K9,1)="D"),"0",IF(OR(K8="DNR",K9="DNR"),IF(K8="DNR",1,-1)*'G Q 4'!A8,IF(OR(ISBLANK(K8),ISBLANK(K9)),"",IF(OR(O8="-",O9="-"),IF(O8="-",1,-1)*'G Q 4'!A8,IF(ABS(O8-O9)>'G Q 4'!A9,IF(O8-O9>'G Q 4'!A9,1,-1)*'G Q 4'!A9,ROUND(O8-O9,3)))))) ->  | S9: =IF(B9="BYE","(BYE)",IF(ISERROR(J9+R9)=TRUE,"",IF(J9+R9=0,"","by "&ABS(J9+R9)&" seconds"))) -> (BYE) | T9: =IF(W9:W39="","",IF(ISERROR(W9:W39)=TRUE,"",16+RANK(W9:W39,W9:W39,1))) ->  | U9: =IF(B9="BYE", B9, IF(ISERROR(J9+R9)=TRUE,"",IF(J9+R9>0,B8,B9))) -> BYE | V9: =IF(ISERROR(VLOOKUP(U9,'G Q 4'!U12:V111,2,FALSE))=TRUE,"",VLOOKUP(U9,'G Q 4'!U12:V111,2,FALSE)) ->  | W9: =IF(ISERROR(VLOOKUP(U9,'G Q 4'!AL12:AO111,4,FALSE))=TRUE,"",VLOOKUP(U9,'G Q 4'!AL12:AO111,4,FALSE)) -> 
A10: 16 | B10: =IF(A3<A10,"BYE",IF(ISERROR(VLOOKUP(A10,'G Q 4'!AO12:'G Q 4'!AQ111,3,FALSE))=TRUE,"BYE",VLOOKUP(A10,'G Q 4'!AO12:'G Q 4'!AQ111,3,FALSE))) -> BYE | I10: =IF(AND(LEFT(C10,1)="D",LEFT(C11,1)="D"),"",IF(OR(C10="DNR",C11="DNR"),IF(C10="DNR",B11,B10),IF(OR(ISBLANK(C10),ISBLANK(C11)),"",IF(G10=G11,"TIE",IF(G10>G11,B11,B10))))) ->  | Q10: =IF(AND(LEFT(K10,1)="D",LEFT(K11,1)="D"),"",IF(OR(K10="DNR",K11="DNR"),IF(K10="DNR",B11,B10),IF(OR(ISBLANK(K10),ISBLANK(K11)),"",IF(O10=O11,"TIE",IF(O10>O11,B11,B10))))) ->  | S10: =IF(B11="BYE", B10, IF(ISERROR(J11+R11)=TRUE,"",IF(J11+R11=0,"TIE - HOLD RUNOFF",IF(J11+R11>0,B11,B10)))) -> BYE
A11: 17 | B11: =IF(A3<A11,"BYE",IF(ISERROR(VLOOKUP(A11,'G Q 4'!AO12:'G Q 4'!AQ111,3,FALSE))=TRUE,"BYE",VLOOKUP(A11,'G Q 4'!AO12:'G Q 4'!AQ111,3,FALSE))) -> BYE | I11: =IF(AND(LEFT(C10,1)="D",LEFT(C11,1)="D"),"",IF(OR(C10="DNR",C11="DNR"),"by "&ABS(J11)&" seconds",IF(OR(ISBLANK(C10),ISBLANK(C11),G10=G11),"","by "&ABS(J11)&" seconds"))) ->  | J11: =IF(AND(LEFT(C10,1)="D",LEFT(C11,1)="D"),"0",IF(OR(C10="DNR",C11="DNR"),IF(C10="DNR",1,-1)*'G Q 4'!A8,IF(OR(ISBLANK(C10),ISBLANK(C11)),"",IF(OR(G10="-",G11="-"),IF(G10="-",1,-1)*'G Q 4'!A8,IF(ABS(G10-G11)>'G Q 4'!A9,IF(G10-G11>'G Q 4'!A9,1,-1)*'G Q 4'!A9,ROUND(G10-G11,3)))))) ->  | Q11: =IF(AND(LEFT(K10,1)="D",LEFT(K11,1)="D"),"",IF(OR(K10="DNR",K11="DNR"),"by "&ABS(R11)&" seconds",IF(OR(ISBLANK(K10),ISBLANK(K11),O10=O11),"","by "&ABS(R11)&" seconds"))) ->  | R11: =IF(AND(LEFT(K10,1)="D",LEFT(K11,1)="D"),"0",IF(OR(K10="DNR",K11="DNR"),IF(K10="DNR",1,-1)*'G Q 4'!A8,IF(OR(ISBLANK(K10),ISBLANK(K11)),"",IF(OR(O10="-",O11="-"),IF(O10="-",1,-1)*'G Q 4'!A8,IF(ABS(O10-O11)>'G Q 4'!A9,IF(O10-O11>'G Q 4'!A9,1,-1)*'G Q 4'!A9,ROUND(O10-O11,3)))))) ->  | S11: =IF(B11="BYE","(BYE)",IF(ISERROR(J11+R11)=TRUE,"",IF(J11+R11=0,"","by "&ABS(J11+R11)&" seconds"))) -> (BYE) | U11: =IF(B11="BYE", B11, IF(ISERROR(J11+R11)=TRUE,"",IF(J11+R11>0,B10,B11))) -> BYE | V11: =IF(ISERROR(VLOOKUP(U11,'G Q 4'!U12:V111,2,FALSE))=TRUE,"",VLOOKUP(U11,'G Q 4'!U12:V111,2,FALSE)) ->  | W11: =IF(ISERROR(VLOOKUP(U11,'G Q 4'!AL12:AO111,4,FALSE))=TRUE,"",VLOOKUP(U11,'G Q 4'!AL12:AO111,4,FALSE)) -> 
A12: 8 | B12: =IF(A3<A12,"BYE",IF(ISERROR(VLOOKUP(A12,'G Q 4'!AO12:'G Q 4'!AQ111,3,FALSE))=TRUE,"BYE",VLOOKUP(A12,'G Q 4'!AO12:'G Q 4'!AQ111,3,FALSE))) ->  | I12: =IF(AND(LEFT(C12,1)="D",LEFT(C13,1)="D"),"",IF(OR(C12="DNR",C13="DNR"),IF(C12="DNR",B13,B12),IF(OR(ISBLANK(C12),ISBLANK(C13)),"",IF(G12=G13,"TIE",IF(G12>G13,B13,B12))))) ->  | Q12: =IF(AND(LEFT(K12,1)="D",LEFT(K13,1)="D"),"",IF(OR(K12="DNR",K13="DNR"),IF(K12="DNR",B13,B12),IF(OR(ISBLANK(K12),ISBLANK(K13)),"",IF(O12=O13,"TIE",IF(O12>O13,B13,B12))))) ->  | S12: =IF(B13="BYE", B12, IF(ISERROR(J13+R13)=TRUE,"",IF(J13+R13=0,"TIE - HOLD RUNOFF",IF(J13+R13>0,B13,B12)))) -> 
A13: 25 | B13: =IF(A3<A13,"BYE",IF(ISERROR(VLOOKUP(A13,'G Q 4'!AO12:'G Q 4'!AQ111,3,FALSE))=TRUE,"BYE",VLOOKUP(A13,'G Q 4'!AO12:'G Q 4'!AQ111,3,FALSE))) -> BYE | I13: =IF(AND(LEFT(C12,1)="D",LEFT(C13,1)="D"),"",IF(OR(C12="DNR",C13="DNR"),"by "&ABS(J13)&" seconds",IF(OR(ISBLANK(C12),ISBLANK(C13),G12=G13),"","by "&ABS(J13)&" seconds"))) ->  | J13: =IF(AND(LEFT(C12,1)="D",LEFT(C13,1)="D"),"0",IF(OR(C12="DNR",C13="DNR"),IF(C12="DNR",1,-1)*'G Q 4'!A8,IF(OR(ISBLANK(C12),ISBLANK(C13)),"",IF(OR(G12="-",G13="-"),IF(G12="-",1,-1)*'G Q 4'!A8,IF(ABS(G12-G13)>'G Q 4'!A9,IF(G12-G13>'G Q 4'!A9,1,-1)*'G Q 4'!A9,ROUND(G12-G13,3)))))) ->  | Q13: =IF(AND(LEFT(K12,1)="D",LEFT(K13,1)="D"),"",IF(OR(K12="DNR",K13="DNR"),"by "&ABS(R13)&" seconds",IF(OR(ISBLANK(K12),ISBLANK(K13),O12=O13),"","by "&ABS(R13)&" seconds"))) ->  | R13: =IF(AND(LEFT(K12,1)="D",LEFT(K13,1)="D"),"0",IF(OR(K12="DNR",K13="DNR"),IF(K12="DNR",1,-1)*'G Q 4'!A8,IF(OR(ISBLANK(K12),ISBLANK(K13)),"",IF(OR(O12="-",O13="-"),IF(O12="-",1,-1)*'G Q 4'!A8,IF(ABS(O12-O13)>'G Q 4'!A9,IF(O12-O13>'G Q 4'!A9,1,-1)*'G Q 4'!A9,ROUND(O12-O13,3)))))) ->  | S13: =IF(B13="BYE","(BYE)",IF(ISERROR(J13+R13)=TRUE,"",IF(J13+R13=0,"","by "&ABS(J13+R13)&" seconds"))) -> (BYE) | U13: =IF(B13="BYE", B13, IF(ISERROR(J13+R13)=TRUE,"",IF(J13+R13>0,B12,B13))) -> BYE | V13: =IF(ISERROR(VLOOKUP(U13,'G Q 4'!U12:V111,2,FALSE))=TRUE,"",VLOOKUP(U13,'G Q 4'!U12:V111,2,FALSE)) ->  | W13: =IF(ISERROR(VLOOKUP(U13,'G Q 4'!AL12:AO111,4,FALSE))=TRUE,"",VLOOKUP(U13,'G Q 4'!AL12:AO111,4,FALSE)) -> 
A14: 9 | B14: =IF(A3<A14,"BYE",IF(ISERROR(VLOOKUP(A14,'G Q 4'!AO12:'G Q 4'!AQ111,3,FALSE))=TRUE,"BYE",VLOOKUP(A14,'G Q 4'!AO12:'G Q 4'!AQ111,3,FALSE))) -> BYE | I14: =IF(AND(LEFT(C14,1)="D",LEFT(C15,1)="D"),"",IF(OR(C14="DNR",C15="DNR"),IF(C14="DNR",B15,B14),IF(OR(ISBLANK(C14),ISBLANK(C15)),"",IF(G14=G15,"TIE",IF(G14>G15,B15,B14))))) ->  | Q14: =IF(AND(LEFT(K14,1)="D",LEFT(K15,1)="D"),"",IF(OR(K14="DNR",K15="DNR"),IF(K14="DNR",B15,B14),IF(OR(ISBLANK(K14),ISBLANK(K15)),"",IF(O14=O15,"TIE",IF(O14>O15,B15,B14))))) ->  | S14: =IF(B15="BYE", B14, IF(ISERROR(J15+R15)=TRUE,"",IF(J15+R15=0,"TIE - HOLD RUNOFF",IF(J15+R15>0,B15,B14)))) -> BYE
A15: 24 | B15: =IF(A3<A15,"BYE",IF(ISERROR(VLOOKUP(A15,'G Q 4'!AO12:'G Q 4'!AQ111,3,FALSE))=TRUE,"BYE",VLOOKUP(A15,'G Q 4'!AO12:'G Q 4'!AQ111,3,FALSE))) -> BYE | I15: =IF(AND(LEFT(C14,1)="D",LEFT(C15,1)="D"),"",IF(OR(C14="DNR",C15="DNR"),"by "&ABS(J15)&" seconds",IF(OR(ISBLANK(C14),ISBLANK(C15),G14=G15),"","by "&ABS(J15)&" seconds"))) ->  | J15: =IF(AND(LEFT(C14,1)="D",LEFT(C15,1)="D"),"0",IF(OR(C14="DNR",C15="DNR"),IF(C14="DNR",1,-1)*'G Q 4'!A8,IF(OR(ISBLANK(C14),ISBLANK(C15)),"",IF(OR(G14="-",G15="-",),IF(G14="-",1,-1)*'G Q 4'!A8,IF(ABS(G14-G15)>'G Q 4'!A9,IF(G14-G15>'G Q 4'!A9,1,-1)*'G Q 4'!A9,ROUND(G14-G15,3)))))) ->  | Q15: =IF(AND(LEFT(K14,1)="D",LEFT(K15,1)="D"),"",IF(OR(K14="DNR",K15="DNR"),"by "&ABS(R15)&" seconds",IF(OR(ISBLANK(K14),ISBLANK(K15),O14=O15),"","by "&ABS(R15)&" seconds"))) ->  | R15: =IF(AND(LEFT(K14,1)="D",LEFT(K15,1)="D"),"0",IF(OR(K14="DNR",K15="DNR"),IF(K14="DNR",1,-1)*'G Q 4'!A8,IF(OR(ISBLANK(K14),ISBLANK(K15)),"",IF(OR(O14="-",O15="-"),IF(O14="-",1,-1)*'G Q 4'!A8,IF(ABS(O14-O15)>'G Q 4'!A9,IF(O14-O15>'G Q 4'!A9,1,-1)*'G Q 4'!A9,ROUND(O14-O15,3)))))) ->  | S15: =IF(B15="BYE","(BYE)",IF(ISERROR(J15+R15)=TRUE,"",IF(J15+R15=0,"","by "&ABS(J15+R15)&" seconds"))) -> (BYE) | U15: =IF(B15="BYE", B15, IF(ISERROR(J15+R15)=TRUE,"",IF(J15+R15>0,B14,B15))) -> BYE | V15: =IF(ISERROR(VLOOKUP(U15,'G Q 4'!U12:V111,2,FALSE))=TRUE,"",VLOOKUP(U15,'G Q 4'!U12:V111,2,FALSE)) ->  | W15: =IF(ISERROR(VLOOKUP(U15,'G Q 4'!AL12:AO111,4,FALSE))=TRUE,"",VLOOKUP(U15,'G Q 4'!AL12:AO111,4,FALSE)) -> 
A16: 4 | B16: =IF(A3<A16,"BYE",IF(ISERROR(VLOOKUP(A16,'G Q 4'!AO12:'G Q 4'!AQ111,3,FALSE))=TRUE,"BYE",VLOOKUP(A16,'G Q 4'!AO12:'G Q 4'!AQ111,3,FALSE))) ->  | I16: =IF(AND(LEFT(C16,1)="D",LEFT(C17,1)="D"),"",IF(OR(C16="DNR",C17="DNR"),IF(C16="DNR",B17,B16),IF(OR(ISBLANK(C16),ISBLANK(C17)),"",IF(G16=G17,"TIE",IF(G16>G17,B17,B16))))) ->  | Q16: =IF(AND(LEFT(K16,1)="D",LEFT(K17,1)="D"),"",IF(OR(K16="DNR",K17="DNR"),IF(K16="DNR",B17,B16),IF(OR(ISBLANK(K16),ISBLANK(K17)),"",IF(O16=O17,"TIE",IF(O16>O17,B17,B16))))) ->  | S16: =IF(B17="BYE", B16, IF(ISERROR(J17+R17)=TRUE,"",IF(J17+R17=0,"TIE - HOLD RUNOFF",IF(J17+R17>0,B17,B16)))) -> 
A17: 29 | B17: =IF(A3<A17,"BYE",IF(ISERROR(VLOOKUP(A17,'G Q 4'!AO12:'G Q 4'!AQ111,3,FALSE))=TRUE,"BYE",VLOOKUP(A17,'G Q 4'!AO12:'G Q 4'!AQ111,3,FALSE))) -> BYE | I17: =IF(AND(LEFT(C16,1)="D",LEFT(C17,1)="D"),"",IF(OR(C16="DNR",C17="DNR"),"by "&ABS(J17)&" seconds",IF(OR(ISBLANK(C16),ISBLANK(C17),G16=G17),"","by "&ABS(J17)&" seconds"))) ->  | J17: =IF(AND(LEFT(C16,1)="D",LEFT(C17,1)="D"),"0",IF(OR(C16="DNR",C17="DNR"),IF(C16="DNR",1,-1)*'G Q 4'!A8,IF(OR(ISBLANK(C16),ISBLANK(C17)),"",IF(OR(G16="-",G17="-"),IF(G16="-",1,-1)*'G Q 4'!A8,IF(ABS(G16-G17)>'G Q 4'!A9,IF(G16-G17>'G Q 4'!A9,1,-1)*'G Q 4'!A9,ROUND(G16-G17,3)))))) ->  | Q17: =IF(AND(LEFT(K16,1)="D",LEFT(K17,1)="D"),"",IF(OR(K16="DNR",K17="DNR"),"by "&ABS(R17)&" seconds",IF(OR(ISBLANK(K16),ISBLANK(K17),O16=O17),"","by "&ABS(R17)&" seconds"))) ->  | R17: =IF(AND(LEFT(K16,1)="D",LEFT(K17,1)="D"),"0",IF(OR(K16="DNR",K17="DNR"),IF(K16="DNR",1,-1)*'G Q 4'!A8,IF(OR(ISBLANK(K16),ISBLANK(K17)),"",IF(OR(O16="-",O17="-"),IF(O16="-",1,-1)*'G Q 4'!A8,IF(ABS(O16-O17)>'G Q 4'!A9,IF(O16-O17>'G Q 4'!A9,1,-1)*'G Q 4'!A9,ROUND(O16-O17,3)))))) ->  | S17: =IF(B17="BYE","(BYE)",IF(ISERROR(J17+R17)=TRUE,"",IF(J17+R17=0,"","by "&ABS(J17+R17)&" seconds"))) -> (BYE) | U17: =IF(B17="BYE", B17, IF(ISERROR(J17+R17)=TRUE,"",IF(J17+R17>0,B16,B17))) -> BYE | V17: =IF(ISERROR(VLOOKUP(U17,'G Q 4'!U12:V111,2,FALSE))=TRUE,"",VLOOKUP(U17,'G Q 4'!U12:V111,2,FALSE)) ->  | W17: =IF(ISERROR(VLOOKUP(U17,'G Q 4'!AL12:AO111,4,FALSE))=TRUE,"",VLOOKUP(U17,'G Q 4'!AL12:AO111,4,FALSE)) -> 
A18: 13 | B18: =IF(A3<A18,"BYE",IF(ISERROR(VLOOKUP(A18,'G Q 4'!AO12:'G Q 4'!AQ111,3,FALSE))=TRUE,"BYE",VLOOKUP(A18,'G Q 4'!AO12:'G Q 4'!AQ111,3,FALSE))) -> BYE | I18: =IF(AND(LEFT(C18,1)="D",LEFT(C19,1)="D"),"",IF(OR(C18="DNR",C19="DNR"),IF(C18="DNR",B19,B18),IF(OR(ISBLANK(C18),ISBLANK(C19)),"",IF(G18=G19,"TIE",IF(G18>G19,B19,B18))))) ->  | Q18: =IF(AND(LEFT(K18,1)="D",LEFT(K19,1)="D"),"",IF(OR(K18="DNR",K19="DNR"),IF(K18="DNR",B19,B18),IF(OR(ISBLANK(K18),ISBLANK(K19)),"",IF(O18=O19,"TIE",IF(O18>O19,B19,B18))))) ->  | S18: =IF(B19="BYE", B18, IF(ISERROR(J19+R19)=TRUE,"",IF(J19+R19=0,"TIE - HOLD RUNOFF",IF(J19+R19>0,B19,B18)))) -> BYE
A19: 20 | B19: =IF(A3<A19,"BYE",IF(ISERROR(VLOOKUP(A19,'G Q 4'!AO12:'G Q 4'!AQ111,3,FALSE))=TRUE,"BYE",VLOOKUP(A19,'G Q 4'!AO12:'G Q 4'!AQ111,3,FALSE))) -> BYE | I19: =IF(AND(LEFT(C18,1)="D",LEFT(C19,1)="D"),"",IF(OR(C18="DNR",C19="DNR"),"by "&ABS(J19)&" seconds",IF(OR(ISBLANK(C18),ISBLANK(C19),G18=G19),"","by "&ABS(J19)&" seconds"))) ->  | J19: =IF(AND(LEFT(C18,1)="D",LEFT(C19,1)="D"),"0",IF(OR(C18="DNR",C19="DNR"),IF(C18="DNR",1,-1)*'G Q 4'!A8,IF(OR(ISBLANK(C18),ISBLANK(C19)),"",IF(OR(G18="-",G19="-"),IF(G18="-",1,-1)*'G Q 4'!A8,IF(ABS(G18-G19)>'G Q 4'!A9,IF(G18-G19>'G Q 4'!A9,1,-1)*'G Q 4'!A9,ROUND(G18-G19,3)))))) ->  | Q19: =IF(AND(LEFT(K18,1)="D",LEFT(K19,1)="D"),"",IF(OR(K18="DNR",K19="DNR"),"by "&ABS(R19)&" seconds",IF(OR(ISBLANK(K18),ISBLANK(K19),O18=O19),"","by "&ABS(R19)&" seconds"))) ->  | R19: =IF(AND(LEFT(K18,1)="D",LEFT(K19,1)="D"),"0",IF(OR(K18="DNR",K19="DNR"),IF(K18="DNR",1,-1)*'G Q 4'!A8,IF(OR(ISBLANK(K18),ISBLANK(K19)),"",IF(OR(O18="-",O19="-"),IF(O18="-",1,-1)*'G Q 4'!A8,IF(ABS(O18-O19)>'G Q 4'!A9,IF(O18-O19>'G Q 4'!A9,1,-1)*'G Q 4'!A9,ROUND(O18-O19,3)))))) ->  | S19: =IF(B19="BYE","(BYE)",IF(ISERROR(J19+R19)=TRUE,"",IF(J19+R19=0,"","by "&ABS(J19+R19)&" seconds"))) -> (BYE) | U19: =IF(B19="BYE", B19, IF(ISERROR(J19+R19)=TRUE,"",IF(J19+R19>0,B18,B19))) -> BYE | V19: =IF(ISERROR(VLOOKUP(U19,'G Q 4'!U12:V111,2,FALSE))=TRUE,"",VLOOKUP(U19,'G Q 4'!U12:V111,2,FALSE)) ->  | W19: =IF(ISERROR(VLOOKUP(U19,'G Q 4'!AL12:AO111,4,FALSE))=TRUE,"",VLOOKUP(U19,'G Q 4'!AL12:AO111,4,FALSE)) -> 
A20: 5 | B20: =IF(A3<A20,"BYE",IF(ISERROR(VLOOKUP(A20,'G Q 4'!AO12:'G Q 4'!AQ111,3,FALSE))=TRUE,"BYE",VLOOKUP(A20,'G Q 4'!AO12:'G Q 4'!AQ111,3,FALSE))) ->  | I20: =IF(AND(LEFT(C20,1)="D",LEFT(C21,1)="D"),"",IF(OR(C20="DNR",C21="DNR"),IF(C20="DNR",B21,B20),IF(OR(ISBLANK(C20),ISBLANK(C21)),"",IF(G20=G21,"TIE",IF(G20>G21,B21,B20))))) ->  | Q20: =IF(AND(LEFT(K20,1)="D",LEFT(K21,1)="D"),"",IF(OR(K20="DNR",K21="DNR"),IF(K20="DNR",B21,B20),IF(OR(ISBLANK(K20),ISBLANK(K21)),"",IF(O20=O21,"TIE",IF(O20>O21,B21,B20))))) ->  | S20: =IF(B21="BYE", B20, IF(ISERROR(J21+R21)=TRUE,"",IF(J21+R21=0,"TIE - HOLD RUNOFF",IF(J21+R21>0,B21,B20)))) -> 
A21: 28 | B21: =IF(A3<A21,"BYE",IF(ISERROR(VLOOKUP(A21,'G Q 4'!AO12:'G Q 4'!AQ111,3,FALSE))=TRUE,"BYE",VLOOKUP(A21,'G Q 4'!AO12:'G Q 4'!AQ111,3,FALSE))) -> BYE | I21: =IF(AND(LEFT(C20,1)="D",LEFT(C21,1)="D"),"",IF(OR(C20="DNR",C21="DNR"),"by "&ABS(J21)&" seconds",IF(OR(ISBLANK(C20),ISBLANK(C21),G20=G21),"","by "&ABS(J21)&" seconds"))) ->  | J21: =IF(AND(LEFT(C20,1)="D",LEFT(C21,1)="D"),"0",IF(OR(C20="DNR",C21="DNR"),IF(C20="DNR",1,-1)*'G Q 4'!A8,IF(OR(ISBLANK(C20),ISBLANK(C21)),"",IF(OR(G20="-",G21="-"),IF(G20="-",1,-1)*'G Q 4'!A8,IF(ABS(G20-G21)>'G Q 4'!A9,IF(G20-G21>'G Q 4'!A9,1,-1)*'G Q 4'!A9,ROUND(G20-G21,3)))))) ->  | Q21: =IF(AND(LEFT(K20,1)="D",LEFT(K21,1)="D"),"",IF(OR(K20="DNR",K21="DNR"),"by "&ABS(R21)&" seconds",IF(OR(ISBLANK(K20),ISBLANK(K21),O20=O21),"","by "&ABS(R21)&" seconds"))) ->  | R21: =IF(AND(LEFT(K20,1)="D",LEFT(K21,1)="D"),"0",IF(OR(K20="DNR",K21="DNR"),IF(K20="DNR",1,-1)*'G Q 4'!A8,IF(OR(ISBLANK(K20),ISBLANK(K21)),"",IF(OR(O20="-",O21="-"),IF(O20="-",1,-1)*'G Q 4'!A8,IF(ABS(O20-O21)>'G Q 4'!A9,IF(O20-O21>'G Q 4'!A9,1,-1)*'G Q 4'!A9,ROUND(O20-O21,3)))))) ->  | S21: =IF(B21="BYE","(BYE)",IF(ISERROR(J21+R21)=TRUE,"",IF(J21+R21=0,"","by "&ABS(J21+R21)&" seconds"))) -> (BYE) | U21: =IF(B21="BYE", B21, IF(ISERROR(J21+R21)=TRUE,"",IF(J21+R21>0,B20,B21))) -> BYE | V21: =IF(ISERROR(VLOOKUP(U21,'G Q 4'!U12:V111,2,FALSE))=TRUE,"",VLOOKUP(U21,'G Q 4'!U12:V111,2,FALSE)) ->  | W21: =IF(ISERROR(VLOOKUP(U21,'G Q 4'!AL12:AO111,4,FALSE))=TRUE,"",VLOOKUP(U21,'G Q 4'!AL12:AO111,4,FALSE)) -> 
A22: 12 | B22: =IF(A3<A22,"BYE",IF(ISERROR(VLOOKUP(A22,'G Q 4'!AO12:'G Q 4'!AQ111,3,FALSE))=TRUE,"BYE",VLOOKUP(A22,'G Q 4'!AO12:'G Q 4'!AQ111,3,FALSE))) -> BYE | I22: =IF(AND(LEFT(C22,1)="D",LEFT(C23,1)="D"),"",IF(OR(C22="DNR",C23="DNR"),IF(C22="DNR",B23,B22),IF(OR(ISBLANK(C22),ISBLANK(C23)),"",IF(G22=G23,"TIE",IF(G22>G23,B23,B22))))) ->  | Q22: =IF(AND(LEFT(K22,1)="D",LEFT(K23,1)="D"),"",IF(OR(K22="DNR",K23="DNR"),IF(K22="DNR",B23,B22),IF(OR(ISBLANK(K22),ISBLANK(K23)),"",IF(O22=O23,"TIE",IF(O22>O23,B23,B22))))) ->  | S22: =IF(B23="BYE", B22, IF(ISERROR(J23+R23)=TRUE,"",IF(J23+R23=0,"TIE - HOLD RUNOFF",IF(J23+R23>0,B23,B22)))) -> BYE
A23: 21 | B23: =IF(A3<A23,"BYE",IF(ISERROR(VLOOKUP(A23,'G Q 4'!AO12:'G Q 4'!AQ111,3,FALSE))=TRUE,"BYE",VLOOKUP(A23,'G Q 4'!AO12:'G Q 4'!AQ111,3,FALSE))) -> BYE | I23: =IF(AND(LEFT(C22,1)="D",LEFT(C23,1)="D"),"",IF(OR(C22="DNR",C23="DNR"),"by "&ABS(J23)&" seconds",IF(OR(ISBLANK(C22),ISBLANK(C23),G22=G23),"","by "&ABS(J23)&" seconds"))) ->  | J23: =IF(AND(LEFT(C22,1)="D",LEFT(C23,1)="D"),"0",IF(OR(C22="DNR",C23="DNR"),IF(C22="DNR",1,-1)*'G Q 4'!A8,IF(OR(ISBLANK(C22),ISBLANK(C23)),"",IF(OR(G22="-",G23="-"),IF(G22="-",1,-1)*'G Q 4'!A8,IF(ABS(G22-G23)>'G Q 4'!A9,IF(G22-G23>'G Q 4'!A9,1,-1)*'G Q 4'!A9,ROUND(G22-G23,3)))))) ->  | Q23: =IF(AND(LEFT(K22,1)="D",LEFT(K23,1)="D"),"",IF(OR(K22="DNR",K23="DNR"),"by "&ABS(R23)&" seconds",IF(OR(ISBLANK(K22),ISBLANK(K23),O22=O23),"","by "&ABS(R23)&" seconds"))) ->  | R23: =IF(AND(LEFT(K22,1)="D",LEFT(K23,1)="D"),"0",IF(OR(K22="DNR",K23="DNR"),IF(K22="DNR",1,-1)*'G Q 4'!A8,IF(OR(ISBLANK(K22),ISBLANK(K23)),"",IF(OR(O22="-",O23="-"),IF(O22="-",1,-1)*'G Q 4'!A8,IF(ABS(O22-O23)>'G Q 4'!A9,IF(O22-O23>'G Q 4'!A9,1,-1)*'G Q 4'!A9,ROUND(O22-O23,3)))))) ->  | S23: =IF(B23="BYE","(BYE)",IF(ISERROR(J23+R23)=TRUE,"",IF(J23+R23=0,"","by "&ABS(J23+R23)&" seconds"))) -> (BYE) | U23: =IF(B23="BYE", B23, IF(ISERROR(J23+R23)=TRUE,"",IF(J23+R23>0,B22,B23))) -> BYE | V23: =IF(ISERROR(VLOOKUP(U23,'G Q 4'!U12:V111,2,FALSE))=TRUE,"",VLOOKUP(U23,'G Q 4'!U12:V111,2,FALSE)) ->  | W23: =IF(ISERROR(VLOOKUP(U23,'G Q 4'!AL12:AO111,4,FALSE))=TRUE,"",VLOOKUP(U23,'G Q 4'!AL12:AO111,4,FALSE)) -> 
A24: 2 | B24: =IF(A3<A24,"BYE",IF(ISERROR(VLOOKUP(A24,'G Q 4'!AO12:'G Q 4'!AQ111,3,FALSE))=TRUE,"BYE",VLOOKUP(A24,'G Q 4'!AO12:'G Q 4'!AQ111,3,FALSE))) -> Rezková Anna [CZE] | I24: =IF(AND(LEFT(C24,1)="D",LEFT(C25,1)="D"),"",IF(OR(C24="DNR",C25="DNR"),IF(C24="DNR",B25,B24),IF(OR(ISBLANK(C24),ISBLANK(C25)),"",IF(G24=G25,"TIE",IF(G24>G25,B25,B24))))) ->  | Q24: =IF(AND(LEFT(K24,1)="D",LEFT(K25,1)="D"),"",IF(OR(K24="DNR",K25="DNR"),IF(K24="DNR",B25,B24),IF(OR(ISBLANK(K24),ISBLANK(K25)),"",IF(O24=O25,"TIE",IF(O24>O25,B25,B24))))) ->  | S24: =IF(B25="BYE", B24, IF(ISERROR(J25+R25)=TRUE,"",IF(J25+R25=0,"TIE - HOLD RUNOFF",IF(J25+R25>0,B25,B24)))) -> Rezková Anna [CZE]
A25: 31 | B25: =IF(A3<A25,"BYE",IF(ISERROR(VLOOKUP(A25,'G Q 4'!AO12:'G Q 4'!AQ111,3,FALSE))=TRUE,"BYE",VLOOKUP(A25,'G Q 4'!AO12:'G Q 4'!AQ111,3,FALSE))) -> BYE | I25: =IF(AND(LEFT(C24,1)="D",LEFT(C25,1)="D"),"",IF(OR(C24="DNR",C25="DNR"),"by "&ABS(J25)&" seconds",IF(OR(ISBLANK(C24),ISBLANK(C25),G24=G25),"","by "&ABS(J25)&" seconds"))) ->  | J25: =IF(AND(LEFT(C24,1)="D",LEFT(C25,1)="D"),"0",IF(OR(C24="DNR",C25="DNR"),IF(C24="DNR",1,-1)*'G Q 4'!A8,IF(OR(ISBLANK(C24),ISBLANK(C25)),"",IF(OR(G24="-",G25="-"),IF(G24="-",1,-1)*'G Q 4'!A8,IF(ABS(G24-G25)>'G Q 4'!A9,IF(G24-G25>'G Q 4'!A9,1,-1)*'G Q 4'!A9,ROUND(G24-G25,3)))))) ->  | Q25: =IF(AND(LEFT(K24,1)="D",LEFT(K25,1)="D"),"",IF(OR(K24="DNR",K25="DNR"),"by "&ABS(R25)&" seconds",IF(OR(ISBLANK(K24),ISBLANK(K25),O24=O25),"","by "&ABS(R25)&" seconds"))) ->  | R25: =IF(AND(LEFT(K24,1)="D",LEFT(K25,1)="D"),"0",IF(OR(K24="DNR",K25="DNR"),IF(K24="DNR",1,-1)*'G Q 4'!A8,IF(OR(ISBLANK(K24),ISBLANK(K25)),"",IF(OR(O24="-",O25="-"),IF(O24="-",1,-1)*'G Q 4'!A8,IF(ABS(O24-O25)>'G Q 4'!A9,IF(O24-O25>'G Q 4'!A9,1,-1)*'G Q 4'!A9,ROUND(O24-O25,3)))))) ->  | S25: =IF(B25="BYE","(BYE)",IF(ISERROR(J25+R25)=TRUE,"",IF(J25+R25=0,"","by "&ABS(J25+R25)&" seconds"))) -> (BYE) | U25: =IF(B25="BYE", B25, IF(ISERROR(J25+R25)=TRUE,"",IF(J25+R25>0,B24,B25))) -> BYE | V25: =IF(ISERROR(VLOOKUP(U25,'G Q 4'!U12:V111,2,FALSE))=TRUE,"",VLOOKUP(U25,'G Q 4'!U12:V111,2,FALSE)) ->  | W25: =IF(ISERROR(VLOOKUP(U25,'G Q 4'!AL12:AO111,4,FALSE))=TRUE,"",VLOOKUP(U25,'G Q 4'!AL12:AO111,4,FALSE)) -> 
A26: 15 | B26: =IF(A3<A26,"BYE",IF(ISERROR(VLOOKUP(A26,'G Q 4'!AO12:'G Q 4'!AQ111,3,FALSE))=TRUE,"BYE",VLOOKUP(A26,'G Q 4'!AO12:'G Q 4'!AQ111,3,FALSE))) -> BYE | I26: =IF(AND(LEFT(C26,1)="D",LEFT(C27,1)="D"),"",IF(OR(C26="DNR",C27="DNR"),IF(C26="DNR",B27,B26),IF(OR(ISBLANK(C26),ISBLANK(C27)),"",IF(G26=G27,"TIE",IF(G26>G27,B27,B26))))) ->  | Q26: =IF(AND(LEFT(K26,1)="D",LEFT(K27,1)="D"),"",IF(OR(K26="DNR",K27="DNR"),IF(K26="DNR",B27,B26),IF(OR(ISBLANK(K26),ISBLANK(K27)),"",IF(O26=O27,"TIE",IF(O26>O27,B27,B26))))) ->  | S26: =IF(B27="BYE", B26, IF(ISERROR(J27+R27)=TRUE,"",IF(J27+R27=0,"TIE - HOLD RUNOFF",IF(J27+R27>0,B27,B26)))) -> BYE
A27: 18 | B27: =IF(A3<A27,"BYE",IF(ISERROR(VLOOKUP(A27,'G Q 4'!AO12:'G Q 4'!AQ111,3,FALSE))=TRUE,"BYE",VLOOKUP(A27,'G Q 4'!AO12:'G Q 4'!AQ111,3,FALSE))) -> BYE | I27: =IF(AND(LEFT(C26,1)="D",LEFT(C27,1)="D"),"",IF(OR(C26="DNR",C27="DNR"),"by "&ABS(J27)&" seconds",IF(OR(ISBLANK(C26),ISBLANK(C27),G26=G27),"","by "&ABS(J27)&" seconds"))) ->  | J27: =IF(AND(LEFT(C26,1)="D",LEFT(C27,1)="D"),"0",IF(OR(C26="DNR",C27="DNR"),IF(C26="DNR",1,-1)*'G Q 4'!A8,IF(OR(ISBLANK(C26),ISBLANK(C27)),"",IF(OR(G26="-",G27="-"),IF(G26="-",1,-1)*'G Q 4'!A8,IF(ABS(G26-G27)>'G Q 4'!A9,IF(G26-G27>'G Q 4'!A9,1,-1)*'G Q 4'!A9,ROUND(G26-G27,3)))))) ->  | Q27: =IF(AND(LEFT(K26,1)="D",LEFT(K27,1)="D"),"",IF(OR(K26="DNR",K27="DNR"),"by "&ABS(R27)&" seconds",IF(OR(ISBLANK(K26),ISBLANK(K27),O26=O27),"","by "&ABS(R27)&" seconds"))) ->  | R27: =IF(AND(LEFT(K26,1)="D",LEFT(K27,1)="D"),"0",IF(OR(K26="DNR",K27="DNR"),IF(K26="DNR",1,-1)*'G Q 4'!A8,IF(OR(ISBLANK(K26),ISBLANK(K27)),"",IF(OR(O26="-",O27="-"),IF(O26="-",1,-1)*'G Q 4'!A8,IF(ABS(O26-O27)>'G Q 4'!A9,IF(O26-O27>'G Q 4'!A9,1,-1)*'G Q 4'!A9,ROUND(O26-O27,3)))))) ->  | S27: =IF(B27="BYE","(BYE)",IF(ISERROR(J27+R27)=TRUE,"",IF(J27+R27=0,"","by "&ABS(J27+R27)&" seconds"))) -> (BYE) | U27: =IF(B27="BYE", B27, IF(ISERROR(J27+R27)=TRUE,"",IF(J27+R27>0,B26,B27))) -> BYE | V27: =IF(ISERROR(VLOOKUP(U27,'G Q 4'!U12:V111,2,FALSE))=TRUE,"",VLOOKUP(U27,'G Q 4'!U12:V111,2,FALSE)) ->  | W27: =IF(ISERROR(VLOOKUP(U27,'G Q 4'!AL12:AO111,4,FALSE))=TRUE,"",VLOOKUP(U27,'G Q 4'!AL12:AO111,4,FALSE)) -> 
A28: 7 | B28: =IF(A3<A28,"BYE",IF(ISERROR(VLOOKUP(A28,'G Q 4'!AO12:'G Q 4'!AQ111,3,FALSE))=TRUE,"BYE",VLOOKUP(A28,'G Q 4'!AO12:'G Q 4'!AQ111,3,FALSE))) ->  | I28: =IF(AND(LEFT(C28,1)="D",LEFT(C29,1)="D"),"",IF(OR(C28="DNR",C29="DNR"),IF(C28="DNR",B29,B28),IF(OR(ISBLANK(C28),ISBLANK(C29)),"",IF(G28=G29,"TIE",IF(G28>G29,B29,B28))))) ->  | Q28: =IF(AND(LEFT(K28,1)="D",LEFT(K29,1)="D"),"",IF(OR(K28="DNR",K29="DNR"),IF(K28="DNR",B29,B28),IF(OR(ISBLANK(K28),ISBLANK(K29)),"",IF(O28=O29,"TIE",IF(O28>O29,B29,B28))))) ->  | S28: =IF(B29="BYE", B28, IF(ISERROR(J29+R29)=TRUE,"",IF(J29+R29=0,"TIE - HOLD RUNOFF",IF(J29+R29>0,B29,B28)))) -> 
A29: 26 | B29: =IF(A3<A29,"BYE",IF(ISERROR(VLOOKUP(A29,'G Q 4'!AO12:'G Q 4'!AQ111,3,FALSE))=TRUE,"BYE",VLOOKUP(A29,'G Q 4'!AO12:'G Q 4'!AQ111,3,FALSE))) -> BYE | I29: =IF(AND(LEFT(C28,1)="D",LEFT(C29,1)="D"),"",IF(OR(C28="DNR",C29="DNR"),"by "&ABS(J29)&" seconds",IF(OR(ISBLANK(C28),ISBLANK(C29),G28=G29),"","by "&ABS(J29)&" seconds"))) ->  | J29: =IF(AND(LEFT(C28,1)="D",LEFT(C29,1)="D"),"0",IF(OR(C28="DNR",C29="DNR"),IF(C28="DNR",1,-1)*'G Q 4'!A8,IF(OR(ISBLANK(C28),ISBLANK(C29)),"",IF(OR(G28="-",G29="-"),IF(G28="-",1,-1)*'G Q 4'!A8,IF(ABS(G28-G29)>'G Q 4'!A9,IF(G28-G29>'G Q 4'!A9,1,-1)*'G Q 4'!A9,ROUND(G28-G29,3)))))) ->  | Q29: =IF(AND(LEFT(K28,1)="D",LEFT(K29,1)="D"),"",IF(OR(K28="DNR",K29="DNR"),"by "&ABS(R29)&" seconds",IF(OR(ISBLANK(K28),ISBLANK(K29),O28=O29),"","by "&ABS(R29)&" seconds"))) ->  | R29: =IF(AND(LEFT(K28,1)="D",LEFT(K29,1)="D"),"0",IF(OR(K28="DNR",K29="DNR"),IF(K28="DNR",1,-1)*'G Q 4'!A8,IF(OR(ISBLANK(K28),ISBLANK(K29)),"",IF(OR(O28="-",O29="-"),IF(O28="-",1,-1)*'G Q 4'!A8,IF(ABS(O28-O29)>'G Q 4'!A9,IF(O28-O29>'G Q 4'!A9,1,-1)*'G Q 4'!A9,ROUND(O28-O29,3)))))) ->  | S29: =IF(B29="BYE","(BYE)",IF(ISERROR(J29+R29)=TRUE,"",IF(J29+R29=0,"","by "&ABS(J29+R29)&" seconds"))) -> (BYE) | U29: =IF(B29="BYE", B29, IF(ISERROR(J29+R29)=TRUE,"",IF(J29+R29>0,B28,B29))) -> BYE | V29: =IF(ISERROR(VLOOKUP(U29,'G Q 4'!U12:V111,2,FALSE))=TRUE,"",VLOOKUP(U29,'G Q 4'!U12:V111,2,FALSE)) ->  | W29: =IF(ISERROR(VLOOKUP(U29,'G Q 4'!AL12:AO111,4,FALSE))=TRUE,"",VLOOKUP(U29,'G Q 4'!AL12:AO111,4,FALSE)) -> 
A30: 10 | B30: =IF(A3<A30,"BYE",IF(ISERROR(VLOOKUP(A30,'G Q 4'!AO12:'G Q 4'!AQ111,3,FALSE))=TRUE,"BYE",VLOOKUP(A30,'G Q 4'!AO12:'G Q 4'!AQ111,3,FALSE))) -> BYE | I30: =IF(AND(LEFT(C30,1)="D",LEFT(C31,1)="D"),"",IF(OR(C30="DNR",C31="DNR"),IF(C30="DNR",B31,B30),IF(OR(ISBLANK(C30),ISBLANK(C31)),"",IF(G30=G31,"TIE",IF(G30>G31,B31,B30))))) ->  | Q30: =IF(AND(LEFT(K30,1)="D",LEFT(K31,1)="D"),"",IF(OR(K30="DNR",K31="DNR"),IF(K30="DNR",B31,B30),IF(OR(ISBLANK(K30),ISBLANK(K31)),"",IF(O30=O31,"TIE",IF(O30>O31,B31,B30))))) ->  | S30: =IF(B31="BYE", B30, IF(ISERROR(J31+R31)=TRUE,"",IF(J31+R31=0,"TIE - HOLD RUNOFF",IF(J31+R31>0,B31,B30)))) -> BYE
A31: 23 | B31: =IF(A3<A31,"BYE",IF(ISERROR(VLOOKUP(A31,'G Q 4'!AO12:'G Q 4'!AQ111,3,FALSE))=TRUE,"BYE",VLOOKUP(A31,'G Q 4'!AO12:'G Q 4'!AQ111,3,FALSE))) -> BYE | I31: =IF(AND(LEFT(C30,1)="D",LEFT(C31,1)="D"),"",IF(OR(C30="DNR",C31="DNR"),"by "&ABS(J31)&" seconds",IF(OR(ISBLANK(C30),ISBLANK(C31),G30=G31),"","by "&ABS(J31)&" seconds"))) ->  | J31: =IF(AND(LEFT(C30,1)="D",LEFT(C31,1)="D"),"0",IF(OR(C30="DNR",C31="DNR"),IF(C30="DNR",1,-1)*'G Q 4'!A8,IF(OR(ISBLANK(C30),ISBLANK(C31)),"",IF(OR(G30="-",G31="-"),IF(G30="-",1,-1)*'G Q 4'!A8,IF(ABS(G30-G31)>'G Q 4'!A9,IF(G30-G31>'G Q 4'!A9,1,-1)*'G Q 4'!A9,ROUND(G30-G31,3)))))) ->  | Q31: =IF(AND(LEFT(K30,1)="D",LEFT(K31,1)="D"),"",IF(OR(K30="DNR",K31="DNR"),"by "&ABS(R31)&" seconds",IF(OR(ISBLANK(K30),ISBLANK(K31),O30=O31),"","by "&ABS(R31)&" seconds"))) ->  | R31: =IF(AND(LEFT(K30,1)="D",LEFT(K31,1)="D"),"0",IF(OR(K30="DNR",K31="DNR"),IF(K30="DNR",1,-1)*'G Q 4'!A8,IF(OR(ISBLANK(K30),ISBLANK(K31)),"",IF(OR(O30="-",O31="-"),IF(O30="-",1,-1)*'G Q 4'!A8,IF(ABS(O30-O31)>'G Q 4'!A9,IF(O30-O31>'G Q 4'!A9,1,-1)*'G Q 4'!A9,ROUND(O30-O31,3)))))) ->  | S31: =IF(B31="BYE","(BYE)",IF(ISERROR(J31+R31)=TRUE,"",IF(J31+R31=0,"","by "&ABS(J31+R31)&" seconds"))) -> (BYE) | U31: =IF(B31="BYE", B31, IF(ISERROR(J31+R31)=TRUE,"",IF(J31+R31>0,B30,B31))) -> BYE | V31: =IF(ISERROR(VLOOKUP(U31,'G Q 4'!U12:V111,2,FALSE))=TRUE,"",VLOOKUP(U31,'G Q 4'!U12:V111,2,FALSE)) ->  | W31: =IF(ISERROR(VLOOKUP(U31,'G Q 4'!AL12:AO111,4,FALSE))=TRUE,"",VLOOKUP(U31,'G Q 4'!AL12:AO111,4,FALSE)) -> 
A32: 3 | B32: =IF(A3<A32,"BYE",IF(ISERROR(VLOOKUP(A32,'G Q 4'!AO12:'G Q 4'!AQ111,3,FALSE))=TRUE,"BYE",VLOOKUP(A32,'G Q 4'!AO12:'G Q 4'!AQ111,3,FALSE))) ->  | I32: =IF(AND(LEFT(C32,1)="D",LEFT(C33,1)="D"),"",IF(OR(C32="DNR",C33="DNR"),IF(C32="DNR",B33,B32),IF(OR(ISBLANK(C32),ISBLANK(C33)),"",IF(G32=G33,"TIE",IF(G32>G33,B33,B32))))) ->  | Q32: =IF(AND(LEFT(K32,1)="D",LEFT(K33,1)="D"),"",IF(OR(K32="DNR",K33="DNR"),IF(K32="DNR",B33,B32),IF(OR(ISBLANK(K32),ISBLANK(K33)),"",IF(O32=O33,"TIE",IF(O32>O33,B33,B32))))) ->  | S32: =IF(B33="BYE", B32, IF(ISERROR(J33+R33)=TRUE,"",IF(J33+R33=0,"TIE - HOLD RUNOFF",IF(J33+R33>0,B33,B32)))) -> 
A33: 30 | B33: =IF(A3<A33,"BYE",IF(ISERROR(VLOOKUP(A33,'G Q 4'!AO12:'G Q 4'!AQ111,3,FALSE))=TRUE,"BYE",VLOOKUP(A33,'G Q 4'!AO12:'G Q 4'!AQ111,3,FALSE))) -> BYE | I33: =IF(AND(LEFT(C32,1)="D",LEFT(C33,1)="D"),"",IF(OR(C32="DNR",C33="DNR"),"by "&ABS(J33)&" seconds",IF(OR(ISBLANK(C32),ISBLANK(C33),G32=G33),"","by "&ABS(J33)&" seconds"))) ->  | J33: =IF(AND(LEFT(C32,1)="D",LEFT(C33,1)="D"),"0",IF(OR(C32="DNR",C33="DNR"),IF(C32="DNR",1,-1)*'G Q 4'!A8,IF(OR(ISBLANK(C32),ISBLANK(C33)),"",IF(OR(G32="-",G33="-"),IF(G32="-",1,-1)*'G Q 4'!A8,IF(ABS(G32-G33)>'G Q 4'!A9,IF(G32-G33>'G Q 4'!A9,1,-1)*'G Q 4'!A9,ROUND(G32-G33,3)))))) ->  | Q33: =IF(AND(LEFT(K32,1)="D",LEFT(K33,1)="D"),"",IF(OR(K32="DNR",K33="DNR"),"by "&ABS(R33)&" seconds",IF(OR(ISBLANK(K32),ISBLANK(K33),O32=O33),"","by "&ABS(R33)&" seconds"))) ->  | R33: =IF(AND(LEFT(K32,1)="D",LEFT(K33,1)="D"),"0",IF(OR(K32="DNR",K33="DNR"),IF(K32="DNR",1,-1)*'G Q 4'!A8,IF(OR(ISBLANK(K32),ISBLANK(K33)),"",IF(OR(O32="-",O33="-"),IF(O32="-",1,-1)*'G Q 4'!A8,IF(ABS(O32-O33)>'G Q 4'!A9,IF(O32-O33>'G Q 4'!A9,1,-1)*'G Q 4'!A9,ROUND(O32-O33,3)))))) ->  | S33: =IF(B33="BYE","(BYE)",IF(ISERROR(J33+R33)=TRUE,"",IF(J33+R33=0,"","by "&ABS(J33+R33)&" seconds"))) -> (BYE) | U33: =IF(B33="BYE", B33, IF(ISERROR(J33+R33)=TRUE,"",IF(J33+R33>0,B32,B33))) -> BYE | V33: =IF(ISERROR(VLOOKUP(U33,'G Q 4'!U12:V111,2,FALSE))=TRUE,"",VLOOKUP(U33,'G Q 4'!U12:V111,2,FALSE)) ->  | W33: =IF(ISERROR(VLOOKUP(U33,'G Q 4'!AL12:AO111,4,FALSE))=TRUE,"",VLOOKUP(U33,'G Q 4'!AL12:AO111,4,FALSE)) -> 
A34: 14 | B34: =IF(A3<A34,"BYE",IF(ISERROR(VLOOKUP(A34,'G Q 4'!AO12:'G Q 4'!AQ111,3,FALSE))=TRUE,"BYE",VLOOKUP(A34,'G Q 4'!AO12:'G Q 4'!AQ111,3,FALSE))) -> BYE | I34: =IF(AND(LEFT(C34,1)="D",LEFT(C35,1)="D"),"",IF(OR(C34="DNR",C35="DNR"),IF(C34="DNR",B35,B34),IF(OR(ISBLANK(C34),ISBLANK(C35)),"",IF(G34=G35,"TIE",IF(G34>G35,B35,B34))))) ->  | Q34: =IF(AND(LEFT(K34,1)="D",LEFT(K35,1)="D"),"",IF(OR(K34="DNR",K35="DNR"),IF(K34="DNR",B35,B34),IF(OR(ISBLANK(K34),ISBLANK(K35)),"",IF(O34=O35,"TIE",IF(O34>O35,B35,B34))))) ->  | S34: =IF(B35="BYE", B34, IF(ISERROR(J35+R35)=TRUE,"",IF(J35+R35=0,"TIE - HOLD RUNOFF",IF(J35+R35>0,B35,B34)))) -> BYE
A35: 19 | B35: =IF(A3<A35,"BYE",IF(ISERROR(VLOOKUP(A35,'G Q 4'!AO12:'G Q 4'!AQ111,3,FALSE))=TRUE,"BYE",VLOOKUP(A35,'G Q 4'!AO12:'G Q 4'!AQ111,3,FALSE))) -> BYE | I35: =IF(AND(LEFT(C34,1)="D",LEFT(C35,1)="D"),"",IF(OR(C34="DNR",C35="DNR"),"by "&ABS(J35)&" seconds",IF(OR(ISBLANK(C34),ISBLANK(C35),G34=G35),"","by "&ABS(J35)&" seconds"))) ->  | J35: =IF(AND(LEFT(C34,1)="D",LEFT(C35,1)="D"),"0",IF(OR(C34="DNR",C35="DNR"),IF(C34="DNR",1,-1)*'G Q 4'!A8,IF(OR(ISBLANK(C34),ISBLANK(C35)),"",IF(OR(G34="-",G35="-"),IF(G34="-",1,-1)*'G Q 4'!A8,IF(ABS(G34-G35)>'G Q 4'!A9,IF(G34-G35>'G Q 4'!A9,1,-1)*'G Q 4'!A9,ROUND(G34-G35,3)))))) ->  | Q35: =IF(AND(LEFT(K34,1)="D",LEFT(K35,1)="D"),"",IF(OR(K34="DNR",K35="DNR"),"by "&ABS(R35)&" seconds",IF(OR(ISBLANK(K34),ISBLANK(K35),O34=O35),"","by "&ABS(R35)&" seconds"))) ->  | R35: =IF(AND(LEFT(K34,1)="D",LEFT(K35,1)="D"),"0",IF(OR(K34="DNR",K35="DNR"),IF(K34="DNR",1,-1)*'G Q 4'!A8,IF(OR(ISBLANK(K34),ISBLANK(K35)),"",IF(OR(O34="-",O35="-"),IF(O34="-",1,-1)*'G Q 4'!A8,IF(ABS(O34-O35)>'G Q 4'!A9,IF(O34-O35>'G Q 4'!A9,1,-1)*'G Q 4'!A9,ROUND(O34-O35,3)))))) ->  | S35: =IF(B35="BYE","(BYE)",IF(ISERROR(J35+R35)=TRUE,"",IF(J35+R35=0,"","by "&ABS(J35+R35)&" seconds"))) -> (BYE) | U35: =IF(B35="BYE", B35, IF(ISERROR(J35+R35)=TRUE,"",IF(J35+R35>0,B34,B35))) -> BYE | V35: =IF(ISERROR(VLOOKUP(U35,'G Q 4'!U12:V111,2,FALSE))=TRUE,"",VLOOKUP(U35,'G Q 4'!U12:V111,2,FALSE)) ->  | W35: =IF(ISERROR(VLOOKUP(U35,'G Q 4'!AL12:AO111,4,FALSE))=TRUE,"",VLOOKUP(U35,'G Q 4'!AL12:AO111,4,FALSE)) -> 
A36: 6 | B36: =IF(A3<A36,"BYE",IF(ISERROR(VLOOKUP(A36,'G Q 4'!AO12:'G Q 4'!AQ111,3,FALSE))=TRUE,"BYE",VLOOKUP(A36,'G Q 4'!AO12:'G Q 4'!AQ111,3,FALSE))) ->  | I36: =IF(AND(LEFT(C36,1)="D",LEFT(C37,1)="D"),"",IF(OR(C36="DNR",C37="DNR"),IF(C36="DNR",B37,B36),IF(OR(ISBLANK(C36),ISBLANK(C37)),"",IF(G36=G37,"TIE",IF(G36>G37,B37,B36))))) ->  | Q36: =IF(AND(LEFT(K36,1)="D",LEFT(K37,1)="D"),"",IF(OR(K36="DNR",K37="DNR"),IF(K36="DNR",B37,B36),IF(OR(ISBLANK(K36),ISBLANK(K37)),"",IF(O36=O37,"TIE",IF(O36>O37,B37,B36))))) ->  | S36: =IF(B37="BYE", B36, IF(ISERROR(J37+R37)=TRUE,"",IF(J37+R37=0,"TIE - HOLD RUNOFF",IF(J37+R37>0,B37,B36)))) -> 
A37: 27 | B37: =IF(A3<A37,"BYE",IF(ISERROR(VLOOKUP(A37,'G Q 4'!AO12:'G Q 4'!AQ111,3,FALSE))=TRUE,"BYE",VLOOKUP(A37,'G Q 4'!AO12:'G Q 4'!AQ111,3,FALSE))) -> BYE | I37: =IF(AND(LEFT(C36,1)="D",LEFT(C37,1)="D"),"",IF(OR(C36="DNR",C37="DNR"),"by "&ABS(J37)&" seconds",IF(OR(ISBLANK(C36),ISBLANK(C37),G36=G37),"","by "&ABS(J37)&" seconds"))) ->  | J37: =IF(AND(LEFT(C36,1)="D",LEFT(C37,1)="D"),"0",IF(OR(C36="DNR",C37="DNR"),IF(C36="DNR",1,-1)*'G Q 4'!A8,IF(OR(ISBLANK(C36),ISBLANK(C37)),"",IF(OR(G36="-",G37="-"),IF(G36="-",1,-1)*'G Q 4'!A8,IF(ABS(G36-G37)>'G Q 4'!A9,IF(G36-G37>'G Q 4'!A9,1,-1)*'G Q 4'!A9,ROUND(G36-G37,3)))))) ->  | Q37: =IF(AND(LEFT(K36,1)="D",LEFT(K37,1)="D"),"",IF(OR(K36="DNR",K37="DNR"),"by "&ABS(R37)&" seconds",IF(OR(ISBLANK(K36),ISBLANK(K37),O36=O37),"","by "&ABS(R37)&" seconds"))) ->  | R37: =IF(AND(LEFT(K36,1)="D",LEFT(K37,1)="D"),"0",IF(OR(K36="DNR",K37="DNR"),IF(K36="DNR",1,-1)*'G Q 4'!A8,IF(OR(ISBLANK(K36),ISBLANK(K37)),"",IF(OR(O36="-",O37="-"),IF(O36="-",1,-1)*'G Q 4'!A8,IF(ABS(O36-O37)>'G Q 4'!A9,IF(O36-O37>'G Q 4'!A9,1,-1)*'G Q 4'!A9,ROUND(O36-O37,3)))))) ->  | S37: =IF(B37="BYE","(BYE)",IF(ISERROR(J37+R37)=TRUE,"",IF(J37+R37=0,"","by "&ABS(J37+R37)&" seconds"))) -> (BYE) | U37: =IF(B37="BYE", B37, IF(ISERROR(J37+R37)=TRUE,"",IF(J37+R37>0,B36,B37))) -> BYE | V37: =IF(ISERROR(VLOOKUP(U37,'G Q 4'!U12:V111,2,FALSE))=TRUE,"",VLOOKUP(U37,'G Q 4'!U12:V111,2,FALSE)) ->  | W37: =IF(ISERROR(VLOOKUP(U37,'G Q 4'!AL12:AO111,4,FALSE))=TRUE,"",VLOOKUP(U37,'G Q 4'!AL12:AO111,4,FALSE)) -> 
A38: 11 | B38: =IF(A3<A38,"BYE",IF(ISERROR(VLOOKUP(A38,'G Q 4'!AO12:'G Q 4'!AQ111,3,FALSE))=TRUE,"BYE",VLOOKUP(A38,'G Q 4'!AO12:'G Q 4'!AQ111,3,FALSE))) -> BYE | I38: =IF(AND(LEFT(C38,1)="D",LEFT(C39,1)="D"),"",IF(OR(C38="DNR",C39="DNR"),IF(C38="DNR",B39,B38),IF(OR(ISBLANK(C38),ISBLANK(C39)),"",IF(G38=G39,"TIE",IF(G38>G39,B39,B38))))) ->  | Q38: =IF(AND(LEFT(K38,1)="D",LEFT(K39,1)="D"),"",IF(OR(K38="DNR",K39="DNR"),IF(K38="DNR",B39,B38),IF(OR(ISBLANK(K38),ISBLANK(K39)),"",IF(O38=O39,"TIE",IF(O38>O39,B39,B38))))) ->  | S38: =IF(B39="BYE", B38, IF(ISERROR(J39+R39)=TRUE,"",IF(J39+R39=0,"TIE - HOLD RUNOFF",IF(J39+R39>0,B39,B38)))) -> BYE
A39: 22 | B39: =IF(A3<A39,"BYE",IF(ISERROR(VLOOKUP(A39,'G Q 4'!AO12:'G Q 4'!AQ111,3,FALSE))=TRUE,"BYE",VLOOKUP(A39,'G Q 4'!AO12:'G Q 4'!AQ111,3,FALSE))) -> BYE | I39: =IF(AND(LEFT(C38,1)="D",LEFT(C39,1)="D"),"",IF(OR(C38="DNR",C39="DNR"),"by "&ABS(J39)&" seconds",IF(OR(ISBLANK(C38),ISBLANK(C39),G38=G39),"","by "&ABS(J39)&" seconds"))) ->  | J39: =IF(AND(LEFT(C38,1)="D",LEFT(C39,1)="D"),"0",IF(OR(C38="DNR",C39="DNR"),IF(C38="DNR",1,-1)*'G Q 4'!A8,IF(OR(ISBLANK(C38),ISBLANK(C39)),"",IF(OR(G38="-",G39="-"),IF(G38="-",1,-1)*'G Q 4'!A8,IF(ABS(G38-G39)>'G Q 4'!A9,IF(G38-G39>'G Q 4'!A9,1,-1)*'G Q 4'!A9,ROUND(G38-G39,3)))))) ->  | Q39: =IF(AND(LEFT(K38,1)="D",LEFT(K39,1)="D"),"",IF(OR(K38="DNR",K39="DNR"),"by "&ABS(R39)&" seconds",IF(OR(ISBLANK(K38),ISBLANK(K39),O38=O39),"","by "&ABS(R39)&" seconds"))) ->  | R39: =IF(AND(LEFT(K38,1)="D",LEFT(K39,1)="D"),"0",IF(OR(K38="DNR",K39="DNR"),IF(K38="DNR",1,-1)*'G Q 4'!A8,IF(OR(ISBLANK(K38),ISBLANK(K39)),"",IF(OR(O38="-",O39="-"),IF(O38="-",1,-1)*'G Q 4'!A8,IF(ABS(O38-O39)>'G Q 4'!A9,IF(O38-O39>'G Q 4'!A9,1,-1)*'G Q 4'!A9,ROUND(O38-O39,3)))))) ->  | S39: =IF(B39="BYE","(BYE)",IF(ISERROR(J39+R39)=TRUE,"",IF(J39+R39=0,"","by "&ABS(J39+R39)&" seconds"))) -> (BYE) | U39: =IF(B39="BYE", B39, IF(ISERROR(J39+R39)=TRUE,"",IF(J39+R39>0,B38,B39))) -> BYE | V39: =IF(ISERROR(VLOOKUP(U39,'G Q 4'!U12:V111,2,FALSE))=TRUE,"",VLOOKUP(U39,'G Q 4'!U12:V111,2,FALSE)) ->  | W39: =IF(ISERROR(VLOOKUP(U39,'G Q 4'!AL12:AO111,4,FALSE))=TRUE,"",VLOOKUP(U39,'G Q 4'!AL12:AO111,4,FALSE)) -> 
B42: Round of 16
A43: =IF(S8=B8, A8, A9) -> 1 | B43: =IF(A3>16,IF(S8="TIE - HOLD RUNOFF","",S8),IF(A3<16,"BYE",IF(ISERROR(VLOOKUP(A43,'G Q 1-2'!AO12:'G Q 1-2'!AQ111,3,FALSE))=TRUE,"BYE",VLOOKUP(A43,'G Q 1-2'!AO12:'G Q 1-2'!AQ111,3,FALSE)))) -> BYE | G43: =IF(LEFT(C43:C58,1)="D","-",IF(D43:D58>'G Q 1-2'!A6,"-",IF(C43:C58>0,C43:C58+D43:D58*'G Q 1-2'!A5+F43:F58*'G Q 1-2'!A7,""))) ->  | H43: =IF(G43:G58="","",IF(G43:G58="-","",RANK(G43:G58,G43:G58,1))) ->  | I43: =IF(AND(LEFT(C43,1)="D",LEFT(C44,1)="D"),"",IF(OR(C43="DNR",C44="DNR"),IF(C43="DNR",B44,B43),IF(OR(ISBLANK(C43),ISBLANK(C44)),"",IF(G43=G44,"TIE",IF(G43>G44,B44,B43))))) ->  | Q43: =IF(AND(LEFT(K43,1)="D",LEFT(K44,1)="D"),"",IF(OR(K43="DNR",K44="DNR"),IF(K43="DNR",B44,B43),IF(OR(ISBLANK(K43),ISBLANK(K44)),"",IF(O43=O44,"TIE",IF(O43>O44,B44,B43))))) ->  | S43: =IF(B44="BYE", B43, IF(ISERROR(J44+R44)=TRUE,"",IF(J44+R44=0,"TIE - HOLD RUNOFF",IF(J44+R44>0,B44,B43)))) -> BYE
A44: =IF(S10=B10, A10, A11) -> 16 | B44: =IF(A3>16,IF(S10="TIE - HOLD RUNOFF","",S10),IF(A3<16,"BYE",IF(ISERROR(VLOOKUP(A44,'G Q 1-2'!AO12:'G Q 1-2'!AQ111,3,FALSE))=TRUE,"BYE",VLOOKUP(A44,'G Q 1-2'!AO12:'G Q 1-2'!AQ111,3,FALSE)))) -> BYE | I44: =IF(AND(LEFT(C43,1)="D",LEFT(C44,1)="D"),"",IF(OR(C43="DNR",C44="DNR"),"by "&ABS(J44)&" seconds",IF(OR(ISBLANK(C43),ISBLANK(C44),G43=G44),"","by "&ABS(J44)&" seconds"))) ->  | J44: =IF(AND(LEFT(C43,1)="D",LEFT(C44,1)="D"),"0",IF(OR(C43="DNR",C44="DNR"),IF(C43="DNR",1,-1)*'G Q 1-2'!A8,IF(OR(ISBLANK(C43),ISBLANK(C44)),"",IF(OR(G43="-",G44="-"),IF(G43="-",1,-1)*'G Q 1-2'!A8,IF(ABS(G43-G44)>'G Q 1-2'!A9,IF(G43-G44>'G Q 1-2'!A9,1,-1)*'G Q 1-2'!A9,ROUND(G43-G44,3)))))) ->  | Q44: =IF(AND(LEFT(K43,1)="D",LEFT(K44,1)="D"),"",IF(OR(K43="DNR",K44="DNR"),"by "&ABS(R44)&" seconds",IF(OR(ISBLANK(K43),ISBLANK(K44),O43=O44),"","by "&ABS(R44)&" seconds"))) ->  | R44: =IF(AND(LEFT(K43,1)="D",LEFT(K44,1)="D"),"0",IF(OR(K43="DNR",K44="DNR"),IF(K43="DNR",1,-1)*'G Q 1-2'!A8,IF(OR(ISBLANK(K43),ISBLANK(K44)),"",IF(OR(O43="-",O44="-"),IF(O43="-",1,-1)*'G Q 1-2'!A8,IF(ABS(O43-O44)>'G Q 1-2'!A9,IF(O43-O44>'G Q 1-2'!A9,1,-1)*'G Q 1-2'!A9,ROUND(O43-O44,3)))))) ->  | S44: =IF(B44="BYE","(BYE)",IF(ISERROR(J44+R44)=TRUE,"",IF(J44+R44=0,"","by "&ABS(J44+R44)&" seconds"))) -> (BYE) | T44: =IF(W44:W58="","",IF(ISERROR(W44:W58)=TRUE,"",8+RANK(W44:W58,W44:W58,1))) ->  | U44: =IF(B44="BYE", B44, IF(ISERROR(J44+R44)=TRUE,"",IF(J44+R44>0,B43,B44))) -> BYE | V44: =IF(ISERROR(VLOOKUP(U44,'G Q 1-2'!U12:V111,2,FALSE))=TRUE,"",VLOOKUP(U44,'G Q 1-2'!U12:V111,2,FALSE)) ->  | W44: =IF(ISERROR(VLOOKUP(U44,'G Q 1-2'!AL12:AO111,4,FALSE))=TRUE,"",VLOOKUP(U44,'G Q 1-2'!AL12:AO111,4,FALSE)) -> 
A45: =IF(S12=B12, A12, A13) -> 8 | B45: =IF(A3>16,IF(S12="TIE - HOLD RUNOFF","",S12),IF(A3<16,"BYE",IF(ISERROR(VLOOKUP(A45,'G Q 1-2'!AO12:'G Q 1-2'!AQ111,3,FALSE))=TRUE,"BYE",VLOOKUP(A45,'G Q 1-2'!AO12:'G Q 1-2'!AQ111,3,FALSE)))) -> BYE | I45: =IF(AND(LEFT(C45,1)="D",LEFT(C46,1)="D"),"",IF(OR(C45="DNR",C46="DNR"),IF(C45="DNR",B46,B45),IF(OR(ISBLANK(C45),ISBLANK(C46)),"",IF(G45=G46,"TIE",IF(G45>G46,B46,B45))))) ->  | Q45: =IF(AND(LEFT(K45,1)="D",LEFT(K46,1)="D"),"",IF(OR(K45="DNR",K46="DNR"),IF(K45="DNR",B46,B45),IF(OR(ISBLANK(K45),ISBLANK(K46)),"",IF(O45=O46,"TIE",IF(O45>O46,B46,B45))))) ->  | S45: =IF(B46="BYE", B45, IF(ISERROR(J46+R46)=TRUE,"",IF(J46+R46=0,"TIE - HOLD RUNOFF",IF(J46+R46>0,B46,B45)))) -> BYE
A46: =IF(S14=B14, A14, A15) -> 9 | B46: =IF(A3>16,IF(S14="TIE - HOLD RUNOFF","",S14),IF(A3<16,"BYE",IF(ISERROR(VLOOKUP(A46,'G Q 1-2'!AO12:'G Q 1-2'!AQ111,3,FALSE))=TRUE,"BYE",VLOOKUP(A46,'G Q 1-2'!AO12:'G Q 1-2'!AQ111,3,FALSE)))) -> BYE | I46: =IF(AND(LEFT(C45,1)="D",LEFT(C46,1)="D"),"",IF(OR(C45="DNR",C46="DNR"),"by "&ABS(J46)&" seconds",IF(OR(ISBLANK(C45),ISBLANK(C46),G45=G46),"","by "&ABS(J46)&" seconds"))) ->  | J46: =IF(AND(LEFT(C45,1)="D",LEFT(C46,1)="D"),"0",IF(OR(C45="DNR",C46="DNR"),IF(C45="DNR",1,-1)*'G Q 1-2'!A8,IF(OR(ISBLANK(C45),ISBLANK(C46)),"",IF(OR(G45="-",G46="-"),IF(G45="-",1,-1)*'G Q 1-2'!A8,IF(ABS(G45-G46)>'G Q 1-2'!A9,IF(G45-G46>'G Q 1-2'!A9,1,-1)*'G Q 1-2'!A9,ROUND(G45-G46,3)))))) ->  | Q46: =IF(AND(LEFT(K45,1)="D",LEFT(K46,1)="D"),"",IF(OR(K45="DNR",K46="DNR"),"by "&ABS(R46)&" seconds",IF(OR(ISBLANK(K45),ISBLANK(K46),O45=O46),"","by "&ABS(R46)&" seconds"))) ->  | R46: =IF(AND(LEFT(K45,1)="D",LEFT(K46,1)="D"),"0",IF(OR(K45="DNR",K46="DNR"),IF(K45="DNR",1,-1)*'G Q 1-2'!A8,IF(OR(ISBLANK(K45),ISBLANK(K46)),"",IF(OR(O45="-",O46="-"),IF(O45="-",1,-1)*'G Q 1-2'!A8,IF(ABS(O45-O46)>'G Q 1-2'!A9,IF(O45-O46>'G Q 1-2'!A9,1,-1)*'G Q 1-2'!A9,ROUND(O45-O46,3)))))) ->  | S46: =IF(B46="BYE","(BYE)",IF(ISERROR(J46+R46)=TRUE,"",IF(J46+R46=0,"","by "&ABS(J46+R46)&" seconds"))) -> (BYE) | U46: =IF(B46="BYE", B46, IF(ISERROR(J46+R46)=TRUE,"",IF(J46+R46>0,B45,B46))) -> BYE | V46: =IF(ISERROR(VLOOKUP(U46,'G Q 1-2'!U12:V111,2,FALSE))=TRUE,"",VLOOKUP(U46,'G Q 1-2'!U12:V111,2,FALSE)) ->  | W46: =IF(ISERROR(VLOOKUP(U46,'G Q 1-2'!AL12:AO111,4,FALSE))=TRUE,"",VLOOKUP(U46,'G Q 1-2'!AL12:AO111,4,FALSE)) -> 
A47: =IF(S16=B16, A16, A17) -> 4 | B47: =IF(A3>16,IF(S16="TIE - HOLD RUNOFF","",S16),IF(A3<16,"BYE",IF(ISERROR(VLOOKUP(A47,'G Q 1-2'!AO12:'G Q 1-2'!AQ111,3,FALSE))=TRUE,"BYE",VLOOKUP(A47,'G Q 1-2'!AO12:'G Q 1-2'!AQ111,3,FALSE)))) -> BYE | I47: =IF(AND(LEFT(C47,1)="D",LEFT(C48,1)="D"),"",IF(OR(C47="DNR",C48="DNR"),IF(C47="DNR",B48,B47),IF(OR(ISBLANK(C47),ISBLANK(C48)),"",IF(G47=G48,"TIE",IF(G47>G48,B48,B47))))) ->  | Q47: =IF(AND(LEFT(K47,1)="D",LEFT(K48,1)="D"),"",IF(OR(K47="DNR",K48="DNR"),IF(K47="DNR",B48,B47),IF(OR(ISBLANK(K47),ISBLANK(K48)),"",IF(O47=O48,"TIE",IF(O47>O48,B48,B47))))) ->  | S47: =IF(B48="BYE", B47, IF(ISERROR(J48+R48)=TRUE,"",IF(J48+R48=0,"TIE - HOLD RUNOFF",IF(J48+R48>0,B48,B47)))) -> BYE
A48: =IF(S18=B18, A18, A19) -> 13 | B48: =IF(A3>16,IF(S18="TIE - HOLD RUNOFF","",S18),IF(A3<16,"BYE",IF(ISERROR(VLOOKUP(A48,'G Q 1-2'!AO12:'G Q 1-2'!AQ111,3,FALSE))=TRUE,"BYE",VLOOKUP(A48,'G Q 1-2'!AO12:'G Q 1-2'!AQ111,3,FALSE)))) -> BYE | I48: =IF(AND(LEFT(C47,1)="D",LEFT(C48,1)="D"),"",IF(OR(C47="DNR",C48="DNR"),"by "&ABS(J48)&" seconds",IF(OR(ISBLANK(C47),ISBLANK(C48),G47=G48),"","by "&ABS(J48)&" seconds"))) ->  | J48: =IF(AND(LEFT(C47,1)="D",LEFT(C48,1)="D"),"0",IF(OR(C47="DNR",C48="DNR"),IF(C47="DNR",1,-1)*'G Q 1-2'!A8,IF(OR(ISBLANK(C47),ISBLANK(C48)),"",IF(OR(G47="-",G48="-"),IF(G47="-",1,-1)*'G Q 1-2'!A8,IF(ABS(G47-G48)>'G Q 1-2'!A9,IF(G47-G48>'G Q 1-2'!A9,1,-1)*'G Q 1-2'!A9,ROUND(G47-G48,3)))))) ->  | Q48: =IF(AND(LEFT(K47,1)="D",LEFT(K48,1)="D"),"",IF(OR(K47="DNR",K48="DNR"),"by "&ABS(R48)&" seconds",IF(OR(ISBLANK(K47),ISBLANK(K48),O47=O48),"","by "&ABS(R48)&" seconds"))) ->  | R48: =IF(AND(LEFT(K47,1)="D",LEFT(K48,1)="D"),"0",IF(OR(K47="DNR",K48="DNR"),IF(K47="DNR",1,-1)*'G Q 1-2'!A8,IF(OR(ISBLANK(K47),ISBLANK(K48)),"",IF(OR(O47="-",O48="-"),IF(O47="-",1,-1)*'G Q 1-2'!A8,IF(ABS(O47-O48)>'G Q 1-2'!A9,IF(O47-O48>'G Q 1-2'!A9,1,-1)*'G Q 1-2'!A9,ROUND(O47-O48,3)))))) ->  | S48: =IF(B48="BYE","(BYE)",IF(ISERROR(J48+R48)=TRUE,"",IF(J48+R48=0,"","by "&ABS(J48+R48)&" seconds"))) -> (BYE) | U48: =IF(B48="BYE", B48, IF(ISERROR(J48+R48)=TRUE,"",IF(J48+R48>0,B47,B48))) -> BYE | V48: =IF(ISERROR(VLOOKUP(U48,'G Q 1-2'!U12:V111,2,FALSE))=TRUE,"",VLOOKUP(U48,'G Q 1-2'!U12:V111,2,FALSE)) ->  | W48: =IF(ISERROR(VLOOKUP(U48,'G Q 1-2'!AL12:AO111,4,FALSE))=TRUE,"",VLOOKUP(U48,'G Q 1-2'!AL12:AO111,4,FALSE)) -> 
A49: =IF(S20=B20, A20, A21) -> 5 | B49: =IF(A3>16,IF(S20="TIE - HOLD RUNOFF","",S20),IF(A3<16,"BYE",IF(ISERROR(VLOOKUP(A49,'G Q 1-2'!AO12:'G Q 1-2'!AQ111,3,FALSE))=TRUE,"BYE",VLOOKUP(A49,'G Q 1-2'!AO12:'G Q 1-2'!AQ111,3,FALSE)))) -> BYE | I49: =IF(AND(LEFT(C49,1)="D",LEFT(C50,1)="D"),"",IF(OR(C49="DNR",C50="DNR"),IF(C49="DNR",B50,B49),IF(OR(ISBLANK(C49),ISBLANK(C50)),"",IF(G49=G50,"TIE",IF(G49>G50,B50,B49))))) ->  | Q49: =IF(AND(LEFT(K49,1)="D",LEFT(K50,1)="D"),"",IF(OR(K49="DNR",K50="DNR"),IF(K49="DNR",B50,B49),IF(OR(ISBLANK(K49),ISBLANK(K50)),"",IF(O49=O50,"TIE",IF(O49>O50,B50,B49))))) ->  | S49: =IF(B50="BYE", B49, IF(ISERROR(J50+R50)=TRUE,"",IF(J50+R50=0,"TIE - HOLD RUNOFF",IF(J50+R50>0,B50,B49)))) -> BYE
A50: =IF(S22=B22, A22, A23) -> 12 | B50: =IF(A3>16,IF(S22="TIE - HOLD RUNOFF","",S22),IF(A3<16,"BYE",IF(ISERROR(VLOOKUP(A50,'G Q 1-2'!AO12:'G Q 1-2'!AQ111,3,FALSE))=TRUE,"BYE",VLOOKUP(A50,'G Q 1-2'!AO12:'G Q 1-2'!AQ111,3,FALSE)))) -> BYE | I50: =IF(AND(LEFT(C49,1)="D",LEFT(C50,1)="D"),"",IF(OR(C49="DNR",C50="DNR"),"by "&ABS(J50)&" seconds",IF(OR(ISBLANK(C49),ISBLANK(C50),G49=G50),"","by "&ABS(J50)&" seconds"))) ->  | J50: =IF(AND(LEFT(C49,1)="D",LEFT(C50,1)="D"),"0",IF(OR(C49="DNR",C50="DNR"),IF(C49="DNR",1,-1)*'G Q 1-2'!A8,IF(OR(ISBLANK(C49),ISBLANK(C50)),"",IF(OR(G49="-",G50="-"),IF(G49="-",1,-1)*'G Q 1-2'!A8,IF(ABS(G49-G50)>'G Q 1-2'!A9,IF(G49-G50>'G Q 1-2'!A9,1,-1)*'G Q 1-2'!A9,ROUND(G49-G50,3)))))) ->  | Q50: =IF(AND(LEFT(K49,1)="D",LEFT(K50,1)="D"),"",IF(OR(K49="DNR",K50="DNR"),"by "&ABS(R50)&" seconds",IF(OR(ISBLANK(K49),ISBLANK(K50),O49=O50),"","by "&ABS(R50)&" seconds"))) ->  | R50: =IF(AND(LEFT(K49,1)="D",LEFT(K50,1)="D"),"0",IF(OR(K49="DNR",K50="DNR"),IF(K49="DNR",1,-1)*'G Q 1-2'!A8,IF(OR(ISBLANK(K49),ISBLANK(K50)),"",IF(OR(O49="-",O50="-"),IF(O49="-",1,-1)*'G Q 1-2'!A8,IF(ABS(O49-O50)>'G Q 1-2'!A9,IF(O49-O50>'G Q 1-2'!A9,1,-1)*'G Q 1-2'!A9,ROUND(O49-O50,3)))))) ->  | S50: =IF(B50="BYE","(BYE)",IF(ISERROR(J50+R50)=TRUE,"",IF(J50+R50=0,"","by "&ABS(J50+R50)&" seconds"))) -> (BYE) | U50: =IF(B50="BYE", B50, IF(ISERROR(J50+R50)=TRUE,"",IF(J50+R50>0,B49,B50))) -> BYE | V50: =IF(ISERROR(VLOOKUP(U50,'G Q 1-2'!U12:V111,2,FALSE))=TRUE,"",VLOOKUP(U50,'G Q 1-2'!U12:V111,2,FALSE)) ->  | W50: =IF(ISERROR(VLOOKUP(U50,'G Q 1-2'!AL12:AO111,4,FALSE))=TRUE,"",VLOOKUP(U50,'G Q 1-2'!AL12:AO111,4,FALSE)) -> 
A51: =IF(S24=B24, A24, A25) -> 2 | B51: =IF(A3>16,IF(S24="TIE - HOLD RUNOFF","",S24),IF(A3<16,"BYE",IF(ISERROR(VLOOKUP(A51,'G Q 1-2'!AO12:'G Q 1-2'!AQ111,3,FALSE))=TRUE,"BYE",VLOOKUP(A51,'G Q 1-2'!AO12:'G Q 1-2'!AQ111,3,FALSE)))) -> BYE | I51: =IF(AND(LEFT(C51,1)="D",LEFT(C52,1)="D"),"",IF(OR(C51="DNR",C52="DNR"),IF(C51="DNR",B52,B51),IF(OR(ISBLANK(C51),ISBLANK(C52)),"",IF(G51=G52,"TIE",IF(G51>G52,B52,B51))))) ->  | Q51: =IF(AND(LEFT(K51,1)="D",LEFT(K52,1)="D"),"",IF(OR(K51="DNR",K52="DNR"),IF(K51="DNR",B52,B51),IF(OR(ISBLANK(K51),ISBLANK(K52)),"",IF(O51=O52,"TIE",IF(O51>O52,B52,B51))))) ->  | S51: =IF(B52="BYE", B51, IF(ISERROR(J52+R52)=TRUE,"",IF(J52+R52=0,"TIE - HOLD RUNOFF",IF(J52+R52>0,B52,B51)))) -> BYE
A52: =IF(S26=B26, A26, A27) -> 15 | B52: =IF(A3>16,IF(S26="TIE - HOLD RUNOFF","",S26),IF(A3<16,"BYE",IF(ISERROR(VLOOKUP(A52,'G Q 1-2'!AO12:'G Q 1-2'!AQ111,3,FALSE))=TRUE,"BYE",VLOOKUP(A52,'G Q 1-2'!AO12:'G Q 1-2'!AQ111,3,FALSE)))) -> BYE | I52: =IF(AND(LEFT(C51,1)="D",LEFT(C52,1)="D"),"",IF(OR(C51="DNR",C52="DNR"),"by "&ABS(J52)&" seconds",IF(OR(ISBLANK(C51),ISBLANK(C52),G51=G52),"","by "&ABS(J52)&" seconds"))) ->  | J52: =IF(AND(LEFT(C51,1)="D",LEFT(C52,1)="D"),"0",IF(OR(C51="DNR",C52="DNR"),IF(C51="DNR",1,-1)*'G Q 1-2'!A8,IF(OR(ISBLANK(C51),ISBLANK(C52)),"",IF(OR(G51="-",G52="-"),IF(G51="-",1,-1)*'G Q 1-2'!A8,IF(ABS(G51-G52)>'G Q 1-2'!A9,IF(G51-G52>'G Q 1-2'!A9,1,-1)*'G Q 1-2'!A9,ROUND(G51-G52,3)))))) ->  | Q52: =IF(AND(LEFT(K51,1)="D",LEFT(K52,1)="D"),"",IF(OR(K51="DNR",K52="DNR"),"by "&ABS(R52)&" seconds",IF(OR(ISBLANK(K51),ISBLANK(K52),O51=O52),"","by "&ABS(R52)&" seconds"))) ->  | R52: =IF(AND(LEFT(K51,1)="D",LEFT(K52,1)="D"),"0",IF(OR(K51="DNR",K52="DNR"),IF(K51="DNR",1,-1)*'G Q 1-2'!A8,IF(OR(ISBLANK(K51),ISBLANK(K52)),"",IF(OR(O51="-",O52="-"),IF(O51="-",1,-1)*'G Q 1-2'!A8,IF(ABS(O51-O52)>'G Q 1-2'!A9,IF(O51-O52>'G Q 1-2'!A9,1,-1)*'G Q 1-2'!A9,ROUND(O51-O52,3)))))) ->  | S52: =IF(B52="BYE","(BYE)",IF(ISERROR(J52+R52)=TRUE,"",IF(J52+R52=0,"","by "&ABS(J52+R52)&" seconds"))) -> (BYE) | U52: =IF(B52="BYE", B52, IF(ISERROR(J52+R52)=TRUE,"",IF(J52+R52>0,B51,B52))) -> BYE | V52: =IF(ISERROR(VLOOKUP(U52,'G Q 1-2'!U12:V111,2,FALSE))=TRUE,"",VLOOKUP(U52,'G Q 1-2'!U12:V111,2,FALSE)) ->  | W52: =IF(ISERROR(VLOOKUP(U52,'G Q 1-2'!AL12:AO111,4,FALSE))=TRUE,"",VLOOKUP(U52,'G Q 1-2'!AL12:AO111,4,FALSE)) -> 
A53: =IF(S28=B28, A28, A29) -> 7 | B53: =IF(A3>16,IF(S28="TIE - HOLD RUNOFF","",S28),IF(A3<16,"BYE",IF(ISERROR(VLOOKUP(A53,'G Q 1-2'!AO12:'G Q 1-2'!AQ111,3,FALSE))=TRUE,"BYE",VLOOKUP(A53,'G Q 1-2'!AO12:'G Q 1-2'!AQ111,3,FALSE)))) -> BYE | I53: =IF(AND(LEFT(C53,1)="D",LEFT(C54,1)="D"),"",IF(OR(C53="DNR",C54="DNR"),IF(C53="DNR",B54,B53),IF(OR(ISBLANK(C53),ISBLANK(C54)),"",IF(G53=G54,"TIE",IF(G53>G54,B54,B53))))) ->  | Q53: =IF(AND(LEFT(K53,1)="D",LEFT(K54,1)="D"),"",IF(OR(K53="DNR",K54="DNR"),IF(K53="DNR",B54,B53),IF(OR(ISBLANK(K53),ISBLANK(K54)),"",IF(O53=O54,"TIE",IF(O53>O54,B54,B53))))) ->  | S53: =IF(B54="BYE", B53, IF(ISERROR(J54+R54)=TRUE,"",IF(J54+R54=0,"TIE - HOLD RUNOFF",IF(J54+R54>0,B54,B53)))) -> BYE
A54: =IF(S30=B30, A30, A31) -> 10 | B54: =IF(A3>16,IF(S30="TIE - HOLD RUNOFF","",S30),IF(A3<16,"BYE",IF(ISERROR(VLOOKUP(A54,'G Q 1-2'!AO12:'G Q 1-2'!AQ111,3,FALSE))=TRUE,"BYE",VLOOKUP(A54,'G Q 1-2'!AO12:'G Q 1-2'!AQ111,3,FALSE)))) -> BYE | I54: =IF(AND(LEFT(C53,1)="D",LEFT(C54,1)="D"),"",IF(OR(C53="DNR",C54="DNR"),"by "&ABS(J54)&" seconds",IF(OR(ISBLANK(C53),ISBLANK(C54),G53=G54),"","by "&ABS(J54)&" seconds"))) ->  | J54: =IF(AND(LEFT(C53,1)="D",LEFT(C54,1)="D"),"0",IF(OR(C53="DNR",C54="DNR"),IF(C53="DNR",1,-1)*'G Q 1-2'!A8,IF(OR(ISBLANK(C53),ISBLANK(C54)),"",IF(OR(G53="-",G54="-"),IF(G53="-",1,-1)*'G Q 1-2'!A8,IF(ABS(G53-G54)>'G Q 1-2'!A9,IF(G53-G54>'G Q 1-2'!A9,1,-1)*'G Q 1-2'!A9,ROUND(G53-G54,3)))))) ->  | Q54: =IF(AND(LEFT(K53,1)="D",LEFT(K54,1)="D"),"",IF(OR(K53="DNR",K54="DNR"),"by "&ABS(R54)&" seconds",IF(OR(ISBLANK(K53),ISBLANK(K54),O53=O54),"","by "&ABS(R54)&" seconds"))) ->  | R54: =IF(AND(LEFT(K53,1)="D",LEFT(K54,1)="D"),"0",IF(OR(K53="DNR",K54="DNR"),IF(K53="DNR",1,-1)*'G Q 1-2'!A8,IF(OR(ISBLANK(K53),ISBLANK(K54)),"",IF(OR(O53="-",O54="-"),IF(O53="-",1,-1)*'G Q 1-2'!A8,IF(ABS(O53-O54)>'G Q 1-2'!A9,IF(O53-O54>'G Q 1-2'!A9,1,-1)*'G Q 1-2'!A9,ROUND(O53-O54,3)))))) ->  | S54: =IF(B54="BYE","(BYE)",IF(ISERROR(J54+R54)=TRUE,"",IF(J54+R54=0,"","by "&ABS(J54+R54)&" seconds"))) -> (BYE) | U54: =IF(B54="BYE", B54, IF(ISERROR(J54+R54)=TRUE,"",IF(J54+R54>0,B53,B54))) -> BYE | V54: =IF(ISERROR(VLOOKUP(U54,'G Q 1-2'!U12:V111,2,FALSE))=TRUE,"",VLOOKUP(U54,'G Q 1-2'!U12:V111,2,FALSE)) ->  | W54: =IF(ISERROR(VLOOKUP(U54,'G Q 1-2'!AL12:AO111,4,FALSE))=TRUE,"",VLOOKUP(U54,'G Q 1-2'!AL12:AO111,4,FALSE)) -> 
A55: =IF(S32=B32, A32, A33) -> 3 | B55: =IF(A3>16,IF(S32="TIE - HOLD RUNOFF","",S32),IF(A3<16,"BYE",IF(ISERROR(VLOOKUP(A55,'G Q 1-2'!AO12:'G Q 1-2'!AQ111,3,FALSE))=TRUE,"BYE",VLOOKUP(A55,'G Q 1-2'!AO12:'G Q 1-2'!AQ111,3,FALSE)))) -> BYE | I55: =IF(AND(LEFT(C55,1)="D",LEFT(C56,1)="D"),"",IF(OR(C55="DNR",C56="DNR"),IF(C55="DNR",B56,B55),IF(OR(ISBLANK(C55),ISBLANK(C56)),"",IF(G55=G56,"TIE",IF(G55>G56,B56,B55))))) ->  | Q55: =IF(AND(LEFT(K55,1)="D",LEFT(K56,1)="D"),"",IF(OR(K55="DNR",K56="DNR"),IF(K55="DNR",B56,B55),IF(OR(ISBLANK(K55),ISBLANK(K56)),"",IF(O55=O56,"TIE",IF(O55>O56,B56,B55))))) ->  | S55: =IF(B56="BYE", B55, IF(ISERROR(J56+R56)=TRUE,"",IF(J56+R56=0,"TIE - HOLD RUNOFF",IF(J56+R56>0,B56,B55)))) -> BYE
A56: =IF(S34=B34, A34, A35) -> 14 | B56: =IF(A3>16,IF(S34="TIE - HOLD RUNOFF","",S34),IF(A3<16,"BYE",IF(ISERROR(VLOOKUP(A56,'G Q 1-2'!AO12:'G Q 1-2'!AQ111,3,FALSE))=TRUE,"BYE",VLOOKUP(A56,'G Q 1-2'!AO12:'G Q 1-2'!AQ111,3,FALSE)))) -> BYE | I56: =IF(AND(LEFT(C55,1)="D",LEFT(C56,1)="D"),"",IF(OR(C55="DNR",C56="DNR"),"by "&ABS(J56)&" seconds",IF(OR(ISBLANK(C55),ISBLANK(C56),G55=G56),"","by "&ABS(J56)&" seconds"))) ->  | J56: =IF(AND(LEFT(C55,1)="D",LEFT(C56,1)="D"),"0",IF(OR(C55="DNR",C56="DNR"),IF(C55="DNR",1,-1)*'G Q 1-2'!A8,IF(OR(ISBLANK(C55),ISBLANK(C56)),"",IF(OR(G55="-",G56="-"),IF(G55="-",1,-1)*'G Q 1-2'!A8,IF(ABS(G55-G56)>'G Q 1-2'!A9,IF(G55-G56>'G Q 1-2'!A9,1,-1)*'G Q 1-2'!A9,ROUND(G55-G56,3)))))) ->  | Q56: =IF(AND(LEFT(K55,1)="D",LEFT(K56,1)="D"),"",IF(OR(K55="DNR",K56="DNR"),"by "&ABS(R56)&" seconds",IF(OR(ISBLANK(K55),ISBLANK(K56),O55=O56),"","by "&ABS(R56)&" seconds"))) ->  | R56: =IF(AND(LEFT(K55,1)="D",LEFT(K56,1)="D"),"0",IF(OR(K55="DNR",K56="DNR"),IF(K55="DNR",1,-1)*'G Q 1-2'!A8,IF(OR(ISBLANK(K55),ISBLANK(K56)),"",IF(OR(O55="-",O56="-"),IF(O55="-",1,-1)*'G Q 1-2'!A8,IF(ABS(O55-O56)>'G Q 1-2'!A9,IF(O55-O56>'G Q 1-2'!A9,1,-1)*'G Q 1-2'!A9,ROUND(O55-O56,3)))))) ->  | S56: =IF(B56="BYE","(BYE)",IF(ISERROR(J56+R56)=TRUE,"",IF(J56+R56=0,"","by "&ABS(J56+R56)&" seconds"))) -> (BYE) | U56: =IF(B56="BYE", B56, IF(ISERROR(J56+R56)=TRUE,"",IF(J56+R56>0,B55,B56))) -> BYE | V56: =IF(ISERROR(VLOOKUP(U56,'G Q 1-2'!U12:V111,2,FALSE))=TRUE,"",VLOOKUP(U56,'G Q 1-2'!U12:V111,2,FALSE)) ->  | W56: =IF(ISERROR(VLOOKUP(U56,'G Q 1-2'!AL12:AO111,4,FALSE))=TRUE,"",VLOOKUP(U56,'G Q 1-2'!AL12:AO111,4,FALSE)) -> 
A57: =IF(S36=B36, A36, A37) -> 6 | B57: =IF(A3>16,IF(S36="TIE - HOLD RUNOFF","",S36),IF(A3<16,"BYE",IF(ISERROR(VLOOKUP(A57,'G Q 1-2'!AO12:'G Q 1-2'!AQ111,3,FALSE))=TRUE,"BYE",VLOOKUP(A57,'G Q 1-2'!AO12:'G Q 1-2'!AQ111,3,FALSE)))) -> BYE | I57: =IF(AND(LEFT(C57,1)="D",LEFT(C58,1)="D"),"",IF(OR(C57="DNR",C58="DNR"),IF(C57="DNR",B58,B57),IF(OR(ISBLANK(C57),ISBLANK(C58)),"",IF(G57=G58,"TIE",IF(G57>G58,B58,B57))))) ->  | Q57: =IF(AND(LEFT(K57,1)="D",LEFT(K58,1)="D"),"",IF(OR(K57="DNR",K58="DNR"),IF(K57="DNR",B58,B57),IF(OR(ISBLANK(K57),ISBLANK(K58)),"",IF(O57=O58,"TIE",IF(O57>O58,B58,B57))))) ->  | S57: =IF(B58="BYE", B57, IF(ISERROR(J58+R58)=TRUE,"",IF(J58+R58=0,"TIE - HOLD RUNOFF",IF(J58+R58>0,B58,B57)))) -> BYE
A58: =IF(S38=B38, A38, A39) -> 11 | B58: =IF(A3>16,IF(S38="TIE - HOLD RUNOFF","",S38),IF(A3<16,"BYE",IF(ISERROR(VLOOKUP(A58,'G Q 1-2'!AO12:'G Q 1-2'!AQ111,3,FALSE))=TRUE,"BYE",VLOOKUP(A58,'G Q 1-2'!AO12:'G Q 1-2'!AQ111,3,FALSE)))) -> BYE | I58: =IF(AND(LEFT(C57,1)="D",LEFT(C58,1)="D"),"",IF(OR(C57="DNR",C58="DNR"),"by "&ABS(J58)&" seconds",IF(OR(ISBLANK(C57),ISBLANK(C58),G57=G58),"","by "&ABS(J58)&" seconds"))) ->  | J58: =IF(AND(LEFT(C57,1)="D",LEFT(C58,1)="D"),"0",IF(OR(C57="DNR",C58="DNR"),IF(C57="DNR",1,-1)*'G Q 1-2'!A8,IF(OR(ISBLANK(C57),ISBLANK(C58)),"",IF(OR(G57="-",G58="-"),IF(G57="-",1,-1)*'G Q 1-2'!A8,IF(ABS(G57-G58)>'G Q 1-2'!A9,IF(G57-G58>'G Q 1-2'!A9,1,-1)*'G Q 1-2'!A9,ROUND(G57-G58,3)))))) ->  | Q58: =IF(AND(LEFT(K57,1)="D",LEFT(K58,1)="D"),"",IF(OR(K57="DNR",K58="DNR"),"by "&ABS(R58)&" seconds",IF(OR(ISBLANK(K57),ISBLANK(K58),O57=O58),"","by "&ABS(R58)&" seconds"))) ->  | R58: =IF(AND(LEFT(K57,1)="D",LEFT(K58,1)="D"),"0",IF(OR(K57="DNR",K58="DNR"),IF(K57="DNR",1,-1)*'G Q 1-2'!A8,IF(OR(ISBLANK(K57),ISBLANK(K58)),"",IF(OR(O57="-",O58="-"),IF(O57="-",1,-1)*'G Q 1-2'!A8,IF(ABS(O57-O58)>'G Q 1-2'!A9,IF(O57-O58>'G Q 1-2'!A9,1,-1)*'G Q 1-2'!A9,ROUND(O57-O58,3)))))) ->  | S58: =IF(B58="BYE","(BYE)",IF(ISERROR(J58+R58)=TRUE,"",IF(J58+R58=0,"","by "&ABS(J58+R58)&" seconds"))) -> (BYE) | U58: =IF(B58="BYE", B58, IF(ISERROR(J58+R58)=TRUE,"",IF(J58+R58>0,B57,B58))) -> BYE | V58: =IF(ISERROR(VLOOKUP(U58,'G Q 1-2'!U12:V111,2,FALSE))=TRUE,"",VLOOKUP(U58,'G Q 1-2'!U12:V111,2,FALSE)) ->  | W58: =IF(ISERROR(VLOOKUP(U58,'G Q 1-2'!AL12:AO111,4,FALSE))=TRUE,"",VLOOKUP(U58,'G Q 1-2'!AL12:AO111,4,FALSE)) -> 
B61: Round of 8
A62: =IF(S43=B43, A43, A44) -> 1 | B62: =IF(A3>8,IF(S43="TIE - HOLD RUNOFF","",S43),IF(A3<8,"BYE",IF(ISERROR(VLOOKUP(A62,'G Q 1-2'!AO12:'G Q 1-2'!AQ111,3,FALSE))=TRUE,"BYE",VLOOKUP(A62,'G Q 1-2'!AO12:'G Q 1-2'!AQ111,3,FALSE)))) -> Voves Jindřich [CZE] | G62: =IF(LEFT(C62:C69,1)="D","-",IF(D62:D69>'G Q 1-2'!A6,"-",IF(C62:C69>0,C62:C69+D62:D69*'G Q 1-2'!A5+F62:F69*'G Q 1-2'!A7,""))) ->  | H62: =IF(G62:G69="","",IF(G62:G69="-","",RANK(G62:G69,G62:G69,1))) ->  | I62: =IF(AND(LEFT(C62,1)="D",LEFT(C63,1)="D"),"",IF(OR(C62="DNR",C63="DNR"),IF(C62="DNR",B63,B62),IF(OR(ISBLANK(C62),ISBLANK(C63)),"",IF(G62=G63,"TIE",IF(G62>G63,B63,B62))))) ->  | O62: =IF(LEFT(K62:K69,1)="D","-",IF(L62:L69>'G Q 1-2'!A6,"-",IF(K62:K69>0,K62:K69+L62:L69*'G Q 1-2'!A5+N62:N69*'G Q 1-2'!A7,""))) ->  | P62: =IF(O62:O69="","",IF(O62:O69="-","",RANK(O62:O69,O62:O69,1))) ->  | Q62: =IF(AND(LEFT(K62,1)="D",LEFT(K63,1)="D"),"",IF(OR(K62="DNR",K63="DNR"),IF(K62="DNR",B63,B62),IF(OR(ISBLANK(K62),ISBLANK(K63)),"",IF(O62=O63,"TIE",IF(O62>O63,B63,B62))))) ->  | S62: =IF(B63="BYE", B62, IF(ISERROR(J63+R63)=TRUE,"",IF(J63+R63=0,"TIE - HOLD RUNOFF",IF(J63+R63>0,B63,B62)))) -> Voves Jindřich [CZE]
A63: =IF(S45=B45, A45, A46) -> 8 | B63: =IF(A3>8,IF(S45="TIE - HOLD RUNOFF","",S45),IF(A3<8,"BYE",IF(ISERROR(VLOOKUP(A63,'G Q 1-2'!AO12:'G Q 1-2'!AQ111,3,FALSE))=TRUE,"BYE",VLOOKUP(A63,'G Q 1-2'!AO12:'G Q 1-2'!AQ111,3,FALSE)))) -> BYE | I63: =IF(AND(LEFT(C62,1)="D",LEFT(C63,1)="D"),"",IF(OR(C62="DNR",C63="DNR"),"by "&ABS(J63)&" seconds",IF(OR(ISBLANK(C62),ISBLANK(C63),G62=G63),"","by "&ABS(J63)&" seconds"))) ->  | J63: =IF(AND(LEFT(C62,1)="D",LEFT(C63,1)="D"),"0",IF(OR(C62="DNR",C63="DNR"),IF(C62="DNR",1,-1)*'G Q 1-2'!A8,IF(OR(ISBLANK(C62),ISBLANK(C63)),"",IF(OR(G62="-",G63="-"),IF(G62="-",1,-1)*'G Q 1-2'!A8,IF(ABS(G62-G63)>'G Q 1-2'!A9,IF(G62-G63>'G Q 1-2'!A9,1,-1)*'G Q 1-2'!A9,ROUND(G62-G63,3)))))) ->  | Q63: =IF(AND(LEFT(K62,1)="D",LEFT(K63,1)="D"),"",IF(OR(K62="DNR",K63="DNR"),"by "&ABS(R63)&" seconds",IF(OR(ISBLANK(K62),ISBLANK(K63),O62=O63),"","by "&ABS(R63)&" seconds"))) ->  | R63: =IF(AND(LEFT(K62,1)="D",LEFT(K63,1)="D"),"0",IF(OR(K62="DNR",K63="DNR"),IF(K62="DNR",1,-1)*'G Q 1-2'!A8,IF(OR(ISBLANK(K62),ISBLANK(K63)),"",IF(OR(O62="-",O63="-"),IF(O62="-",1,-1)*'G Q 1-2'!A8,IF(ABS(O62-O63)>'G Q 1-2'!A9,IF(O62-O63>'G Q 1-2'!A9,1,-1)*'G Q 1-2'!A9,ROUND(O62-O63,3)))))) ->  | S63: =IF(B63="BYE","(BYE)",IF(ISERROR(J63+R63)=TRUE,"",IF(J63+R63=0,"","by "&ABS(J63+R63)&" seconds"))) -> (BYE) | T63: =IF(W63:W69="","",IF(ISERROR(W63:W69)=TRUE,"",4+RANK(W63:W69,W63:W69,1))) ->  | U63: =IF(B63="BYE", B63, IF(ISERROR(J63+R63)=TRUE,"",IF(J63+R63>0,B62,B63))) -> BYE | V63: =IF(ISERROR(VLOOKUP(U63,'G Q 1-2'!U12:V111,2,FALSE))=TRUE,"",VLOOKUP(U63,'G Q 1-2'!U12:V111,2,FALSE)) ->  | W63: =IF(ISERROR(VLOOKUP(U63,'G Q 1-2'!AL12:AO111,4,FALSE))=TRUE,"",VLOOKUP(U63,'G Q 1-2'!AL12:AO111,4,FALSE)) -> 
A64: =IF(S47=B47, A47, A48) -> 4 | B64: =IF(A3>8,IF(S47="TIE - HOLD RUNOFF","",S47),IF(A3<8,"BYE",IF(ISERROR(VLOOKUP(A64,'G Q 1-2'!AO12:'G Q 1-2'!AQ111,3,FALSE))=TRUE,"BYE",VLOOKUP(A64,'G Q 1-2'!AO12:'G Q 1-2'!AQ111,3,FALSE)))) -> BYE | I64: =IF(AND(LEFT(C64,1)="D",LEFT(C65,1)="D"),"",IF(OR(C64="DNR",C65="DNR"),IF(C64="DNR",B65,B64),IF(OR(ISBLANK(C64),ISBLANK(C65)),"",IF(G64=G65,"TIE",IF(G64>G65,B65,B64))))) ->  | Q64: =IF(AND(LEFT(K64,1)="D",LEFT(K65,1)="D"),"",IF(OR(K64="DNR",K65="DNR"),IF(K64="DNR",B65,B64),IF(OR(ISBLANK(K64),ISBLANK(K65)),"",IF(O64=O65,"TIE",IF(O64>O65,B65,B64))))) ->  | S64: =IF(B65="BYE", B64, IF(ISERROR(J65+R65)=TRUE,"",IF(J65+R65=0,"TIE - HOLD RUNOFF",IF(J65+R65>0,B65,B64)))) -> BYE
A65: =IF(S49=B49, A49, A50) -> 5 | B65: =IF(A3>8,IF(S49="TIE - HOLD RUNOFF","",S49),IF(A3<8,"BYE",IF(ISERROR(VLOOKUP(A65,'G Q 1-2'!AO12:'G Q 1-2'!AQ111,3,FALSE))=TRUE,"BYE",VLOOKUP(A65,'G Q 1-2'!AO12:'G Q 1-2'!AQ111,3,FALSE)))) -> BYE | I65: =IF(AND(LEFT(C64,1)="D",LEFT(C65,1)="D"),"",IF(OR(C64="DNR",C65="DNR"),"by "&ABS(J65)&" seconds",IF(OR(ISBLANK(C64),ISBLANK(C65),G64=G65),"","by "&ABS(J65)&" seconds"))) ->  | J65: =IF(AND(LEFT(C64,1)="D",LEFT(C65,1)="D"),"0",IF(OR(C64="DNR",C65="DNR"),IF(C64="DNR",1,-1)*'G Q 1-2'!A8,IF(OR(ISBLANK(C64),ISBLANK(C65)),"",IF(OR(G64="-",G65="-"),IF(G64="-",1,-1)*'G Q 1-2'!A8,IF(ABS(G64-G65)>'G Q 1-2'!A9,IF(G64-G65>'G Q 1-2'!A9,1,-1)*'G Q 1-2'!A9,ROUND(G64-G65,3)))))) ->  | Q65: =IF(AND(LEFT(K64,1)="D",LEFT(K65,1)="D"),"",IF(OR(K64="DNR",K65="DNR"),"by "&ABS(R65)&" seconds",IF(OR(ISBLANK(K64),ISBLANK(K65),O64=O65),"","by "&ABS(R65)&" seconds"))) ->  | R65: =IF(AND(LEFT(K64,1)="D",LEFT(K65,1)="D"),"0",IF(OR(K64="DNR",K65="DNR"),IF(K64="DNR",1,-1)*'G Q 1-2'!A8,IF(OR(ISBLANK(K64),ISBLANK(K65)),"",IF(OR(O64="-",O65="-"),IF(O64="-",1,-1)*'G Q 1-2'!A8,IF(ABS(O64-O65)>'G Q 1-2'!A9,IF(O64-O65>'G Q 1-2'!A9,1,-1)*'G Q 1-2'!A9,ROUND(O64-O65,3)))))) ->  | S65: =IF(B65="BYE","(BYE)",IF(ISERROR(J65+R65)=TRUE,"",IF(J65+R65=0,"","by "&ABS(J65+R65)&" seconds"))) -> (BYE) | U65: =IF(B65="BYE", B65, IF(ISERROR(J65+R65)=TRUE,"",IF(J65+R65>0,B64,B65))) -> BYE | V65: =IF(ISERROR(VLOOKUP(U65,'G Q 1-2'!U12:V111,2,FALSE))=TRUE,"",VLOOKUP(U65,'G Q 1-2'!U12:V111,2,FALSE)) ->  | W65: =IF(ISERROR(VLOOKUP(U65,'G Q 1-2'!AL12:AO111,4,FALSE))=TRUE,"",VLOOKUP(U65,'G Q 1-2'!AL12:AO111,4,FALSE)) -> 
A66: =IF(S51=B51, A51, A52) -> 2 | B66: =IF(A3>8,IF(S51="TIE - HOLD RUNOFF","",S51),IF(A3<8,"BYE",IF(ISERROR(VLOOKUP(A66,'G Q 1-2'!AO12:'G Q 1-2'!AQ111,3,FALSE))=TRUE,"BYE",VLOOKUP(A66,'G Q 1-2'!AO12:'G Q 1-2'!AQ111,3,FALSE)))) -> Rezková Anna [CZE] | I66: =IF(AND(LEFT(C66,1)="D",LEFT(C67,1)="D"),"",IF(OR(C66="DNR",C67="DNR"),IF(C66="DNR",B67,B66),IF(OR(ISBLANK(C66),ISBLANK(C67)),"",IF(G66=G67,"TIE",IF(G66>G67,B67,B66))))) ->  | Q66: =IF(AND(LEFT(K66,1)="D",LEFT(K67,1)="D"),"",IF(OR(K66="DNR",K67="DNR"),IF(K66="DNR",B67,B66),IF(OR(ISBLANK(K66),ISBLANK(K67)),"",IF(O66=O67,"TIE",IF(O66>O67,B67,B66))))) ->  | S66: =IF(B67="BYE", B66, IF(ISERROR(J67+R67)=TRUE,"",IF(J67+R67=0,"TIE - HOLD RUNOFF",IF(J67+R67>0,B67,B66)))) -> Rezková Anna [CZE]
A67: =IF(S53=B53, A53, A54) -> 7 | B67: =IF(A3>8,IF(S53="TIE - HOLD RUNOFF","",S53),IF(A3<8,"BYE",IF(ISERROR(VLOOKUP(A67,'G Q 1-2'!AO12:'G Q 1-2'!AQ111,3,FALSE))=TRUE,"BYE",VLOOKUP(A67,'G Q 1-2'!AO12:'G Q 1-2'!AQ111,3,FALSE)))) -> BYE | I67: =IF(AND(LEFT(C66,1)="D",LEFT(C67,1)="D"),"",IF(OR(C66="DNR",C67="DNR"),"by "&ABS(J67)&" seconds",IF(OR(ISBLANK(C66),ISBLANK(C67),G66=G67),"","by "&ABS(J67)&" seconds"))) ->  | J67: =IF(AND(LEFT(C66,1)="D",LEFT(C67,1)="D"),"0",IF(OR(C66="DNR",C67="DNR"),IF(C66="DNR",1,-1)*'G Q 1-2'!A8,IF(OR(ISBLANK(C66),ISBLANK(C67)),"",IF(OR(G66="-",G67="-"),IF(G66="-",1,-1)*'G Q 1-2'!A8,IF(ABS(G66-G67)>'G Q 1-2'!A9,IF(G66-G67>'G Q 1-2'!A9,1,-1)*'G Q 1-2'!A9,ROUND(G66-G67,3)))))) ->  | Q67: =IF(AND(LEFT(K66,1)="D",LEFT(K67,1)="D"),"",IF(OR(K66="DNR",K67="DNR"),"by "&ABS(R67)&" seconds",IF(OR(ISBLANK(K66),ISBLANK(K67),O66=O67),"","by "&ABS(R67)&" seconds"))) ->  | R67: =IF(AND(LEFT(K66,1)="D",LEFT(K67,1)="D"),"0",IF(OR(K66="DNR",K67="DNR"),IF(K66="DNR",1,-1)*'G Q 1-2'!A8,IF(OR(ISBLANK(K66),ISBLANK(K67)),"",IF(OR(O66="-",O67="-"),IF(O66="-",1,-1)*'G Q 1-2'!A8,IF(ABS(O66-O67)>'G Q 1-2'!A9,IF(O66-O67>'G Q 1-2'!A9,1,-1)*'G Q 1-2'!A9,ROUND(O66-O67,3)))))) ->  | S67: =IF(B67="BYE","(BYE)",IF(ISERROR(J67+R67)=TRUE,"",IF(J67+R67=0,"","by "&ABS(J67+R67)&" seconds"))) -> (BYE) | U67: =IF(B67="BYE", B67, IF(ISERROR(J67+R67)=TRUE,"",IF(J67+R67>0,B66,B67))) -> BYE | V67: =IF(ISERROR(VLOOKUP(U67,'G Q 1-2'!U12:V111,2,FALSE))=TRUE,"",VLOOKUP(U67,'G Q 1-2'!U12:V111,2,FALSE)) ->  | W67: =IF(ISERROR(VLOOKUP(U67,'G Q 1-2'!AL12:AO111,4,FALSE))=TRUE,"",VLOOKUP(U67,'G Q 1-2'!AL12:AO111,4,FALSE)) -> 
A68: =IF(S55=B55, A55, A56) -> 3 | B68: =IF(A3>8,IF(S55="TIE - HOLD RUNOFF","",S55),IF(A3<8,"BYE",IF(ISERROR(VLOOKUP(A68,'G Q 1-2'!AO12:'G Q 1-2'!AQ111,3,FALSE))=TRUE,"BYE",VLOOKUP(A68,'G Q 1-2'!AO12:'G Q 1-2'!AQ111,3,FALSE)))) -> BYE | I68: =IF(AND(LEFT(C68,1)="D",LEFT(C69,1)="D"),"",IF(OR(C68="DNR",C69="DNR"),IF(C68="DNR",B69,B68),IF(OR(ISBLANK(C68),ISBLANK(C69)),"",IF(G68=G69,"TIE",IF(G68>G69,B69,B68))))) ->  | Q68: =IF(AND(LEFT(K68,1)="D",LEFT(K69,1)="D"),"",IF(OR(K68="DNR",K69="DNR"),IF(K68="DNR",B69,B68),IF(OR(ISBLANK(K68),ISBLANK(K69)),"",IF(O68=O69,"TIE",IF(O68>O69,B69,B68))))) ->  | S68: =IF(B69="BYE", B68, IF(ISERROR(J69+R69)=TRUE,"",IF(J69+R69=0,"TIE - HOLD RUNOFF",IF(J69+R69>0,B69,B68)))) -> BYE
A69: =IF(S57=B57, A57, A58) -> 6 | B69: =IF(A3>8,IF(S57="TIE - HOLD RUNOFF","",S57),IF(A3<8,"BYE",IF(ISERROR(VLOOKUP(A69,'G Q 1-2'!AO12:'G Q 1-2'!AQ111,3,FALSE))=TRUE,"BYE",VLOOKUP(A69,'G Q 1-2'!AO12:'G Q 1-2'!AQ111,3,FALSE)))) -> BYE | I69: =IF(AND(LEFT(C68,1)="D",LEFT(C69,1)="D"),"",IF(OR(C68="DNR",C69="DNR"),"by "&ABS(J69)&" seconds",IF(OR(ISBLANK(C68),ISBLANK(C69),G68=G69),"","by "&ABS(J69)&" seconds"))) ->  | J69: =IF(AND(LEFT(C68,1)="D",LEFT(C69,1)="D"),"0",IF(OR(C68="DNR",C69="DNR"),IF(C68="DNR",1,-1)*'G Q 1-2'!A8,IF(OR(ISBLANK(C68),ISBLANK(C69)),"",IF(OR(G68="-",G69="-"),IF(G68="-",1,-1)*'G Q 1-2'!A8,IF(ABS(G68-G69)>'G Q 1-2'!A9,IF(G68-G69>'G Q 1-2'!A9,1,-1)*'G Q 1-2'!A9,ROUND(G68-G69,3)))))) ->  | Q69: =IF(AND(LEFT(K68,1)="D",LEFT(K69,1)="D"),"",IF(OR(K68="DNR",K69="DNR"),"by "&ABS(R69)&" seconds",IF(OR(ISBLANK(K68),ISBLANK(K69),O68=O69),"","by "&ABS(R69)&" seconds"))) ->  | R69: =IF(AND(LEFT(K68,1)="D",LEFT(K69,1)="D"),"0",IF(OR(K68="DNR",K69="DNR"),IF(K68="DNR",1,-1)*'G Q 1-2'!A8,IF(OR(ISBLANK(K68),ISBLANK(K69)),"",IF(OR(O68="-",O69="-"),IF(O68="-",1,-1)*'G Q 1-2'!A8,IF(ABS(O68-O69)>'G Q 1-2'!A9,IF(O68-O69>'G Q 1-2'!A9,1,-1)*'G Q 1-2'!A9,ROUND(O68-O69,3)))))) ->  | S69: =IF(B69="BYE","(BYE)",IF(ISERROR(J69+R69)=TRUE,"",IF(J69+R69=0,"","by "&ABS(J69+R69)&" seconds"))) -> (BYE) | U69: =IF(B69="BYE", B69, IF(ISERROR(J69+R69)=TRUE,"",IF(J69+R69>0,B68,B69))) -> BYE | V69: =IF(ISERROR(VLOOKUP(U69,'G Q 1-2'!U12:V111,2,FALSE))=TRUE,"",VLOOKUP(U69,'G Q 1-2'!U12:V111,2,FALSE)) ->  | W69: =IF(ISERROR(VLOOKUP(U69,'G Q 1-2'!AL12:AO111,4,FALSE))=TRUE,"",VLOOKUP(U69,'G Q 1-2'!AL12:AO111,4,FALSE)) -> 
B72: Round of 4
A73: =IF(S62=B62, A62, A63) -> 1 | B73: =IF(A3>4,IF(S62="TIE - HOLD RUNOFF","",S62),IF(A3<4,"BYE",IF(ISERROR(VLOOKUP(A73,'G Q 1-2'!AO12:'G Q 1-2'!AQ111,3,FALSE))=TRUE,"BYE",VLOOKUP(A73,'G Q 1-2'!AO12:'G Q 1-2'!AQ111,3,FALSE)))) -> Voves Jindřich [CZE] | G73: =IF(LEFT(C73:C76,1)="D","-",IF(D73:D76>'G Q 1-2'!A6,"-",IF(C73:C76>0,C73:C76+D73:D76*'G Q 1-2'!A5+F73:F76*'G Q 1-2'!A7,""))) ->  | H73: =IF(G73:G76="","",IF(G73:G76="-","",RANK(G73:G76,G73:G76,1))) ->  | I73: =IF(AND(LEFT(C73,1)="D",LEFT(C74,1)="D"),"",IF(OR(C73="DNR",C74="DNR"),IF(C73="DNR",B74,B73),IF(OR(ISBLANK(C73),ISBLANK(C74)),"",IF(G73=G74,"TIE",IF(G73>G74,B74,B73))))) ->  | O73: =IF(LEFT(K73:K76,1)="D","-",IF(L73:L76>'G Q 1-2'!A6,"-",IF(K73:K76>0,K73:K76+L73:L76*'G Q 1-2'!A5+N73:N76*'G Q 1-2'!A7,""))) ->  | P73: =IF(O73:O76="","",IF(O73:O76="-","",RANK(O73:O76,O73:O76,1))) ->  | Q73: =IF(AND(LEFT(K73,1)="D",LEFT(K74,1)="D"),"",IF(OR(K73="DNR",K74="DNR"),IF(K73="DNR",B74,B73),IF(OR(ISBLANK(K73),ISBLANK(K74)),"",IF(O73=O74,"TIE",IF(O73>O74,B74,B73))))) ->  | S73: =IF(B74="BYE", B73, IF(ISERROR(J74+R74)=TRUE,"",IF(J74+R74=0,"TIE - HOLD RUNOFF",IF(J74+R74>0,B74,B73)))) -> Voves Jindřich [CZE]
A74: =IF(S64=B64, A64, A65) -> 4 | B74: =IF(A3>4,IF(S64="TIE - HOLD RUNOFF","",S64),IF(A3<4,"BYE",IF(ISERROR(VLOOKUP(A74,'G Q 1-2'!AO12:'G Q 1-2'!AQ111,3,FALSE))=TRUE,"BYE",VLOOKUP(A74,'G Q 1-2'!AO12:'G Q 1-2'!AQ111,3,FALSE)))) -> BYE | I74: =IF(AND(LEFT(C73,1)="D",LEFT(C74,1)="D"),"",IF(OR(C73="DNR",C74="DNR"),"by "&ABS(J74)&" seconds",IF(OR(ISBLANK(C73),ISBLANK(C74),G73=G74),"","by "&ABS(J74)&" seconds"))) ->  | J74: =IF(AND(LEFT(C73,1)="D",LEFT(C74,1)="D"),"0",IF(OR(C73="DNR",C74="DNR"),IF(C73="DNR",1,-1)*'G Q 1-2'!A8,IF(OR(ISBLANK(C73),ISBLANK(C74)),"",IF(OR(G73="-",G74="-"),IF(G73="-",1,-1)*'G Q 1-2'!A8,IF(ABS(G73-G74)>'G Q 1-2'!A9,IF(G73-G74>'G Q 1-2'!A9,1,-1)*'G Q 1-2'!A9,ROUND(G73-G74,3)))))) ->  | Q74: =IF(AND(LEFT(K73,1)="D",LEFT(K74,1)="D"),"",IF(OR(K73="DNR",K74="DNR"),"by "&ABS(R74)&" seconds",IF(OR(ISBLANK(K73),ISBLANK(K74),O73=O74),"","by "&ABS(R74)&" seconds"))) ->  | R74: =IF(AND(LEFT(K73,1)="D",LEFT(K74,1)="D"),"0",IF(OR(K73="DNR",K74="DNR"),IF(K73="DNR",1,-1)*'G Q 1-2'!A8,IF(OR(ISBLANK(K73),ISBLANK(K74)),"",IF(OR(O73="-",O74="-"),IF(O73="-",1,-1)*'G Q 1-2'!A8,IF(ABS(O73-O74)>'G Q 1-2'!A9,IF(O73-O74>'G Q 1-2'!A9,1,-1)*'G Q 1-2'!A9,ROUND(O73-O74,3)))))) ->  | S74: =IF(B74="BYE","(BYE)",IF(ISERROR(J74+R74)=TRUE,"",IF(J74+R74=0,"","by "&ABS(J74+R74)&" seconds"))) -> (BYE) | U74: =IF(B74="BYE", B74, IF(ISERROR(J74+R74)=TRUE,"",IF(J74+R74>0,B73,B74))) -> BYE
A75: =IF(S66=B66, A66, A67) -> 2 | B75: =IF(A3>4,IF(S66="TIE - HOLD RUNOFF","",S66),IF(A3<4,"BYE",IF(ISERROR(VLOOKUP(A75,'G Q 1-2'!AO12:'G Q 1-2'!AQ111,3,FALSE))=TRUE,"BYE",VLOOKUP(A75,'G Q 1-2'!AO12:'G Q 1-2'!AQ111,3,FALSE)))) -> Rezková Anna [CZE] | I75: =IF(AND(LEFT(C75,1)="D",LEFT(C76,1)="D"),"",IF(OR(C75="DNR",C76="DNR"),IF(C75="DNR",B76,B75),IF(OR(ISBLANK(C75),ISBLANK(C76)),"",IF(G75=G76,"TIE",IF(G75>G76,B76,B75))))) ->  | Q75: =IF(AND(LEFT(K75,1)="D",LEFT(K76,1)="D"),"",IF(OR(K75="DNR",K76="DNR"),IF(K75="DNR",B76,B75),IF(OR(ISBLANK(K75),ISBLANK(K76)),"",IF(O75=O76,"TIE",IF(O75>O76,B76,B75))))) ->  | S75: =IF(B76="BYE", B75, IF(ISERROR(J76+R76)=TRUE,"",IF(J76+R76=0,"TIE - HOLD RUNOFF",IF(J76+R76>0,B76,B75)))) -> Rezková Anna [CZE]
A76: =IF(S68=B68, A68, A69) -> 3 | B76: =IF(A3>4,IF(S68="TIE - HOLD RUNOFF","",S68),IF(A3<4,"BYE",IF(ISERROR(VLOOKUP(A76,'G Q 1-2'!AO12:'G Q 1-2'!AQ111,3,FALSE))=TRUE,"BYE",VLOOKUP(A76,'G Q 1-2'!AO12:'G Q 1-2'!AQ111,3,FALSE)))) -> BYE | I76: =IF(AND(LEFT(C75,1)="D",LEFT(C76,1)="D"),"",IF(OR(C75="DNR",C76="DNR"),"by "&ABS(J76)&" seconds",IF(OR(ISBLANK(C75),ISBLANK(C76),G75=G76),"","by "&ABS(J76)&" seconds"))) ->  | J76: =IF(AND(LEFT(C75,1)="D",LEFT(C76,1)="D"),"0",IF(OR(C75="DNR",C76="DNR"),IF(C75="DNR",1,-1)*'G Q 1-2'!A8,IF(OR(ISBLANK(C75),ISBLANK(C76)),"",IF(OR(G75="-",G76="-"),IF(G75="-",1,-1)*'G Q 1-2'!A8,IF(ABS(G75-G76)>'G Q 1-2'!A9,IF(G75-G76>'G Q 1-2'!A9,1,-1)*'G Q 1-2'!A9,ROUND(G75-G76,3)))))) ->  | Q76: =IF(AND(LEFT(K75,1)="D",LEFT(K76,1)="D"),"",IF(OR(K75="DNR",K76="DNR"),"by "&ABS(R76)&" seconds",IF(OR(ISBLANK(K75),ISBLANK(K76),O75=O76),"","by "&ABS(R76)&" seconds"))) ->  | R76: =IF(AND(LEFT(K75,1)="D",LEFT(K76,1)="D"),"0",IF(OR(K75="DNR",K76="DNR"),IF(K75="DNR",1,-1)*'G Q 1-2'!A8,IF(OR(ISBLANK(K75),ISBLANK(K76)),"",IF(OR(O75="-",O76="-"),IF(O75="-",1,-1)*'G Q 1-2'!A8,IF(ABS(O75-O76)>'G Q 1-2'!A9,IF(O75-O76>'G Q 1-2'!A9,1,-1)*'G Q 1-2'!A9,ROUND(O75-O76,3)))))) ->  | S76: =IF(B76="BYE","(BYE)",IF(ISERROR(J76+R76)=TRUE,"",IF(J76+R76=0,"","by "&ABS(J76+R76)&" seconds"))) -> (BYE) | U76: =IF(B76="BYE", B76, IF(ISERROR(J76+R76)=TRUE,"",IF(J76+R76>0,B75,B76))) -> BYE
B79: Consolation Round
A80: =IF(B74="BYE",IF(S75=B75,A76,A75),IF(S73=B73, A74, A73)) -> 3 | B80: =IF(A3>2,IF(B74="BYE","BYE",IF(U74="","",U74)),IF(ISERROR(VLOOKUP(A80,'G Q 1-2'!AO12:'G Q 1-2'!AQ111,3,FALSE))=TRUE,"BYE",VLOOKUP(A80,'G Q 1-2'!AO12:'G Q 1-2'!AQ111,3,FALSE))) -> BYE | G80: =IF(LEFT(C80:C81,1)="D","-",IF(D80:D81>'G Q 1-2'!A6,"-",IF(C80:C81>0,C80:C81+D80:D81*'G Q 1-2'!A5+F80:F81*'G Q 1-2'!A7,""))) ->  | H80: =IF(G80:G81="","",IF(G80:G81="-","",RANK(G80:G81,G80:G81,1))) ->  | I80: =IF(AND(LEFT(C80,1)="D",LEFT(C81,1)="D"),"",IF(OR(C80="DNR",C81="DNR"),IF(C80="DNR",B81,B80),IF(OR(ISBLANK(C80),ISBLANK(C81)),"",IF(G80=G81,"TIE",IF(G80>G81,B81,B80))))) ->  | O80: =IF(LEFT(K80:K81,1)="D","-",IF(L80:L81>'G Q 1-2'!A6,"-",IF(K80:K81>0,K80:K81+L80:L81*'G Q 1-2'!A5+N80:N81*'G Q 1-2'!A7,""))) ->  | P80: =IF(O80:O81="","",IF(O80:O81="-","",RANK(O80:O81,O80:O81,1))) ->  | Q80: =IF(AND(LEFT(K80,1)="D",LEFT(K81,1)="D"),"",IF(OR(K80="DNR",K81="DNR"),IF(K80="DNR",B81,B80),IF(OR(ISBLANK(K80),ISBLANK(K81)),"",IF(O80=O81,"TIE",IF(O80>O81,B81,B80))))) ->  | S80: =IF(B80="BYE", B81, IF(ISERROR(J81+R81)=TRUE,"",IF(J81+R81=0,"TIE - HOLD RUNOFF",IF(J81+R81>0,B81,B80)))) -> BYE | T80: =IF(W80:W81="","",IF(ISERROR(W80:W81)=TRUE,"",2+RANK(W80:W81,W80:W81,1))) ->  | U80: =IF(B81="BYE", B80, IF(ISERROR(J81+R81)=TRUE,"",IF(J81+R81>0,B81,B80))) -> BYE | V80: =IF(ISERROR(VLOOKUP(U80,'G Q 1-2'!U12:V111,2,FALSE))=TRUE,"",VLOOKUP(U80,'G Q 1-2'!U12:V111,2,FALSE)) ->  | W80: =IF(ISERROR(VLOOKUP(U80,'G Q 1-2'!AL12:AO111,4,FALSE))=TRUE,"",VLOOKUP(U80,'G Q 1-2'!AL12:AO111,4,FALSE)) -> 
